Workbook

Sheet Resumo
A1: Ministério da Integração e do Desenvolvimento Regional
A2: Companhia de Desenvolvimento dos Vales do São Francisco e do Parnaíba
A4: PLANILHA RESUMO
A5: OBRA: | B5: Execução de Manutenção e Obras Civis nas Barragens de Cacimba Velha, Água Branca, Consolação, Almas e Malhadinha, localizadas no estado De Pernambuco. | E5: BDI (serv.): | F5: ='BDI serv'!D23 -> 0.2591 | G5: Bancos de dados:
A6: LOCAL: | B6: BARRAGENS DE PERNAMBUCO | E6: BDI (forn.): | F6: ='BDI forn'!D23 -> 0.136 | G6: ABR/25 - SINAPI
A7: DATA BASE: | B7: 2025-05-01 | C7: Encargos sociais - Horistas: | F7: ='Encargos Sociais'!E49 -> 1.1384 | G7: JAN/25 - EMBASA
A8: PRAZO: | B8: 330 dias | C8: Encargos sociais - Mensalista: | F8: ='Encargos Sociais'!F49 -> 0.7011 | G8: JAN/2025 - SICRO
E9: Desconto: | F9: 0
A10: ITEM | B10: DESCRIÇÃO | C10: UNID. | D10: QUANT. | E10: CUSTO UNITÁRIO | F10: PREÇO UNITÁRIO | G10: PREÇO TOTAL
A12: 1 | B12: BARRAGENS PERNAMBUCO | G12: =SUM(G13:G17) -> 3609942.83
A13: 1.1 | B13: Cacimba Velha | C13: unid. | D13: 1 | E13: ='Cacimba Velha'!I70 -> 452176.38 | F13: ='Cacimba Velha'!I72 -> 569307.67 | G13: =TRUNC(D13*F13,2) -> 569307.67
A14: 1.2 | B14: Água Branca | C14: unid. | D14: 1 | E14: ='Água Branca'!I65 -> 428720.42 | F14: ='Água Branca'!I67 -> 539767.03 | G14: =TRUNC(D14*F14,2) -> 539767.03
A15: 1.3 | B15: Consolação | C15: unid. | D15: 1 | E15: =Consolação!I83 -> 608539.37 | F15: =Consolação!I85 -> 766174.63 | G15: 766174.63
A16: 1.4 | B16: Almas | C16: unid. | D16: 1 | E16: =Almas!I78 -> 704605.83 | F16: =Almas!I80 -> 887121.01 | G16: 887121.01
A17: 1.5 | B17: Malhadinha | C17: unid. | D17: 1 | E17: =Malhadinha!I74 -> 673187.54 | F17: =Malhadinha!I76 -> 847572.49 | G17: 847572.49
B19: TOTAL (Custo): | G19: =SUMPRODUCT(D12:D18,E12:E18) -> 2867229.54
B20: BDI e Encargos Sociais: | G20: =G21-G19 -> 742713.29
B21: TOTAL GERAL COM BDI: | G21: =SUMPRODUCT(D12:D18,F12:F18) -> 3609942.83

Sheet Cacimba Velha
A1: Ministério da Integração e do Desenvolvimento Regional
A2: Companhia de Desenvolvimento dos Vales do São Francisco e do Parnaíba
A4: PLANILHA ORÇAMENTÁRIA - ORÇAMENTO NÃO DESONERADO
A5: OBRA: | B5: =Resumo!B5 -> Execução de Manutenção e Obras Civis nas Barragens de Cacimba Velha, Água Branca, Consolação, Almas e Malhadinha, localizadas no estado De Pernambuco. | G5: BDI (serv.): | H5: ='BDI serv'!D23 -> 0.2591 | I5: Bancos de dados:
A6: LOCAL: | B6: =Resumo!B6 -> BARRAGENS DE PERNAMBUCO | G6: BDI (forn.): | H6: ='BDI forn'!D23 -> 0.136 | I6: =Resumo!G6 -> ABR/25 - SINAPI
A7: DATA BASE: | B7: =Resumo!B7 -> 2025-05-01 | E7: Encargos sociais - Horistas: | H7: ='Encargos Sociais'!E49 -> 1.1384 | I7: =Resumo!G7 -> JAN/25 - EMBASA
A8: PRAZO: | B8: 90 dias | E8: Encargos sociais - Mensalista: | H8: ='Encargos Sociais'!F49 -> 0.7011 | I8: =Resumo!G8 -> JAN/2025 - SICRO
B9: =Resumo!B13 -> Cacimba Velha | G9: Desconto: | H9: 0 | I9: =Resumo!G9 -> 0
A10: ITEM | B10: REFERÊNCIA | D10: DESCRIÇÃO | E10: UNID. | F10: QUANT. | G10: CUSTO UNITÁRIO | H10: PREÇO UNITÁRIO | I10: PREÇO TOTAL
B11: FONTE | C11: CÓDIGO
A12: 1 | D12: ADMINISTRAÇÃO DA OBRA | I12: =SUM(I13) -> 105233.31
A13: 1.1 | D13: Administração da Obra | I13: =SUM(I14:I14) -> 105233.31
A14: 1.1.1 | B14: PRÓPRIA | C14: CPU.01 | D14: Administração Local | E14: mês | F14: 3 | G14: =TRUNC((1-$H$9)*(SUMIFS(CPU!$G:$G,CPU!$A:$A,'Cacimba Velha'!$C14,CPU!$H:$H,"ss")+SUMIFS(CPU!$G:$G,CPU!$A:$A,'Cacimba Velha'!$C14,CPU!$H:$H,"mdo")+SUMIF('Comp SINAPI PE 12-2024 Onerado'!G:G,'Cacimba Velha'!C14,'Comp SINAPI PE 12-2024 Onerado'!K:K)+SUMIF('Ins SINAPI PE 12-2024 Onerado'!A:A,'Cacimba Velha'!C14,'Ins SINAPI PE 12-2024 Onerado'!E:E)),2) -> 27859.4 | H14: =TRUNC(G14*(1+$H$5),2) -> 35077.77 | I14: =TRUNC(F14*H14,2) -> 105233.31
A16: 2 | D16: SERVIÇOS PRELIMINARES | I16: =SUM(I17,I19,I21) -> 28792.91
A17: 2.1 | D17: Mobilização e desmobilização | I17: =SUM(I18) -> 2179.9
A18: 2.1.1 | B18: PRÓPRIA | C18: CPU.02 | D18: Mobilização e desmobilização de instalação do canteiro | E18: un | F18: 1 | G18: =TRUNC((1-$H$9)*(SUMIFS(CPU!$G:$G,CPU!$A:$A,'Cacimba Velha'!$C18,CPU!$H:$H,"ss")+SUMIFS(CPU!$G:$G,CPU!$A:$A,'Cacimba Velha'!$C18,CPU!$H:$H,"mdo")+SUMIF('Comp SINAPI PE 12-2024 Onerado'!G:G,'Cacimba Velha'!C18,'Comp SINAPI PE 12-2024 Onerado'!K:K)+SUMIF('Ins SINAPI PE 12-2024 Onerado'!A:A,'Cacimba Velha'!C18,'Ins SINAPI PE 12-2024 Onerado'!E:E)),2) -> 1731.32 | H18: =TRUNC(G18*(1+$H$5),2) -> 2179.9 | I18: =TRUNC(F18*H18,2) -> 2179.9
A19: 2.2 | D19: Canteiro de obras | I19: =SUM(I20) -> 25448.79
A20: 2.2.1 | B20: PRÓPRIA | C20: CPU.03 | D20: Execução de canteiro de obras, inclusive, limpeza, refeitório, sanitários e central de formas | E20: m2 | F20: 28.5 | G20: =TRUNC((1-$H$9)*(SUMIFS(CPU!$G:$G,CPU!$A:$A,'Cacimba Velha'!$C20,CPU!$H:$H,"ss")+SUMIFS(CPU!$G:$G,CPU!$A:$A,'Cacimba Velha'!$C20,CPU!$H:$H,"mdo")+SUMIF('Comp SINAPI PE 12-2024 Onerado'!G:G,'Cacimba Velha'!C20,'Comp SINAPI PE 12-2024 Onerado'!K:K)+SUMIF('Ins SINAPI PE 12-2024 Onerado'!A:A,'Cacimba Velha'!C20,'Ins SINAPI PE 12-2024 Onerado'!E:E)),2) -> 709.19 | H20: =TRUNC(G20*(1+$H$5),2) -> 892.94 | I20: =TRUNC(F20*H20,2) -> 25448.79
A21: 2.3 | D21: Sinalização | I21: =SUM(I22:I22) -> 1164.22
A22: 2.3.1 | B22: SINAPI | C22: 103689 | D22: =IF(J22="ca",VLOOKUP(C22,'Comp SINAPI PE 12-2024 Onerado'!$G$7:$K$9000,2,0),VLOOKUP(C22,'Ins SINAPI PE 12-2024 Onerado'!$A$7:$E$9000,2,0)) -> FORNECIMENTO E INSTALAÇÃO DE PLACA DE OBRA COM CHAPA GALVANIZADA E ESTRUTURA DE MADEIRA. AF_03/2022_PS | E22: =IF(J22="ca",VLOOKUP(C22,'Comp SINAPI PE 12-2024 Onerado'!$G$7:$K$9000,3,0),VLOOKUP(C22,'Ins SINAPI PE 12-2024 Onerado'!$A$7:$E$9000,3,0)) -> M2 | F22: 2 | G22: =TRUNC((1-$H$9)*(SUMIFS(CPU!$G:$G,CPU!$A:$A,'Cacimba Velha'!$C22,CPU!$H:$H,"ss")+SUMIFS(CPU!$G:$G,CPU!$A:$A,'Cacimba Velha'!$C22,CPU!$H:$H,"mdo")+SUMIF('Comp SINAPI PE 12-2024 Onerado'!G:G,'Cacimba Velha'!C22,'Comp SINAPI PE 12-2024 Onerado'!K:K)+SUMIF('Ins SINAPI PE 12-2024 Onerado'!A:A,'Cacimba Velha'!C22,'Ins SINAPI PE 12-2024 Onerado'!E:E)),2) -> 462.33 | H22: =TRUNC(G22*(1+$H$5),2) -> 582.11 | I22: =TRUNC(F22*H22,2) -> 1164.22 | J22: ca
A24: 3 | D24: CORTE DA VEGETAÇÃO E REMOÇÃO DAS RAIZES | I24: =SUM(I25) -> 118044.37
A25: 3.1 | D25: Remoção da vegetação | I25: =SUM(I26:I27) -> 118044.37
A26: 3.1.1 | B26: PRÓPRIA | C26: CPU.04 | D26: Limpeza de vegetação | E26: m2 | F26: 10389 | G26: =TRUNC((1-$H$9)*(SUMIFS(CPU!$G:$G,CPU!$A:$A,'Cacimba Velha'!$C26,CPU!$H:$H,"ss")+SUMIFS(CPU!$G:$G,CPU!$A:$A,'Cacimba Velha'!$C26,CPU!$H:$H,"mdo")+SUMIF('Comp SINAPI PE 12-2024 Onerado'!G:G,'Cacimba Velha'!C26,'Comp SINAPI PE 12-2024 Onerado'!K:K)+SUMIF('Ins SINAPI PE 12-2024 Onerado'!A:A,'Cacimba Velha'!C26,'Ins SINAPI PE 12-2024 Onerado'!E:E)),2) -> 7.57 | H26: =TRUNC(G26*(1+$H$5),2) -> 9.53 | I26: =TRUNC(F26*H26,2) -> 99007.17
A27: 3.1.2 | B27: PRÓPRIA | C27: CPU.05 | D27: Corte de tronco e remoção de raiz | E27: un | F27: 40 | G27: =TRUNC((1-$H$9)*(SUMIFS(CPU!$G:$G,CPU!$A:$A,'Cacimba Velha'!$C27,CPU!$H:$H,"ss")+SUMIFS(CPU!$G:$G,CPU!$A:$A,'Cacimba Velha'!$C27,CPU!$H:$H,"mdo")+SUMIF('Comp SINAPI PE 12-2024 Onerado'!G:G,'Cacimba Velha'!C27,'Comp SINAPI PE 12-2024 Onerado'!K:K)+SUMIF('Ins SINAPI PE 12-2024 Onerado'!A:A,'Cacimba Velha'!C27,'Ins SINAPI PE 12-2024 Onerado'!E:E)),2) -> 378 | H27: =TRUNC(G27*(1+$H$5),2) -> 475.93 | I27: =TRUNC(F27*H27,2) -> 19037.2
A29: 4 | D29: RECUPERAÇÃO DO MACIÇO | I29: =SUM(I30,I32) -> 96078.66
A30: 4.1 | D30: Retaludamento (Recuperação das erosões laminares nos taludes) | I30: =SUM(I31:I31) -> 95821.2
A31: 4.1.1 | B31: PRÓPRIA | C31: CPU.06 | D31: Retaludamento dos espaldares da barragem, inclusive, escavação, regularização da superfície e reaterro | E31: m3 | F31: 172 | G31: =TRUNC((1-$H$9)*(SUMIFS(CPU!$G:$G,CPU!$A:$A,'Cacimba Velha'!$C31,CPU!$H:$H,"ss")+SUMIFS(CPU!$G:$G,CPU!$A:$A,'Cacimba Velha'!$C31,CPU!$H:$H,"mdo")+SUMIF('Comp SINAPI PE 12-2024 Onerado'!G:G,'Cacimba Velha'!C31,'Comp SINAPI PE 12-2024 Onerado'!K:K)+SUMIF('Ins SINAPI PE 12-2024 Onerado'!A:A,'Cacimba Velha'!C31,'Ins SINAPI PE 12-2024 Onerado'!E:E)),2) -> 442.46 | H31: =TRUNC(G31*(1+$H$5),2) -> 557.1 | I31: =TRUNC(F31*H31,2) -> 95821.2
A32: 4.2 | D32: Injeção de nata de cimento em buracos | I32: =SUM(I33:I33) -> 257.46
A33: 4.2.1 | B33: PRÓPRIA | C33: CPU.26 | D33: Injeção de nata de cimento em buracos | E33: m3 | F33: 0.19 | G33: =TRUNC((1-$H$9)*(SUMIFS(CPU!$G:$G,CPU!$A:$A,'Cacimba Velha'!$C33,CPU!$H:$H,"ss")+SUMIFS(CPU!$G:$G,CPU!$A:$A,'Cacimba Velha'!$C33,CPU!$H:$H,"mdo")+SUMIF('Comp SINAPI PE 12-2024 Onerado'!G:G,'Cacimba Velha'!C33,'Comp SINAPI PE 12-2024 Onerado'!K:K)+SUMIF('Ins SINAPI PE 12-2024 Onerado'!A:A,'Cacimba Velha'!C33,'Ins SINAPI PE 12-2024 Onerado'!E:E)),2) -> 1076.25 | H33: =TRUNC(G33*(1+$H$5),2) -> 1355.1 | I33: =TRUNC(F33*H33,2) -> 257.46
A35: 5 | D35: MANUTENÇÃO NO TALUDE DE MONTANTE | I35: =SUM(I36) -> 32383.53
A36: 5.1 | D36: Enrocamento com pedra de mão para proteção do talude | I36: =SUM(I37:I37) -> 32383.53
A37: 5.1.1 | B37: PRÓPRIA | C37: CPU.07 | D37: Enrocamento c/ pedra de mão c/ fornecimento e assentamento | E37: m3 | F37: 93 | G37: =TRUNC((1-$H$9)*(SUMIFS(CPU!$G:$G,CPU!$A:$A,'Cacimba Velha'!$C37,CPU!$H:$H,"ss")+SUMIFS(CPU!$G:$G,CPU!$A:$A,'Cacimba Velha'!$C37,CPU!$H:$H,"mdo")+SUMIF('Comp SINAPI PE 12-2024 Onerado'!G:G,'Cacimba Velha'!C37,'Comp SINAPI PE 12-2024 Onerado'!K:K)+SUMIF('Ins SINAPI PE 12-2024 Onerado'!A:A,'Cacimba Velha'!C37,'Ins SINAPI PE 12-2024 Onerado'!E:E)),2) -> 276.56 | H37: =TRUNC(G37*(1+$H$5),2) -> 348.21 | I37: =TRUNC(F37*H37,2) -> 32383.53
A39: 6 | D39: DRENAGEM SUPERFICIAL DO TALUDE DE JUSANTE | I39: =SUM(I40,I42) -> 13807.64
A40: 6.1 | D40: Canaleta para descida d'água | I40: =SUM(I41:I41) -> 11107.6
A41: 6.1.1 | B41: PRÓPRIA | C41: CPU.08 | D41: Canaleta meia cana de concreto (D=30cm) - Fornecimento e instalação | E41: m | F41: 70 | G41: =TRUNC((1-$H$9)*(SUMIFS(CPU!$G:$G,CPU!$A:$A,'Cacimba Velha'!$C41,CPU!$H:$H,"ss")+SUMIFS(CPU!$G:$G,CPU!$A:$A,'Cacimba Velha'!$C41,CPU!$H:$H,"mdo")+SUMIF('Comp SINAPI PE 12-2024 Onerado'!G:G,'Cacimba Velha'!C41,'Comp SINAPI PE 12-2024 Onerado'!K:K)+SUMIF('Ins SINAPI PE 12-2024 Onerado'!A:A,'Cacimba Velha'!C41,'Ins SINAPI PE 12-2024 Onerado'!E:E)),2) -> 126.03 | H41: =TRUNC(G41*(1+$H$5),2) -> 158.68 | I41: =TRUNC(F41*H41,2) -> 11107.6
A42: 6.2 | D42: Entrada para descida d'água | I42: =SUM(I43:I43) -> 2700.04
A43: 6.2.1 | B43: PRÓPRIA | C43: CPU.09 | D43: Entrada para descida d'água | E43: un | F43: 14 | G43: =TRUNC((1-$H$9)*(SUMIFS(CPU!$G:$G,CPU!$A:$A,'Cacimba Velha'!$C43,CPU!$H:$H,"ss")+SUMIFS(CPU!$G:$G,CPU!$A:$A,'Cacimba Velha'!$C43,CPU!$H:$H,"mdo")+SUMIF('Comp SINAPI PE 12-2024 Onerado'!G:G,'Cacimba Velha'!C43,'Comp SINAPI PE 12-2024 Onerado'!K:K)+SUMIF('Ins SINAPI PE 12-2024 Onerado'!A:A,'Cacimba Velha'!C43,'Ins SINAPI PE 12-2024 Onerado'!E:E)),2) -> 153.18 | H43: =TRUNC(G43*(1+$H$5),2) -> 192.86 | I43: =TRUNC(F43*H43,2) -> 2700.04
A45: 7 | D45: PROTEÇÃO SUPERFICIAL DO TALUDE DE JUSANTE | I45: =SUM(I46) -> 135570.07
A46: 7.1 | D46: Proteção vegetal | I46: =SUM(I47:I47) -> 135570.07
A47: 7.1.1 | B47: PRÓPRIA | C47: CPU.10 | D47: Plantio de vegetação de proteção, inclusive adubação | E47: m2 | F47: 3103 | G47: =TRUNC((1-$H$9)*(SUMIFS(CPU!$G:$G,CPU!$A:$A,'Cacimba Velha'!$C47,CPU!$H:$H,"ss")+SUMIFS(CPU!$G:$G,CPU!$A:$A,'Cacimba Velha'!$C47,CPU!$H:$H,"mdo")+SUMIF('Comp SINAPI PE 12-2024 Onerado'!G:G,'Cacimba Velha'!C47,'Comp SINAPI PE 12-2024 Onerado'!K:K)+SUMIF('Ins SINAPI PE 12-2024 Onerado'!A:A,'Cacimba Velha'!C47,'Ins SINAPI PE 12-2024 Onerado'!E:E)),2) -> 34.7 | H47: =TRUNC(G47*(1+$H$5),2) -> 43.69 | I47: =TRUNC(F47*H47,2) -> 135570.07
A49: 8 | D49: RESTAURAÇÃO DO MURO LATERAL | I49: =SUM(I50) -> 17166
A50: 8.1 | D50: Restauração do muro lateral | I50: =SUM(I51:I53) -> 17166
A51: 8.1.1 | B51: PRÓPRIA | C51: CPU.11 | D51: Apicoamento da superfície | E51: m2 | F51: 100 | G51: =TRUNC((1-$H$9)*(SUMIFS(CPU!$G:$G,CPU!$A:$A,'Cacimba Velha'!$C51,CPU!$H:$H,"ss")+SUMIFS(CPU!$G:$G,CPU!$A:$A,'Cacimba Velha'!$C51,CPU!$H:$H,"mdo")+SUMIF('Comp SINAPI PE 12-2024 Onerado'!G:G,'Cacimba Velha'!C51,'Comp SINAPI PE 12-2024 Onerado'!K:K)+SUMIF('Ins SINAPI PE 12-2024 Onerado'!A:A,'Cacimba Velha'!C51,'Ins SINAPI PE 12-2024 Onerado'!E:E)),2) -> 30.69 | H51: =TRUNC(G51*(1+$H$5),2) -> 38.64 | I51: =TRUNC(F51*H51,2) -> 3864
A52: 8.1.2 | B52: PRÓPRIA | C52: CPU.24 | D52: Limpeza da superfície | E52: m2 | F52: 100 | G52: =TRUNC((1-$H$9)*(SUMIFS(CPU!$G:$G,CPU!$A:$A,'Cacimba Velha'!$C52,CPU!$H:$H,"ss")+SUMIFS(CPU!$G:$G,CPU!$A:$A,'Cacimba Velha'!$C52,CPU!$H:$H,"mdo")+SUMIF('Comp SINAPI PE 12-2024 Onerado'!G:G,'Cacimba Velha'!C52,'Comp SINAPI PE 12-2024 Onerado'!K:K)+SUMIF('Ins SINAPI PE 12-2024 Onerado'!A:A,'Cacimba Velha'!C52,'Ins SINAPI PE 12-2024 Onerado'!E:E)),2) -> 6.71 | H52: =TRUNC(G52*(1+$H$5),2) -> 8.44 | I52: =TRUNC(F52*H52,2) -> 844
A53: 8.1.3 | B53: PRÓPRIA | C53: CPU.23 | D53: Emboço ou massa única em argamassa | E53: m2 | F53: 100 | G53: =TRUNC((1-$H$9)*(SUMIFS(CPU!$G:$G,CPU!$A:$A,'Cacimba Velha'!$C53,CPU!$H:$H,"ss")+SUMIFS(CPU!$G:$G,CPU!$A:$A,'Cacimba Velha'!$C53,CPU!$H:$H,"mdo")+SUMIF('Comp SINAPI PE 12-2024 Onerado'!G:G,'Cacimba Velha'!C53,'Comp SINAPI PE 12-2024 Onerado'!K:K)+SUMIF('Ins SINAPI PE 12-2024 Onerado'!A:A,'Cacimba Velha'!C53,'Ins SINAPI PE 12-2024 Onerado'!E:E)),2) -> 98.95 | H53: 124.58 | I53: 12458
A55: 9 | D55: CONTENÇÃO DO PROCESSO EROSIVO NO CANAL DE RESTITUIÇÃO | I55: =SUM(I56) -> 2403.9
A56: 9.1 | D56: Enrocamento ARCO tipo rachão reciclado cinza classe A jogado com fornecimento | I56: =SUM(I57:I57) -> 2403.9
A57: 9.1.1 | B57: PRÓPRIA | C57: CPU.12 | D57: Enrocamento ARCO tipo rachão reciclado cinza classe A jogado com fornecimento | E57: m3 | F57: 9 | G57: =TRUNC((1-$H$9)*(SUMIFS(CPU!$G:$G,CPU!$A:$A,'Cacimba Velha'!$C57,CPU!$H:$H,"ss")+SUMIFS(CPU!$G:$G,CPU!$A:$A,'Cacimba Velha'!$C57,CPU!$H:$H,"mdo")+SUMIF('Comp SINAPI PE 12-2024 Onerado'!G:G,'Cacimba Velha'!C57,'Comp SINAPI PE 12-2024 Onerado'!K:K)+SUMIF('Ins SINAPI PE 12-2024 Onerado'!A:A,'Cacimba Velha'!C57,'Ins SINAPI PE 12-2024 Onerado'!E:E)),2) -> 212.14 | H57: =TRUNC(G57*(1+$H$5),2) -> 267.1 | I57: =TRUNC(F57*H57,2) -> 2403.9
A59: 10 | D59: SERVIÇOS COMPLEMENTARES | I59: =SUM(I60,I62) -> 4429
A60: 10.1 | D60: Instalação de placas de aviso | I60: =SUM(I61:I61) -> 2328.44
A61: 10.1.1 | B61: SINAPI | C61: 103689 | D61: =IF(J61="ca",VLOOKUP(C61,'Comp SINAPI PE 12-2024 Onerado'!$G$7:$K$9000,2,0),VLOOKUP(C61,'Ins SINAPI PE 12-2024 Onerado'!$A$7:$E$9000,2,0)) -> FORNECIMENTO E INSTALAÇÃO DE PLACA DE OBRA COM CHAPA GALVANIZADA E ESTRUTURA DE MADEIRA. AF_03/2022_PS | E61: =IF(J61="ca",VLOOKUP(C61,'Comp SINAPI PE 12-2024 Onerado'!$G$7:$K$9000,3,0),VLOOKUP(C61,'Ins SINAPI PE 12-2024 Onerado'!$A$7:$E$9000,3,0)) -> M2 | F61: 4 | G61: =TRUNC((1-$H$9)*(SUMIFS(CPU!$G:$G,CPU!$A:$A,'Cacimba Velha'!$C61,CPU!$H:$H,"ss")+SUMIFS(CPU!$G:$G,CPU!$A:$A,'Cacimba Velha'!$C61,CPU!$H:$H,"mdo")+SUMIF('Comp SINAPI PE 12-2024 Onerado'!G:G,'Cacimba Velha'!C61,'Comp SINAPI PE 12-2024 Onerado'!K:K)+SUMIF('Ins SINAPI PE 12-2024 Onerado'!A:A,'Cacimba Velha'!C61,'Ins SINAPI PE 12-2024 Onerado'!E:E)),2) -> 462.33 | H61: =TRUNC(G61*(1+$H$5),2) -> 582.11 | I61: =TRUNC(F61*H61,2) -> 2328.44 | J61: ca
A62: 10.2 | D62: Régua Linimétrica Padrão “ANA”, Aço Carbono - 2 X 70 X 1000 mm (Fornecimento e Instalação) | I62: =SUM(I63:I63) -> 2100.56
A63: 10.2.1 | B63: PRÓPRIA | C63: CPU.18 | D63: Régua Linimétrica Padrão “ANA”, Aço Carbono - 2 X 70 X 1000 mm (Fornecimento e Instalação) | E63: un | F63: 4 | G63: =TRUNC((1-$H$9)*(SUMIFS(CPU!$G:$G,CPU!$A:$A,'Cacimba Velha'!$C63,CPU!$H:$H,"ss")+SUMIFS(CPU!$G:$G,CPU!$A:$A,'Cacimba Velha'!$C63,CPU!$H:$H,"mdo")+SUMIF('Comp SINAPI PE 12-2024 Onerado'!G:G,'Cacimba Velha'!C63,'Comp SINAPI PE 12-2024 Onerado'!K:K)+SUMIF('Ins SINAPI PE 12-2024 Onerado'!A:A,'Cacimba Velha'!C63,'Ins SINAPI PE 12-2024 Onerado'!E:E)),2) -> 417.08 | H63: =TRUNC(G63*(1+$H$5),2) -> 525.14 | I63: =TRUNC(F63*H63,2) -> 2100.56
A65: 11 | D65: PROJETO "AS IS" | I65: =SUM(I66) -> 15398.28
A66: 11.1 | D66: Levantamento topógrafico e "AS IS" | I66: =SUM(I67:I68) -> 15398.28
A67: 11.1.1 | B67: ORSE | C67: 9346 | D67: Levantamento topográfico planimétrico cadastral | E67: m2 | F67: =F26 -> 10389 | G67: =TRUNC((1-$H$9)*0.35,2) -> 0.35 | H67: =TRUNC(G67*(1+$H$5),2) -> 0.44 | I67: =TRUNC(F67*H67,2) -> 4571.16
A68: 11.1.2 | B68: PRÓPRIA | C68: CPU.25 | D68: Projeto Geométrico | E68: un | F68: 1 | G68: =TRUNC((1-$H$9)*(SUMIFS(CPU!$G:$G,CPU!$A:$A,'Cacimba Velha'!$C68,CPU!$H:$H,"ss")+SUMIFS(CPU!$G:$G,CPU!$A:$A,'Cacimba Velha'!$C68,CPU!$H:$H,"mdo")+SUMIF('Comp SINAPI PE 12-2024 Onerado'!G:G,'Cacimba Velha'!C68,'Comp SINAPI PE 12-2024 Onerado'!K:K)+SUMIF('Ins SINAPI PE 12-2024 Onerado'!A:A,'Cacimba Velha'!C68,'Ins SINAPI PE 12-2024 Onerado'!E:E)),2) -> 8599.1 | H68: 10827.12 | I68: =TRUNC(F68*H68,2) -> 10827.12
D70: TOTAL (Custo): | I70: =TRUNC(SUMPRODUCT(F13:F69,G13:G69),2) -> 452176.38
D71: BDI e Encargos Sociais: | I71: =I72-I70 -> 117131.29
D72: TOTAL GERAL COM BDI: | I72: =TRUNC(SUMPRODUCT(F13:F69,H13:H69),2) -> 569307.67 | J72: VERIFICAÇÃO | K72: =SUM(I12,I16,I24,I29,I35,I39,I45,I49,I55,I59,I65) -> 569307.67

Sheet Água Branca
A1: Ministério da Integração e do Desenvolvimento Regional
A2: Companhia de Desenvolvimento dos Vales do São Francisco e do Parnaíba
A4: PLANILHA ORÇAMENTÁRIA - ORÇAMENTO NÃO DESONERADO
A5: OBRA: | B5: =Resumo!B5 -> Execução de Manutenção e Obras Civis nas Barragens de Cacimba Velha, Água Branca, Consolação, Almas e Malhadinha, localizadas no estado De Pernambuco. | G5: BDI (serv.): | H5: ='BDI serv'!D23 -> 0.2591 | I5: Bancos de dados:
A6: LOCAL: | B6: =Resumo!B6 -> BARRAGENS DE PERNAMBUCO | G6: BDI (forn.): | H6: ='BDI forn'!D23 -> 0.136 | I6: =Resumo!G6 -> ABR/25 - SINAPI
A7: DATA BASE: | B7: =Resumo!B7 -> 2025-05-01 | E7: Encargos sociais - Horistas: | H7: ='Encargos Sociais'!E49 -> 1.1384 | I7: =Resumo!G7 -> JAN/25 - EMBASA
A8: PRAZO: | B8: 90 dias | E8: Encargos sociais - Mensalista: | H8: ='Encargos Sociais'!F49 -> 0.7011 | I8: =Resumo!G8 -> JAN/2025 - SICRO
B9: =Resumo!B14 -> Água Branca | G9: Desconto: | H9: 0 | I9: =Resumo!G9 -> 0
A10: ITEM | B10: REFERÊNCIA | D10: DESCRIÇÃO | E10: UNID. | F10: QUANT. | G10: CUSTO UNITÁRIO | H10: PREÇO UNITÁRIO | I10: PREÇO TOTAL
B11: FONTE | C11: CÓDIGO
A12: 1 | D12: ADMINISTRAÇÃO DA OBRA | I12: =SUM(I13) -> 105233.31
A13: 1.1 | D13: Administração da Obra | I13: =SUM(I14:I14) -> 105233.31
A14: 1.1.1 | B14: PRÓPRIA | C14: CPU.01 | D14: Administração Local | E14: mês | F14: 3 | G14: =TRUNC((1-$H$9)*(SUMIFS(CPU!$G:$G,CPU!$A:$A,'Água Branca'!$C14,CPU!$H:$H,"ss")+SUMIFS(CPU!$G:$G,CPU!$A:$A,'Água Branca'!$C14,CPU!$H:$H,"mdo")+SUMIF('Comp SINAPI PE 12-2024 Onerado'!G:G,'Água Branca'!C14,'Comp SINAPI PE 12-2024 Onerado'!K:K)+SUMIF('Ins SINAPI PE 12-2024 Onerado'!A:A,'Água Branca'!C14,'Ins SINAPI PE 12-2024 Onerado'!E:E)),2) -> 27859.4 | H14: =TRUNC(G14*(1+$H$5),2) -> 35077.77 | I14: =TRUNC(F14*H14,2) -> 105233.31
A16: 2 | D16: SERVIÇOS PRELIMINARES | I16: =SUM(I17,I19,I21) -> 28792.91
A17: 2.1 | D17: Mobilização e desmobilização | I17: =SUM(I18) -> 2179.9
A18: 2.1.1 | B18: PRÓPRIA | C18: CPU.02 | D18: Mobilização e desmobilização de instalação do canteiro | E18: un | F18: 1 | G18: =TRUNC((1-$H$9)*(SUMIFS(CPU!$G:$G,CPU!$A:$A,'Água Branca'!$C18,CPU!$H:$H,"ss")+SUMIFS(CPU!$G:$G,CPU!$A:$A,'Água Branca'!$C18,CPU!$H:$H,"mdo")+SUMIF('Comp SINAPI PE 12-2024 Onerado'!G:G,'Água Branca'!C18,'Comp SINAPI PE 12-2024 Onerado'!K:K)+SUMIF('Ins SINAPI PE 12-2024 Onerado'!A:A,'Água Branca'!C18,'Ins SINAPI PE 12-2024 Onerado'!E:E)),2) -> 1731.32 | H18: =TRUNC(G18*(1+$H$5),2) -> 2179.9 | I18: =TRUNC(F18*H18,2) -> 2179.9
A19: 2.2 | D19: Canteiro de obras | I19: =SUM(I20) -> 25448.79
A20: 2.2.1 | B20: PRÓPRIA | C20: CPU.03 | D20: Execução de canteiro de obras, inclusive, limpeza, refeitório, sanitários e central de formas | E20: m2 | F20: 28.5 | G20: =TRUNC((1-$H$9)*(SUMIFS(CPU!$G:$G,CPU!$A:$A,'Água Branca'!$C20,CPU!$H:$H,"ss")+SUMIFS(CPU!$G:$G,CPU!$A:$A,'Água Branca'!$C20,CPU!$H:$H,"mdo")+SUMIF('Comp SINAPI PE 12-2024 Onerado'!G:G,'Água Branca'!C20,'Comp SINAPI PE 12-2024 Onerado'!K:K)+SUMIF('Ins SINAPI PE 12-2024 Onerado'!A:A,'Água Branca'!C20,'Ins SINAPI PE 12-2024 Onerado'!E:E)),2) -> 709.19 | H20: =TRUNC(G20*(1+$H$5),2) -> 892.94 | I20: =TRUNC(F20*H20,2) -> 25448.79
A21: 2.3 | D21: Sinalização | I21: =SUM(I22:I22) -> 1164.22
A22: 2.3.1 | B22: SINAPI | C22: 103689 | D22: =IF(J22="ca",VLOOKUP(C22,'Comp SINAPI PE 12-2024 Onerado'!$G$7:$K$9000,2,0),VLOOKUP(C22,'Ins SINAPI PE 12-2024 Onerado'!$A$7:$E$9000,2,0)) -> FORNECIMENTO E INSTALAÇÃO DE PLACA DE OBRA COM CHAPA GALVANIZADA E ESTRUTURA DE MADEIRA. AF_03/2022_PS | E22: =IF(J22="ca",VLOOKUP(C22,'Comp SINAPI PE 12-2024 Onerado'!$G$7:$K$9000,3,0),VLOOKUP(C22,'Ins SINAPI PE 12-2024 Onerado'!$A$7:$E$9000,3,0)) -> M2 | F22: 2 | G22: =TRUNC((1-$H$9)*(SUMIFS(CPU!$G:$G,CPU!$A:$A,'Água Branca'!$C22,CPU!$H:$H,"ss")+SUMIFS(CPU!$G:$G,CPU!$A:$A,'Água Branca'!$C22,CPU!$H:$H,"mdo")+SUMIF('Comp SINAPI PE 12-2024 Onerado'!G:G,'Água Branca'!C22,'Comp SINAPI PE 12-2024 Onerado'!K:K)+SUMIF('Ins SINAPI PE 12-2024 Onerado'!A:A,'Água Branca'!C22,'Ins SINAPI PE 12-2024 Onerado'!E:E)),2) -> 462.33 | H22: =TRUNC(G22*(1+$H$5),2) -> 582.11 | I22: =TRUNC(F22*H22,2) -> 1164.22 | J22: ca
A24: 3 | D24: CORTE DA VEGETAÇÃO E REMOÇÃO DAS RAIZES | I24: =SUM(I25) -> 149350.42
A25: 3.1 | D25: Remoção da vegetação | I25: =SUM(I26:I27) -> 149350.42
A26: 3.1.1 | B26: PRÓPRIA | C26: CPU.04 | D26: Limpeza de vegetação | E26: m2 | F26: 13674 | G26: =TRUNC((1-$H$9)*(SUMIFS(CPU!$G:$G,CPU!$A:$A,'Água Branca'!$C26,CPU!$H:$H,"ss")+SUMIFS(CPU!$G:$G,CPU!$A:$A,'Água Branca'!$C26,CPU!$H:$H,"mdo")+SUMIF('Comp SINAPI PE 12-2024 Onerado'!G:G,'Água Branca'!C26,'Comp SINAPI PE 12-2024 Onerado'!K:K)+SUMIF('Ins SINAPI PE 12-2024 Onerado'!A:A,'Água Branca'!C26,'Ins SINAPI PE 12-2024 Onerado'!E:E)),2) -> 7.57 | H26: =TRUNC(G26*(1+$H$5),2) -> 9.53 | I26: =TRUNC(F26*H26,2) -> 130313.22
A27: 3.1.2 | B27: PRÓPRIA | C27: CPU.05 | D27: Corte de tronco e remoção de raiz | E27: un | F27: 40 | G27: =TRUNC((1-$H$9)*(SUMIFS(CPU!$G:$G,CPU!$A:$A,'Água Branca'!$C27,CPU!$H:$H,"ss")+SUMIFS(CPU!$G:$G,CPU!$A:$A,'Água Branca'!$C27,CPU!$H:$H,"mdo")+SUMIF('Comp SINAPI PE 12-2024 Onerado'!G:G,'Água Branca'!C27,'Comp SINAPI PE 12-2024 Onerado'!K:K)+SUMIF('Ins SINAPI PE 12-2024 Onerado'!A:A,'Água Branca'!C27,'Ins SINAPI PE 12-2024 Onerado'!E:E)),2) -> 378 | H27: =TRUNC(G27*(1+$H$5),2) -> 475.93 | I27: =TRUNC(F27*H27,2) -> 19037.2
A29: 4 | D29: RECUPERAÇÃO DO MACIÇO | I29: =SUM(I30,I32) -> 30189.12
A30: 4.1 | D30: Recomposição das Erosões (erosões locais nas ombreiras e taludes) | I30: =SUM(I31:I31) -> 29931.66
A31: 4.1.1 | B31: PRÓPRIA | C31: CPU.13 | D31: Recomposição das erosões, inclusive, regularização da superfície e reaterro | E31: m3 | F31: =12+42 -> 54 | G31: =TRUNC((1-$H$9)*(SUMIFS(CPU!$G:$G,CPU!$A:$A,'Água Branca'!$C31,CPU!$H:$H,"ss")+SUMIFS(CPU!$G:$G,CPU!$A:$A,'Água Branca'!$C31,CPU!$H:$H,"mdo")+SUMIF('Comp SINAPI PE 12-2024 Onerado'!G:G,'Água Branca'!C31,'Comp SINAPI PE 12-2024 Onerado'!K:K)+SUMIF('Ins SINAPI PE 12-2024 Onerado'!A:A,'Água Branca'!C31,'Ins SINAPI PE 12-2024 Onerado'!E:E)),2) -> 440.23 | H31: =TRUNC(G31*(1+$H$5),2) -> 554.29 | I31: =TRUNC(F31*H31,2) -> 29931.66
A32: 4.2 | D32: Injeção de nata de cimento em buracos | I32: =SUM(I33:I33) -> 257.46
A33: 4.2.1 | B33: PRÓPRIA | C33: CPU.26 | D33: Injeção de nata de cimento em buracos | E33: m3 | F33: 0.19 | G33: =TRUNC((1-$H$9)*(SUMIFS(CPU!$G:$G,CPU!$A:$A,'Água Branca'!$C33,CPU!$H:$H,"ss")+SUMIFS(CPU!$G:$G,CPU!$A:$A,'Água Branca'!$C33,CPU!$H:$H,"mdo")+SUMIF('Comp SINAPI PE 12-2024 Onerado'!G:G,'Água Branca'!C33,'Comp SINAPI PE 12-2024 Onerado'!K:K)+SUMIF('Ins SINAPI PE 12-2024 Onerado'!A:A,'Água Branca'!C33,'Ins SINAPI PE 12-2024 Onerado'!E:E)),2) -> 1076.25 | H33: =TRUNC(G33*(1+$H$5),2) -> 1355.1 | I33: =TRUNC(F33*H33,2) -> 257.46
A35: 5 | D35: REGULARIZAÇÃO E PAVIMENTAÇÃO DA CRISTA | I35: =SUM(I36,I38) -> 75241.73
A36: 5.1 | D36: Regularização da Crista | I36: =SUM(I37:I37) -> 4505.49
A37: 5.1.1 | B37: PRÓPRIA | C37: CPU.14 | D37: Regularização e compactação da crista | E37: m2 | F37: 1517 | G37: =TRUNC((1-$H$9)*(SUMIFS(CPU!$G:$G,CPU!$A:$A,'Água Branca'!$C37,CPU!$H:$H,"ss")+SUMIFS(CPU!$G:$G,CPU!$A:$A,'Água Branca'!$C37,CPU!$H:$H,"mdo")+SUMIF('Comp SINAPI PE 12-2024 Onerado'!G:G,'Água Branca'!C37,'Comp SINAPI PE 12-2024 Onerado'!K:K)+SUMIF('Ins SINAPI PE 12-2024 Onerado'!A:A,'Água Branca'!C37,'Ins SINAPI PE 12-2024 Onerado'!E:E)),2) -> 2.36 | H37: =TRUNC(G37*(1+$H$5),2) -> 2.97 | I37: =TRUNC(F37*H37,2) -> 4505.49
A38: 5.2 | D38: Pavimentação da Crista | I38: =SUM(I39:I39) -> 70736.24
A39: 5.2.1 | B39: PRÓPRIA | C39: CPU.15 | D39: Execução de Revestimento com BGTC | E39: m3 | F39: 152 | G39: =TRUNC((1-$H$9)*(SUMIFS(CPU!$G:$G,CPU!$A:$A,'Água Branca'!$C39,CPU!$H:$H,"ss")+SUMIFS(CPU!$G:$G,CPU!$A:$A,'Água Branca'!$C39,CPU!$H:$H,"mdo")+SUMIF('Comp SINAPI PE 12-2024 Onerado'!G:G,'Água Branca'!C39,'Comp SINAPI PE 12-2024 Onerado'!K:K)+SUMIF('Ins SINAPI PE 12-2024 Onerado'!A:A,'Água Branca'!C39,'Ins SINAPI PE 12-2024 Onerado'!E:E)),2) -> 369.61 | H39: =TRUNC(G39*(1+$H$5),2) -> 465.37 | I39: =TRUNC(F39*H39,2) -> 70736.24
A41: 6 | D41: DRENAGEM SUPERFICIAL DO TALUDE DE JUSANTE | I41: =SUM(I42) -> 14281.2
A42: 6.1 | D42: Canaleta para descida d'água | I42: =SUM(I43:I43) -> 14281.2
A43: 6.1.1 | B43: PRÓPRIA | C43: CPU.08 | D43: Canaleta meia cana de concreto (D=30cm) - Fornecimento e instalação | E43: m | F43: 90 | G43: =TRUNC((1-$H$9)*(SUMIFS(CPU!$G:$G,CPU!$A:$A,'Água Branca'!$C43,CPU!$H:$H,"ss")+SUMIFS(CPU!$G:$G,CPU!$A:$A,'Água Branca'!$C43,CPU!$H:$H,"mdo")+SUMIF('Comp SINAPI PE 12-2024 Onerado'!G:G,'Água Branca'!C43,'Comp SINAPI PE 12-2024 Onerado'!K:K)+SUMIF('Ins SINAPI PE 12-2024 Onerado'!A:A,'Água Branca'!C43,'Ins SINAPI PE 12-2024 Onerado'!E:E)),2) -> 126.03 | H43: =TRUNC(G43*(1+$H$5),2) -> 158.68 | I43: =TRUNC(F43*H43,2) -> 14281.2
A45: 7 | D45: PROTEÇÃO SUPERFICIAL DO TALUDE DE JUSANTE | I45: =SUM(I46) -> 109530.83
A46: 7.1 | D46: Proteção vegetal | I46: =SUM(I47:I47) -> 109530.83
A47: 7.1.1 | B47: PRÓPRIA | C47: CPU.10 | D47: Plantio de vegetação de proteção, inclusive adubação | E47: m2 | F47: 2507 | G47: =TRUNC((1-$H$9)*(SUMIFS(CPU!$G:$G,CPU!$A:$A,'Água Branca'!$C47,CPU!$H:$H,"ss")+SUMIFS(CPU!$G:$G,CPU!$A:$A,'Água Branca'!$C47,CPU!$H:$H,"mdo")+SUMIF('Comp SINAPI PE 12-2024 Onerado'!G:G,'Água Branca'!C47,'Comp SINAPI PE 12-2024 Onerado'!K:K)+SUMIF('Ins SINAPI PE 12-2024 Onerado'!A:A,'Água Branca'!C47,'Ins SINAPI PE 12-2024 Onerado'!E:E)),2) -> 34.7 | H47: =TRUNC(G47*(1+$H$5),2) -> 43.69 | I47: =TRUNC(F47*H47,2) -> 109530.83
A49: 8 | D49: RESTAURAÇÃO DO MURO LATERAL | I49: =SUM(I50) -> 3774.26
A50: 8.1 | D50: Restauração do muro lateral | I50: =SUM(I51:I52) -> 3774.26
A51: 8.1.1 | B51: PRÓPRIA | C51: CPU.24 | D51: Limpeza da superfície | E51: m2 | F51: =25*1.5 -> 37.5 | G51: =TRUNC((1-$H$9)*(SUMIFS(CPU!$G:$G,CPU!$A:$A,'Água Branca'!$C51,CPU!$H:$H,"ss")+SUMIFS(CPU!$G:$G,CPU!$A:$A,'Água Branca'!$C51,CPU!$H:$H,"mdo")+SUMIF('Comp SINAPI PE 12-2024 Onerado'!G:G,'Água Branca'!C51,'Comp SINAPI PE 12-2024 Onerado'!K:K)+SUMIF('Ins SINAPI PE 12-2024 Onerado'!A:A,'Água Branca'!C51,'Ins SINAPI PE 12-2024 Onerado'!E:E)),2) -> 6.71 | H51: =TRUNC(G51*(1+$H$5),2) -> 8.44 | I51: =TRUNC(F51*H51,2) -> 316.5
A52: 8.1.2 | B52: PRÓPRIA | C52: CPU.16 | D52: Restauração com uso de concreto | E52: m3 | F52: =25*0.5*0.15 -> 1.875 | G52: =TRUNC((1-$H$9)*(SUMIFS(CPU!$G:$G,CPU!$A:$A,'Água Branca'!$C52,CPU!$H:$H,"ss")+SUMIFS(CPU!$G:$G,CPU!$A:$A,'Água Branca'!$C52,CPU!$H:$H,"mdo")+SUMIF('Comp SINAPI PE 12-2024 Onerado'!G:G,'Água Branca'!C52,'Comp SINAPI PE 12-2024 Onerado'!K:K)+SUMIF('Ins SINAPI PE 12-2024 Onerado'!A:A,'Água Branca'!C52,'Ins SINAPI PE 12-2024 Onerado'!E:E)),2) -> 1464.65 | H52: =TRUNC(G52*(1+$H$5),2) -> 1844.14 | I52: =TRUNC(F52*H52,2) -> 3457.76
A54: 9 | D54: SERVIÇOS COMPLEMENTARES | I54: =SUM(I55,I57) -> 6529.56
A55: 9.1 | D55: Instalação de placas de aviso | I55: =SUM(I56:I56) -> 2328.44
A56: 9.1.1 | B56: SINAPI | C56: 103689 | D56: =IF(J56="ca",VLOOKUP(C56,'Comp SINAPI PE 12-2024 Onerado'!$G$7:$K$9000,2,0),VLOOKUP(C56,'Ins SINAPI PE 12-2024 Onerado'!$A$7:$E$9000,2,0)) -> FORNECIMENTO E INSTALAÇÃO DE PLACA DE OBRA COM CHAPA GALVANIZADA E ESTRUTURA DE MADEIRA. AF_03/2022_PS | E56: =IF(J56="ca",VLOOKUP(C56,'Comp SINAPI PE 12-2024 Onerado'!$G$7:$K$9000,3,0),VLOOKUP(C56,'Ins SINAPI PE 12-2024 Onerado'!$A$7:$E$9000,3,0)) -> M2 | F56: 4 | G56: =TRUNC((1-$H$9)*(SUMIFS(CPU!$G:$G,CPU!$A:$A,'Água Branca'!$C56,CPU!$H:$H,"ss")+SUMIFS(CPU!$G:$G,CPU!$A:$A,'Água Branca'!$C56,CPU!$H:$H,"mdo")+SUMIF('Comp SINAPI PE 12-2024 Onerado'!G:G,'Água Branca'!C56,'Comp SINAPI PE 12-2024 Onerado'!K:K)+SUMIF('Ins SINAPI PE 12-2024 Onerado'!A:A,'Água Branca'!C56,'Ins SINAPI PE 12-2024 Onerado'!E:E)),2) -> 462.33 | H56: =TRUNC(G56*(1+$H$5),2) -> 582.11 | I56: =TRUNC(F56*H56,2) -> 2328.44 | J56: ca
A57: 9.2 | D57: Régua Linimétrica Padrão “ANA”, Aço Carbono - 2 X 70 X 1000 mm (Fornecimento e Instalação) | I57: =SUM(I58:I58) -> 4201.12
A58: 9.2.1 | B58: PRÓPRIA | C58: CPU.18 | D58: Régua Linimétrica Padrão “ANA”, Aço Carbono - 2 X 70 X 1000 mm (Fornecimento e Instalação) | E58: un | F58: 8 | G58: =TRUNC((1-$H$9)*(SUMIFS(CPU!$G:$G,CPU!$A:$A,'Água Branca'!$C58,CPU!$H:$H,"ss")+SUMIFS(CPU!$G:$G,CPU!$A:$A,'Água Branca'!$C58,CPU!$H:$H,"mdo")+SUMIF('Comp SINAPI PE 12-2024 Onerado'!G:G,'Água Branca'!C58,'Comp SINAPI PE 12-2024 Onerado'!K:K)+SUMIF('Ins SINAPI PE 12-2024 Onerado'!A:A,'Água Branca'!C58,'Ins SINAPI PE 12-2024 Onerado'!E:E)),2) -> 417.08 | H58: =TRUNC(G58*(1+$H$5),2) -> 525.14 | I58: =TRUNC(F58*H58,2) -> 4201.12 | J58: ca
A60: 10 | D60: PROJETO "AS IS" | I60: =SUM(I61) -> 16843.68
A61: 10.1 | D61: Levantamento topógrafico e "AS IS" | I61: =SUM(I62:I63) -> 16843.68
A62: 10.1.1 | B62: ORSE | C62: 9346 | D62: Levantamento topográfico planimétrico cadastral | E62: m2 | F62: =F26 -> 13674 | G62: =TRUNC((1-$H$9)*0.35,2) -> 0.35 | H62: =TRUNC(G62*(1+$H$5),2) -> 0.44 | I62: =TRUNC(F62*H62,2) -> 6016.56
A63: 10.1.2 | B63: PRÓPRIA | C63: CPU.25 | D63: Projeto Geométrico | E63: un | F63: 1 | G63: =TRUNC((1-$H$9)*(SUMIFS(CPU!$G:$G,CPU!$A:$A,'Água Branca'!$C63,CPU!$H:$H,"ss")+SUMIFS(CPU!$G:$G,CPU!$A:$A,'Água Branca'!$C63,CPU!$H:$H,"mdo")+SUMIF('Comp SINAPI PE 12-2024 Onerado'!G:G,'Água Branca'!C63,'Comp SINAPI PE 12-2024 Onerado'!K:K)+SUMIF('Ins SINAPI PE 12-2024 Onerado'!A:A,'Água Branca'!C63,'Ins SINAPI PE 12-2024 Onerado'!E:E)),2) -> 8599.1 | H63: =TRUNC(G63*(1+$H$5),2) -> 10827.12 | I63: =TRUNC(F63*H63,2) -> 10827.12
D65: TOTAL (Custo): | I65: =TRUNC(SUMPRODUCT(F13:F64,G13:G64),2) -> 428720.42
D66: BDI e Encargos Sociais: | I66: =I67-I65 -> 111046.61
D67: TOTAL GERAL COM BDI: | I67: =TRUNC(SUMPRODUCT(F13:F64,H13:H64),2) -> 539767.03 | J67: VERIFICAÇÃO | K67: =SUM(I12,I16,I24,I29,I35,I41,I45,I49,I54,I60) -> 539767.02

Sheet Consolação
A1: Ministério da Integração e do Desenvolvimento Regional
A2: Companhia de Desenvolvimento dos Vales do São Francisco e do Parnaíba
A4: PLANILHA ORÇAMENTÁRIA - ORÇAMENTO NÃO DESONERADO
A5: OBRA: | B5: =Resumo!B5 -> Execução de Manutenção e Obras Civis nas Barragens de Cacimba Velha, Água Branca, Consolação, Almas e Malhadinha, localizadas no estado De Pernambuco. | G5: BDI (serv.): | H5: ='BDI serv'!D23 -> 0.2591 | I5: Bancos de dados:
A6: LOCAL: | B6: =Resumo!B6 -> BARRAGENS DE PERNAMBUCO | G6: BDI (forn.): | H6: ='BDI forn'!D23 -> 0.136 | I6: =Resumo!G6 -> ABR/25 - SINAPI
A7: DATA BASE: | B7: =Resumo!B7 -> 2025-05-01 | E7: Encargos sociais - Horistas: | H7: ='Encargos Sociais'!E49 -> 1.1384 | I7: =Resumo!G7 -> JAN/25 - EMBASA
A8: PRAZO: | B8: 120 dias | E8: Encargos sociais - Mensalista: | H8: ='Encargos Sociais'!F49 -> 0.7011 | I8: =Resumo!G8 -> JAN/2025 - SICRO
B9: =Resumo!B15 -> Consolação | G9: Desconto: | H9: 0 | I9: =Resumo!G9 -> 0
A10: ITEM | B10: REFERÊNCIA | D10: DESCRIÇÃO | E10: UNID. | F10: QUANT. | G10: CUSTO UNITÁRIO | H10: PREÇO UNITÁRIO | I10: PREÇO TOTAL
B11: FONTE | C11: CÓDIGO
A12: 1 | D12: ADMINISTRAÇÃO DA OBRA | I12: =SUM(I13) -> 140311.08
A13: 1.1 | D13: Administração da Obra | I13: =SUM(I14:I14) -> 140311.08
A14: 1.1.1 | B14: PRÓPRIA | C14: CPU.01 | D14: Administração Local | E14: mês | F14: 4 | G14: =TRUNC((1-$H$9)*(SUMIFS(CPU!$G:$G,CPU!$A:$A,Consolação!$C14,CPU!$H:$H,"ss")+SUMIFS(CPU!$G:$G,CPU!$A:$A,Consolação!$C14,CPU!$H:$H,"mdo")+SUMIF('Comp SINAPI PE 12-2024 Onerado'!G:G,Consolação!C14,'Comp SINAPI PE 12-2024 Onerado'!K:K)+SUMIF('Ins SINAPI PE 12-2024 Onerado'!A:A,Consolação!C14,'Ins SINAPI PE 12-2024 Onerado'!E:E)),2) -> 27859.4 | H14: =TRUNC(G14*(1+$H$5),2) -> 35077.77 | I14: =TRUNC(F14*H14,2) -> 140311.08
A16: 2 | D16: SERVIÇOS PRELIMINARES | I16: =SUM(I17,I19,I21) -> 28792.91
A17: 2.1 | D17: Mobilização e desmobilização | I17: =SUM(I18) -> 2179.9
A18: 2.1.1 | B18: PRÓPRIA | C18: CPU.02 | D18: Mobilização e desmobilização de instalação do canteiro | E18: un | F18: 1 | G18: =TRUNC((1-$H$9)*(SUMIFS(CPU!$G:$G,CPU!$A:$A,Consolação!$C18,CPU!$H:$H,"ss")+SUMIFS(CPU!$G:$G,CPU!$A:$A,Consolação!$C18,CPU!$H:$H,"mdo")+SUMIF('Comp SINAPI PE 12-2024 Onerado'!G:G,Consolação!C18,'Comp SINAPI PE 12-2024 Onerado'!K:K)+SUMIF('Ins SINAPI PE 12-2024 Onerado'!A:A,Consolação!C18,'Ins SINAPI PE 12-2024 Onerado'!E:E)),2) -> 1731.32 | H18: =TRUNC(G18*(1+$H$5),2) -> 2179.9 | I18: =TRUNC(F18*H18,2) -> 2179.9
A19: 2.2 | D19: Canteiro de obras | I19: =SUM(I20) -> 25448.79
A20: 2.2.1 | B20: PRÓPRIA | C20: CPU.03 | D20: Execução de canteiro de obras, inclusive, limpeza, refeitório, sanitários e central de formas | E20: m2 | F20: 28.5 | G20: =TRUNC((1-$H$9)*(SUMIFS(CPU!$G:$G,CPU!$A:$A,Consolação!$C20,CPU!$H:$H,"ss")+SUMIFS(CPU!$G:$G,CPU!$A:$A,Consolação!$C20,CPU!$H:$H,"mdo")+SUMIF('Comp SINAPI PE 12-2024 Onerado'!G:G,Consolação!C20,'Comp SINAPI PE 12-2024 Onerado'!K:K)+SUMIF('Ins SINAPI PE 12-2024 Onerado'!A:A,Consolação!C20,'Ins SINAPI PE 12-2024 Onerado'!E:E)),2) -> 709.19 | H20: =TRUNC(G20*(1+$H$5),2) -> 892.94 | I20: =TRUNC(F20*H20,2) -> 25448.79
A21: 2.3 | D21: Sinalização | I21: =SUM(I22:I22) -> 1164.22
A22: 2.3.1 | B22: SINAPI | C22: 103689 | D22: =IF(J22="ca",VLOOKUP(C22,'Comp SINAPI PE 12-2024 Onerado'!$G$7:$K$9000,2,0),VLOOKUP(C22,'Ins SINAPI PE 12-2024 Onerado'!$A$7:$E$9000,2,0)) -> FORNECIMENTO E INSTALAÇÃO DE PLACA DE OBRA COM CHAPA GALVANIZADA E ESTRUTURA DE MADEIRA. AF_03/2022_PS | E22: =IF(J22="ca",VLOOKUP(C22,'Comp SINAPI PE 12-2024 Onerado'!$G$7:$K$9000,3,0),VLOOKUP(C22,'Ins SINAPI PE 12-2024 Onerado'!$A$7:$E$9000,3,0)) -> M2 | F22: 2 | G22: =TRUNC((1-$H$9)*(SUMIFS(CPU!$G:$G,CPU!$A:$A,Consolação!$C22,CPU!$H:$H,"ss")+SUMIFS(CPU!$G:$G,CPU!$A:$A,Consolação!$C22,CPU!$H:$H,"mdo")+SUMIF('Comp SINAPI PE 12-2024 Onerado'!G:G,Consolação!C22,'Comp SINAPI PE 12-2024 Onerado'!K:K)+SUMIF('Ins SINAPI PE 12-2024 Onerado'!A:A,Consolação!C22,'Ins SINAPI PE 12-2024 Onerado'!E:E)),2) -> 462.33 | H22: =TRUNC(G22*(1+$H$5),2) -> 582.11 | I22: =TRUNC(F22*H22,2) -> 1164.22 | J22: ca
A24: 3 | D24: CORTE DA VEGETAÇÃO E REMOÇÃO DAS RAIZES | I24: =SUM(I25) -> 112790.49
A25: 3.1 | D25: Remoção da vegetação | I25: =SUM(I26:I27) -> 112790.49
A26: 3.1.1 | B26: PRÓPRIA | C26: CPU.04 | D26: Limpeza de vegetação | E26: m2 | F26: 9588 | G26: =TRUNC((1-$H$9)*(SUMIFS(CPU!$G:$G,CPU!$A:$A,Consolação!$C26,CPU!$H:$H,"ss")+SUMIFS(CPU!$G:$G,CPU!$A:$A,Consolação!$C26,CPU!$H:$H,"mdo")+SUMIF('Comp SINAPI PE 12-2024 Onerado'!G:G,Consolação!C26,'Comp SINAPI PE 12-2024 Onerado'!K:K)+SUMIF('Ins SINAPI PE 12-2024 Onerado'!A:A,Consolação!C26,'Ins SINAPI PE 12-2024 Onerado'!E:E)),2) -> 7.57 | H26: =TRUNC(G26*(1+$H$5),2) -> 9.53 | I26: =TRUNC(F26*H26,2) -> 91373.64
A27: 3.1.2 | B27: PRÓPRIA | C27: CPU.05 | D27: Corte de tronco e remoção de raiz | E27: un | F27: 45 | G27: =TRUNC((1-$H$9)*(SUMIFS(CPU!$G:$G,CPU!$A:$A,Consolação!$C27,CPU!$H:$H,"ss")+SUMIFS(CPU!$G:$G,CPU!$A:$A,Consolação!$C27,CPU!$H:$H,"mdo")+SUMIF('Comp SINAPI PE 12-2024 Onerado'!G:G,Consolação!C27,'Comp SINAPI PE 12-2024 Onerado'!K:K)+SUMIF('Ins SINAPI PE 12-2024 Onerado'!A:A,Consolação!C27,'Ins SINAPI PE 12-2024 Onerado'!E:E)),2) -> 378 | H27: =TRUNC(G27*(1+$H$5),2) -> 475.93 | I27: =TRUNC(F27*H27,2) -> 21416.85
A29: 4 | D29: RECUPERAÇÃO DO MACIÇO | I29: =SUM(I30,I32) -> 72315.16
A30: 4.1 | D30: Recomposição das Erosões (erosões locais nas ombreiras e taludes) | I30: =SUM(I31:I31) -> 72057.7
A31: 4.1.1 | B31: PRÓPRIA | C31: CPU.13 | D31: Recomposição das erosões, inclusive, regularização da superfície e reaterro | E31: m3 | F31: 130 | G31: =TRUNC((1-$H$9)*(SUMIFS(CPU!$G:$G,CPU!$A:$A,Consolação!$C31,CPU!$H:$H,"ss")+SUMIFS(CPU!$G:$G,CPU!$A:$A,Consolação!$C31,CPU!$H:$H,"mdo")+SUMIF('Comp SINAPI PE 12-2024 Onerado'!G:G,Consolação!C31,'Comp SINAPI PE 12-2024 Onerado'!K:K)+SUMIF('Ins SINAPI PE 12-2024 Onerado'!A:A,Consolação!C31,'Ins SINAPI PE 12-2024 Onerado'!E:E)),2) -> 440.23 | H31: =TRUNC(G31*(1+$H$5),2) -> 554.29 | I31: =TRUNC(F31*H31,2) -> 72057.7
A32: 4.2 | D32: Injeção de nata de cimento em buracos | I32: =SUM(I33:I33) -> 257.46
A33: 4.2.1 | B33: PRÓPRIA | C33: CPU.26 | D33: Injeção de nata de cimento em buracos | E33: m3 | F33: 0.19 | G33: =TRUNC((1-$H$9)*(SUMIFS(CPU!$G:$G,CPU!$A:$A,Consolação!$C33,CPU!$H:$H,"ss")+SUMIFS(CPU!$G:$G,CPU!$A:$A,Consolação!$C33,CPU!$H:$H,"mdo")+SUMIF('Comp SINAPI PE 12-2024 Onerado'!G:G,Consolação!C33,'Comp SINAPI PE 12-2024 Onerado'!K:K)+SUMIF('Ins SINAPI PE 12-2024 Onerado'!A:A,Consolação!C33,'Ins SINAPI PE 12-2024 Onerado'!E:E)),2) -> 1076.25 | H33: =TRUNC(G33*(1+$H$5),2) -> 1355.1 | I33: =TRUNC(F33*H33,2) -> 257.46
A35: 5 | D35: REGULARIZAÇÃO E PAVIMENTAÇÃO DA CRISTA | I35: =SUM(I36,I38,I40) -> 166611.67
A36: 5.1 | D36: Instalação de meio-fio e sarjeta | I36: =SUM(I37:I37) -> 91856.1
A37: 5.1.1 | B37: PRÓPRIA | C37: CPU.20 | D37: Instalação de meio-fio e sarjeta em ambos os lados da crista | E37: m | F37: 930 | G37: =TRUNC((1-$H$9)*(SUMIFS(CPU!$G:$G,CPU!$A:$A,Consolação!$C37,CPU!$H:$H,"ss")+SUMIFS(CPU!$G:$G,CPU!$A:$A,Consolação!$C37,CPU!$H:$H,"mdo")+SUMIF('Comp SINAPI PE 12-2024 Onerado'!G:G,Consolação!C37,'Comp SINAPI PE 12-2024 Onerado'!K:K)+SUMIF('Ins SINAPI PE 12-2024 Onerado'!A:A,Consolação!C37,'Ins SINAPI PE 12-2024 Onerado'!E:E)),2) -> 78.45 | H37: =TRUNC(G37*(1+$H$5),2) -> 98.77 | I37: =TRUNC(F37*H37,2) -> 91856.1
A38: 5.2 | D38: Regularização da Crista | I38: =SUM(I39:I39) -> 4484.7
A39: 5.2.1 | B39: PRÓPRIA | C39: CPU.14 | D39: Regularização e compactação da crista | E39: m2 | F39: 1510 | G39: =TRUNC((1-$H$9)*(SUMIFS(CPU!$G:$G,CPU!$A:$A,Consolação!$C39,CPU!$H:$H,"ss")+SUMIFS(CPU!$G:$G,CPU!$A:$A,Consolação!$C39,CPU!$H:$H,"mdo")+SUMIF('Comp SINAPI PE 12-2024 Onerado'!G:G,Consolação!C39,'Comp SINAPI PE 12-2024 Onerado'!K:K)+SUMIF('Ins SINAPI PE 12-2024 Onerado'!A:A,Consolação!C39,'Ins SINAPI PE 12-2024 Onerado'!E:E)),2) -> 2.36 | H39: =TRUNC(G39*(1+$H$5),2) -> 2.97 | I39: =TRUNC(F39*H39,2) -> 4484.7
A40: 5.3 | D40: Pavimentação da Crista | I40: =SUM(I41:I41) -> 70270.87
A41: 5.3.1 | B41: PRÓPRIA | C41: CPU.15 | D41: Execução de Revestimento com BGTC | E41: m3 | F41: 151 | G41: =TRUNC((1-$H$9)*(SUMIFS(CPU!$G:$G,CPU!$A:$A,Consolação!$C41,CPU!$H:$H,"ss")+SUMIFS(CPU!$G:$G,CPU!$A:$A,Consolação!$C41,CPU!$H:$H,"mdo")+SUMIF('Comp SINAPI PE 12-2024 Onerado'!G:G,Consolação!C41,'Comp SINAPI PE 12-2024 Onerado'!K:K)+SUMIF('Ins SINAPI PE 12-2024 Onerado'!A:A,Consolação!C41,'Ins SINAPI PE 12-2024 Onerado'!E:E)),2) -> 369.61 | H41: =TRUNC(G41*(1+$H$5),2) -> 465.37 | I41: =TRUNC(F41*H41,2) -> 70270.87
A43: 6 | D43: MANUTENÇÃO NO TALUDE DE MONTANTE | I43: =SUM(I44) -> 34821
A44: 6.1 | D44: Enrocamento com pedra de mão para proteção do talude | I44: =SUM(I45:I45) -> 34821
A45: 6.1.1 | B45: PRÓPRIA | C45: CPU.07 | D45: Enrocamento c/ pedra de mão c/ fornecimento e assentamento | E45: m3 | F45: 100 | G45: =TRUNC((1-$H$9)*(SUMIFS(CPU!$G:$G,CPU!$A:$A,Consolação!$C45,CPU!$H:$H,"ss")+SUMIFS(CPU!$G:$G,CPU!$A:$A,Consolação!$C45,CPU!$H:$H,"mdo")+SUMIF('Comp SINAPI PE 12-2024 Onerado'!G:G,Consolação!C45,'Comp SINAPI PE 12-2024 Onerado'!K:K)+SUMIF('Ins SINAPI PE 12-2024 Onerado'!A:A,Consolação!C45,'Ins SINAPI PE 12-2024 Onerado'!E:E)),2) -> 276.56 | H45: =TRUNC(G45*(1+$H$5),2) -> 348.21 | I45: =TRUNC(F45*H45,2) -> 34821
A47: 7 | D47: DRENAGEM SUPERFICIAL DO TALUDE DE JUSANTE | I47: =SUM(I48,I50) -> 17796.6
A48: 7.1 | D48: Canaleta para descida d'água | I48: =SUM(I49:I49) -> 15868
A49: 7.1.1 | B49: PRÓPRIA | C49: CPU.08 | D49: Canaleta meia cana de concreto (D=30cm) - Fornecimento e instalação | E49: m | F49: 100 | G49: =TRUNC((1-$H$9)*(SUMIFS(CPU!$G:$G,CPU!$A:$A,Consolação!$C49,CPU!$H:$H,"ss")+SUMIFS(CPU!$G:$G,CPU!$A:$A,Consolação!$C49,CPU!$H:$H,"mdo")+SUMIF('Comp SINAPI PE 12-2024 Onerado'!G:G,Consolação!C49,'Comp SINAPI PE 12-2024 Onerado'!K:K)+SUMIF('Ins SINAPI PE 12-2024 Onerado'!A:A,Consolação!C49,'Ins SINAPI PE 12-2024 Onerado'!E:E)),2) -> 126.03 | H49: =TRUNC(G49*(1+$H$5),2) -> 158.68 | I49: =TRUNC(F49*H49,2) -> 15868
A50: 7.2 | D50: Entrada para descida d'água | I50: =SUM(I51:I51) -> 1928.6
A51: 7.2.1 | B51: PRÓPRIA | C51: CPU.09 | D51: Entrada para descida d'água | E51: un | F51: 10 | G51: =TRUNC((1-$H$9)*(SUMIFS(CPU!$G:$G,CPU!$A:$A,Consolação!$C51,CPU!$H:$H,"ss")+SUMIFS(CPU!$G:$G,CPU!$A:$A,Consolação!$C51,CPU!$H:$H,"mdo")+SUMIF('Comp SINAPI PE 12-2024 Onerado'!G:G,Consolação!C51,'Comp SINAPI PE 12-2024 Onerado'!K:K)+SUMIF('Ins SINAPI PE 12-2024 Onerado'!A:A,Consolação!C51,'Ins SINAPI PE 12-2024 Onerado'!E:E)),2) -> 153.18 | H51: =TRUNC(G51*(1+$H$5),2) -> 192.86 | I51: =TRUNC(F51*H51,2) -> 1928.6
A53: 8 | D53: PROTEÇÃO SUPERFICIAL DO TALUDE DE JUSANTE | I53: =SUM(I54) -> 90831.51
A54: 8.1 | D54: Proteção vegetal | I54: =SUM(I55:I55) -> 90831.51
A55: 8.1.1 | B55: PRÓPRIA | C55: CPU.10 | D55: Plantio de vegetação de proteção, inclusive adubação | E55: m2 | F55: 2079 | G55: =TRUNC((1-$H$9)*(SUMIFS(CPU!$G:$G,CPU!$A:$A,Consolação!$C55,CPU!$H:$H,"ss")+SUMIFS(CPU!$G:$G,CPU!$A:$A,Consolação!$C55,CPU!$H:$H,"mdo")+SUMIF('Comp SINAPI PE 12-2024 Onerado'!G:G,Consolação!C55,'Comp SINAPI PE 12-2024 Onerado'!K:K)+SUMIF('Ins SINAPI PE 12-2024 Onerado'!A:A,Consolação!C55,'Ins SINAPI PE 12-2024 Onerado'!E:E)),2) -> 34.7 | H55: =TRUNC(G55*(1+$H$5),2) -> 43.69 | I55: =TRUNC(F55*H55,2) -> 90831.51
A57: 9 | D57: RESTAURAÇÃO DA SOLEIRA DO VERTEDOURO | I57: =SUM(I58) -> 33255
A58: 9.1 | D58: Restauração da soleira do vertedouro | I58: =SUM(I59:I60) -> 33255
A59: 9.1.1 | B59: PRÓPRIA | C59: CPU.24 | D59: Limpeza da superfície | E59: m2 | F59: 250 | G59: =TRUNC((1-$H$9)*(SUMIFS(CPU!$G:$G,CPU!$A:$A,Consolação!$C59,CPU!$H:$H,"ss")+SUMIFS(CPU!$G:$G,CPU!$A:$A,Consolação!$C59,CPU!$H:$H,"mdo")+SUMIF('Comp SINAPI PE 12-2024 Onerado'!G:G,Consolação!C59,'Comp SINAPI PE 12-2024 Onerado'!K:K)+SUMIF('Ins SINAPI PE 12-2024 Onerado'!A:A,Consolação!C59,'Ins SINAPI PE 12-2024 Onerado'!E:E)),2) -> 6.71 | H59: =TRUNC(G59*(1+$H$5),2) -> 8.44 | I59: =TRUNC(F59*H59,2) -> 2110
A60: 9.1.2 | B60: PRÓPRIA | C60: CPU.23 | D60: Emboço ou massa única em argamassa | E60: m2 | F60: 250 | G60: =TRUNC((1-$H$9)*(SUMIFS(CPU!$G:$G,CPU!$A:$A,Consolação!$C60,CPU!$H:$H,"ss")+SUMIFS(CPU!$G:$G,CPU!$A:$A,Consolação!$C60,CPU!$H:$H,"mdo")+SUMIF('Comp SINAPI PE 12-2024 Onerado'!G:G,Consolação!C60,'Comp SINAPI PE 12-2024 Onerado'!K:K)+SUMIF('Ins SINAPI PE 12-2024 Onerado'!A:A,Consolação!C60,'Ins SINAPI PE 12-2024 Onerado'!E:E)),2) -> 98.95 | H60: =TRUNC(G60*(1+$H$5),2) -> 124.58 | I60: =TRUNC(F60*H60,2) -> 31145
A62: 10 | D62: RESTAURAÇÃO DO MURO LATERAL | I62: =SUM(I63) -> 47117.68
A63: 10.1 | D63: Restauração do muro lateral | I63: =SUM(I64:I66) -> 47117.68
A64: 10.1.1 | B64: SINAPI | C64: 97624 | D64: =IF(J64="ca",VLOOKUP(C64,'Comp SINAPI PE 12-2024 Onerado'!$G$7:$K$9000,2,0),VLOOKUP(C64,'Ins SINAPI PE 12-2024 Onerado'!$A$7:$E$9000,2,0)) -> DEMOLIÇÃO DE ALVENARIA DE TIJOLO MACIÇO, DE FORMA MANUAL, SEM REAPROVEITAMENTO. AF_09/2023 | E64: =IF(J64="ca",VLOOKUP(C64,'Comp SINAPI PE 12-2024 Onerado'!$G$7:$K$9000,3,0),VLOOKUP(C64,'Ins SINAPI PE 12-2024 Onerado'!$A$7:$E$9000,3,0)) -> M3 | F64: =1.5*0.5*45 -> 33.75 | G64: =TRUNC((1-$H$9)*(SUMIFS(CPU!$G:$G,CPU!$A:$A,Consolação!$C64,CPU!$H:$H,"ss")+SUMIFS(CPU!$G:$G,CPU!$A:$A,Consolação!$C64,CPU!$H:$H,"mdo")+SUMIF('Comp SINAPI PE 12-2024 Onerado'!G:G,Consolação!C64,'Comp SINAPI PE 12-2024 Onerado'!K:K)+SUMIF('Ins SINAPI PE 12-2024 Onerado'!A:A,Consolação!C64,'Ins SINAPI PE 12-2024 Onerado'!E:E)),2) -> 104.53 | H64: =TRUNC(G64*(1+$H$5),2) -> 131.61 | I64: =TRUNC(F64*H64,2) -> 4441.83 | J64: ca
A65: 10.1.2 | B65: PRÓPRIA | C65: CPU.17 | D65: Restauração com uso de Pedra Argamassada | E65: m3 | F65: =1.5*0.5*45 -> 33.75 | G65: =TRUNC((1-$H$9)*(SUMIFS(CPU!$G:$G,CPU!$A:$A,Consolação!$C65,CPU!$H:$H,"ss")+SUMIFS(CPU!$G:$G,CPU!$A:$A,Consolação!$C65,CPU!$H:$H,"mdo")+SUMIF('Comp SINAPI PE 12-2024 Onerado'!G:G,Consolação!C65,'Comp SINAPI PE 12-2024 Onerado'!K:K)+SUMIF('Ins SINAPI PE 12-2024 Onerado'!A:A,Consolação!C65,'Ins SINAPI PE 12-2024 Onerado'!E:E)),2) -> 853.07 | H65: =TRUNC(G65*(1+$H$5),2) -> 1074.1 | I65: =TRUNC(F65*H65,2) -> 36250.87
A66: 10.1.3 | B66: PRÓPRIA | C66: CPU.21 | D66: Remoção de material | E66: m3 | F66: =F64 -> 33.75 | G66: =TRUNC((1-$H$9)*(SUMIFS(CPU!$G:$G,CPU!$A:$A,Consolação!$C66,CPU!$H:$H,"ss")+SUMIFS(CPU!$G:$G,CPU!$A:$A,Consolação!$C66,CPU!$H:$H,"mdo")+SUMIF('Comp SINAPI PE 12-2024 Onerado'!G:G,Consolação!C66,'Comp SINAPI PE 12-2024 Onerado'!K:K)+SUMIF('Ins SINAPI PE 12-2024 Onerado'!A:A,Consolação!C66,'Ins SINAPI PE 12-2024 Onerado'!E:E)),2) -> 151.2 | H66: =TRUNC(G66*(1+$H$5),2) -> 190.37 | I66: =TRUNC(F66*H66,2) -> 6424.98
A68: 11 | D68: CONTENÇÃO DO PROCESSO EROSIVO NO CANAL DE RESTITUIÇÃO | I68: =SUM(I69) -> 2056.67
A69: 11.1 | D69: Enrocamento ARCO tipo rachão reciclado cinza classe A jogado com fornecimento | I69: =SUM(I70:I70) -> 2056.67
A70: 11.1.1 | B70: PRÓPRIA | C70: CPU.12 | D70: Enrocamento ARCO tipo rachão reciclado cinza classe A jogado com fornecimento | E70: m3 | F70: 7.7 | G70: =TRUNC((1-$H$9)*(SUMIFS(CPU!$G:$G,CPU!$A:$A,Consolação!$C70,CPU!$H:$H,"ss")+SUMIFS(CPU!$G:$G,CPU!$A:$A,Consolação!$C70,CPU!$H:$H,"mdo")+SUMIF('Comp SINAPI PE 12-2024 Onerado'!G:G,Consolação!C70,'Comp SINAPI PE 12-2024 Onerado'!K:K)+SUMIF('Ins SINAPI PE 12-2024 Onerado'!A:A,Consolação!C70,'Ins SINAPI PE 12-2024 Onerado'!E:E)),2) -> 212.14 | H70: =TRUNC(G70*(1+$H$5),2) -> 267.1 | I70: =TRUNC(F70*H70,2) -> 2056.67
A72: 12 | D72: SERVIÇOS COMPLEMENTARES | I72: =SUM(I73,I75) -> 4429
A73: 12.1 | D73: Instalação de placas de aviso | I73: =SUM(I74:I74) -> 2328.44
A74: 12.1.1 | B74: SINAPI | C74: 103689 | D74: =IF(J74="ca",VLOOKUP(C74,'Comp SINAPI PE 12-2024 Onerado'!$G$7:$K$9000,2,0),VLOOKUP(C74,'Ins SINAPI PE 12-2024 Onerado'!$A$7:$E$9000,2,0)) -> FORNECIMENTO E INSTALAÇÃO DE PLACA DE OBRA COM CHAPA GALVANIZADA E ESTRUTURA DE MADEIRA. AF_03/2022_PS | E74: =IF(J74="ca",VLOOKUP(C74,'Comp SINAPI PE 12-2024 Onerado'!$G$7:$K$9000,3,0),VLOOKUP(C74,'Ins SINAPI PE 12-2024 Onerado'!$A$7:$E$9000,3,0)) -> M2 | F74: 4 | G74: =TRUNC((1-$H$9)*(SUMIFS(CPU!$G:$G,CPU!$A:$A,Consolação!$C74,CPU!$H:$H,"ss")+SUMIFS(CPU!$G:$G,CPU!$A:$A,Consolação!$C74,CPU!$H:$H,"mdo")+SUMIF('Comp SINAPI PE 12-2024 Onerado'!G:G,Consolação!C74,'Comp SINAPI PE 12-2024 Onerado'!K:K)+SUMIF('Ins SINAPI PE 12-2024 Onerado'!A:A,Consolação!C74,'Ins SINAPI PE 12-2024 Onerado'!E:E)),2) -> 462.33 | H74: =TRUNC(G74*(1+$H$5),2) -> 582.11 | I74: =TRUNC(F74*H74,2) -> 2328.44 | J74: ca
A75: 12.2 | D75: Régua Linimétrica Padrão “ANA”, Aço Carbono - 2 X 70 X 1000 mm (Fornecimento e Instalação) | I75: =SUM(I76:I76) -> 2100.56
A76: 12.2.1 | B76: PRÓPRIA | C76: CPU.18 | D76: Régua Linimétrica Padrão “ANA”, Aço Carbono - 2 X 70 X 1000 mm (Fornecimento e Instalação) | E76: un | F76: 4 | G76: =TRUNC((1-$H$9)*(SUMIFS(CPU!$G:$G,CPU!$A:$A,Consolação!$C76,CPU!$H:$H,"ss")+SUMIFS(CPU!$G:$G,CPU!$A:$A,Consolação!$C76,CPU!$H:$H,"mdo")+SUMIF('Comp SINAPI PE 12-2024 Onerado'!G:G,Consolação!C76,'Comp SINAPI PE 12-2024 Onerado'!K:K)+SUMIF('Ins SINAPI PE 12-2024 Onerado'!A:A,Consolação!C76,'Ins SINAPI PE 12-2024 Onerado'!E:E)),2) -> 417.08 | H76: =TRUNC(G76*(1+$H$5),2) -> 525.14 | I76: =TRUNC(F76*H76,2) -> 2100.56
A78: 13 | D78: PROJETO "AS IS" | I78: =SUM(I79) -> 15045.84
A79: 13.1 | D79: Levantamento topógrafico e "AS IS" | I79: =SUM(I80:I81) -> 15045.84
A80: 13.1.1 | B80: ORSE | C80: 9346 | D80: Levantamento topográfico planimétrico cadastral | E80: m2 | F80: =F26 -> 9588 | G80: =TRUNC((1-$H$9)*0.35,2) -> 0.35 | H80: =TRUNC(G80*(1+$H$5),2) -> 0.44 | I80: =TRUNC(F80*H80,2) -> 4218.72
A81: 13.1.2 | B81: PRÓPRIA | C81: CPU.25 | D81: Projeto Geométrico | E81: un | F81: 1 | G81: =TRUNC((1-$H$9)*(SUMIFS(CPU!$G:$G,CPU!$A:$A,Consolação!$C81,CPU!$H:$H,"ss")+SUMIFS(CPU!$G:$G,CPU!$A:$A,Consolação!$C81,CPU!$H:$H,"mdo")+SUMIF('Comp SINAPI PE 12-2024 Onerado'!G:G,Consolação!C81,'Comp SINAPI PE 12-2024 Onerado'!K:K)+SUMIF('Ins SINAPI PE 12-2024 Onerado'!A:A,Consolação!C81,'Ins SINAPI PE 12-2024 Onerado'!E:E)),2) -> 8599.1 | H81: =TRUNC(G81*(1+$H$5),2) -> 10827.12 | I81: =TRUNC(F81*H81,2) -> 10827.12
D83: TOTAL (Custo): | I83: =TRUNC(SUMPRODUCT(F13:F81,G13:G81),2) -> 608539.37
D84: BDI e Encargos Sociais: | I84: =I85-I83 -> 157635.26
D85: TOTAL GERAL COM BDI: | I85: =TRUNC(SUMPRODUCT(F13:F81,H13:H81),2) -> 766174.63 | J85: VERIFICAÇÃO | K85: =SUM(I12,I16,I24,I29,I35,I43,I47,I53,I57,I62,I68,I72,I78) -> 766174.61

Sheet Almas
A1: Ministério da Integração e do Desenvolvimento Regional
A2: Companhia de Desenvolvimento dos Vales do São Francisco e do Parnaíba
A4: PLANILHA ORÇAMENTÁRIA - ORÇAMENTO NÃO DESONERADO
A5: OBRA: | B5: =Resumo!B5 -> Execução de Manutenção e Obras Civis nas Barragens de Cacimba Velha, Água Branca, Consolação, Almas e Malhadinha, localizadas no estado De Pernambuco. | G5: BDI (serv.): | H5: ='BDI serv'!D23 -> 0.2591 | I5: Bancos de dados:
A6: LOCAL: | B6: =Resumo!B6 -> BARRAGENS DE PERNAMBUCO | G6: BDI (forn.): | H6: ='BDI forn'!D23 -> 0.136 | I6: =Resumo!G6 -> ABR/25 - SINAPI
A7: DATA BASE: | B7: =Resumo!B7 -> 2025-05-01 | E7: Encargos sociais - Horistas: | H7: ='Encargos Sociais'!E49 -> 1.1384 | I7: =Resumo!G7 -> JAN/25 - EMBASA
A8: PRAZO: | B8: 120 dias | E8: Encargos sociais - Mensalista: | H8: ='Encargos Sociais'!F49 -> 0.7011 | I8: =Resumo!G8 -> JAN/2025 - SICRO
B9: =Resumo!B16 -> Almas | G9: Desconto: | H9: 0 | I9: =Resumo!G9 -> 0
A10: ITEM | B10: REFERÊNCIA | D10: DESCRIÇÃO | E10: UNID. | F10: QUANT. | G10: CUSTO UNITÁRIO | H10: PREÇO UNITÁRIO | I10: PREÇO TOTAL
B11: FONTE | C11: CÓDIGO
A12: 1 | D12: ADMINISTRAÇÃO DA OBRA | I12: =SUM(I13) -> 140311.08
A13: 1.1 | D13: Administração da Obra | I13: =SUM(I14:I14) -> 140311.08
A14: 1.1.1 | B14: PRÓPRIA | C14: CPU.01 | D14: Administração Local | E14: mês | F14: 4 | G14: =TRUNC((1-$H$9)*(SUMIFS(CPU!$G:$G,CPU!$A:$A,Almas!$C14,CPU!$H:$H,"ss")+SUMIFS(CPU!$G:$G,CPU!$A:$A,Almas!$C14,CPU!$H:$H,"mdo")+SUMIF('Comp SINAPI PE 12-2024 Onerado'!G:G,Almas!C14,'Comp SINAPI PE 12-2024 Onerado'!K:K)+SUMIF('Ins SINAPI PE 12-2024 Onerado'!A:A,Almas!C14,'Ins SINAPI PE 12-2024 Onerado'!E:E)),2) -> 27859.4 | H14: =TRUNC(G14*(1+$H$5),2) -> 35077.77 | I14: =TRUNC(F14*H14,2) -> 140311.08
A16: 2 | D16: SERVIÇOS PRELIMINARES | I16: =SUM(I17,I19,I21) -> 28792.91
A17: 2.1 | D17: Mobilização e desmobilização | I17: =SUM(I18) -> 2179.9
A18: 2.1.1 | B18: PRÓPRIA | C18: CPU.02 | D18: Mobilização e desmobilização de instalação do canteiro | E18: un | F18: 1 | G18: =TRUNC((1-$H$9)*(SUMIFS(CPU!$G:$G,CPU!$A:$A,Almas!$C18,CPU!$H:$H,"ss")+SUMIFS(CPU!$G:$G,CPU!$A:$A,Almas!$C18,CPU!$H:$H,"mdo")+SUMIF('Comp SINAPI PE 12-2024 Onerado'!G:G,Almas!C18,'Comp SINAPI PE 12-2024 Onerado'!K:K)+SUMIF('Ins SINAPI PE 12-2024 Onerado'!A:A,Almas!C18,'Ins SINAPI PE 12-2024 Onerado'!E:E)),2) -> 1731.32 | H18: =TRUNC(G18*(1+$H$5),2) -> 2179.9 | I18: =TRUNC(F18*H18,2) -> 2179.9
A19: 2.2 | D19: Canteiro de obras | I19: =SUM(I20) -> 25448.79
A20: 2.2.1 | B20: PRÓPRIA | C20: CPU.03 | D20: Execução de canteiro de obras, inclusive, limpeza, refeitório, sanitários e central de formas | E20: m2 | F20: 28.5 | G20: =TRUNC((1-$H$9)*(SUMIFS(CPU!$G:$G,CPU!$A:$A,Almas!$C20,CPU!$H:$H,"ss")+SUMIFS(CPU!$G:$G,CPU!$A:$A,Almas!$C20,CPU!$H:$H,"mdo")+SUMIF('Comp SINAPI PE 12-2024 Onerado'!G:G,Almas!C20,'Comp SINAPI PE 12-2024 Onerado'!K:K)+SUMIF('Ins SINAPI PE 12-2024 Onerado'!A:A,Almas!C20,'Ins SINAPI PE 12-2024 Onerado'!E:E)),2) -> 709.19 | H20: =TRUNC(G20*(1+$H$5),2) -> 892.94 | I20: =TRUNC(F20*H20,2) -> 25448.79
A21: 2.3 | D21: Sinalização | I21: =SUM(I22:I22) -> 1164.22
A22: 2.3.1 | B22: SINAPI | C22: 103689 | D22: =IF(J22="ca",VLOOKUP(C22,'Comp SINAPI PE 12-2024 Onerado'!$G$7:$K$9000,2,0),VLOOKUP(C22,'Ins SINAPI PE 12-2024 Onerado'!$A$7:$E$9000,2,0)) -> FORNECIMENTO E INSTALAÇÃO DE PLACA DE OBRA COM CHAPA GALVANIZADA E ESTRUTURA DE MADEIRA. AF_03/2022_PS | E22: =IF(J22="ca",VLOOKUP(C22,'Comp SINAPI PE 12-2024 Onerado'!$G$7:$K$9000,3,0),VLOOKUP(C22,'Ins SINAPI PE 12-2024 Onerado'!$A$7:$E$9000,3,0)) -> M2 | F22: 2 | G22: =TRUNC((1-$H$9)*(SUMIFS(CPU!$G:$G,CPU!$A:$A,Almas!$C22,CPU!$H:$H,"ss")+SUMIFS(CPU!$G:$G,CPU!$A:$A,Almas!$C22,CPU!$H:$H,"mdo")+SUMIF('Comp SINAPI PE 12-2024 Onerado'!G:G,Almas!C22,'Comp SINAPI PE 12-2024 Onerado'!K:K)+SUMIF('Ins SINAPI PE 12-2024 Onerado'!A:A,Almas!C22,'Ins SINAPI PE 12-2024 Onerado'!E:E)),2) -> 462.33 | H22: =TRUNC(G22*(1+$H$5),2) -> 582.11 | I22: =TRUNC(F22*H22,2) -> 1164.22 | J22: ca
A24: 3 | D24: CORTE DA VEGETAÇÃO E REMOÇÃO DAS RAIZES | I24: =SUM(I25) -> 190060.71
A25: 3.1 | D25: Remoção da vegetação | I25: =SUM(I26:I27) -> 190060.71
A26: 3.1.1 | B26: PRÓPRIA | C26: CPU.04 | D26: Limpeza de vegetação | E26: m2 | F26: 16947 | G26: =TRUNC((1-$H$9)*(SUMIFS(CPU!$G:$G,CPU!$A:$A,Almas!$C26,CPU!$H:$H,"ss")+SUMIFS(CPU!$G:$G,CPU!$A:$A,Almas!$C26,CPU!$H:$H,"mdo")+SUMIF('Comp SINAPI PE 12-2024 Onerado'!G:G,Almas!C26,'Comp SINAPI PE 12-2024 Onerado'!K:K)+SUMIF('Ins SINAPI PE 12-2024 Onerado'!A:A,Almas!C26,'Ins SINAPI PE 12-2024 Onerado'!E:E)),2) -> 7.57 | H26: =TRUNC(G26*(1+$H$5),2) -> 9.53 | I26: =TRUNC(F26*H26,2) -> 161504.91
A27: 3.1.2 | B27: PRÓPRIA | C27: CPU.05 | D27: Corte de tronco e remoção de raiz | E27: un | F27: 60 | G27: =TRUNC((1-$H$9)*(SUMIFS(CPU!$G:$G,CPU!$A:$A,Almas!$C27,CPU!$H:$H,"ss")+SUMIFS(CPU!$G:$G,CPU!$A:$A,Almas!$C27,CPU!$H:$H,"mdo")+SUMIF('Comp SINAPI PE 12-2024 Onerado'!G:G,Almas!C27,'Comp SINAPI PE 12-2024 Onerado'!K:K)+SUMIF('Ins SINAPI PE 12-2024 Onerado'!A:A,Almas!C27,'Ins SINAPI PE 12-2024 Onerado'!E:E)),2) -> 378 | H27: =TRUNC(G27*(1+$H$5),2) -> 475.93 | I27: =TRUNC(F27*H27,2) -> 28555.8
A29: 4 | D29: RECUPERAÇÃO DO MACIÇO | I29: =SUM(I30,I32) -> 174072.66
A30: 4.1 | D30: Retaludamento (Recuperação das erosões laminares nos taludes) | I30: =SUM(I31:I31) -> 173815.2
A31: 4.1.1 | B31: PRÓPRIA | C31: CPU.06 | D31: Retaludamento dos espaldares da barragem, inclusive, escavação, regularização da superfície e reaterro | E31: m3 | F31: 312 | G31: =TRUNC((1-$H$9)*(SUMIFS(CPU!$G:$G,CPU!$A:$A,Almas!$C31,CPU!$H:$H,"ss")+SUMIFS(CPU!$G:$G,CPU!$A:$A,Almas!$C31,CPU!$H:$H,"mdo")+SUMIF('Comp SINAPI PE 12-2024 Onerado'!G:G,Almas!C31,'Comp SINAPI PE 12-2024 Onerado'!K:K)+SUMIF('Ins SINAPI PE 12-2024 Onerado'!A:A,Almas!C31,'Ins SINAPI PE 12-2024 Onerado'!E:E)),2) -> 442.46 | H31: =TRUNC(G31*(1+$H$5),2) -> 557.1 | I31: =TRUNC(F31*H31,2) -> 173815.2
A32: 4.2 | D32: Injeção de nata de cimento em buracos | I32: =SUM(I33:I33) -> 257.46
A33: 4.2.1 | B33: PRÓPRIA | C33: CPU.26 | D33: Injeção de nata de cimento em buracos | E33: m3 | F33: 0.19 | G33: =TRUNC((1-$H$9)*(SUMIFS(CPU!$G:$G,CPU!$A:$A,Almas!$C33,CPU!$H:$H,"ss")+SUMIFS(CPU!$G:$G,CPU!$A:$A,Almas!$C33,CPU!$H:$H,"mdo")+SUMIF('Comp SINAPI PE 12-2024 Onerado'!G:G,Almas!C33,'Comp SINAPI PE 12-2024 Onerado'!K:K)+SUMIF('Ins SINAPI PE 12-2024 Onerado'!A:A,Almas!C33,'Ins SINAPI PE 12-2024 Onerado'!E:E)),2) -> 1076.25 | H33: =TRUNC(G33*(1+$H$5),2) -> 1355.1 | I33: =TRUNC(F33*H33,2) -> 257.46
A35: 5 | D35: REGULARIZAÇÃO E PAVIMENTAÇÃO DA CRISTA | I35: =SUM(I36,I39,I41) -> 112533.51
A36: 5.1 | D36: Limpeza e Regularização da Crista | I36: =SUM(I37:I38) -> 13689.63
A37: 5.1.1 | B37: PRÓPRIA | C37: CPU.19 | D37: Demolição de guias e sarjetas | E37: m | F37: 294 | G37: =TRUNC((1-$H$9)*(SUMIFS(CPU!$G:$G,CPU!$A:$A,Almas!$C37,CPU!$H:$H,"ss")+SUMIFS(CPU!$G:$G,CPU!$A:$A,Almas!$C37,CPU!$H:$H,"mdo")+SUMIF('Comp SINAPI PE 12-2024 Onerado'!G:G,Almas!C37,'Comp SINAPI PE 12-2024 Onerado'!K:K)+SUMIF('Ins SINAPI PE 12-2024 Onerado'!A:A,Almas!C37,'Ins SINAPI PE 12-2024 Onerado'!E:E)),2) -> 24.93 | H37: =TRUNC(G37*(1+$H$5),2) -> 31.38 | I37: =TRUNC(F37*H37,2) -> 9225.72
A38: 5.1.2 | B38: PRÓPRIA | C38: CPU.14 | D38: Regularização e compactação da crista | E38: m2 | F38: 1503 | G38: =TRUNC((1-$H$9)*(SUMIFS(CPU!$G:$G,CPU!$A:$A,Almas!$C38,CPU!$H:$H,"ss")+SUMIFS(CPU!$G:$G,CPU!$A:$A,Almas!$C38,CPU!$H:$H,"mdo")+SUMIF('Comp SINAPI PE 12-2024 Onerado'!G:G,Almas!C38,'Comp SINAPI PE 12-2024 Onerado'!K:K)+SUMIF('Ins SINAPI PE 12-2024 Onerado'!A:A,Almas!C38,'Ins SINAPI PE 12-2024 Onerado'!E:E)),2) -> 2.36 | H38: =TRUNC(G38*(1+$H$5),2) -> 2.97 | I38: =TRUNC(F38*H38,2) -> 4463.91
A39: 5.2 | D39: Instalação de drenagem e meio-fio da Crista | I39: =SUM(I40:I40) -> 29038.38
A40: 5.2.1 | B40: PRÓPRIA | C40: CPU.20 | D40: Guia e meio fio conjudados de concreto, moldada In Loco, 45cm base (15 cm Base da Guia +30 cm Base da Sarjeta) x 22 cm Altura | E40: m | F40: 294 | G40: =TRUNC((1-$H$9)*(SUMIFS(CPU!$G:$G,CPU!$A:$A,Almas!$C40,CPU!$H:$H,"ss")+SUMIFS(CPU!$G:$G,CPU!$A:$A,Almas!$C40,CPU!$H:$H,"mdo")+SUMIF('Comp SINAPI PE 12-2024 Onerado'!G:G,Almas!C40,'Comp SINAPI PE 12-2024 Onerado'!K:K)+SUMIF('Ins SINAPI PE 12-2024 Onerado'!A:A,Almas!C40,'Ins SINAPI PE 12-2024 Onerado'!E:E)),2) -> 78.45 | H40: =TRUNC(G40*(1+$H$5),2) -> 98.77 | I40: =TRUNC(F40*H40,2) -> 29038.38
A41: 5.3 | D41: Pavimentação da Crista | I41: =SUM(I42:I42) -> 69805.5
A42: 5.3.1 | B42: PRÓPRIA | C42: CPU.15 | D42: Execução de Revestimento com BGTC | E42: m3 | F42: 150 | G42: =TRUNC((1-$H$9)*(SUMIFS(CPU!$G:$G,CPU!$A:$A,Almas!$C42,CPU!$H:$H,"ss")+SUMIFS(CPU!$G:$G,CPU!$A:$A,Almas!$C42,CPU!$H:$H,"mdo")+SUMIF('Comp SINAPI PE 12-2024 Onerado'!G:G,Almas!C42,'Comp SINAPI PE 12-2024 Onerado'!K:K)+SUMIF('Ins SINAPI PE 12-2024 Onerado'!A:A,Almas!C42,'Ins SINAPI PE 12-2024 Onerado'!E:E)),2) -> 369.61 | H42: =TRUNC(G42*(1+$H$5),2) -> 465.37 | I42: =TRUNC(F42*H42,2) -> 69805.5
A44: 6 | D44: MANUTENÇÃO NO TALUDE DE MONTANTE | I44: =SUM(I45) -> 20196.18
A45: 6.1 | D45: Enrocamento com pedra de mão para proteção do talude | I45: =SUM(I46:I46) -> 20196.18
A46: 6.1.1 | B46: PRÓPRIA | C46: CPU.07 | D46: Enrocamento c/ pedra de mão c/ fornecimento e assentamento | E46: m3 | F46: =580*0.1 -> 58 | G46: =TRUNC((1-$H$9)*(SUMIFS(CPU!$G:$G,CPU!$A:$A,Almas!$C46,CPU!$H:$H,"ss")+SUMIFS(CPU!$G:$G,CPU!$A:$A,Almas!$C46,CPU!$H:$H,"mdo")+SUMIF('Comp SINAPI PE 12-2024 Onerado'!G:G,Almas!C46,'Comp SINAPI PE 12-2024 Onerado'!K:K)+SUMIF('Ins SINAPI PE 12-2024 Onerado'!A:A,Almas!C46,'Ins SINAPI PE 12-2024 Onerado'!E:E)),2) -> 276.56 | H46: =TRUNC(G46*(1+$H$5),2) -> 348.21 | I46: =TRUNC(F46*H46,2) -> 20196.18
A48: 7 | D48: DRENAGEM SUPERFICIAL DO TALUDE DE JUSANTE | I48: =SUM(I49,I51) -> 12106.08
A49: 7.1 | D49: Canaleta para descida d'água | I49: =SUM(I50:I50) -> 10948.92
A50: 7.1.1 | B50: PRÓPRIA | C50: CPU.08 | D50: Canaleta meia cana de concreto (D=30cm) - Fornecimento e instalação | E50: m | F50: 69 | G50: =TRUNC((1-$H$9)*(SUMIFS(CPU!$G:$G,CPU!$A:$A,Almas!$C50,CPU!$H:$H,"ss")+SUMIFS(CPU!$G:$G,CPU!$A:$A,Almas!$C50,CPU!$H:$H,"mdo")+SUMIF('Comp SINAPI PE 12-2024 Onerado'!G:G,Almas!C50,'Comp SINAPI PE 12-2024 Onerado'!K:K)+SUMIF('Ins SINAPI PE 12-2024 Onerado'!A:A,Almas!C50,'Ins SINAPI PE 12-2024 Onerado'!E:E)),2) -> 126.03 | H50: =TRUNC(G50*(1+$H$5),2) -> 158.68 | I50: =TRUNC(F50*H50,2) -> 10948.92
A51: 7.2 | D51: Entrada para descida d'água | I51: =SUM(I52:I52) -> 1157.16
A52: 7.2.1 | B52: PRÓPRIA | C52: CPU.09 | D52: Entrada para descida d'água | E52: un | F52: 6 | G52: =TRUNC((1-$H$9)*(SUMIFS(CPU!$G:$G,CPU!$A:$A,Almas!$C52,CPU!$H:$H,"ss")+SUMIFS(CPU!$G:$G,CPU!$A:$A,Almas!$C52,CPU!$H:$H,"mdo")+SUMIF('Comp SINAPI PE 12-2024 Onerado'!G:G,Almas!C52,'Comp SINAPI PE 12-2024 Onerado'!K:K)+SUMIF('Ins SINAPI PE 12-2024 Onerado'!A:A,Almas!C52,'Ins SINAPI PE 12-2024 Onerado'!E:E)),2) -> 153.18 | H52: =TRUNC(G52*(1+$H$5),2) -> 192.86 | I52: =TRUNC(F52*H52,2) -> 1157.16
A54: 8 | D54: PROTEÇÃO SUPERFICIAL DO TALUDE DE JUSANTE | I54: =SUM(I55) -> 172182.29
A55: 8.1 | D55: Proteção vegetal | I55: =SUM(I56:I56) -> 172182.29
A56: 8.1.1 | B56: PRÓPRIA | C56: CPU.10 | D56: Plantio de vegetação de proteção, inclusive adubação | E56: m2 | F56: 3941 | G56: =TRUNC((1-$H$9)*(SUMIFS(CPU!$G:$G,CPU!$A:$A,Almas!$C56,CPU!$H:$H,"ss")+SUMIFS(CPU!$G:$G,CPU!$A:$A,Almas!$C56,CPU!$H:$H,"mdo")+SUMIF('Comp SINAPI PE 12-2024 Onerado'!G:G,Almas!C56,'Comp SINAPI PE 12-2024 Onerado'!K:K)+SUMIF('Ins SINAPI PE 12-2024 Onerado'!A:A,Almas!C56,'Ins SINAPI PE 12-2024 Onerado'!E:E)),2) -> 34.7 | H56: =TRUNC(G56*(1+$H$5),2) -> 43.69 | I56: =TRUNC(F56*H56,2) -> 172182.29
A58: 9 | D58: RESTAURAÇÃO DO MURO LATERAL | I58: =SUM(I59) -> 10818.05
A59: 9.1 | D59: Restauração do muro lateral | I59: =SUM(I60:I61) -> 10818.05
A60: 9.1.1 | B60: PRÓPRIA | C60: CPU.24 | D60: Limpeza da superfície | E60: m2 | F60: 37.95 | G60: =TRUNC((1-$H$9)*(SUMIFS(CPU!$G:$G,CPU!$A:$A,Almas!$C60,CPU!$H:$H,"ss")+SUMIFS(CPU!$G:$G,CPU!$A:$A,Almas!$C60,CPU!$H:$H,"mdo")+SUMIF('Comp SINAPI PE 12-2024 Onerado'!G:G,Almas!C60,'Comp SINAPI PE 12-2024 Onerado'!K:K)+SUMIF('Ins SINAPI PE 12-2024 Onerado'!A:A,Almas!C60,'Ins SINAPI PE 12-2024 Onerado'!E:E)),2) -> 6.71 | H60: =TRUNC(G60*(1+$H$5),2) -> 8.44 | I60: =TRUNC(F60*H60,2) -> 320.29
A61: 9.1.2 | B61: PRÓPRIA | C61: CPU.16 | D61: Restauração com uso de concreto | E61: m3 | F61: 5.6925 | G61: =TRUNC((1-$H$9)*(SUMIFS(CPU!$G:$G,CPU!$A:$A,Almas!$C61,CPU!$H:$H,"ss")+SUMIFS(CPU!$G:$G,CPU!$A:$A,Almas!$C61,CPU!$H:$H,"mdo")+SUMIF('Comp SINAPI PE 12-2024 Onerado'!G:G,Almas!C61,'Comp SINAPI PE 12-2024 Onerado'!K:K)+SUMIF('Ins SINAPI PE 12-2024 Onerado'!A:A,Almas!C61,'Ins SINAPI PE 12-2024 Onerado'!E:E)),2) -> 1464.65 | H61: =TRUNC(G61*(1+$H$5),2) -> 1844.14 | I61: =TRUNC(F61*H61,2) -> 10497.76
A63: 10 | D63: REMOÇÃO DE MATERIAL DEPOSITADO NA OMBREIRA | I63: =SUM(I64) -> 2284.44
A64: 10.1 | D64: Remoção de material depositado irregularmente | I64: =SUM(I65:I65) -> 2284.44
A65: 10.1.1 | B65: PRÓPRIA | C65: CPU.21 | D65: Remoção de material | E65: m3 | F65: 12 | G65: =TRUNC((1-$H$9)*(SUMIFS(CPU!$G:$G,CPU!$A:$A,Almas!$C65,CPU!$H:$H,"ss")+SUMIFS(CPU!$G:$G,CPU!$A:$A,Almas!$C65,CPU!$H:$H,"mdo")+SUMIF('Comp SINAPI PE 12-2024 Onerado'!G:G,Almas!C65,'Comp SINAPI PE 12-2024 Onerado'!K:K)+SUMIF('Ins SINAPI PE 12-2024 Onerado'!A:A,Almas!C65,'Ins SINAPI PE 12-2024 Onerado'!E:E)),2) -> 151.2 | H65: =TRUNC(G65*(1+$H$5),2) -> 190.37 | I65: =TRUNC(F65*H65,2) -> 2284.44
A67: 11 | D67: SERVIÇOS COMPLEMENTARES | I67: =SUM(I68,I70) -> 5479.28
A68: 11.1 | D68: Instalação de placas de aviso | I68: =SUM(I69:I69) -> 2328.44
A69: 11.1.1 | B69: SINAPI | C69: 103689 | D69: =IF(J69="ca",VLOOKUP(C69,'Comp SINAPI PE 12-2024 Onerado'!$G$7:$K$9000,2,0),VLOOKUP(C69,'Ins SINAPI PE 12-2024 Onerado'!$A$7:$E$9000,2,0)) -> FORNECIMENTO E INSTALAÇÃO DE PLACA DE OBRA COM CHAPA GALVANIZADA E ESTRUTURA DE MADEIRA. AF_03/2022_PS | E69: =IF(J69="ca",VLOOKUP(C69,'Comp SINAPI PE 12-2024 Onerado'!$G$7:$K$9000,3,0),VLOOKUP(C69,'Ins SINAPI PE 12-2024 Onerado'!$A$7:$E$9000,3,0)) -> M2 | F69: 4 | G69: =TRUNC((1-$H$9)*(SUMIFS(CPU!$G:$G,CPU!$A:$A,Almas!$C69,CPU!$H:$H,"ss")+SUMIFS(CPU!$G:$G,CPU!$A:$A,Almas!$C69,CPU!$H:$H,"mdo")+SUMIF('Comp SINAPI PE 12-2024 Onerado'!G:G,Almas!C69,'Comp SINAPI PE 12-2024 Onerado'!K:K)+SUMIF('Ins SINAPI PE 12-2024 Onerado'!A:A,Almas!C69,'Ins SINAPI PE 12-2024 Onerado'!E:E)),2) -> 462.33 | H69: =TRUNC(G69*(1+$H$5),2) -> 582.11 | I69: =TRUNC(F69*H69,2) -> 2328.44 | J69: ca
A70: 11.2 | D70: Régua Linimétrica Padrão “ANA”, Aço Carbono - 2 X 70 X 1000 mm (Fornecimento e Instalação) | I70: =SUM(I71:I71) -> 3150.84
A71: 11.2.1 | B71: PRÓPRIA | C71: CPU.18 | D71: Régua Linimétrica Padrão “ANA”, Aço Carbono - 2 X 70 X 1000 mm (Fornecimento e Instalação) | E71: un | F71: 6 | G71: =TRUNC((1-$H$9)*(SUMIFS(CPU!$G:$G,CPU!$A:$A,Almas!$C71,CPU!$H:$H,"ss")+SUMIFS(CPU!$G:$G,CPU!$A:$A,Almas!$C71,CPU!$H:$H,"mdo")+SUMIF('Comp SINAPI PE 12-2024 Onerado'!G:G,Almas!C71,'Comp SINAPI PE 12-2024 Onerado'!K:K)+SUMIF('Ins SINAPI PE 12-2024 Onerado'!A:A,Almas!C71,'Ins SINAPI PE 12-2024 Onerado'!E:E)),2) -> 417.08 | H71: =TRUNC(G71*(1+$H$5),2) -> 525.14 | I71: =TRUNC(F71*H71,2) -> 3150.84 | J71: ca
A73: 12 | D73: PROJETO "AS IS" | I73: =SUM(I74) -> 18283.8
A74: 12.1 | D74: Levantamento topógrafico e "AS IS" | I74: =SUM(I75:I76) -> 18283.8
A75: 12.1.1 | B75: ORSE | C75: 9346 | D75: Levantamento topográfico planimétrico cadastral | E75: m2 | F75: =F26 -> 16947 | G75: =TRUNC((1-$H$9)*0.35,2) -> 0.35 | H75: =TRUNC(G75*(1+$H$5),2) -> 0.44 | I75: =TRUNC(F75*H75,2) -> 7456.68
A76: 12.1.2 | B76: PRÓPRIA | C76: CPU.25 | D76: Projeto Geométrico | E76: un | F76: 1 | G76: =TRUNC((1-$H$9)*(SUMIFS(CPU!$G:$G,CPU!$A:$A,Almas!$C76,CPU!$H:$H,"ss")+SUMIFS(CPU!$G:$G,CPU!$A:$A,Almas!$C76,CPU!$H:$H,"mdo")+SUMIF('Comp SINAPI PE 12-2024 Onerado'!G:G,Almas!C76,'Comp SINAPI PE 12-2024 Onerado'!K:K)+SUMIF('Ins SINAPI PE 12-2024 Onerado'!A:A,Almas!C76,'Ins SINAPI PE 12-2024 Onerado'!E:E)),2) -> 8599.1 | H76: =TRUNC(G76*(1+$H$5),2) -> 10827.12 | I76: =TRUNC(F76*H76,2) -> 10827.12
D78: TOTAL (Custo): | I78: =TRUNC(SUMPRODUCT(F13:F76,G13:G76),2) -> 704605.83
D79: BDI e Encargos Sociais: | I79: =I80-I78 -> 182515.18
D80: TOTAL GERAL COM BDI: | I80: =TRUNC(SUMPRODUCT(F13:F76,H13:H76),2) -> 887121.01 | J80: VERIFICAÇÃO | K80: =SUM(I12,I16,I24,I29,I35,I44,I48,I54,I58,I63,I67,I73) -> 887120.99

Sheet Malhadinha
A1: Ministério da Integração e do Desenvolvimento Regional
A2: Companhia de Desenvolvimento dos Vales do São Francisco e do Parnaíba
A4: PLANILHA ORÇAMENTÁRIA - ORÇAMENTO NÃO DESONERADO
A5: OBRA: | B5: =Resumo!B5 -> Execução de Manutenção e Obras Civis nas Barragens de Cacimba Velha, Água Branca, Consolação, Almas e Malhadinha, localizadas no estado De Pernambuco. | G5: BDI (serv.): | H5: ='BDI serv'!D23 -> 0.2591 | I5: Bancos de dados:
A6: LOCAL: | B6: =Resumo!B6 -> BARRAGENS DE PERNAMBUCO | G6: BDI (forn.): | H6: ='BDI forn'!D23 -> 0.136 | I6: =Resumo!G6 -> ABR/25 - SINAPI
A7: DATA BASE: | B7: =Resumo!B7 -> 2025-05-01 | E7: Encargos sociais - Horistas: | H7: ='Encargos Sociais'!E49 -> 1.1384 | I7: =Resumo!G7 -> JAN/25 - EMBASA
A8: PRAZO: | B8: 120 dias | E8: Encargos sociais - Mensalista: | H8: ='Encargos Sociais'!F49 -> 0.7011 | I8: =Resumo!G8 -> JAN/2025 - SICRO
B9: =Resumo!B17 -> Malhadinha | G9: Desconto: | H9: 0 | I9: =Resumo!G9 -> 0
A10: ITEM | B10: REFERÊNCIA | D10: DESCRIÇÃO | E10: UNID. | F10: QUANT. | G10: CUSTO UNITÁRIO | H10: PREÇO UNITÁRIO | I10: PREÇO TOTAL
B11: FONTE | C11: CÓDIGO
A12: 1 | D12: ADMINISTRAÇÃO DA OBRA | I12: =SUM(I13) -> 140311.08
A13: 1.1 | D13: Administração da Obra | I13: =SUM(I14:I14) -> 140311.08
A14: 1.1.1 | B14: PRÓPRIA | C14: CPU.01 | D14: Administração Local | E14: mês | F14: 4 | G14: =TRUNC((1-$H$9)*(SUMIFS(CPU!$G:$G,CPU!$A:$A,Malhadinha!$C14,CPU!$H:$H,"ss")+SUMIFS(CPU!$G:$G,CPU!$A:$A,Malhadinha!$C14,CPU!$H:$H,"mdo")+SUMIF('Comp SINAPI PE 12-2024 Onerado'!G:G,Malhadinha!C14,'Comp SINAPI PE 12-2024 Onerado'!K:K)+SUMIF('Ins SINAPI PE 12-2024 Onerado'!A:A,Malhadinha!C14,'Ins SINAPI PE 12-2024 Onerado'!E:E)),2) -> 27859.4 | H14: =TRUNC(G14*(1+$H$5),2) -> 35077.77 | I14: =TRUNC(F14*H14,2) -> 140311.08
A16: 2 | D16: SERVIÇOS PRELIMINARES | I16: =SUM(I17,I19,I21) -> 28792.91
A17: 2.1 | D17: Mobilização e desmobilização | I17: =SUM(I18) -> 2179.9
A18: 2.1.1 | B18: PRÓPRIA | C18: CPU.02 | D18: Mobilização e desmobilização de instalação do canteiro | E18: un | F18: 1 | G18: =TRUNC((1-$H$9)*(SUMIFS(CPU!$G:$G,CPU!$A:$A,Malhadinha!$C18,CPU!$H:$H,"ss")+SUMIFS(CPU!$G:$G,CPU!$A:$A,Malhadinha!$C18,CPU!$H:$H,"mdo")+SUMIF('Comp SINAPI PE 12-2024 Onerado'!G:G,Malhadinha!C18,'Comp SINAPI PE 12-2024 Onerado'!K:K)+SUMIF('Ins SINAPI PE 12-2024 Onerado'!A:A,Malhadinha!C18,'Ins SINAPI PE 12-2024 Onerado'!E:E)),2) -> 1731.32 | H18: =TRUNC(G18*(1+$H$5),2) -> 2179.9 | I18: =TRUNC(F18*H18,2) -> 2179.9
A19: 2.2 | D19: Canteiro de obras | I19: =SUM(I20) -> 25448.79
A20: 2.2.1 | B20: PRÓPRIA | C20: CPU.03 | D20: Execução de canteiro de obras, inclusive, limpeza, refeitório, sanitários e central de formas | E20: m2 | F20: 28.5 | G20: =TRUNC((1-$H$9)*(SUMIFS(CPU!$G:$G,CPU!$A:$A,Malhadinha!$C20,CPU!$H:$H,"ss")+SUMIFS(CPU!$G:$G,CPU!$A:$A,Malhadinha!$C20,CPU!$H:$H,"mdo")+SUMIF('Comp SINAPI PE 12-2024 Onerado'!G:G,Malhadinha!C20,'Comp SINAPI PE 12-2024 Onerado'!K:K)+SUMIF('Ins SINAPI PE 12-2024 Onerado'!A:A,Malhadinha!C20,'Ins SINAPI PE 12-2024 Onerado'!E:E)),2) -> 709.19 | H20: =TRUNC(G20*(1+$H$5),2) -> 892.94 | I20: =TRUNC(F20*H20,2) -> 25448.79
A21: 2.3 | D21: Sinalização | I21: =SUM(I22:I22) -> 1164.22
A22: 2.3.1 | B22: SINAPI | C22: 103689 | D22: =IF(J22="ca",VLOOKUP(C22,'Comp SINAPI PE 12-2024 Onerado'!$G$7:$K$9000,2,0),VLOOKUP(C22,'Ins SINAPI PE 12-2024 Onerado'!$A$7:$E$9000,2,0)) -> FORNECIMENTO E INSTALAÇÃO DE PLACA DE OBRA COM CHAPA GALVANIZADA E ESTRUTURA DE MADEIRA. AF_03/2022_PS | E22: =IF(J22="ca",VLOOKUP(C22,'Comp SINAPI PE 12-2024 Onerado'!$G$7:$K$9000,3,0),VLOOKUP(C22,'Ins SINAPI PE 12-2024 Onerado'!$A$7:$E$9000,3,0)) -> M2 | F22: 2 | G22: =TRUNC((1-$H$9)*(SUMIFS(CPU!$G:$G,CPU!$A:$A,Malhadinha!$C22,CPU!$H:$H,"ss")+SUMIFS(CPU!$G:$G,CPU!$A:$A,Malhadinha!$C22,CPU!$H:$H,"mdo")+SUMIF('Comp SINAPI PE 12-2024 Onerado'!G:G,Malhadinha!C22,'Comp SINAPI PE 12-2024 Onerado'!K:K)+SUMIF('Ins SINAPI PE 12-2024 Onerado'!A:A,Malhadinha!C22,'Ins SINAPI PE 12-2024 Onerado'!E:E)),2) -> 462.33 | H22: =TRUNC(G22*(1+$H$5),2) -> 582.11 | I22: =TRUNC(F22*H22,2) -> 1164.22 | J22: ca
A24: 3 | D24: CORTE DA VEGETAÇÃO E REMOÇÃO DAS RAIZES | I24: =SUM(I25) -> 126268.76
A25: 3.1 | D25: Remoção da vegetação | I25: =SUM(I26:I27) -> 126268.76
A26: 3.1.1 | B26: PRÓPRIA | C26: CPU.04 | D26: Limpeza de vegetação | E26: m2 | F26: 11252 | G26: =TRUNC((1-$H$9)*(SUMIFS(CPU!$G:$G,CPU!$A:$A,Malhadinha!$C26,CPU!$H:$H,"ss")+SUMIFS(CPU!$G:$G,CPU!$A:$A,Malhadinha!$C26,CPU!$H:$H,"mdo")+SUMIF('Comp SINAPI PE 12-2024 Onerado'!G:G,Malhadinha!C26,'Comp SINAPI PE 12-2024 Onerado'!K:K)+SUMIF('Ins SINAPI PE 12-2024 Onerado'!A:A,Malhadinha!C26,'Ins SINAPI PE 12-2024 Onerado'!E:E)),2) -> 7.57 | H26: =TRUNC(G26*(1+$H$5),2) -> 9.53 | I26: =TRUNC(F26*H26,2) -> 107231.56
A27: 3.1.2 | B27: PRÓPRIA | C27: CPU.05 | D27: Corte de tronco e remoção de raiz | E27: un | F27: 40 | G27: =TRUNC((1-$H$9)*(SUMIFS(CPU!$G:$G,CPU!$A:$A,Malhadinha!$C27,CPU!$H:$H,"ss")+SUMIFS(CPU!$G:$G,CPU!$A:$A,Malhadinha!$C27,CPU!$H:$H,"mdo")+SUMIF('Comp SINAPI PE 12-2024 Onerado'!G:G,Malhadinha!C27,'Comp SINAPI PE 12-2024 Onerado'!K:K)+SUMIF('Ins SINAPI PE 12-2024 Onerado'!A:A,Malhadinha!C27,'Ins SINAPI PE 12-2024 Onerado'!E:E)),2) -> 378 | H27: =TRUNC(G27*(1+$H$5),2) -> 475.93 | I27: =TRUNC(F27*H27,2) -> 19037.2
A29: 4 | D29: RECUPERAÇÃO DO MACIÇO | I29: =SUM(I30,I32) -> 86607.96
A30: 4.1 | D30: Retaludamento (Recuperação das erosões laminares nos taludes) | I30: =SUM(I31:I31) -> 86350.5
A31: 4.1.1 | B31: PRÓPRIA | C31: CPU.06 | D31: Retaludamento dos espaldares da barragem, inclusive, escavação, regularização da superfície e reaterro | E31: m3 | F31: 155 | G31: =TRUNC((1-$H$9)*(SUMIFS(CPU!$G:$G,CPU!$A:$A,Malhadinha!$C31,CPU!$H:$H,"ss")+SUMIFS(CPU!$G:$G,CPU!$A:$A,Malhadinha!$C31,CPU!$H:$H,"mdo")+SUMIF('Comp SINAPI PE 12-2024 Onerado'!G:G,Malhadinha!C31,'Comp SINAPI PE 12-2024 Onerado'!K:K)+SUMIF('Ins SINAPI PE 12-2024 Onerado'!A:A,Malhadinha!C31,'Ins SINAPI PE 12-2024 Onerado'!E:E)),2) -> 442.46 | H31: =TRUNC(G31*(1+$H$5),2) -> 557.1 | I31: =TRUNC(F31*H31,2) -> 86350.5
A32: 4.2 | D32: Injeção de nata de cimento em buracos | I32: =SUM(I33:I33) -> 257.46
A33: 4.2.1 | B33: PRÓPRIA | C33: CPU.26 | D33: Injeção de nata de cimento em buracos | E33: m3 | F33: 0.19 | G33: =TRUNC((1-$H$9)*(SUMIFS(CPU!$G:$G,CPU!$A:$A,Malhadinha!$C33,CPU!$H:$H,"ss")+SUMIFS(CPU!$G:$G,CPU!$A:$A,Malhadinha!$C33,CPU!$H:$H,"mdo")+SUMIF('Comp SINAPI PE 12-2024 Onerado'!G:G,Malhadinha!C33,'Comp SINAPI PE 12-2024 Onerado'!K:K)+SUMIF('Ins SINAPI PE 12-2024 Onerado'!A:A,Malhadinha!C33,'Ins SINAPI PE 12-2024 Onerado'!E:E)),2) -> 1076.25 | H33: =TRUNC(G33*(1+$H$5),2) -> 1355.1 | I33: =TRUNC(F33*H33,2) -> 257.46
A35: 5 | D35: REGULARIZAÇÃO E PAVIMENTAÇÃO DA CRISTA | I35: =SUM(I36,I38,I40) -> 139969.02
A36: 5.1 | D36: Regularização da Crista | I36: =SUM(I37:I37) -> 5307.39
A37: 5.1.1 | B37: PRÓPRIA | C37: CPU.14 | D37: Regularização e compactação da crista | E37: m2 | F37: 1787 | G37: =TRUNC((1-$H$9)*(SUMIFS(CPU!$G:$G,CPU!$A:$A,Malhadinha!$C37,CPU!$H:$H,"ss")+SUMIFS(CPU!$G:$G,CPU!$A:$A,Malhadinha!$C37,CPU!$H:$H,"mdo")+SUMIF('Comp SINAPI PE 12-2024 Onerado'!G:G,Malhadinha!C37,'Comp SINAPI PE 12-2024 Onerado'!K:K)+SUMIF('Ins SINAPI PE 12-2024 Onerado'!A:A,Malhadinha!C37,'Ins SINAPI PE 12-2024 Onerado'!E:E)),2) -> 2.36 | H37: =TRUNC(G37*(1+$H$5),2) -> 2.97 | I37: =TRUNC(F37*H37,2) -> 5307.39
A38: 5.2 | D38: Instalação de drenagem e meio-fio da Crista | I38: =SUM(I39:I39) -> 51360.4
A39: 5.2.1 | B39: PRÓPRIA | C39: CPU.20 | D39: Guia e meio fio conjudados de concreto, moldada In Loco, 45cm base (15 cm Base da Guia +30 cm Base da Sarjeta) x 22 cm Altura | E39: m | F39: 520 | G39: =TRUNC((1-$H$9)*(SUMIFS(CPU!$G:$G,CPU!$A:$A,Malhadinha!$C39,CPU!$H:$H,"ss")+SUMIFS(CPU!$G:$G,CPU!$A:$A,Malhadinha!$C39,CPU!$H:$H,"mdo")+SUMIF('Comp SINAPI PE 12-2024 Onerado'!G:G,Malhadinha!C39,'Comp SINAPI PE 12-2024 Onerado'!K:K)+SUMIF('Ins SINAPI PE 12-2024 Onerado'!A:A,Malhadinha!C39,'Ins SINAPI PE 12-2024 Onerado'!E:E)),2) -> 78.45 | H39: =TRUNC(G39*(1+$H$5),2) -> 98.77 | I39: =TRUNC(F39*H39,2) -> 51360.4
A40: 5.3 | D40: Pavimentação da Crista | I40: =SUM(I41:I41) -> 83301.23
A41: 5.3.1 | B41: PRÓPRIA | C41: CPU.15 | D41: Execução de Revestimento com BGTC | E41: m3 | F41: 179 | G41: =TRUNC((1-$H$9)*(SUMIFS(CPU!$G:$G,CPU!$A:$A,Malhadinha!$C41,CPU!$H:$H,"ss")+SUMIFS(CPU!$G:$G,CPU!$A:$A,Malhadinha!$C41,CPU!$H:$H,"mdo")+SUMIF('Comp SINAPI PE 12-2024 Onerado'!G:G,Malhadinha!C41,'Comp SINAPI PE 12-2024 Onerado'!K:K)+SUMIF('Ins SINAPI PE 12-2024 Onerado'!A:A,Malhadinha!C41,'Ins SINAPI PE 12-2024 Onerado'!E:E)),2) -> 369.61 | H41: =TRUNC(G41*(1+$H$5),2) -> 465.37 | I41: =TRUNC(F41*H41,2) -> 83301.23
A43: 6 | D43: MANUTENÇÃO NO TALUDE DE MONTANTE | I43: =SUM(I44) -> 84266.82
A44: 6.1 | D44: Enrocamento com pedra de mão para proteção do talude | I44: =SUM(I45:I45) -> 84266.82
A45: 6.1.1 | B45: PRÓPRIA | C45: CPU.07 | D45: Enrocamento c/ pedra de mão c/ fornecimento e assentamento | E45: m3 | F45: 242 | G45: =TRUNC((1-$H$9)*(SUMIFS(CPU!$G:$G,CPU!$A:$A,Malhadinha!$C45,CPU!$H:$H,"ss")+SUMIFS(CPU!$G:$G,CPU!$A:$A,Malhadinha!$C45,CPU!$H:$H,"mdo")+SUMIF('Comp SINAPI PE 12-2024 Onerado'!G:G,Malhadinha!C45,'Comp SINAPI PE 12-2024 Onerado'!K:K)+SUMIF('Ins SINAPI PE 12-2024 Onerado'!A:A,Malhadinha!C45,'Ins SINAPI PE 12-2024 Onerado'!E:E)),2) -> 276.56 | H45: =TRUNC(G45*(1+$H$5),2) -> 348.21 | I45: =TRUNC(F45*H45,2) -> 84266.82
A47: 7 | D47: DRENAGEM SUPERFICIAL DO TALUDE DE JUSANTE | I47: =SUM(I48,I50) -> 10292.24
A48: 7.1 | D48: Canaleta para descida d'água | I48: =SUM(I49:I49) -> 9520.8
A49: 7.1.1 | B49: PRÓPRIA | C49: CPU.08 | D49: Canaleta meia cana de concreto (D=30cm) - Fornecimento e instalação | E49: m | F49: 60 | G49: =TRUNC((1-$H$9)*(SUMIFS(CPU!$G:$G,CPU!$A:$A,Malhadinha!$C49,CPU!$H:$H,"ss")+SUMIFS(CPU!$G:$G,CPU!$A:$A,Malhadinha!$C49,CPU!$H:$H,"mdo")+SUMIF('Comp SINAPI PE 12-2024 Onerado'!G:G,Malhadinha!C49,'Comp SINAPI PE 12-2024 Onerado'!K:K)+SUMIF('Ins SINAPI PE 12-2024 Onerado'!A:A,Malhadinha!C49,'Ins SINAPI PE 12-2024 Onerado'!E:E)),2) -> 126.03 | H49: =TRUNC(G49*(1+$H$5),2) -> 158.68 | I49: =TRUNC(F49*H49,2) -> 9520.8
A50: 7.2 | D50: Entrada para descida d'água | I50: =SUM(I51:I51) -> 771.44
A51: 7.2.1 | B51: PRÓPRIA | C51: CPU.09 | D51: Entrada para descida d'água | E51: un | F51: 4 | G51: =TRUNC((1-$H$9)*(SUMIFS(CPU!$G:$G,CPU!$A:$A,Malhadinha!$C51,CPU!$H:$H,"ss")+SUMIFS(CPU!$G:$G,CPU!$A:$A,Malhadinha!$C51,CPU!$H:$H,"mdo")+SUMIF('Comp SINAPI PE 12-2024 Onerado'!G:G,Malhadinha!C51,'Comp SINAPI PE 12-2024 Onerado'!K:K)+SUMIF('Ins SINAPI PE 12-2024 Onerado'!A:A,Malhadinha!C51,'Ins SINAPI PE 12-2024 Onerado'!E:E)),2) -> 153.18 | H51: =TRUNC(G51*(1+$H$5),2) -> 192.86 | I51: =TRUNC(F51*H51,2) -> 771.44
A53: 8 | D53: PROTEÇÃO SUPERFICIAL DO TALUDE DE JUSANTE | I53: =SUM(I54) -> 192629.21
A54: 8.1 | D54: Proteção vegetal | I54: =SUM(I55:I55) -> 192629.21
A55: 8.1.1 | B55: PRÓPRIA | C55: CPU.10 | D55: Plantio de vegetação de proteção, inclusive adubação | E55: m2 | F55: 4409 | G55: =TRUNC((1-$H$9)*(SUMIFS(CPU!$G:$G,CPU!$A:$A,Malhadinha!$C55,CPU!$H:$H,"ss")+SUMIFS(CPU!$G:$G,CPU!$A:$A,Malhadinha!$C55,CPU!$H:$H,"mdo")+SUMIF('Comp SINAPI PE 12-2024 Onerado'!G:G,Malhadinha!C55,'Comp SINAPI PE 12-2024 Onerado'!K:K)+SUMIF('Ins SINAPI PE 12-2024 Onerado'!A:A,Malhadinha!C55,'Ins SINAPI PE 12-2024 Onerado'!E:E)),2) -> 34.7 | H55: =TRUNC(G55*(1+$H$5),2) -> 43.69 | I55: =TRUNC(F55*H55,2) -> 192629.21
A57: 9 | D57: RESTAURAÇÃO DA SOLEIRA DO VERTEDOURO | I57: =SUM(I58) -> 14026.36
A58: 9.1 | D58: Restauração da soleira do vertedouro | I58: =SUM(I59:I61) -> 14026.36
A59: 9.1.1 | B59: PRÓPRIA | C59: CPU.24 | D59: Limpeza da superfície | E59: m2 | F59: 90 | G59: =TRUNC((1-$H$9)*(SUMIFS(CPU!$G:$G,CPU!$A:$A,Malhadinha!$C59,CPU!$H:$H,"ss")+SUMIFS(CPU!$G:$G,CPU!$A:$A,Malhadinha!$C59,CPU!$H:$H,"mdo")+SUMIF('Comp SINAPI PE 12-2024 Onerado'!G:G,Malhadinha!C59,'Comp SINAPI PE 12-2024 Onerado'!K:K)+SUMIF('Ins SINAPI PE 12-2024 Onerado'!A:A,Malhadinha!C59,'Ins SINAPI PE 12-2024 Onerado'!E:E)),2) -> 6.71 | H59: =TRUNC(G59*(1+$H$5),2) -> 8.44 | I59: =TRUNC(F59*H59,2) -> 759.6
A60: 9.1.2 | B60: PRÓPRIA | C60: CPU.22 | D60: Tratamento de fissuras com injeção de adesivo estrutural à base de resina epóxi de baixa viscosidade - fornecimento e aplicação mecanizada | E60: kg | F60: 4.5 | G60: =TRUNC((1-$H$9)*(SUMIFS(CPU!$G:$G,CPU!$A:$A,Malhadinha!$C60,CPU!$H:$H,"ss")+SUMIFS(CPU!$G:$G,CPU!$A:$A,Malhadinha!$C60,CPU!$H:$H,"mdo")+SUMIF('Comp SINAPI PE 12-2024 Onerado'!G:G,Malhadinha!C60,'Comp SINAPI PE 12-2024 Onerado'!K:K)+SUMIF('Ins SINAPI PE 12-2024 Onerado'!A:A,Malhadinha!C60,'Ins SINAPI PE 12-2024 Onerado'!E:E)),2) -> 362.62 | H60: =TRUNC(G60*(1+$H$5),2) -> 456.57 | I60: =TRUNC(F60*H60,2) -> 2054.56
A61: 9.1.3 | B61: PRÓPRIA | C61: CPU.23 | D61: Emboço ou massa única em argamassa | E61: m2 | F61: 90 | G61: =TRUNC((1-$H$9)*(SUMIFS(CPU!$G:$G,CPU!$A:$A,Malhadinha!$C61,CPU!$H:$H,"ss")+SUMIFS(CPU!$G:$G,CPU!$A:$A,Malhadinha!$C61,CPU!$H:$H,"mdo")+SUMIF('Comp SINAPI PE 12-2024 Onerado'!G:G,Malhadinha!C61,'Comp SINAPI PE 12-2024 Onerado'!K:K)+SUMIF('Ins SINAPI PE 12-2024 Onerado'!A:A,Malhadinha!C61,'Ins SINAPI PE 12-2024 Onerado'!E:E)),2) -> 98.95 | H61: =TRUNC(G61*(1+$H$5),2) -> 124.58 | I61: =TRUNC(F61*H61,2) -> 11212.2
A63: 10 | D63: SERVIÇOS COMPLEMENTARES | I63: =SUM(I64,I66) -> 8630.12
A64: 10.1 | D64: Instalação de placas de aviso | I64: =SUM(I65:I65) -> 2328.44
A65: 10.1.1 | B65: SINAPI | C65: 103689 | D65: =IF(J65="ca",VLOOKUP(C65,'Comp SINAPI PE 12-2024 Onerado'!$G$7:$K$9000,2,0),VLOOKUP(C65,'Ins SINAPI PE 12-2024 Onerado'!$A$7:$E$9000,2,0)) -> FORNECIMENTO E INSTALAÇÃO DE PLACA DE OBRA COM CHAPA GALVANIZADA E ESTRUTURA DE MADEIRA. AF_03/2022_PS | E65: =IF(J65="ca",VLOOKUP(C65,'Comp SINAPI PE 12-2024 Onerado'!$G$7:$K$9000,3,0),VLOOKUP(C65,'Ins SINAPI PE 12-2024 Onerado'!$A$7:$E$9000,3,0)) -> M2 | F65: 4 | G65: =TRUNC((1-$H$9)*(SUMIFS(CPU!$G:$G,CPU!$A:$A,Malhadinha!$C65,CPU!$H:$H,"ss")+SUMIFS(CPU!$G:$G,CPU!$A:$A,Malhadinha!$C65,CPU!$H:$H,"mdo")+SUMIF('Comp SINAPI PE 12-2024 Onerado'!G:G,Malhadinha!C65,'Comp SINAPI PE 12-2024 Onerado'!K:K)+SUMIF('Ins SINAPI PE 12-2024 Onerado'!A:A,Malhadinha!C65,'Ins SINAPI PE 12-2024 Onerado'!E:E)),2) -> 462.33 | H65: =TRUNC(G65*(1+$H$5),2) -> 582.11 | I65: =TRUNC(F65*H65,2) -> 2328.44 | J65: ca
A66: 10.2 | D66: Régua Linimétrica Padrão “ANA”, Aço Carbono - 2 X 70 X 1000 mm (Fornecimento e Instalação) | I66: =SUM(I67:I67) -> 6301.68
A67: 10.2.1 | B67: PRÓPRIA | C67: CPU.18 | D67: Régua Linimétrica Padrão “ANA”, Aço Carbono - 2 X 70 X 1000 mm (Fornecimento e Instalação) | E67: un | F67: 12 | G67: =TRUNC((1-$H$9)*(SUMIFS(CPU!$G:$G,CPU!$A:$A,Malhadinha!$C67,CPU!$H:$H,"ss")+SUMIFS(CPU!$G:$G,CPU!$A:$A,Malhadinha!$C67,CPU!$H:$H,"mdo")+SUMIF('Comp SINAPI PE 12-2024 Onerado'!G:G,Malhadinha!C67,'Comp SINAPI PE 12-2024 Onerado'!K:K)+SUMIF('Ins SINAPI PE 12-2024 Onerado'!A:A,Malhadinha!C67,'Ins SINAPI PE 12-2024 Onerado'!E:E)),2) -> 417.08 | H67: =TRUNC(G67*(1+$H$5),2) -> 525.14 | I67: =TRUNC(F67*H67,2) -> 6301.68 | J67: ca
A69: 11 | D69: PROJETO "AS IS" | I69: =SUM(I70) -> 15778
A70: 11.1 | D70: Levantamento topógrafico e "AS IS" | I70: =SUM(I71:I72) -> 15778
A71: 11.1.1 | B71: ORSE | C71: 9346 | D71: Levantamento topográfico planimétrico cadastral | E71: m2 | F71: =F26 -> 11252 | G71: =TRUNC((1-$H$9)*0.35,2) -> 0.35 | H71: =TRUNC(G71*(1+$H$5),2) -> 0.44 | I71: =TRUNC(F71*H71,2) -> 4950.88
A72: 11.1.2 | B72: PRÓPRIA | C72: CPU.25 | D72: Projeto Geométrico | E72: un | F72: 1 | G72: =TRUNC((1-$H$9)*(SUMIFS(CPU!$G:$G,CPU!$A:$A,Malhadinha!$C72,CPU!$H:$H,"ss")+SUMIFS(CPU!$G:$G,CPU!$A:$A,Malhadinha!$C72,CPU!$H:$H,"mdo")+SUMIF('Comp SINAPI PE 12-2024 Onerado'!G:G,Malhadinha!C72,'Comp SINAPI PE 12-2024 Onerado'!K:K)+SUMIF('Ins SINAPI PE 12-2024 Onerado'!A:A,Malhadinha!C72,'Ins SINAPI PE 12-2024 Onerado'!E:E)),2) -> 8599.1 | H72: =TRUNC(G72*(1+$H$5),2) -> 10827.12 | I72: =TRUNC(F72*H72,2) -> 10827.12
D74: TOTAL (Custo): | I74: =TRUNC(SUMPRODUCT(F13:F72,G13:G72),2) -> 673187.54
D75: BDI e Encargos Sociais: | I75: =I76-I74 -> 174384.95
D76: TOTAL GERAL COM BDI: | I76: =TRUNC(SUMPRODUCT(F13:F72,H13:H72),2) -> 847572.49 | J76: VERIFICAÇÃO | K76: =SUM(I12,I16,I24,I29,I35,I43,I47,I53,I57,I63,I69) -> 847572.48

Sheet CPU
A1: Ministério da Integração e do Desenvolvimento Regional
A2: Companhia de Desenvolvimento dos Vales do São Francisco e do Parnaíba
A4: COMPOSIÇÕES DE PREÇOS UNITÁRIOS - ORÇAMENTO NÃO DESONERADO
A5: =Resumo!A5 -> OBRA: | B5: =Resumo!B5 -> Execução de Manutenção e Obras Civis nas Barragens de Cacimba Velha, Água Branca, Consolação, Almas e Malhadinha, localizadas no estado De Pernambuco.
A6: =Resumo!A6 -> LOCAL: | B6: =Resumo!B6 -> BARRAGENS DE PERNAMBUCO
A7: =Resumo!A7 -> DATA BASE: | B7: =Resumo!B7 -> 2025-05-01
A9: REFERÊNCIA | B9: CÓDIGO | C9: DESCRIÇÃO | D9: UNIDADE | E9: ÍNDICE | F9: CUSTO UNITÁRIO | G9: CUSTO TOTAL
B10: CPU.01 | C10: Administração Local | D10: mês | E10: 1 | G10: =SUM(G14,G13,G12,G11) -> 27859.4 | H10: S | I10: COMENTÁRIOS
A11: =B10 -> CPU.01 | C11: MATERIAL | G11: 0 | H11: ss
A12: =B10 -> CPU.01 | C12: EQUIPAMENTOS | G12: 0 | H12: ss
A13: =B10 -> CPU.01 | C13: SERVIÇOS | G13: 0 | H13: ss
A14: =B10 -> CPU.01 | C14: MÃO DE OBRA | G14: =SUM(G15:G17) -> 27859.4 | H14: mdo
A15: SINAPI | B15: 90778 | C15: =VLOOKUP(B15,'COMPOSIÇÃO SEM DESONERAÇÃO'!$B$11:$E$9696,2,FALSE) -> ENGENHEIRO CIVIL DE OBRA PLENO COM ENCARGOS COMPLEMENTARES | D15: =IF(H15="i",VLOOKUP(B15,'Ins SINAPI PE 12-2024 Onerado'!$A$8:$E$50000,2,0),VLOOKUP(B15,'Comp SINAPI PE 12-2024 Onerado'!$G$7:$K$50000,3,0)) -> H | E15: =1.5*5*4 -> 30 | F15: =VLOOKUP(B15,'COMPOSIÇÃO SEM DESONERAÇÃO'!$B$11:$E$9696,4,FALSE) -> 135.86 | G15: =TRUNC(E15*F15,2) -> 4075.8 | H15: ca
A16: SINAPI | B16: 93572 | C16: =VLOOKUP(B16,'COMPOSIÇÃO SEM DESONERAÇÃO'!$B$11:$E$9696,2,FALSE) -> ENCARREGADO GERAL DE OBRAS COM ENCARGOS COMPLEMENTARES | D16: =IF(H16="i",VLOOKUP(B16,'Ins SINAPI PE 12-2024 Onerado'!$A$8:$E$50000,2,0),VLOOKUP(B16,'Comp SINAPI PE 12-2024 Onerado'!$G$7:$K$50000,3,0)) -> MES | E16: 0.8 | F16: =VLOOKUP(B16,'COMPOSIÇÃO SEM DESONERAÇÃO'!$B$11:$E$9696,4,FALSE) -> 6345.55 | G16: =TRUNC(E16*F16,2) -> 5076.44 | H16: ca
A17: EMBASA | B17: 74.13.43 | C17: VIGIA - AN | D17: MES | E17: 4 | F17: 4676.79 | G17: 18707.16 | H17: ca | I17: considerando 4 vigias intercalando em dupla na jornada de 12/36
B19: CPU.02 | C19: Mobilização e desmobilização de instalação do canteiro | D19: un | E19: 1 | G19: =SUM(G27,G26,G21,G20) -> 1731.32 | H19: S | I19: mobilização e desmobilização de Petrolina a barragem | M19: 2 dias
A20: =B19 -> CPU.02 | C20: MATERIAL | G20: 0 | H20: ss
A21: =B19 -> CPU.02 | C21: EQUIPAMENTOS | G21: =SUM(G22:G25) -> 1731.32 | H21: ss
A22: PRÓPRIA | B22: CODE | C22: Veículo tipo pick-up, cabine dupla - 2.0 16V 4x4 diesel Aut. | D22: dia | E22: 2 | F22: ='CPU-VEICULO_PickUp1'!C11 -> 222.06874 | G22: =TRUNC(E22*F22,2) -> 444.13 | H22: ca
A23: SINAPI | B23: 100946 | C23: =VLOOKUP(B23,'COMPOSIÇÃO SEM DESONERAÇÃO'!$B$11:$E$9696,2,FALSE) -> TRANSPORTE COM CAMINHÃO CARROCERIA 9T, EM VIA URBANA EM REVESTIMENTO PRIMÁRIO (UNIDADE: TXKM). AF_07/2020 | D23: =IF(H23="i",VLOOKUP(B23,'Ins SINAPI PE 12-2024 Onerado'!$A$8:$E$50000,3,0),VLOOKUP(B23,'Comp SINAPI PE 12-2024 Onerado'!$G$7:$K$50000,3,0)) -> TXKM | E23: ='Memorial de cálculo'!H18 -> 125.6 | F23: =VLOOKUP(B23,'COMPOSIÇÃO SEM DESONERAÇÃO'!$B$11:$E$9696,4,FALSE) -> 2.5 | G23: =TRUNC(E23*F23,2) -> 314 | H23: ca | I23: considerando 5 toneladas de carga
A24: SINAPI | B24: 100947 | C24: =VLOOKUP(B24,'COMPOSIÇÃO SEM DESONERAÇÃO'!$B$11:$E$9696,2,FALSE) -> TRANSPORTE COM CAMINHÃO CARROCERIA 9T, EM VIA URBANA PAVIMENTADA, DMT ATÉ 30KM (UNIDADE: TXKM). AF_07/2020 | D24: =IF(H24="i",VLOOKUP(B24,'Ins SINAPI PE 12-2024 Onerado'!$A$8:$E$50000,3,0),VLOOKUP(B24,'Comp SINAPI PE 12-2024 Onerado'!$G$7:$K$50000,3,0)) -> TXKM | E24: ='Memorial de cálculo'!H21 -> 300 | F24: =VLOOKUP(B24,'COMPOSIÇÃO SEM DESONERAÇÃO'!$B$11:$E$9696,4,FALSE) -> 2.3 | G24: 690 | H24: ca
A25: SINAPI | B25: 100948 | C25: =VLOOKUP(B25,'COMPOSIÇÃO SEM DESONERAÇÃO'!$B$11:$E$9696,2,FALSE) -> TRANSPORTE COM CAMINHÃO CARROCERIA 9T, EM VIA URBANA PAVIMENTADA, ADICIONAL PARA DMT EXCEDENTE A 30 KM (UNIDADE: TXKM). AF_07/2020 | D25: =IF(H25="i",VLOOKUP(B25,'Ins SINAPI PE 12-2024 Onerado'!$A$8:$E$50000,3,0),VLOOKUP(B25,'Comp SINAPI PE 12-2024 Onerado'!$G$7:$K$50000,3,0)) -> TXKM | E25: ='Memorial de cálculo'!H24 -> 311.2 | F25: =VLOOKUP(B25,'COMPOSIÇÃO SEM DESONERAÇÃO'!$B$11:$E$9696,4,FALSE) -> 0.91 | G25: 283.19 | H25: ca
A26: =B19 -> CPU.02 | C26: SERVIÇOS | G26: 0 | H26: ss
A27: =B19 -> CPU.02 | C27: MÃO DE OBRA | G27: 0 | H27: mdo
B29: CPU.03 | C29: Execução de canteiro de obras, inclusive, limpeza, refeitório, sanitários e central de formas | D29: m2 | E29: 1 | G29: =SUM(G38,G32,G31,G30) -> 709.19 | H29: S
A30: =B29 -> CPU.03 | C30: MATERIAL | G30: 0 | H30: ss
A31: =B29 -> CPU.03 | C31: EQUIPAMENTOS | G31: 0 | H31: ss
A32: =B29 -> CPU.03 | C32: SERVIÇOS | G32: =SUM(G33:G37) -> 709.19 | H32: ss
A33: SINAPI | B33: 98524 | C33: =VLOOKUP(B33,'COMPOSIÇÃO SEM DESONERAÇÃO'!$B$11:$E$9696,2,FALSE) -> LIMPEZA MANUAL DE VEGETAÇÃO EM TERRENO COM ENXADA. AF_03/2024 | D33: =IF(H33="i",VLOOKUP(B33,'Ins SINAPI PE 12-2024 Onerado'!$A$8:$E$50000,3,0),VLOOKUP(B33,'Comp SINAPI PE 12-2024 Onerado'!$G$7:$K$50000,3,0)) -> M2 | E33: 1 | F33: =VLOOKUP(B33,'COMPOSIÇÃO SEM DESONERAÇÃO'!$B$11:$E$9696,4,FALSE) -> 4.89 | G33: =TRUNC(E33*F33,2) -> 4.89 | H33: ca
A34: PRÓPRIA | B34: 93210-ADAPTADO | C34: ='COMPOSICÕES MODIFICADAS'!D149 -> EXECUÇÃO DE REFEITÓRIO EM CANTEIRO DE OBRA EM CHAPA DE MADEIRA COMPENSADA, NÃO INCLUSO MOBILIÁRIO E EQUIPAMENTOS. AF_02/2016 | D34: m2 | E34: ='Memorial de cálculo'!H29/'Memorial de cálculo'!H28 -> 0.2631578947 | F34: ='COMPOSICÕES MODIFICADAS'!D154 -> 589.6644365 | G34: 155.17 | H34: ca
A35: PRÓPRIA | B35: 93212-ADAPTADO | C35: EXECUÇÃO DE SANITÁRIO E VESTIÁRIO EM CANTEIRO DE OBRA EM CHAPA DE MADEIRA COMPENSADA, NÃO INCLUSO MOBILIÁRIO. AF_02/2016 | D35: m2 | E35: ='Memorial de cálculo'!H30/'Memorial de cálculo'!H28 -> 0.3157894737 | F35: ='COMPOSICÕES MODIFICADAS'!D9 -> 956.49 | G35: 302.04 | H35: ca
A36: PRÓPRIA | B36: 93583-ADAPTADO | C36: ='COMPOSICÕES MODIFICADAS'!D109 -> EXECUÇÃO DE CENTRAL DE FÔRMAS, PRODUÇÃO DE ARGAMASSA OU CONCRETO EM CANTEIRO DE OBRA, NÃO INCLUSO MOBILIÁRIO E EQUIPAMENTOS. AF_04/2016 | D36: m2 | E36: ='Memorial de cálculo'!H31/'Memorial de cálculo'!H28 -> 0.4210526316 | F36: ='COMPOSICÕES MODIFICADAS'!D114 -> 522.9 | G36: 220.16 | H36: ca
A37: PRÓPRIA | B37: CODE | C37: HOSPEDAGEM | D37: un | E37: ='Memorial de cálculo'!D33*'Memorial de cálculo'!H33 -> 0.1394375 | F37: ='CPU HOSPEDAGEM'!C19 -> 193.155303 | G37: 26.93 | H37: ca
A38: =B29 -> CPU.03 | C38: MÃO DE OBRA | G38: 0 | H38: mdo
B40: CPU.04 | C40: Limpeza de vegetação | D40: m2 | E40: 1 | G40: =SUM(G48,G43,G42,G41) -> 7.57 | H40: S | J40: =G40*14000 -> 105980
A41: =B40 -> CPU.04 | C41: MATERIAL | G41: 0 | H41: ss
A42: =B40 -> CPU.04 | C42: EQUIPAMENTOS | G42: 0 | H42: ss
A43: =B40 -> CPU.04 | C43: SERVIÇOS | G43: =SUM(G44:G47) -> 7.57 | H43: ss
A44: SINAPI | B44: 98524 | C44: =VLOOKUP(B44,'COMPOSIÇÃO SEM DESONERAÇÃO'!$B$11:$E$9696,2,FALSE) -> LIMPEZA MANUAL DE VEGETAÇÃO EM TERRENO COM ENXADA. AF_03/2024 | D44: =IF(H44="i",VLOOKUP(B44,'Ins SINAPI PE 12-2024 Onerado'!$A$8:$E$50000,3,0),VLOOKUP(B44,'Comp SINAPI PE 12-2024 Onerado'!$G$7:$K$50000,3,0)) -> M2 | E44: 1 | F44: =VLOOKUP(B44,'COMPOSIÇÃO SEM DESONERAÇÃO'!$B$11:$E$9696,4,FALSE) -> 4.89 | G44: =TRUNC(E44*F44,2) -> 4.89 | H44: ca
A45: PRÓPRIA | B45: CODE | C45: HOSPEDAGEM | D45: un | E45: ='Memorial de cálculo'!D37*'Memorial de cálculo'!H37 -> 0.0025 | F45: ='CPU HOSPEDAGEM'!C19 -> 193.155303 | G45: 0.48 | H45: ca
A46: PRÓPRIA | B46: CODE | C46: Veículo tipo pick-up, cabine dupla - 2.0 16V 4x4 diesel Aut. | D46: dia | E46: ='Memorial de cálculo'!H37 -> 0.000625 | F46: ='CPU-VEICULO_PickUp1'!C11 -> 222.06874 | G46: 0.13 | H46: ca
A47: SINAPI | B47: 93589 | C47: =VLOOKUP(B47,'COMPOSIÇÃO SEM DESONERAÇÃO'!$B$11:$E$9696,2,FALSE) -> TRANSPORTE COM CAMINHÃO BASCULANTE DE 10 M³, EM VIA URBANA EM REVESTIMENTO PRIMÁRIO (UNIDADE: M3XKM). AF_07/2020 | D47: =IF(H47="i",VLOOKUP(B47,'Ins SINAPI PE 12-2024 Onerado'!$A$8:$E$50000,3,0),VLOOKUP(B47,'Comp SINAPI PE 12-2024 Onerado'!$G$7:$K$50000,3,0)) -> M3XKM | E47: =15*0.05 -> 0.75 | F47: =VLOOKUP(B47,'COMPOSIÇÃO SEM DESONERAÇÃO'!$B$11:$E$9696,4,FALSE) -> 2.76 | G47: 2.07 | H47: ca | I47: considerando 5 cm de altura da vegetação e 15 km para bota-fora
A48: =B40 -> CPU.04 | C48: MÃO DE OBRA | G48: 0 | H48: mdo
B50: CPU.05 | C50: Corte de tronco e remoção de raiz | D50: un | E50: 1 | G50: =SUM(G61,G53,G52,G51) -> 378 | H50: S
A51: =B50 -> CPU.05 | C51: MATERIAL | G51: 0 | H51: ss
A52: =B50 -> CPU.05 | C52: EQUIPAMENTOS | G52: 0 | H52: ss
A53: =B50 -> CPU.05 | C53: SERVIÇOS | G53: =SUM(G54:G60) -> 378 | H53: ss
A54: SINAPI | B54: 98529 | C54: =VLOOKUP(B54,'COMPOSIÇÃO SEM DESONERAÇÃO'!$B$11:$E$9696,2,FALSE) -> CORTE RASO E RECORTE DE ÁRVORE COM DIÂMETRO DE TRONCO MAIOR OU IGUAL A 0,20 M E MENOR QUE 0,40 M. AF_03/2024 | D54: =IF(H54="i",VLOOKUP(B54,'Ins SINAPI PE 12-2024 Onerado'!$A$8:$E$50000,3,0),VLOOKUP(B54,'Comp SINAPI PE 12-2024 Onerado'!$G$7:$K$50000,3,0)) -> UN | E54: 1 | F54: =VLOOKUP(B54,'COMPOSIÇÃO SEM DESONERAÇÃO'!$B$11:$E$9696,4,FALSE) -> 77.35 | G54: =TRUNC(E54*F54,2) -> 77.35 | H54: ca
A55: SINAPI | B55: 98526 | C55: =VLOOKUP(B55,'COMPOSIÇÃO SEM DESONERAÇÃO'!$B$11:$E$9696,2,FALSE) -> REMOÇÃO DE RAÍZES REMANESCENTES DE TRONCO DE ÁRVORE COM DIÂMETRO MAIOR OU IGUAL A 0,20 M E MENOR QUE 0,40 M. AF_03/2024 | D55: =IF(H55="i",VLOOKUP(B55,'Ins SINAPI PE 12-2024 Onerado'!$A$8:$E$50000,3,0),VLOOKUP(B55,'Comp SINAPI PE 12-2024 Onerado'!$G$7:$K$50000,3,0)) -> UN | E55: 1 | F55: =VLOOKUP(B55,'COMPOSIÇÃO SEM DESONERAÇÃO'!$B$11:$E$9696,4,FALSE) -> 127.44 | G55: 127.44 | H55: ca
A56: SINAPI | B56: 6081 | C56: =VLOOKUP(B56,'INSUMO SEM DESONERAÇÃO'!$B$11:$F$4847,2,FALSE) -> ARGILA OU BARRO PARA ATERRO/REATERRO (COM TRANSPORTE ATE 10 KM) | D56: =IF(H56="i",VLOOKUP(B56,'Ins SINAPI PE 12-2024 Onerado'!$A$8:$E$50000,3,0),VLOOKUP(B56,'Comp SINAPI PE 12-2024 Onerado'!$G$7:$K$50000,3,0)) -> M3 | E56: 0.5 | F56: 54.26 | G56: 27.13 | H56: i | I56: considerando 0,5 m3 por árvore
A57: SINAPI | B57: 93382 | C57: =VLOOKUP(B57,'COMPOSIÇÃO SEM DESONERAÇÃO'!$B$11:$E$9696,2,FALSE) -> REATERRO MANUAL DE VALAS, COM COMPACTADOR DE SOLOS DE PERCUSSÃO. AF_08/2023 | D57: =IF(H57="i",VLOOKUP(B57,'Ins SINAPI PE 12-2024 Onerado'!$A$8:$E$50000,3,0),VLOOKUP(B57,'Comp SINAPI PE 12-2024 Onerado'!$G$7:$K$50000,3,0)) -> M3 | E57: 0.5 | F57: =VLOOKUP(B57,'COMPOSIÇÃO SEM DESONERAÇÃO'!$B$11:$E$9696,4,FALSE) -> 26.34 | G57: 13.17 | H57: ca
A58: PRÓPRIA | B58: CODE | C58: HOSPEDAGEM | D58: un | E58: ='Memorial de cálculo'!D41*'Memorial de cálculo'!H41+'Memorial de cálculo'!D42*'Memorial de cálculo'!H42 -> 0.41525 | F58: ='CPU HOSPEDAGEM'!C19 -> 193.155303 | G58: 80.2 | H58: ca
A59: PRÓPRIA | B59: CODE | C59: Veículo tipo pick-up, cabine dupla - 2.0 16V 4x4 diesel Aut. | D59: dia | E59: =LARGE('Memorial de cálculo'!H41:H42,1) -> 0.1441875 | F59: ='CPU-VEICULO_PickUp1'!C11 -> 222.06874 | G59: 32.01 | H59: ca
A60: SINAPI | B60: 93589 | C60: =VLOOKUP(B60,'COMPOSIÇÃO SEM DESONERAÇÃO'!$B$11:$E$9696,2,FALSE) -> TRANSPORTE COM CAMINHÃO BASCULANTE DE 10 M³, EM VIA URBANA EM REVESTIMENTO PRIMÁRIO (UNIDADE: M3XKM). AF_07/2020 | D60: =IF(H60="i",VLOOKUP(B60,'Ins SINAPI PE 12-2024 Onerado'!$A$8:$E$50000,3,0),VLOOKUP(B60,'Comp SINAPI PE 12-2024 Onerado'!$G$7:$K$50000,3,0)) -> M3XKM | E60: =15*0.5 -> 7.5 | F60: =VLOOKUP(B60,'COMPOSIÇÃO SEM DESONERAÇÃO'!$B$11:$E$9696,4,FALSE) -> 2.76 | G60: 20.7 | H60: ca | I60: considerando 0,5 m3 por árvore e 15 km para bota-fora
A61: =B50 -> CPU.05 | C61: MÃO DE OBRA | G61: 0 | H61: mdo
B63: CPU.06 | C63: Retaludamento dos espaldares da barragem, inclusive, escavação, regularização da superfície e reaterro | D63: m3 | E63: 1 | G63: =SUM(G79,G67,G66,G64) -> 442.46 | H63: S
A64: =B63 -> CPU.06 | C64: MATERIAL | G64: =SUM(G65) -> 54.26 | H64: ss
A65: SINAPI | B65: 6081 | C65: =VLOOKUP(B65,'INSUMO SEM DESONERAÇÃO'!$B$11:$F$4847,2,FALSE) -> ARGILA OU BARRO PARA ATERRO/REATERRO (COM TRANSPORTE ATE 10 KM) | D65: =IF(H65="i",VLOOKUP(B65,'Ins SINAPI PE 12-2024 Onerado'!$A$8:$E$50000,3,0),VLOOKUP(B65,'Comp SINAPI PE 12-2024 Onerado'!$G$7:$K$50000,3,0)) -> M3 | E65: 1 | F65: 54.26 | G65: =TRUNC(E65*F65,2) -> 54.26 | H65: i
A66: =B63 -> CPU.06 | C66: EQUIPAMENTOS | G66: 0 | H66: ss
A67: =B63 -> CPU.06 | C67: SERVIÇOS | G67: =SUM(G68:G78) -> 388.2 | H67: ss
A68: SINAPI | B68: 101230 | C68: =VLOOKUP(B68,'COMPOSIÇÃO SEM DESONERAÇÃO'!$B$11:$E$9696,2,FALSE) -> ESCAVAÇÃO VERTICAL PARA INFRAESTRUTURA, COM CARGA, DESCARGA E TRANSPORTE DE SOLO DE 1ª CATEGORIA, COM ESCAVADEIRA HIDRÁULICA (CAÇAMBA: 0,8 M³ / 111 HP), FROTA DE 3 CAMINHÕES BASCULANTES DE 14 M³, DMT ATÉ 1 KM E VELOCIDADE MÉDIA14 KM/H. AF_05/2020 | D68: =IF(H68="i",VLOOKUP(B68,'Ins SINAPI PE 12-2024 Onerado'!$A$8:$E$50000,3,0),VLOOKUP(B68,'Comp SINAPI PE 12-2024 Onerado'!$G$7:$K$50000,3,0)) -> M3 | E68: 0.3 | F68: =VLOOKUP(B68,'COMPOSIÇÃO SEM DESONERAÇÃO'!$B$11:$E$9696,4,FALSE) -> 11.15 | G68: =TRUNC(E68*F68,2) -> 3.34 | H68: ca | I68: Preparação da superfície 30%
A69: SINAPI | B69: 93589 | C69: =VLOOKUP(B69,'COMPOSIÇÃO SEM DESONERAÇÃO'!$B$11:$E$9696,2,FALSE) -> TRANSPORTE COM CAMINHÃO BASCULANTE DE 10 M³, EM VIA URBANA EM REVESTIMENTO PRIMÁRIO (UNIDADE: M3XKM). AF_07/2020 | D69: =IF(H69="i",VLOOKUP(B69,'Ins SINAPI PE 12-2024 Onerado'!$A$8:$E$50000,3,0),VLOOKUP(B69,'Comp SINAPI PE 12-2024 Onerado'!$G$7:$K$50000,3,0)) -> M3XKM | E69: ='Memorial de cálculo'!H8-10 -> 2.56 | F69: =VLOOKUP(B69,'COMPOSIÇÃO SEM DESONERAÇÃO'!$B$11:$E$9696,4,FALSE) -> 2.76 | G69: 7.06 | H69: ca | I69: Transporte da argila desconsiderando os 10km já presente no insumo (SINAPI 6081)
A70: SINAPI | B70: 95875 | C70: =VLOOKUP(B70,'COMPOSIÇÃO SEM DESONERAÇÃO'!$B$11:$E$9696,2,FALSE) -> TRANSPORTE COM CAMINHÃO BASCULANTE DE 10 M³, EM VIA URBANA PAVIMENTADA, DMT ATÉ 30 KM (UNIDADE: M3XKM). AF_07/2020 | D70: =IF(H70="i",VLOOKUP(B70,'Ins SINAPI PE 12-2024 Onerado'!$A$8:$E$50000,3,0),VLOOKUP(B70,'Comp SINAPI PE 12-2024 Onerado'!$G$7:$K$50000,3,0)) -> M3XKM | E70: =30 -> 30 | F70: =VLOOKUP(B70,'COMPOSIÇÃO SEM DESONERAÇÃO'!$B$11:$E$9696,4,FALSE) -> 2.55 | G70: 76.5 | H70: ca
A71: SINAPI | B71: 93590 | C71: =VLOOKUP(B71,'COMPOSIÇÃO SEM DESONERAÇÃO'!$B$11:$E$9696,2,FALSE) -> TRANSPORTE COM CAMINHÃO BASCULANTE DE 10 M³, EM VIA URBANA PAVIMENTADA, ADICIONAL PARA DMT EXCEDENTE A 30 KM (UNIDADE: M3XKM). AF_07/2020 | D71: =IF(H71="i",VLOOKUP(B71,'Ins SINAPI PE 12-2024 Onerado'!$A$8:$E$50000,3,0),VLOOKUP(B71,'Comp SINAPI PE 12-2024 Onerado'!$G$7:$K$50000,3,0)) -> M3XKM | E71: ='Memorial de cálculo'!H7-30 -> 31.12 | F71: =VLOOKUP(B71,'COMPOSIÇÃO SEM DESONERAÇÃO'!$B$11:$E$9696,4,FALSE) -> 1.01 | G71: 31.43 | H71: ca
A72: SINAPI | B72: 100976 | C72: =VLOOKUP(B72,'COMPOSIÇÃO SEM DESONERAÇÃO'!$B$11:$E$9696,2,FALSE) -> CARGA, MANOBRA E DESCARGA DE SOLOS E MATERIAIS GRANULARES EM CAMINHÃO BASCULANTE 18 M³ - CARGA COM PÁ CARREGADEIRA (CAÇAMBA DE 1,7 A 2,8 M³ / 128 HP) E DESCARGA LIVRE (UNIDADE: M3). AF_07/2020 | D72: =IF(H72="i",VLOOKUP(B72,'Ins SINAPI PE 12-2024 Onerado'!$A$8:$E$50000,3,0),VLOOKUP(B72,'Comp SINAPI PE 12-2024 Onerado'!$G$7:$K$50000,3,0)) -> M3 | E72: 1 | F72: =VLOOKUP(B72,'COMPOSIÇÃO SEM DESONERAÇÃO'!$B$11:$E$9696,4,FALSE) -> 8.3 | G72: 8.3 | H72: ca
A73: SINAPI | B73: 100951 | C73: =VLOOKUP(B73,'COMPOSIÇÃO SEM DESONERAÇÃO'!$B$11:$E$9696,2,FALSE) -> TRANSPORTE COM CAMINHÃO CARROCERIA COM GUINDAUTO (MUNCK), MOMENTO MÁXIMO DE CARGA 11,7 TM, EM VIA URBANA EM REVESTIMENTO PRIMÁRIO (UNIDADE: TXKM). AF_07/2020 | D73: =IF(H73="i",VLOOKUP(B73,'Ins SINAPI PE 12-2024 Onerado'!$A$8:$E$50000,3,0),VLOOKUP(B73,'Comp SINAPI PE 12-2024 Onerado'!$G$7:$K$50000,3,0)) -> TXKM | E73: =1.5*'Memorial de cálculo'!H8 -> 18.84 | F73: =VLOOKUP(B73,'COMPOSIÇÃO SEM DESONERAÇÃO'!$B$11:$E$9696,4,FALSE) -> 3.17 | G73: 59.72 | H73: ca | I73: Tonelada da máquina | K73: 1.5
A74: SINAPI | B74: 100952 | C74: =VLOOKUP(B74,'COMPOSIÇÃO SEM DESONERAÇÃO'!$B$11:$E$9696,2,FALSE) -> TRANSPORTE COM CAMINHÃO CARROCERIA COM GUINDAUTO (MUNCK), MOMENTO MÁXIMO DE CARGA 11,7 TM, EM VIA URBANA PAVIMENTADA, DMT ATÉ 30KM (UNIDADE: TXKM). AF_07/2020 | D74: =IF(H74="i",VLOOKUP(B74,'Ins SINAPI PE 12-2024 Onerado'!$A$8:$E$50000,3,0),VLOOKUP(B74,'Comp SINAPI PE 12-2024 Onerado'!$G$7:$K$50000,3,0)) -> TXKM | E74: =1.5*30 -> 45 | F74: =VLOOKUP(B74,'COMPOSIÇÃO SEM DESONERAÇÃO'!$B$11:$E$9696,4,FALSE) -> 2.93 | G74: 131.85 | H74: ca | I74: Tonelada da máquina | K74: 1.5
A75: SINAPI | B75: 100953 | C75: =VLOOKUP(B75,'COMPOSIÇÃO SEM DESONERAÇÃO'!$B$11:$E$9696,2,FALSE) -> TRANSPORTE COM CAMINHÃO CARROCERIA COM GUINDAUTO (MUNCK), MOMENTO MÁXIMO DE CARGA 11,7 TM, EM VIA URBANA PAVIMENTADA, ADICIONAL PARA DMT EXCEDENTE A 30 KM (UNIDADE: TXKM). AF_07/2020 | D75: =IF(H75="i",VLOOKUP(B75,'Ins SINAPI PE 12-2024 Onerado'!$A$8:$E$50000,3,0),VLOOKUP(B75,'Comp SINAPI PE 12-2024 Onerado'!$G$7:$K$50000,3,0)) -> TXKM | E75: =1.5*('Memorial de cálculo'!H7-30) -> 46.68 | F75: =VLOOKUP(B75,'COMPOSIÇÃO SEM DESONERAÇÃO'!$B$11:$E$9696,4,FALSE) -> 1.16 | G75: 54.14 | H75: ca | I75: Tonelada da máquina | K75: 1.5
A76: SINAPI | B76: 96385 | C76: =VLOOKUP(B76,'COMPOSIÇÃO SEM DESONERAÇÃO'!$B$11:$E$9696,2,FALSE) -> EXECUÇÃO E COMPACTAÇÃO DE CORPO DE ATERRO DE ATERRO (95% DE ENERGIA DO PROCTOR NORMAL) COM SOLO PREDOMINANTEMENTE ARGILOSO ESPESSURA 15 CM - EXCLUSIVE MATERIAL, ESCAVAÇÃO, CARGA E TRANSPORTE. AF_09/2024 | D76: =IF(H76="i",VLOOKUP(B76,'Ins SINAPI PE 12-2024 Onerado'!$A$8:$E$50000,3,0),VLOOKUP(B76,'Comp SINAPI PE 12-2024 Onerado'!$G$7:$K$50000,3,0)) -> M3 | E76: 1 | F76: =VLOOKUP(B76,'COMPOSIÇÃO SEM DESONERAÇÃO'!$B$11:$E$9696,4,FALSE) -> 11.58 | G76: 11.58 | H76: ca
A77: PRÓPRIA | B77: CODE | C77: HOSPEDAGEM | D77: un | E77: ='Memorial de cálculo'!D46*'Memorial de cálculo'!H46+'Memorial de cálculo'!D47*'Memorial de cálculo'!H47+'Memorial de cálculo'!D48*'Memorial de cálculo'!H48 -> 0.0153585375 | F77: ='CPU HOSPEDAGEM'!C19 -> 193.155303 | G77: 2.96 | H77: ca
A78: PRÓPRIA | B78: CODE | C78: Veículo tipo pick-up, cabine dupla - 2.0 16V 4x4 diesel Aut. | D78: dia | E78: =LARGE('Memorial de cálculo'!H46:H48,1) -> 0.0059586125 | F78: ='CPU-VEICULO_PickUp1'!C11 -> 222.06874 | G78: 1.32 | H78: ca
A79: =B63 -> CPU.06 | C79: MÃO DE OBRA | G79: 0 | H79: mdo
B81: CPU.07 | C81: Enrocamento c/ pedra de mão c/ fornecimento e assentamento | D81: m3 | E81: 1 | G81: =SUM(G92,G85,G84,G82) -> 276.56 | H81: S
A82: =B81 -> CPU.07 | C82: MATERIAL | G82: =SUM(G83) -> 101.84 | H82: ss
A83: SINAPI | B83: 4730 | C83: =VLOOKUP(B83,'INSUMO SEM DESONERAÇÃO'!$B$11:$F$4847,2,FALSE) -> PEDRA DE MAO OU PEDRA RACHAO PARA ARRIMO/FUNDACAO (POSTO PEDREIRA/FORNECEDOR, SEM FRETE) | D83: =IF(H83="i",VLOOKUP(B83,'Ins SINAPI PE 12-2024 Onerado'!$A$8:$E$50000,3,0),VLOOKUP(B83,'Comp SINAPI PE 12-2024 Onerado'!$G$7:$K$50000,3,0)) -> M3 | E83: 1 | F83: =VLOOKUP(B83,'INSUMO SEM DESONERAÇÃO'!$B$11:$F$4847,5,FALSE) -> 101.84 | G83: =TRUNC(E83*F83,2) -> 101.84 | H83: i
A84: =B81 -> CPU.07 | C84: EQUIPAMENTOS | G84: 0 | H84: ss
A85: =B81 -> CPU.07 | C85: SERVIÇOS | G85: =SUM(G86:G91) -> 164.47 | H85: ss
A86: SINAPI | B86: 93589 | C86: =VLOOKUP(B86,'COMPOSIÇÃO SEM DESONERAÇÃO'!$B$11:$E$9696,2,FALSE) -> TRANSPORTE COM CAMINHÃO BASCULANTE DE 10 M³, EM VIA URBANA EM REVESTIMENTO PRIMÁRIO (UNIDADE: M3XKM). AF_07/2020 | D86: =IF(H86="i",VLOOKUP(B86,'Ins SINAPI PE 12-2024 Onerado'!$A$8:$E$50000,3,0),VLOOKUP(B86,'Comp SINAPI PE 12-2024 Onerado'!$G$7:$K$50000,3,0)) -> M3XKM | E86: ='Memorial de cálculo'!H8 -> 12.56 | F86: =VLOOKUP(B86,'COMPOSIÇÃO SEM DESONERAÇÃO'!$B$11:$E$9696,4,FALSE) -> 2.76 | G86: =TRUNC(E86*F86,2) -> 34.66 | H86: ca
A87: SINAPI | B87: 95875 | C87: =VLOOKUP(B87,'COMPOSIÇÃO SEM DESONERAÇÃO'!$B$11:$E$9696,2,FALSE) -> TRANSPORTE COM CAMINHÃO BASCULANTE DE 10 M³, EM VIA URBANA PAVIMENTADA, DMT ATÉ 30 KM (UNIDADE: M3XKM). AF_07/2020 | D87: =IF(H87="i",VLOOKUP(B87,'Ins SINAPI PE 12-2024 Onerado'!$A$8:$E$50000,3,0),VLOOKUP(B87,'Comp SINAPI PE 12-2024 Onerado'!$G$7:$K$50000,3,0)) -> M3XKM | E87: =30 -> 30 | F87: =VLOOKUP(B87,'COMPOSIÇÃO SEM DESONERAÇÃO'!$B$11:$E$9696,4,FALSE) -> 2.55 | G87: 76.5 | H87: ca
A88: SINAPI | B88: 93590 | C88: =VLOOKUP(B88,'COMPOSIÇÃO SEM DESONERAÇÃO'!$B$11:$E$9696,2,FALSE) -> TRANSPORTE COM CAMINHÃO BASCULANTE DE 10 M³, EM VIA URBANA PAVIMENTADA, ADICIONAL PARA DMT EXCEDENTE A 30 KM (UNIDADE: M3XKM). AF_07/2020 | D88: =IF(H88="i",VLOOKUP(B88,'Ins SINAPI PE 12-2024 Onerado'!$A$8:$E$50000,3,0),VLOOKUP(B88,'Comp SINAPI PE 12-2024 Onerado'!$G$7:$K$50000,3,0)) -> M3XKM | E88: ='Memorial de cálculo'!H7-30 -> 31.12 | F88: =VLOOKUP(B88,'COMPOSIÇÃO SEM DESONERAÇÃO'!$B$11:$E$9696,4,FALSE) -> 1.01 | G88: 31.43 | H88: ca
A89: SINAPI | B89: 100979 | C89: =VLOOKUP(B89,'COMPOSIÇÃO SEM DESONERAÇÃO'!$B$11:$E$9696,2,FALSE) -> CARGA, MANOBRA E DESCARGA DE SOLOS E MATERIAIS GRANULARES EM CAMINHÃO BASCULANTE 14 M³ - CARGA COM ESCAVADEIRA HIDRÁULICA (CAÇAMBA DE 1,20 M³ / 155 HP) E DESCARGA LIVRE (UNIDADE: M3). AF_07/2020 | D89: =IF(H89="i",VLOOKUP(B89,'Ins SINAPI PE 12-2024 Onerado'!$A$8:$E$50000,3,0),VLOOKUP(B89,'Comp SINAPI PE 12-2024 Onerado'!$G$7:$K$50000,3,0)) -> M3 | E89: 1 | F89: =VLOOKUP(B89,'COMPOSIÇÃO SEM DESONERAÇÃO'!$B$11:$E$9696,4,FALSE) -> 6.68 | G89: 6.68 | H89: ca
A90: PRÓPRIA | B90: CODE | C90: HOSPEDAGEM | D90: un | E90: ='Memorial de cálculo'!D52*'Memorial de cálculo'!H52+'Memorial de cálculo'!D53*'Memorial de cálculo'!H53 -> 0.05 | F90: ='CPU HOSPEDAGEM'!C19 -> 193.155303 | G90: 9.65 | H90: ca
A91: PRÓPRIA | B91: CODE | C91: Veículo tipo pick-up, cabine dupla - 2.0 16V 4x4 diesel Aut. | D91: dia | E91: =LARGE('Memorial de cálculo'!H52:H53,1) -> 0.025 | F91: ='CPU-VEICULO_PickUp1'!C11 -> 222.06874 | G91: 5.55 | H91: ca
A92: =B81 -> CPU.07 | C92: MÃO DE OBRA | G92: =SUM(G93:G94) -> 10.25 | H92: mdo
A93: SINAPI | B93: 88309 | C93: =VLOOKUP(B93,'COMPOSIÇÃO SEM DESONERAÇÃO'!$B$11:$E$9696,2,FALSE) -> PEDREIRO COM ENCARGOS COMPLEMENTARES | D93: =IF(H93="i",VLOOKUP(B93,'Ins SINAPI PE 12-2024 Onerado'!$A$8:$E$50000,3,0),VLOOKUP(B93,'Comp SINAPI PE 12-2024 Onerado'!$G$7:$K$50000,3,0)) -> H | E93: 0.2 | F93: =VLOOKUP(B93,'COMPOSIÇÃO SEM DESONERAÇÃO'!$B$11:$E$9696,4,FALSE) -> 28.34 | G93: 5.66 | H93: ca
A94: SINAPI | B94: 88316 | C94: =VLOOKUP(B94,'COMPOSIÇÃO SEM DESONERAÇÃO'!$B$11:$E$9696,2,FALSE) -> SERVENTE COM ENCARGOS COMPLEMENTARES | D94: =IF(H94="i",VLOOKUP(B94,'Ins SINAPI PE 12-2024 Onerado'!$A$8:$E$50000,3,0),VLOOKUP(B94,'Comp SINAPI PE 12-2024 Onerado'!$G$7:$K$50000,3,0)) -> H | E94: 0.2 | F94: =VLOOKUP(B94,'COMPOSIÇÃO SEM DESONERAÇÃO'!$B$11:$E$9696,4,FALSE) -> 22.95 | G94: 4.59 | H94: ca
B97: CPU.08 | C97: Canaleta meia cana de concreto (D=30cm) - Fornecimento e instalação | D97: m | E97: 1 | G97: =SUM(G107,G100,G99,G98) -> 126.03 | H97: S
A98: =B97 -> CPU.08 | C98: MATERIAL | G98: 0 | H98: ss
A99: =B97 -> CPU.08 | C99: EQUIPAMENTOS | G99: 0 | H99: ss
A100: =B97 -> CPU.08 | C100: SERVIÇOS | G100: =SUM(G101:G106) -> 126.03 | H100: ss
A101: SINAPI | B101: 102990 | C101: =VLOOKUP(B101,'COMPOSIÇÃO SEM DESONERAÇÃO'!$B$11:$E$9696,2,FALSE) -> CANALETA MEIA CANA PRÉ-MOLDADA DE CONCRETO (D = 30 CM) - FORNECIMENTO E INSTALAÇÃO. AF_08/2021 | D101: =IF(H101="i",VLOOKUP(B101,'Ins SINAPI PE 12-2024 Onerado'!$A$8:$E$50000,3,0),VLOOKUP(B101,'Comp SINAPI PE 12-2024 Onerado'!$G$7:$K$50000,3,0)) -> M | E101: 1 | F101: =VLOOKUP(B101,'COMPOSIÇÃO SEM DESONERAÇÃO'!$B$11:$E$9696,4,FALSE) -> 50.45 | G101: =TRUNC(E101*F101,2) -> 50.45 | H101: ca
A102: SINAPI | B102: 100946 | C102: =VLOOKUP(B102,'COMPOSIÇÃO SEM DESONERAÇÃO'!$B$11:$E$9696,2,FALSE) -> TRANSPORTE COM CAMINHÃO CARROCERIA 9T, EM VIA URBANA EM REVESTIMENTO PRIMÁRIO (UNIDADE: TXKM). AF_07/2020 | D102: =IF(H102="i",VLOOKUP(B102,'Ins SINAPI PE 12-2024 Onerado'!$A$8:$E$50000,3,0),VLOOKUP(B102,'Comp SINAPI PE 12-2024 Onerado'!$G$7:$K$50000,3,0)) -> TXKM | E102: =0.052*'Memorial de cálculo'!H8 -> 0.65312 | F102: =VLOOKUP(B102,'COMPOSIÇÃO SEM DESONERAÇÃO'!$B$11:$E$9696,4,FALSE) -> 2.5 | G102: 1.63 | H102: ca | I102: considerando 52 kg por metro de canaleta
A103: SINAPI | B103: 100947 | C103: =VLOOKUP(B103,'COMPOSIÇÃO SEM DESONERAÇÃO'!$B$11:$E$9696,2,FALSE) -> TRANSPORTE COM CAMINHÃO CARROCERIA 9T, EM VIA URBANA PAVIMENTADA, DMT ATÉ 30KM (UNIDADE: TXKM). AF_07/2020 | D103: =IF(H103="i",VLOOKUP(B103,'Ins SINAPI PE 12-2024 Onerado'!$A$8:$E$50000,3,0),VLOOKUP(B103,'Comp SINAPI PE 12-2024 Onerado'!$G$7:$K$50000,3,0)) -> TXKM | E103: =0.052*30 -> 1.56 | F103: =VLOOKUP(B103,'COMPOSIÇÃO SEM DESONERAÇÃO'!$B$11:$E$9696,4,FALSE) -> 2.3 | G103: 3.58 | H103: ca
A104: SINAPI | B104: 100948 | C104: =VLOOKUP(B104,'COMPOSIÇÃO SEM DESONERAÇÃO'!$B$11:$E$9696,2,FALSE) -> TRANSPORTE COM CAMINHÃO CARROCERIA 9T, EM VIA URBANA PAVIMENTADA, ADICIONAL PARA DMT EXCEDENTE A 30 KM (UNIDADE: TXKM). AF_07/2020 | D104: =IF(H104="i",VLOOKUP(B104,'Ins SINAPI PE 12-2024 Onerado'!$A$8:$E$50000,3,0),VLOOKUP(B104,'Comp SINAPI PE 12-2024 Onerado'!$G$7:$K$50000,3,0)) -> TXKM | E104: =0.052*('Memorial de cálculo'!H7-30) -> 1.61824 | F104: =VLOOKUP(B104,'COMPOSIÇÃO SEM DESONERAÇÃO'!$B$11:$E$9696,4,FALSE) -> 0.91 | G104: 1.47 | H104: ca
A105: PRÓPRIA | B105: CODE | C105: HOSPEDAGEM | D105: un | E105: ='Memorial de cálculo'!D57*'Memorial de cálculo'!G57+'Memorial de cálculo'!D58*'Memorial de cálculo'!H58 -> 0.31635 | F105: ='CPU HOSPEDAGEM'!C19 -> 193.155303 | G105: 61.1 | H105: ca
A106: PRÓPRIA | B106: CODE | C106: Veículo tipo pick-up, cabine dupla - 2.0 16V 4x4 diesel Aut. | D106: dia | E106: =LARGE('Memorial de cálculo'!H57:H58,1) -> 0.03515 | F106: ='CPU-VEICULO_PickUp1'!C11 -> 222.06874 | G106: 7.8 | H106: ca
A107: =B97 -> CPU.08 | C107: MÃO DE OBRA | G107: 0 | H107: mdo
B110: CPU.09 | C110: Entrada para descida d'água | D110: un | E110: 1 | G110: =SUM(G118,G113,G112,G111) -> 153.18 | H110: S
A111: =B110 | C111: MATERIAL | G111: 0 | H111: ss
A112: =B110 -> CPU.09 | C112: EQUIPAMENTOS | G112: 0 | H112: ss
A113: =B110 -> CPU.09 | C113: SERVIÇOS | G113: =SUM(G114:G117) -> 153.18 | H113: ss
A114: SINAPI | B114: 94964 | C114: =VLOOKUP(B114,'COMPOSIÇÃO SEM DESONERAÇÃO'!$B$11:$E$9696,2,FALSE) -> CONCRETO FCK = 20MPA, TRAÇO 1:2,7:3 (EM MASSA SECA DE CIMENTO/ AREIA MÉDIA/ BRITA 1) - PREPARO MECÂNICO COM BETONEIRA 400 L. AF_05/2021 | D114: =IF(H114="i",VLOOKUP(B114,'Ins SINAPI PE 12-2024 Onerado'!$A$8:$E$50000,3,0),VLOOKUP(B114,'Comp SINAPI PE 12-2024 Onerado'!$G$7:$K$50000,3,0)) -> M3 | E114: =2*1*0.3*0.1 -> 0.06 | F114: =VLOOKUP(B114,'COMPOSIÇÃO SEM DESONERAÇÃO'!$B$11:$E$9696,4,FALSE) -> 486.29 | G114: =TRUNC(E114*F114,2) -> 29.17 | H114: ca | I114: comprimento 1 m, altura 0,30 m e espessura 0,10 m
A115: SINAPI | B115: 92268 | C115: =VLOOKUP(B115,'COMPOSIÇÃO SEM DESONERAÇÃO'!$B$11:$E$9696,2,FALSE) -> FABRICAÇÃO DE FÔRMA PARA LAJES, EM CHAPA DE MADEIRA COMPENSADA PLASTIFICADA, E = 18 MM. AF_09/2020 | D115: =IF(H115="i",VLOOKUP(B115,'Ins SINAPI PE 12-2024 Onerado'!$A$8:$E$50000,3,0),VLOOKUP(B115,'Comp SINAPI PE 12-2024 Onerado'!$G$7:$K$50000,3,0)) -> M2 | E115: =2*1*0.3 -> 0.6 | F115: =VLOOKUP(B115,'COMPOSIÇÃO SEM DESONERAÇÃO'!$B$11:$E$9696,4,FALSE) -> 80.13 | G115: 48.07 | H115: ca | I115: comprimento 1 m, altura 0,30 m
A116: PRÓPRIA | B116: CODE | C116: HOSPEDAGEM | D116: un | E116: ='Memorial de cálculo'!D65*'Memorial de cálculo'!H65+'Memorial de cálculo'!D66*'Memorial de cálculo'!H66+'Memorial de cálculo'!D62*'Memorial de cálculo'!H62+'Memorial de cálculo'!D63*'Memorial de cálculo'!H63 -> 0.2330095 | F116: ='CPU HOSPEDAGEM'!C19 -> 193.155303 | G116: 45 | H116: ca
A117: PRÓPRIA | B117: CODE | C117: Veículo tipo pick-up, cabine dupla - 2.0 16V 4x4 diesel Aut. | D117: dia | E117: =LARGE('Memorial de cálculo'!H62:H66,1) -> 0.1393315 | F117: ='CPU-VEICULO_PickUp1'!C11 -> 222.06874 | G117: 30.94 | H117: ca
A118: =B110 -> CPU.09 | C118: MÃO DE OBRA | G118: 0 | H118: mdo
B120: CPU.10 | C120: Plantio de vegetação de proteção, inclusive adubação | D120: m2 | E120: 1 | G120: =SUM(G131,G123,G122,G121) -> 34.7 | H120: S
A121: =B120 | C121: MATERIAL | G121: 0 | H121: ss
A122: =B120 -> CPU.10 | C122: EQUIPAMENTOS | G122: 0 | H122: ss
A123: =B120 -> CPU.10 | C123: SERVIÇOS | G123: =SUM(G124:G130) -> 34.7 | H123: ss
A124: SINAPI | B124: 98520 | C124: =VLOOKUP(B124,'COMPOSIÇÃO SEM DESONERAÇÃO'!$B$11:$E$9696,2,FALSE) -> APLICAÇÃO DE ADUBO EM SOLO. AF_07/2024 | D124: =IF(H124="i",VLOOKUP(B124,'Ins SINAPI PE 12-2024 Onerado'!$A$8:$E$50000,3,0),VLOOKUP(B124,'Comp SINAPI PE 12-2024 Onerado'!$G$7:$K$50000,3,0)) -> M2 | E124: 1 | F124: =VLOOKUP(B124,'COMPOSIÇÃO SEM DESONERAÇÃO'!$B$11:$E$9696,4,FALSE) -> 4.91 | G124: =TRUNC(E124*F124,2) -> 4.91 | H124: ca
A125: SINAPI | B125: 98504 | C125: =VLOOKUP(B125,'COMPOSIÇÃO SEM DESONERAÇÃO'!$B$11:$E$9696,2,FALSE) -> PLANTIO DE GRAMA BATATAIS EM PLACAS. AF_07/2024 | D125: =IF(H125="i",VLOOKUP(B125,'Ins SINAPI PE 12-2024 Onerado'!$A$8:$E$50000,3,0),VLOOKUP(B125,'Comp SINAPI PE 12-2024 Onerado'!$G$7:$K$50000,3,0)) -> M2 | E125: 1 | F125: =VLOOKUP(B125,'COMPOSIÇÃO SEM DESONERAÇÃO'!$B$11:$E$9696,4,FALSE) -> 20.26 | G125: 20.26 | H125: ca
A126: SINAPI | B126: 100946 | C126: =VLOOKUP(B126,'COMPOSIÇÃO SEM DESONERAÇÃO'!$B$11:$E$9696,2,FALSE) -> TRANSPORTE COM CAMINHÃO CARROCERIA 9T, EM VIA URBANA EM REVESTIMENTO PRIMÁRIO (UNIDADE: TXKM). AF_07/2020 | D126: =IF(H126="i",VLOOKUP(B126,'Ins SINAPI PE 12-2024 Onerado'!$A$8:$E$50000,3,0),VLOOKUP(B126,'Comp SINAPI PE 12-2024 Onerado'!$G$7:$K$50000,3,0)) -> TXKM | E126: ='Memorial de cálculo'!H8*0.02 -> 0.2512 | F126: =VLOOKUP(B126,'COMPOSIÇÃO SEM DESONERAÇÃO'!$B$11:$E$9696,4,FALSE) -> 2.5 | G126: 0.62 | H126: ca | I126: 1m² de tapete pesa 20 kg
A127: SINAPI | B127: 100947 | C127: =VLOOKUP(B127,'COMPOSIÇÃO SEM DESONERAÇÃO'!$B$11:$E$9696,2,FALSE) -> TRANSPORTE COM CAMINHÃO CARROCERIA 9T, EM VIA URBANA PAVIMENTADA, DMT ATÉ 30KM (UNIDADE: TXKM). AF_07/2020 | D127: =IF(H127="i",VLOOKUP(B127,'Ins SINAPI PE 12-2024 Onerado'!$A$8:$E$50000,3,0),VLOOKUP(B127,'Comp SINAPI PE 12-2024 Onerado'!$G$7:$K$50000,3,0)) -> TXKM | E127: =30*0.02 -> 0.6 | F127: =VLOOKUP(B127,'COMPOSIÇÃO SEM DESONERAÇÃO'!$B$11:$E$9696,4,FALSE) -> 2.3 | G127: 1.38 | H127: ca
A128: SINAPI | B128: 100948 | C128: =VLOOKUP(B128,'COMPOSIÇÃO SEM DESONERAÇÃO'!$B$11:$E$9696,2,FALSE) -> TRANSPORTE COM CAMINHÃO CARROCERIA 9T, EM VIA URBANA PAVIMENTADA, ADICIONAL PARA DMT EXCEDENTE A 30 KM (UNIDADE: TXKM). AF_07/2020 | D128: =IF(H128="i",VLOOKUP(B128,'Ins SINAPI PE 12-2024 Onerado'!$A$8:$E$50000,3,0),VLOOKUP(B128,'Comp SINAPI PE 12-2024 Onerado'!$G$7:$K$50000,3,0)) -> TXKM | E128: =('Memorial de cálculo'!H7-30)*0.02 -> 0.6224 | F128: =VLOOKUP(B128,'COMPOSIÇÃO SEM DESONERAÇÃO'!$B$11:$E$9696,4,FALSE) -> 0.91 | G128: 0.56 | H128: ca
A129: PRÓPRIA | B129: CODE | C129: HOSPEDAGEM | D129: un | E129: ='Memorial de cálculo'!D70*'Memorial de cálculo'!H70+'Memorial de cálculo'!D71*'Memorial de cálculo'!H71 -> 0.0291625 | F129: ='CPU HOSPEDAGEM'!C19 -> 193.155303 | G129: 5.63 | H129: ca
A130: PRÓPRIA | B130: CODE | C130: Veículo tipo pick-up, cabine dupla - 2.0 16V 4x4 diesel Aut. | D130: dia | E130: =LARGE('Memorial de cálculo'!H70:H71,1) -> 0.006075 | F130: ='CPU-VEICULO_PickUp1'!C11 -> 222.06874 | G130: 1.34 | H130: ca
A131: =B120 -> CPU.10 | C131: MÃO DE OBRA | G131: 0 | H131: mdo
B133: CPU.11 | C133: Apicoamento da superfície | D133: m2 | E133: 1 | G133: =SUM(G143,G136,G135,G134) -> 30.69 | H133: S
A134: =B133 | C134: MATERIAL | G134: 0 | H134: ss
A135: =B133 -> CPU.11 | C135: EQUIPAMENTOS | G135: 0 | H135: ss
A136: =B133 -> CPU.11 | C136: SERVIÇOS | G136: =SUM(G137:G142) -> 30.69 | H136: ss
A137: SINAPI | B137: 97631 | C137: =VLOOKUP(B137,'COMPOSIÇÃO SEM DESONERAÇÃO'!$B$11:$E$9696,2,FALSE) -> DEMOLIÇÃO DE ARGAMASSAS, DE FORMA MANUAL, SEM REAPROVEITAMENTO. AF_09/2023 | D137: =IF(H137="i",VLOOKUP(B137,'Ins SINAPI PE 12-2024 Onerado'!$A$8:$E$50000,3,0),VLOOKUP(B137,'Comp SINAPI PE 12-2024 Onerado'!$G$7:$K$50000,3,0)) -> M2 | E137: =0.05*15 -> 0.75 | F137: =VLOOKUP(B137,'COMPOSIÇÃO SEM DESONERAÇÃO'!$B$11:$E$9696,4,FALSE) -> 12.14 | G137: =TRUNC(E137*F137,2) -> 9.1 | H137: ca
A138: SINAPI | B138: 93589 | C138: =VLOOKUP(B138,'COMPOSIÇÃO SEM DESONERAÇÃO'!$B$11:$E$9696,2,FALSE) -> TRANSPORTE COM CAMINHÃO BASCULANTE DE 10 M³, EM VIA URBANA EM REVESTIMENTO PRIMÁRIO (UNIDADE: M3XKM). AF_07/2020 | D138: =IF(H138="i",VLOOKUP(B138,'Ins SINAPI PE 12-2024 Onerado'!$A$8:$E$50000,3,0),VLOOKUP(B138,'Comp SINAPI PE 12-2024 Onerado'!$G$7:$K$50000,3,0)) -> M3XKM | E138: =0.05*15 -> 0.75 | F138: =VLOOKUP(B138,'COMPOSIÇÃO SEM DESONERAÇÃO'!$B$11:$E$9696,4,FALSE) -> 2.76 | G138: 2.07 | H138: ca | I138: considerando 5 cm de entulho e 15 km para bota-fora
A139: SINAPI | B139: 95875 | C139: =VLOOKUP(B139,'COMPOSIÇÃO SEM DESONERAÇÃO'!$B$11:$E$9696,2,FALSE) -> TRANSPORTE COM CAMINHÃO BASCULANTE DE 10 M³, EM VIA URBANA PAVIMENTADA, DMT ATÉ 30 KM (UNIDADE: M3XKM). AF_07/2020 | D139: =IF(H139="i",VLOOKUP(B139,'Ins SINAPI PE 12-2024 Onerado'!$A$8:$E$50000,3,0),VLOOKUP(B139,'Comp SINAPI PE 12-2024 Onerado'!$G$7:$K$50000,3,0)) -> M3XKM | E139: =0.05*15 -> 0.75 | F139: =VLOOKUP(B139,'COMPOSIÇÃO SEM DESONERAÇÃO'!$B$11:$E$9696,4,FALSE) -> 2.55 | G139: 1.91 | H139: ca | I139: considerando 5 cm de entulho e 15 km para bota-fora
A140: SINAPI | B140: 95875 | C140: =VLOOKUP(B140,'COMPOSIÇÃO SEM DESONERAÇÃO'!$B$11:$E$9696,2,FALSE) -> TRANSPORTE COM CAMINHÃO BASCULANTE DE 10 M³, EM VIA URBANA PAVIMENTADA, DMT ATÉ 30 KM (UNIDADE: M3XKM). AF_07/2020 | D140: =IF(H140="i",VLOOKUP(B140,'Ins SINAPI PE 12-2024 Onerado'!$A$8:$E$50000,3,0),VLOOKUP(B140,'Comp SINAPI PE 12-2024 Onerado'!$G$7:$K$50000,3,0)) -> M3XKM | E140: =0.05*15 -> 0.75 | F140: =VLOOKUP(B140,'COMPOSIÇÃO SEM DESONERAÇÃO'!$B$11:$E$9696,4,FALSE) -> 2.55 | G140: 1.91 | H140: ca | I140: considerando 5 cm de entulho e 15 km para bota-fora
A141: PRÓPRIA | B141: CODE | C141: HOSPEDAGEM | D141: un | E141: ='Memorial de cálculo'!D75*'Memorial de cálculo'!H75+'Memorial de cálculo'!D76*'Memorial de cálculo'!H76 -> 0.0627875 | F141: ='CPU HOSPEDAGEM'!C19 -> 193.155303 | G141: 12.12 | H141: ca
A142: PRÓPRIA | B142: CODE | C142: Veículo tipo pick-up, cabine dupla - 2.0 16V 4x4 diesel Aut. | D142: dia | E142: =LARGE('Memorial de cálculo'!H75:H76,1) -> 0.01613333333 | F142: ='CPU-VEICULO_PickUp1'!C11 -> 222.06874 | G142: 3.58 | H142: ca
A143: =B133 -> CPU.11 | C143: MÃO DE OBRA | G143: 0 | H143: mdo
B145: CPU.12 | C145: Enrocamento ARCO tipo rachão reciclado cinza classe A jogado com fornecimento | D145: m3 | E145: 1 | G145: =SUM(G156,G149,G148,G146) -> 212.14 | H145: S
A146: =B145 -> CPU.12 | C146: MATERIAL | G146: =SUM(G147) -> 60 | H146: ss
A147: SINAPI | B147: 40553 | C147: =VLOOKUP(B147,'INSUMO SEM DESONERAÇÃO'!$B$11:$F$4847,2,FALSE) -> AGREGADO RECICLADO, TIPO RACHAO RECICLADO CINZA, CLASSE A | D147: =IF(H147="i",VLOOKUP(B147,'Ins SINAPI PE 12-2024 Onerado'!$A$8:$E$50000,3,0),VLOOKUP(B147,'Comp SINAPI PE 12-2024 Onerado'!$G$7:$K$50000,3,0)) -> M3 | E147: 1 | F147: 60 | G147: =TRUNC(E147*F147,2) -> 60 | H147: i
A148: =B145 -> CPU.12 | C148: EQUIPAMENTOS | G148: 0 | H148: ss
A149: =B145 -> CPU.12 | C149: SERVIÇOS | G149: =SUM(G150:G155) -> 151.64 | H149: ss
A150: SINAPI | B150: 93589 | C150: =VLOOKUP(B150,'COMPOSIÇÃO SEM DESONERAÇÃO'!$B$11:$E$9696,2,FALSE) -> TRANSPORTE COM CAMINHÃO BASCULANTE DE 10 M³, EM VIA URBANA EM REVESTIMENTO PRIMÁRIO (UNIDADE: M3XKM). AF_07/2020 | D150: =IF(H150="i",VLOOKUP(B150,'Ins SINAPI PE 12-2024 Onerado'!$A$8:$E$50000,3,0),VLOOKUP(B150,'Comp SINAPI PE 12-2024 Onerado'!$G$7:$K$50000,3,0)) -> M3XKM | E150: ='Memorial de cálculo'!H8 -> 12.56 | F150: =VLOOKUP(B150,'COMPOSIÇÃO SEM DESONERAÇÃO'!$B$11:$E$9696,4,FALSE) -> 2.76 | G150: =TRUNC(E150*F150,2) -> 34.66 | H150: ca
A151: SINAPI | B151: 95875 | C151: =VLOOKUP(B151,'COMPOSIÇÃO SEM DESONERAÇÃO'!$B$11:$E$9696,2,FALSE) -> TRANSPORTE COM CAMINHÃO BASCULANTE DE 10 M³, EM VIA URBANA PAVIMENTADA, DMT ATÉ 30 KM (UNIDADE: M3XKM). AF_07/2020 | D151: =IF(H151="i",VLOOKUP(B151,'Ins SINAPI PE 12-2024 Onerado'!$A$8:$E$50000,3,0),VLOOKUP(B151,'Comp SINAPI PE 12-2024 Onerado'!$G$7:$K$50000,3,0)) -> M3XKM | E151: 30 | F151: =VLOOKUP(B151,'COMPOSIÇÃO SEM DESONERAÇÃO'!$B$11:$E$9696,4,FALSE) -> 2.55 | G151: 76.5 | H151: ca
A152: SINAPI | B152: 93590 | C152: =VLOOKUP(B152,'COMPOSIÇÃO SEM DESONERAÇÃO'!$B$11:$E$9696,2,FALSE) -> TRANSPORTE COM CAMINHÃO BASCULANTE DE 10 M³, EM VIA URBANA PAVIMENTADA, ADICIONAL PARA DMT EXCEDENTE A 30 KM (UNIDADE: M3XKM). AF_07/2020 | D152: =IF(H152="i",VLOOKUP(B152,'Ins SINAPI PE 12-2024 Onerado'!$A$8:$E$50000,3,0),VLOOKUP(B152,'Comp SINAPI PE 12-2024 Onerado'!$G$7:$K$50000,3,0)) -> M3XKM | E152: ='Memorial de cálculo'!H7-30 -> 31.12 | F152: =VLOOKUP(B152,'COMPOSIÇÃO SEM DESONERAÇÃO'!$B$11:$E$9696,4,FALSE) -> 1.01 | G152: 31.43 | H152: ca
A153: SINAPI | B153: 100976 | C153: =VLOOKUP(B153,'COMPOSIÇÃO SEM DESONERAÇÃO'!$B$11:$E$9696,2,FALSE) -> CARGA, MANOBRA E DESCARGA DE SOLOS E MATERIAIS GRANULARES EM CAMINHÃO BASCULANTE 18 M³ - CARGA COM PÁ CARREGADEIRA (CAÇAMBA DE 1,7 A 2,8 M³ / 128 HP) E DESCARGA LIVRE (UNIDADE: M3). AF_07/2020 | D153: =IF(H153="i",VLOOKUP(B153,'Ins SINAPI PE 12-2024 Onerado'!$A$8:$E$50000,3,0),VLOOKUP(B153,'Comp SINAPI PE 12-2024 Onerado'!$G$7:$K$50000,3,0)) -> M3 | E153: 1 | F153: =VLOOKUP(B153,'COMPOSIÇÃO SEM DESONERAÇÃO'!$B$11:$E$9696,4,FALSE) -> 8.3 | G153: 8.3 | H153: ca
A154: PRÓPRIA | B154: CODE | C154: HOSPEDAGEM | D154: un | E154: ='Memorial de cálculo'!D80*'Memorial de cálculo'!H80+'Memorial de cálculo'!D81*'Memorial de cálculo'!H81 -> 0.0025 | F154: ='CPU HOSPEDAGEM'!C19 -> 193.155303 | G154: 0.48 | H154: ca
A155: PRÓPRIA | B155: CODE | C155: Veículo tipo pick-up, cabine dupla - 2.0 16V 4x4 diesel Aut. | D155: dia | E155: =LARGE('Memorial de cálculo'!H80:H81,1) -> 0.00125 | F155: ='CPU-VEICULO_PickUp1'!C11 -> 222.06874 | G155: 0.27 | H155: ca
A156: =B145 -> CPU.12 | C156: MÃO DE OBRA | G156: =SUM(G157:G158) -> 0.5 | H156: mdo
A157: SINAPI | B157: 88309 | C157: =VLOOKUP(B157,'COMPOSIÇÃO SEM DESONERAÇÃO'!$B$11:$E$9696,2,FALSE) -> PEDREIRO COM ENCARGOS COMPLEMENTARES | D157: =IF(H157="i",VLOOKUP(B157,'Ins SINAPI PE 12-2024 Onerado'!$A$8:$E$50000,3,0),VLOOKUP(B157,'Comp SINAPI PE 12-2024 Onerado'!$G$7:$K$50000,3,0)) -> H | E157: 0.01 | F157: =VLOOKUP(B157,'COMPOSIÇÃO SEM DESONERAÇÃO'!$B$11:$E$9696,4,FALSE) -> 28.34 | G157: 0.28 | H157: ca
A158: SINAPI | B158: 88316 | C158: =VLOOKUP(B158,'COMPOSIÇÃO SEM DESONERAÇÃO'!$B$11:$E$9696,2,FALSE) -> SERVENTE COM ENCARGOS COMPLEMENTARES | D158: =IF(H158="i",VLOOKUP(B158,'Ins SINAPI PE 12-2024 Onerado'!$A$8:$E$50000,3,0),VLOOKUP(B158,'Comp SINAPI PE 12-2024 Onerado'!$G$7:$K$50000,3,0)) -> H | E158: 0.01 | F158: =VLOOKUP(B158,'COMPOSIÇÃO SEM DESONERAÇÃO'!$B$11:$E$9696,4,FALSE) -> 22.95 | G158: 0.22 | H158: ca
B160: CPU.13 | C160: Recomposição das erosões, inclusive, regularização da superfície e reaterro | D160: m3 | E160: 1 | G160: =SUM(G176,G164,G163,G161) -> 440.23 | H160: S
A161: =B160 -> CPU.13 | C161: MATERIAL | G161: =SUM(G162) -> 54.26 | H161: ss
A162: SINAPI | B162: 6081 | C162: =VLOOKUP(B162,'INSUMO SEM DESONERAÇÃO'!$B$11:$F$4847,2,FALSE) -> ARGILA OU BARRO PARA ATERRO/REATERRO (COM TRANSPORTE ATE 10 KM) | D162: =IF(H162="i",VLOOKUP(B162,'Ins SINAPI PE 12-2024 Onerado'!$A$8:$E$50000,3,0),VLOOKUP(B162,'Comp SINAPI PE 12-2024 Onerado'!$G$7:$K$50000,3,0)) -> M3 | E162: 1 | F162: 54.26 | G162: =TRUNC(E162*F162,2) -> 54.26 | H162: i
A163: =B160 -> CPU.13 | C163: EQUIPAMENTOS | G163: 0 | H163: ss
A164: =B160 -> CPU.13 | C164: SERVIÇOS | G164: =SUM(G165:G175) -> 385.97 | H164: ss
A165: SINAPI | B165: 101230 | C165: =VLOOKUP(B165,'COMPOSIÇÃO SEM DESONERAÇÃO'!$B$11:$E$9696,2,FALSE) -> ESCAVAÇÃO VERTICAL PARA INFRAESTRUTURA, COM CARGA, DESCARGA E TRANSPORTE DE SOLO DE 1ª CATEGORIA, COM ESCAVADEIRA HIDRÁULICA (CAÇAMBA: 0,8 M³ / 111 HP), FROTA DE 3 CAMINHÕES BASCULANTES DE 14 M³, DMT ATÉ 1 KM E VELOCIDADE MÉDIA14 KM/H. AF_05/2020 | D165: =IF(H165="i",VLOOKUP(B165,'Ins SINAPI PE 12-2024 Onerado'!$A$8:$E$50000,3,0),VLOOKUP(B165,'Comp SINAPI PE 12-2024 Onerado'!$G$7:$K$50000,3,0)) -> M3 | E165: 0.1 | F165: =VLOOKUP(B165,'COMPOSIÇÃO SEM DESONERAÇÃO'!$B$11:$E$9696,4,FALSE) -> 11.15 | G165: =TRUNC(E165*F165,2) -> 1.11 | H165: ca | I165: Preparação da superfície 10%
A166: SINAPI | B166: 93589 | C166: =VLOOKUP(B166,'COMPOSIÇÃO SEM DESONERAÇÃO'!$B$11:$E$9696,2,FALSE) -> TRANSPORTE COM CAMINHÃO BASCULANTE DE 10 M³, EM VIA URBANA EM REVESTIMENTO PRIMÁRIO (UNIDADE: M3XKM). AF_07/2020 | D166: =IF(H166="i",VLOOKUP(B166,'Ins SINAPI PE 12-2024 Onerado'!$A$8:$E$50000,3,0),VLOOKUP(B166,'Comp SINAPI PE 12-2024 Onerado'!$G$7:$K$50000,3,0)) -> M3XKM | E166: ='Memorial de cálculo'!$H$8-10 -> 2.56 | F166: =VLOOKUP(B166,'COMPOSIÇÃO SEM DESONERAÇÃO'!$B$11:$E$9696,4,FALSE) -> 2.76 | G166: 7.06 | H166: ca | I166: Transporte da argila
A167: SINAPI | B167: 95875 | C167: =VLOOKUP(B167,'COMPOSIÇÃO SEM DESONERAÇÃO'!$B$11:$E$9696,2,FALSE) -> TRANSPORTE COM CAMINHÃO BASCULANTE DE 10 M³, EM VIA URBANA PAVIMENTADA, DMT ATÉ 30 KM (UNIDADE: M3XKM). AF_07/2020 | D167: =IF(H167="i",VLOOKUP(B167,'Ins SINAPI PE 12-2024 Onerado'!$A$8:$E$50000,3,0),VLOOKUP(B167,'Comp SINAPI PE 12-2024 Onerado'!$G$7:$K$50000,3,0)) -> M3XKM | E167: =30 -> 30 | F167: =VLOOKUP(B167,'COMPOSIÇÃO SEM DESONERAÇÃO'!$B$11:$E$9696,4,FALSE) -> 2.55 | G167: 76.5 | H167: ca
A168: SINAPI | B168: 93590 | C168: =VLOOKUP(B168,'COMPOSIÇÃO SEM DESONERAÇÃO'!$B$11:$E$9696,2,FALSE) -> TRANSPORTE COM CAMINHÃO BASCULANTE DE 10 M³, EM VIA URBANA PAVIMENTADA, ADICIONAL PARA DMT EXCEDENTE A 30 KM (UNIDADE: M3XKM). AF_07/2020 | D168: =IF(H168="i",VLOOKUP(B168,'Ins SINAPI PE 12-2024 Onerado'!$A$8:$E$50000,3,0),VLOOKUP(B168,'Comp SINAPI PE 12-2024 Onerado'!$G$7:$K$50000,3,0)) -> M3XKM | E168: ='Memorial de cálculo'!$H$7-30 -> 31.12 | F168: =VLOOKUP(B168,'COMPOSIÇÃO SEM DESONERAÇÃO'!$B$11:$E$9696,4,FALSE) -> 1.01 | G168: 31.43 | H168: ca
A169: SINAPI | B169: 100976 | C169: =VLOOKUP(B169,'COMPOSIÇÃO SEM DESONERAÇÃO'!$B$11:$E$9696,2,FALSE) -> CARGA, MANOBRA E DESCARGA DE SOLOS E MATERIAIS GRANULARES EM CAMINHÃO BASCULANTE 18 M³ - CARGA COM PÁ CARREGADEIRA (CAÇAMBA DE 1,7 A 2,8 M³ / 128 HP) E DESCARGA LIVRE (UNIDADE: M3). AF_07/2020 | D169: =IF(H169="i",VLOOKUP(B169,'Ins SINAPI PE 12-2024 Onerado'!$A$8:$E$50000,3,0),VLOOKUP(B169,'Comp SINAPI PE 12-2024 Onerado'!$G$7:$K$50000,3,0)) -> M3 | E169: 1 | F169: =VLOOKUP(B169,'COMPOSIÇÃO SEM DESONERAÇÃO'!$B$11:$E$9696,4,FALSE) -> 8.3 | G169: 8.3 | H169: ca
A170: SINAPI | B170: 100951 | C170: =VLOOKUP(B170,'COMPOSIÇÃO SEM DESONERAÇÃO'!$B$11:$E$9696,2,FALSE) -> TRANSPORTE COM CAMINHÃO CARROCERIA COM GUINDAUTO (MUNCK), MOMENTO MÁXIMO DE CARGA 11,7 TM, EM VIA URBANA EM REVESTIMENTO PRIMÁRIO (UNIDADE: TXKM). AF_07/2020 | D170: =IF(H170="i",VLOOKUP(B170,'Ins SINAPI PE 12-2024 Onerado'!$A$8:$E$50000,3,0),VLOOKUP(B170,'Comp SINAPI PE 12-2024 Onerado'!$G$7:$K$50000,3,0)) -> TXKM | E170: =1.5*'Memorial de cálculo'!H8 -> 18.84 | F170: =VLOOKUP(B170,'COMPOSIÇÃO SEM DESONERAÇÃO'!$B$11:$E$9696,4,FALSE) -> 3.17 | G170: 59.72 | H170: ca | I170: Tonelada da máquina | K170: 1.5
A171: SINAPI | B171: 100952 | C171: =VLOOKUP(B171,'COMPOSIÇÃO SEM DESONERAÇÃO'!$B$11:$E$9696,2,FALSE) -> TRANSPORTE COM CAMINHÃO CARROCERIA COM GUINDAUTO (MUNCK), MOMENTO MÁXIMO DE CARGA 11,7 TM, EM VIA URBANA PAVIMENTADA, DMT ATÉ 30KM (UNIDADE: TXKM). AF_07/2020 | D171: =IF(H171="i",VLOOKUP(B171,'Ins SINAPI PE 12-2024 Onerado'!$A$8:$E$50000,3,0),VLOOKUP(B171,'Comp SINAPI PE 12-2024 Onerado'!$G$7:$K$50000,3,0)) -> TXKM | E171: =1.5*30 -> 45 | F171: =VLOOKUP(B171,'COMPOSIÇÃO SEM DESONERAÇÃO'!$B$11:$E$9696,4,FALSE) -> 2.93 | G171: 131.85 | H171: ca | I171: Tonelada da máquina | K171: 1.5
A172: SINAPI | B172: 100953 | C172: =VLOOKUP(B172,'COMPOSIÇÃO SEM DESONERAÇÃO'!$B$11:$E$9696,2,FALSE) -> TRANSPORTE COM CAMINHÃO CARROCERIA COM GUINDAUTO (MUNCK), MOMENTO MÁXIMO DE CARGA 11,7 TM, EM VIA URBANA PAVIMENTADA, ADICIONAL PARA DMT EXCEDENTE A 30 KM (UNIDADE: TXKM). AF_07/2020 | D172: =IF(H172="i",VLOOKUP(B172,'Ins SINAPI PE 12-2024 Onerado'!$A$8:$E$50000,3,0),VLOOKUP(B172,'Comp SINAPI PE 12-2024 Onerado'!$G$7:$K$50000,3,0)) -> TXKM | E172: =1.5*('Memorial de cálculo'!H7-30) -> 46.68 | F172: =VLOOKUP(B172,'COMPOSIÇÃO SEM DESONERAÇÃO'!$B$11:$E$9696,4,FALSE) -> 1.16 | G172: 54.14 | H172: ca | I172: Tonelada da máquina | K172: 1.5
A173: SINAPI | B173: 96385 | C173: =VLOOKUP(B173,'COMPOSIÇÃO SEM DESONERAÇÃO'!$B$11:$E$9696,2,FALSE) -> EXECUÇÃO E COMPACTAÇÃO DE CORPO DE ATERRO DE ATERRO (95% DE ENERGIA DO PROCTOR NORMAL) COM SOLO PREDOMINANTEMENTE ARGILOSO ESPESSURA 15 CM - EXCLUSIVE MATERIAL, ESCAVAÇÃO, CARGA E TRANSPORTE. AF_09/2024 | D173: =IF(H173="i",VLOOKUP(B173,'Ins SINAPI PE 12-2024 Onerado'!$A$8:$E$50000,3,0),VLOOKUP(B173,'Comp SINAPI PE 12-2024 Onerado'!$G$7:$K$50000,3,0)) -> M3 | E173: 1 | F173: =VLOOKUP(B173,'COMPOSIÇÃO SEM DESONERAÇÃO'!$B$11:$E$9696,4,FALSE) -> 11.58 | G173: 11.58 | H173: ca
A174: PRÓPRIA | B174: CODE | C174: HOSPEDAGEM | D174: un | E174: ='Memorial de cálculo'!D85*'Memorial de cálculo'!H85+'Memorial de cálculo'!D86*'Memorial de cálculo'!H86+'Memorial de cálculo'!D87*'Memorial de cálculo'!H87 -> 0.0153585375 | F174: ='CPU HOSPEDAGEM'!C19 -> 193.155303 | G174: 2.96 | H174: ca
A175: PRÓPRIA | B175: CODE | C175: Veículo tipo pick-up, cabine dupla - 2.0 16V 4x4 diesel Aut. | D175: dia | E175: =LARGE('Memorial de cálculo'!H85:H87,1) -> 0.0059586125 | F175: ='CPU-VEICULO_PickUp1'!C11 -> 222.06874 | G175: 1.32 | H175: ca
A176: =B160 -> CPU.13 | C176: MÃO DE OBRA | G176: 0 | H176: mdo
B178: CPU.14 | C178: Regularização e compactação da crista | D178: m2 | E178: 1 | G178: =SUM(G185,G181,G180,G179) -> 2.36 | H178: S
A179: =B178 -> CPU.14 | C179: MATERIAL | G179: 0 | H179: ss
A180: =B178 -> CPU.14 | C180: EQUIPAMENTOS | G180: 0 | H180: ss
A181: =B178 -> CPU.14 | C181: SERVIÇOS | G181: =SUM(G182:G184) -> 2.36 | H181: ss
A182: SINAPI | B182: 100576 | C182: =VLOOKUP(B182,'COMPOSIÇÃO SEM DESONERAÇÃO'!$B$11:$E$9696,2,FALSE) -> REGULARIZAÇÃO E COMPACTAÇÃO DE SUBLEITO DE SOLO PREDOMINANTEMENTE ARGILOSO, PARA OBRAS DE CONSTRUÇÃO DE PAVIMENTOS. AF_09/2024 | D182: =IF(H182="i",VLOOKUP(B182,'Ins SINAPI PE 12-2024 Onerado'!$A$8:$E$50000,3,0),VLOOKUP(B182,'Comp SINAPI PE 12-2024 Onerado'!$G$7:$K$50000,3,0)) -> M2 | E182: 1 | F182: =VLOOKUP(B182,'COMPOSIÇÃO SEM DESONERAÇÃO'!$B$11:$E$9696,4,FALSE) -> 1.93 | G182: =TRUNC(E182*F182,2) -> 1.93 | H182: ca
A183: PRÓPRIA | B183: CODE | C183: HOSPEDAGEM | D183: un | E183: ='Memorial de cálculo'!D91*'Memorial de cálculo'!H91 -> 0.0010769 | F183: ='CPU HOSPEDAGEM'!C19 -> 193.155303 | G183: 0.2 | H183: ca
A184: PRÓPRIA | B184: CODE | C184: Veículo tipo pick-up, cabine dupla - 2.0 16V 4x4 diesel Aut. | D184: dia | E184: =LARGE('Memorial de cálculo'!H91,1) -> 0.0010769 | F184: ='CPU-VEICULO_PickUp1'!C11 -> 222.06874 | G184: 0.23 | H184: ca
A185: =B178 -> CPU.14 | C185: MÃO DE OBRA | G185: 0 | H185: mdo
B187: CPU.15 | C187: Execução de Revestimento com BGTC | D187: m3 | E187: 1 | G187: =SUM(G198,G190,G189,G188) -> 369.61 | H187: S
A188: =B187 -> CPU.15 | C188: MATERIAL | G188: 0 | H188: ss
A189: =B187 -> CPU.15 | C189: EQUIPAMENTOS | G189: 0 | H189: ss
A190: =B187 -> CPU.15 | C190: SERVIÇOS | G190: =SUM(G191:G197) -> 369.61 | H190: ss
A191: SINAPI | B191: 96397 | C191: =VLOOKUP(B191,'COMPOSIÇÃO SEM DESONERAÇÃO'!$B$11:$E$9696,2,FALSE) -> CONSTRUÇÃO DE BASE E SUB-BASE PARA PAVIMENTAÇÃO DE BRITA GRADUADA SIMPLES TRATADA COM CIMENTO, COM ESPESSURA DE 15 CM - EXCLUSIVE CARGA E TRANSPORTE. AF_09/2024 | D191: =IF(H191="i",VLOOKUP(B191,'Ins SINAPI PE 12-2024 Onerado'!$A$8:$E$50000,3,0),VLOOKUP(B191,'Comp SINAPI PE 12-2024 Onerado'!$G$7:$K$50000,3,0)) -> M3 | E191: 1 | F191: =VLOOKUP(B191,'COMPOSIÇÃO SEM DESONERAÇÃO'!$B$11:$E$9696,4,FALSE) -> 244.43 | G191: =TRUNC(E191*F191,2) -> 244.43 | H191: ca
A192: SINAPI | B192: 93589 | C192: =VLOOKUP(B192,'COMPOSIÇÃO SEM DESONERAÇÃO'!$B$11:$E$9696,2,FALSE) -> TRANSPORTE COM CAMINHÃO BASCULANTE DE 10 M³, EM VIA URBANA EM REVESTIMENTO PRIMÁRIO (UNIDADE: M3XKM). AF_07/2020 | D192: =IF(H192="i",VLOOKUP(B192,'Ins SINAPI PE 12-2024 Onerado'!$A$8:$E$50000,3,0),VLOOKUP(B192,'Comp SINAPI PE 12-2024 Onerado'!$G$7:$K$50000,3,0)) -> M3XKM | E192: ='Memorial de cálculo'!$H$8-10 -> 2.56 | F192: =VLOOKUP(B192,'COMPOSIÇÃO SEM DESONERAÇÃO'!$B$11:$E$9696,4,FALSE) -> 2.76 | G192: 7.06 | H192: ca
A193: SINAPI | B193: 95875 | C193: =VLOOKUP(B193,'COMPOSIÇÃO SEM DESONERAÇÃO'!$B$11:$E$9696,2,FALSE) -> TRANSPORTE COM CAMINHÃO BASCULANTE DE 10 M³, EM VIA URBANA PAVIMENTADA, DMT ATÉ 30 KM (UNIDADE: M3XKM). AF_07/2020 | D193: =IF(H193="i",VLOOKUP(B193,'Ins SINAPI PE 12-2024 Onerado'!$A$8:$E$50000,3,0),VLOOKUP(B193,'Comp SINAPI PE 12-2024 Onerado'!$G$7:$K$50000,3,0)) -> M3XKM | E193: =30 -> 30 | F193: =VLOOKUP(B193,'COMPOSIÇÃO SEM DESONERAÇÃO'!$B$11:$E$9696,4,FALSE) -> 2.55 | G193: 76.5 | H193: ca
A194: SINAPI | B194: 93590 | C194: =VLOOKUP(B194,'COMPOSIÇÃO SEM DESONERAÇÃO'!$B$11:$E$9696,2,FALSE) -> TRANSPORTE COM CAMINHÃO BASCULANTE DE 10 M³, EM VIA URBANA PAVIMENTADA, ADICIONAL PARA DMT EXCEDENTE A 30 KM (UNIDADE: M3XKM). AF_07/2020 | D194: =IF(H194="i",VLOOKUP(B194,'Ins SINAPI PE 12-2024 Onerado'!$A$8:$E$50000,3,0),VLOOKUP(B194,'Comp SINAPI PE 12-2024 Onerado'!$G$7:$K$50000,3,0)) -> M3XKM | E194: ='Memorial de cálculo'!$H$7-30 -> 31.12 | F194: =VLOOKUP(B194,'COMPOSIÇÃO SEM DESONERAÇÃO'!$B$11:$E$9696,4,FALSE) -> 1.01 | G194: 31.43 | H194: ca
A195: SINAPI | B195: 100976 | C195: =VLOOKUP(B195,'COMPOSIÇÃO SEM DESONERAÇÃO'!$B$11:$E$9696,2,FALSE) -> CARGA, MANOBRA E DESCARGA DE SOLOS E MATERIAIS GRANULARES EM CAMINHÃO BASCULANTE 18 M³ - CARGA COM PÁ CARREGADEIRA (CAÇAMBA DE 1,7 A 2,8 M³ / 128 HP) E DESCARGA LIVRE (UNIDADE: M3). AF_07/2020 | D195: =IF(H195="i",VLOOKUP(B195,'Ins SINAPI PE 12-2024 Onerado'!$A$8:$E$50000,3,0),VLOOKUP(B195,'Comp SINAPI PE 12-2024 Onerado'!$G$7:$K$50000,3,0)) -> M3 | E195: 1 | F195: =VLOOKUP(B195,'COMPOSIÇÃO SEM DESONERAÇÃO'!$B$11:$E$9696,4,FALSE) -> 8.3 | G195: 8.3 | H195: ca
A196: PRÓPRIA | B196: CODE | C196: HOSPEDAGEM | D196: un | E196: ='Memorial de cálculo'!D95*'Memorial de cálculo'!H95 -> 0.004568675 | F196: ='CPU HOSPEDAGEM'!C19 -> 193.155303 | G196: 0.88 | H196: ca
A197: PRÓPRIA | B197: CODE | C197: Veículo tipo pick-up, cabine dupla - 2.0 16V 4x4 diesel Aut. | D197: dia | E197: =LARGE('Memorial de cálculo'!H95,1) -> 0.004568675 | F197: ='CPU-VEICULO_PickUp1'!C11 -> 222.06874 | G197: 1.01 | H197: ca
A198: =B187 -> CPU.15 | C198: MÃO DE OBRA | G198: 0 | H198: mdo
B200: CPU.16 | C200: Restauração com uso de concreto | D200: m3 | E200: 1 | G200: =SUM(G211,G203,G202,G201) -> 1464.65 | H200: S
A201: =B200 -> CPU.16 | C201: MATERIAL | G201: 0 | H201: ss
A202: =B200 -> CPU.16 | C202: EQUIPAMENTOS | G202: 0 | H202: ss
A203: =B200 -> CPU.16 | C203: SERVIÇOS | G203: =SUM(G204:G210) -> 1464.65 | H203: ss
A204: SINAPI | B204: 94975 | C204: =VLOOKUP(B204,'COMPOSIÇÃO SEM DESONERAÇÃO'!$B$11:$E$9696,2,FALSE) -> CONCRETO FCK = 15MPA, TRAÇO 1:3,4:3,5 (EM MASSA SECA DE CIMENTO/ AREIA MÉDIA/ BRITA 1) - PREPARO MANUAL. AF_05/2021 | D204: =IF(H204="i",VLOOKUP(B204,'Ins SINAPI PE 12-2024 Onerado'!$A$8:$E$50000,3,0),VLOOKUP(B204,'Comp SINAPI PE 12-2024 Onerado'!$G$7:$K$50000,3,0)) -> M3 | E204: 1 | F204: =VLOOKUP(B204,'COMPOSIÇÃO SEM DESONERAÇÃO'!$B$11:$E$9696,4,FALSE) -> 511.3 | G204: =TRUNC(E204*F204,2) -> 511.3 | H204: ca
A205: SINAPI | B205: 93589 | C205: =VLOOKUP(B205,'COMPOSIÇÃO SEM DESONERAÇÃO'!$B$11:$E$9696,2,FALSE) -> TRANSPORTE COM CAMINHÃO BASCULANTE DE 10 M³, EM VIA URBANA EM REVESTIMENTO PRIMÁRIO (UNIDADE: M3XKM). AF_07/2020 | D205: =IF(H205="i",VLOOKUP(B205,'Ins SINAPI PE 12-2024 Onerado'!$A$8:$E$50000,3,0),VLOOKUP(B205,'Comp SINAPI PE 12-2024 Onerado'!$G$7:$K$50000,3,0)) -> M3XKM | E205: ='Memorial de cálculo'!$H$8 -> 12.56 | F205: =VLOOKUP(B205,'COMPOSIÇÃO SEM DESONERAÇÃO'!$B$11:$E$9696,4,FALSE) -> 2.76 | G205: 34.66 | H205: ca
A206: SINAPI | B206: 95875 | C206: =VLOOKUP(B206,'COMPOSIÇÃO SEM DESONERAÇÃO'!$B$11:$E$9696,2,FALSE) -> TRANSPORTE COM CAMINHÃO BASCULANTE DE 10 M³, EM VIA URBANA PAVIMENTADA, DMT ATÉ 30 KM (UNIDADE: M3XKM). AF_07/2020 | D206: =IF(H206="i",VLOOKUP(B206,'Ins SINAPI PE 12-2024 Onerado'!$A$8:$E$50000,3,0),VLOOKUP(B206,'Comp SINAPI PE 12-2024 Onerado'!$G$7:$K$50000,3,0)) -> M3XKM | E206: =30 -> 30 | F206: =VLOOKUP(B206,'COMPOSIÇÃO SEM DESONERAÇÃO'!$B$11:$E$9696,4,FALSE) -> 2.55 | G206: 76.5 | H206: ca
A207: SINAPI | B207: 95875 | C207: =VLOOKUP(B207,'COMPOSIÇÃO SEM DESONERAÇÃO'!$B$11:$E$9696,2,FALSE) -> TRANSPORTE COM CAMINHÃO BASCULANTE DE 10 M³, EM VIA URBANA PAVIMENTADA, DMT ATÉ 30 KM (UNIDADE: M3XKM). AF_07/2020 | D207: =IF(H207="i",VLOOKUP(B207,'Ins SINAPI PE 12-2024 Onerado'!$A$8:$E$50000,3,0),VLOOKUP(B207,'Comp SINAPI PE 12-2024 Onerado'!$G$7:$K$50000,3,0)) -> M3XKM | E207: ='Memorial de cálculo'!$H$7-30 -> 31.12 | F207: =VLOOKUP(B207,'COMPOSIÇÃO SEM DESONERAÇÃO'!$B$11:$E$9696,4,FALSE) -> 2.55 | G207: 79.35 | H207: ca
A208: SINAPI | B208: 92268 | C208: =VLOOKUP(B208,'COMPOSIÇÃO SEM DESONERAÇÃO'!$B$11:$E$9696,2,FALSE) -> FABRICAÇÃO DE FÔRMA PARA LAJES, EM CHAPA DE MADEIRA COMPENSADA PLASTIFICADA, E = 18 MM. AF_09/2020 | D208: =IF(H208="i",VLOOKUP(B208,'Ins SINAPI PE 12-2024 Onerado'!$A$8:$E$50000,3,0),VLOOKUP(B208,'Comp SINAPI PE 12-2024 Onerado'!$G$7:$K$50000,3,0)) -> M2 | E208: 5.5 | F208: =VLOOKUP(B208,'COMPOSIÇÃO SEM DESONERAÇÃO'!$B$11:$E$9696,4,FALSE) -> 80.13 | G208: 440.71 | H208: ca
A209: PRÓPRIA | B209: CODE | C209: HOSPEDAGEM | D209: un | E209: ='Memorial de cálculo'!D99*'Memorial de cálculo'!H99 -> 0.7758375 | F209: ='CPU HOSPEDAGEM'!C19 -> 193.155303 | G209: 149.85 | H209: ca
A210: PRÓPRIA | B210: CODE | C210: Veículo tipo pick-up, cabine dupla - 2.0 16V 4x4 diesel Aut. | D210: dia | E210: =LARGE('Memorial de cálculo'!H99,1) -> 0.7758375 | F210: ='CPU-VEICULO_PickUp1'!C11 -> 222.06874 | G210: 172.28 | H210: ca
A211: =B200 -> CPU.16 | C211: MÃO DE OBRA | G211: 0 | H211: mdo
B213: CPU.17 | C213: Restauração com uso de Pedra Argamassada | D213: m3 | E213: 1 | G213: =SUM(G223,G216,G215,G214) -> 853.07 | H213: S
A214: =B213 -> CPU.17 | C214: MATERIAL | G214: 0 | H214: ss
A215: =B213 -> CPU.17 | C215: EQUIPAMENTOS | G215: 0 | H215: ss
A216: =B213 -> CPU.17 | C216: SERVIÇOS | G216: =SUM(G217:G222) -> 853.07 | H216: ss
A217: SINAPI | B217: 103800 | C217: =VLOOKUP(B217,'COMPOSIÇÃO SEM DESONERAÇÃO'!$B$11:$E$9696,2,FALSE) -> PEDRA ARGAMASSADA COM CIMENTO E AREIA 1:3, 40% DE ARGAMASSA EM VOLUME - AREIA E PEDRA DE MÃO COMERCIAIS - FORNECIMENTO E ASSENTAMENTO. AF_08/2022 | D217: =IF(H217="i",VLOOKUP(B217,'Ins SINAPI PE 12-2024 Onerado'!$A$8:$E$50000,3,0),VLOOKUP(B217,'Comp SINAPI PE 12-2024 Onerado'!$G$7:$K$50000,3,0)) -> M3 | E217: 1 | F217: =VLOOKUP(B217,'COMPOSIÇÃO SEM DESONERAÇÃO'!$B$11:$E$9696,4,FALSE) -> 526.17 | G217: =TRUNC(E217*F217,2) -> 526.17 | H217: ca
A218: SINAPI | B218: 93589 | C218: =VLOOKUP(B218,'COMPOSIÇÃO SEM DESONERAÇÃO'!$B$11:$E$9696,2,FALSE) -> TRANSPORTE COM CAMINHÃO BASCULANTE DE 10 M³, EM VIA URBANA EM REVESTIMENTO PRIMÁRIO (UNIDADE: M3XKM). AF_07/2020 | D218: =IF(H218="i",VLOOKUP(B218,'Ins SINAPI PE 12-2024 Onerado'!$A$8:$E$50000,3,0),VLOOKUP(B218,'Comp SINAPI PE 12-2024 Onerado'!$G$7:$K$50000,3,0)) -> M3XKM | E218: ='Memorial de cálculo'!$H$8 -> 12.56 | F218: =VLOOKUP(B218,'COMPOSIÇÃO SEM DESONERAÇÃO'!$B$11:$E$9696,4,FALSE) -> 2.76 | G218: 34.66 | H218: ca
A219: SINAPI | B219: 95875 | C219: =VLOOKUP(B219,'COMPOSIÇÃO SEM DESONERAÇÃO'!$B$11:$E$9696,2,FALSE) -> TRANSPORTE COM CAMINHÃO BASCULANTE DE 10 M³, EM VIA URBANA PAVIMENTADA, DMT ATÉ 30 KM (UNIDADE: M3XKM). AF_07/2020 | D219: =IF(H219="i",VLOOKUP(B219,'Ins SINAPI PE 12-2024 Onerado'!$A$8:$E$50000,3,0),VLOOKUP(B219,'Comp SINAPI PE 12-2024 Onerado'!$G$7:$K$50000,3,0)) -> M3XKM | E219: =30 -> 30 | F219: =VLOOKUP(B219,'COMPOSIÇÃO SEM DESONERAÇÃO'!$B$11:$E$9696,4,FALSE) -> 2.55 | G219: 76.5 | H219: ca
A220: SINAPI | B220: 95875 | C220: =VLOOKUP(B220,'COMPOSIÇÃO SEM DESONERAÇÃO'!$B$11:$E$9696,2,FALSE) -> TRANSPORTE COM CAMINHÃO BASCULANTE DE 10 M³, EM VIA URBANA PAVIMENTADA, DMT ATÉ 30 KM (UNIDADE: M3XKM). AF_07/2020 | D220: =IF(H220="i",VLOOKUP(B220,'Ins SINAPI PE 12-2024 Onerado'!$A$8:$E$50000,3,0),VLOOKUP(B220,'Comp SINAPI PE 12-2024 Onerado'!$G$7:$K$50000,3,0)) -> M3XKM | E220: ='Memorial de cálculo'!$H$7-30 -> 31.12 | F220: =VLOOKUP(B220,'COMPOSIÇÃO SEM DESONERAÇÃO'!$B$11:$E$9696,4,FALSE) -> 2.55 | G220: 79.35 | H220: ca
... 80 more rows

Sheet Memorial de cálculo
A1: Ministério da Integração e do Desenvolvimento Regional
A2: Companhia de desenvolvimento dos Vales do São Francisco e do Parnaíba | I2: Quantitativos por Barragem
A4: MEMORIAL DE CÁLCULO | I4: Cacimba Velha | J4: Água Branca | K4: Consolação | L4: Almas | M4: Malhadinha | N4: MÉDIA
A5: OBRA: | B5: =Resumo!B5 -> Execução de Manutenção e Obras Civis nas Barragens de Cacimba Velha, Água Branca, Consolação, Almas e Malhadinha, localizadas no estado De Pernambuco. | D5: DESLOCAMENTO - Petrolina para Barragem (km): | H5: =N5 -> 73.68 | I5: 81.2 | J5: 79 | K5: 73.2 | L5: 65 | M5: 70 | N5: =AVERAGE(I5:M5) -> 73.68
A6: LOCAL: | B6: =Resumo!B6 -> BARRAGENS DE PERNAMBUCO
A7: DATA BASE: | B7: =Resumo!B7 -> 2025-05-01 | D7: VIA URBANA PAVIMENTADA - Petrolina para Barragem (km) | H7: =N7 -> 61.12 | I7: =I5-I8 -> 61.6 | J7: =J5-J8 -> 61.7 | K7: 59.5 | L7: 61.5 | M7: 61.3 | N7: =AVERAGE(I7:M7) -> 61.12
A8: PRAZO: | B8: =Resumo!B8 -> 330 dias | D8: REVESTIMENTO PRIMÁRIO - Petrolina para Barragem (km) | H8: =N8 -> 12.56 | I8: =19.6 -> 19.6 | J8: 17.3 | K8: 13.7 | L8: 3.5 | M8: 8.7 | N8: =AVERAGE(I8:M8) -> 12.56
A9: ITEM | B9: DESCRIÇÃO | C9: UNID. | D9: PARÂMETRO 1 | E9: PARÂMETRO 2 | F9: PARÂMETRO 3 | G9: PARÂMETRO 4 | H9: TOTAL
A11: =CPU!B10 -> CPU.01 | B11: =VLOOKUP(A11,CPU!$B$10:$G$5195,2,0) -> Administração Local | C11: =VLOOKUP(A11,CPU!$B$10:$G$5195,3,0) -> mês | D11: QUANT.PESSOAS | E11: HORAS DIÁRIA | F11: DIAS TRABALHADOS NO MÊS | G11: MESES | H11: 3
B12: =CPU!C15 -> ENGENHEIRO CIVIL DE OBRA PLENO COM ENCARGOS COMPLEMENTARES | C12: h | D12: 1 | E12: 1.5 | F12: =4*5 -> 20 | H12: =D12*E12*F12 -> 30
B13: =CPU!C16 -> ENCARREGADO GERAL DE OBRAS COM ENCARGOS COMPLEMENTARES | C13: mês | D13: 1 | G13: 0.8 | H13: =D13*G13 -> 0.8
B14: =CPU!C17 -> VIGIA - AN | C14: h | D14: 4 | E14: 12 | F14: 15 | H14: =D14*E14*F14 -> 720
B15: A escala de trabalho 12x36 para vigias noturnos consiste em trabalhar 12 horas seguidas e folgar 36 horas
A17: =CPU!B19 -> CPU.02 | B17: =VLOOKUP(A17,CPU!$B$10:$G$5195,2,0) -> Mobilização e desmobilização de instalação do canteiro | C17: =VLOOKUP(A17,CPU!$B$10:$G$5195,3,0) -> un | H17: 1
A18: 100946 | B18: =PROPER(IF(G18="i",VLOOKUP(A18,'Ins SINAPI PE 12-2024 Onerado'!$A$8:$E$5189,2,0),VLOOKUP(A18,'Comp SINAPI PE 12-2024 Onerado'!$G$7:$K$7500,2,0))) -> Transporte Com Caminhão Carroceria 9T, Em Via Urbana Em Revestimento Primário (Unidade: Txkm). Af_07/2020 | C18: =IF(G18="i",VLOOKUP(A18,'Ins SINAPI PE 12-2024 Onerado'!$A$8:$E$5189,3,0),VLOOKUP(A18,'Comp SINAPI PE 12-2024 Onerado'!$G$7:$K$7500,3,0)) -> TXKM | H18: =$C$20*$D$20*$E$20 -> 125.6
C19: T | D19: km | E19: N. viagens
C20: 5 | D20: =H8 -> 12.56 | E20: 2
A21: 100947 | B21: =PROPER(IF(G21="i",VLOOKUP(A21,'Ins SINAPI PE 12-2024 Onerado'!$A$8:$E$5189,2,0),VLOOKUP(A21,'Comp SINAPI PE 12-2024 Onerado'!$G$7:$K$7500,2,0))) -> Transporte Com Caminhão Carroceria 9T, Em Via Urbana Pavimentada, Dmt Até 30Km (Unidade: Txkm). Af_07/2020 | C21: =IF(G21="i",VLOOKUP(A21,'Ins SINAPI PE 12-2024 Onerado'!$A$8:$E$5189,3,0),VLOOKUP(A21,'Comp SINAPI PE 12-2024 Onerado'!$G$7:$K$7500,3,0)) -> TXKM | H21: =$C$23*$D$23*$E$23 -> 300
C22: T | D22: km | E22: N. viagens
C23: 5 | D23: 30 | E23: 2
A24: 100948 | B24: =PROPER(IF(G24="i",VLOOKUP(A24,'Ins SINAPI PE 12-2024 Onerado'!$A$8:$E$5189,2,0),VLOOKUP(A24,'Comp SINAPI PE 12-2024 Onerado'!$G$7:$K$7500,2,0))) -> Transporte Com Caminhão Carroceria 9T, Em Via Urbana Pavimentada, Adicional Para Dmt Excedente A 30 Km (Unidade: Txkm). Af_07/2020 | C24: =IF(G24="i",VLOOKUP(A24,'Ins SINAPI PE 12-2024 Onerado'!$A$8:$E$5189,3,0),VLOOKUP(A24,'Comp SINAPI PE 12-2024 Onerado'!$G$7:$K$7500,3,0)) -> TXKM | H24: =$C$26*$D$26*$E$26 -> 311.2
C25: T | D25: km | E25: N. viagens
C26: 5 | D26: =H5-D23-D20 -> 31.12 | E26: 2
A28: =CPU!B29 -> CPU.03 | B28: =VLOOKUP(A28,CPU!$B$10:$G$5195,2,0) -> Execução de canteiro de obras, inclusive, limpeza, refeitório, sanitários e central de formas | C28: =VLOOKUP(A28,CPU!$B$10:$G$5195,3,0) -> m2 | H28: =SUM(H29:H31) -> 28.5
B29: Área do Refeitório Em Canteiro De Obra | C29: m2 | D29: 1 | E29: 3 | F29: 2.5 | H29: =D29*E29*F29 -> 7.5
B30: Área do Sanitário Em Canteiro De Obra | C30: m2 | D30: 1 | E30: 4.5 | F30: 2 | H30: =D30*E30*F30 -> 9
B31: Área da Central de Fôrmas Em Canteiro De Obra | C31: m2 | D31: 1 | E31: 4 | F31: 3 | H31: =D31*E31*F31 -> 12
B32: Mao de obra | C32: m2 | D32: QUANT.PESSOAS | E32: RENDIMENTO (H/M2) | F32: m2 | G32: HORAS | H32: DIAS | I32: DIAS | J32: DIAS | K32: DIAS | L32: DIAS | M32: DIAS
B33: Carpinteiro | C33: h | D33: 2 | E33: =1.1155/D33 -> 0.55775 | F33: 1 | G33: =F33*(E33) -> 0.55775 | H33: =G33/8 -> 0.06971875 | I33: =$H$28*$E$33/8 -> 1.986984375 | J33: =$H$28*$E$33/8 -> 1.986984375 | K33: =$H$28*$E$33/8 -> 1.986984375 | L33: 1.986984375 | M33: =$H$28*$E$33/8 -> 1.986984375
A35: =CPU!B40 -> CPU.04 | B35: =VLOOKUP(A35,CPU!$B$10:$G$5195,2,0) -> Limpeza de vegetação | C35: =VLOOKUP(A35,CPU!$B$10:$G$5195,3,0) -> m2 | I35: ='Cacimba Velha'!F26 -> 10389 | J35: ='Água Branca'!F26 -> 13674 | K35: =Consolação!F26 -> 9588 | L35: =Almas!F26 -> 16947 | M35: =Malhadinha!F26 -> 11252
B36: Mao de obra | C36: m2 | D36: QUANT.PESSOAS | E36: RENDIMENTO (H/M2) | F36: m2 | G36: HORAS | H36: DIAS | I36: DIAS | J36: DIAS | K36: DIAS | L36: DIAS | M36: DIAS
B37: Servente | C37: h | D37: 4 | E37: =20/1000/D37 -> 0.005 | F37: 1 | G37: =F37*(E37) -> 0.005 | H37: =G37/8 -> 0.000625 | I37: =I35*$E$37/8 -> 6.493125 | J37: =J35*$E$37/8 -> 8.54625 | K37: =K35*$E$37/8 -> 5.9925 | L37: 10.591875 | M37: 7.0325
B38: Rendimento 400 m² por dia por servente
A39: =CPU!B50 -> CPU.05 | B39: =VLOOKUP(A39,CPU!$B$10:$G$5195,2,0) -> Corte de tronco e remoção de raiz | C39: =VLOOKUP(A39,CPU!$B$10:$G$5195,3,0) -> un | I39: ='Cacimba Velha'!F27 -> 40 | J39: ='Água Branca'!F27 -> 40 | K39: =Consolação!F27 -> 45 | L39: =Almas!F27 -> 60 | M39: =Malhadinha!F27 -> 40
B40: Mão de obra | D40: QUANT.PESSOAS | E40: RENDIMENTO (H/un) | F40: un | G40: HORAS | H40: DIAS | I40: DIAS | J40: DIAS | K40: DIAS | L40: DIAS | M40: DIAS
B41: Servente | C41: h | D41: 2 | E41: =2.1685/D41 -> 1.08425 | F41: 1 | G41: =F41*(E41) -> 1.08425 | H41: =G41/8 -> 0.13553125 | I41: =I39*$E$41/8 -> 5.42125 | J41: =J39*$E$41/8 -> 5.42125 | K41: 6.09890625 | L41: 8.131875 | M41: 5.42125
B42: Jardineiro | C42: h | D42: 1 | E42: =1.1535/D42 -> 1.1535 | F42: 1 | G42: =F42*(E42) -> 1.1535 | H42: =G42/8 -> 0.1441875 | I42: =I39*$E$42/8 -> 5.7675 | J42: =J39*$E$42/8 -> 5.7675 | K42: 6.4884375 | L42: 8.65125 | M42: 5.7675
A44: =CPU!B63 -> CPU.06 | B44: =VLOOKUP(A44,CPU!$B$10:$G$5195,2,0) -> Retaludamento dos espaldares da barragem, inclusive, escavação, regularização da superfície e reaterro | C44: =VLOOKUP(A44,CPU!$B$10:$G$5195,3,0) -> m3 | I44: ='Cacimba Velha'!F31 -> 172 | L44: =Almas!F31 -> 312 | M44: =Malhadinha!F31 -> 155
B45: Mao de obra | D45: QUANT.PESSOAS | E45: RENDIMENTO (H/M3) | F45: m3 | G45: HORAS | H45: DIAS | I45: DIAS | J45: DIAS | K45: DIAS | L45: DIAS | M45: DIAS
B46: Servente | D46: 1 | E46: =(0.012+0.0356689)/D46 -> 0.0476689 | F46: 1 | G46: =F46*(E46) -> 0.0476689 | H46: =G46/8 -> 0.0059586125 | I46: =I44*$E$46/8 -> 1.02488135 | J46: =J44*$E$46/8 -> 0 | K46: 0 | L46: 1.8590871 | M46: 0.9235849375
B47: Motorista | D47: 1 | E47: =(0.0228+0.0153+0.004257)/D47 -> 0.042357 | F47: 1 | G47: =F47*(E47) -> 0.042357 | H47: =G47/8 -> 0.005294625 | I47: =I44*$E$47/8 -> 0.9106755 | J47: =J44*$E$47/8 -> 0 | K47: 0 | L47: 1.651923 | M47: 0.820666875
B48: Operador de máquina | D48: 1 | E48: =(0.0096+0.0083+0.0045112+0.0104312)/D48 -> 0.0328424 | F48: 1 | G48: =F48*(E48) -> 0.0328424 | H48: =G48/8 -> 0.0041053 | I48: =I44*$E$48/8 -> 0.7061116 | J48: =J44*$E$48/8 -> 0 | K48: 0 | L48: 1.2808536 | M48: 0.6363215
B49: rolo compactador + motoniveladora
A50: CPU.07 | B50: =VLOOKUP(A50,CPU!$B$10:$G$5195,2,0) -> Enrocamento c/ pedra de mão c/ fornecimento e assentamento | C50: =VLOOKUP(A50,CPU!$B$10:$G$5195,3,0) -> m3 | I50: ='Cacimba Velha'!F37 -> 93 | K50: =Consolação!F45 -> 100 | L50: =Almas!F46 -> 58 | M50: =Malhadinha!F45 -> 242
B51: Mao de obra | D51: QUANT.PESSOAS | E51: RENDIMENTO (H/M3) | F51: m3 | G51: HORAS | H51: DIAS | I51: DIAS | J51: DIAS | K51: DIAS | L51: DIAS | M51: DIAS
B52: Pedreiro | D52: 1 | E52: =0.2/D52 -> 0.2 | F52: 1 | G52: =F52*(E52) -> 0.2 | H52: =G52/8 -> 0.025 | I52: =I50*$E$52/8 -> 2.325 | J52: =J50*$E$52/8 -> 0 | K52: =K50*$E$52/8 -> 2.5 | L52: =L50*$E$52/8 -> 1.45 | M52: =M50*$E$52/8 -> 6.05
B53: Servente | D53: 1 | E53: =0.2/D53 -> 0.2 | F53: 1 | G53: =F53*(E53) -> 0.2 | H53: =G53/8 -> 0.025 | I53: =I50*$E$53/8 -> 2.325 | J53: =J50*$E$53/8 -> 0 | K53: =K50*$E$53/8 -> 2.5 | L53: =L50*$E$53/8 -> 1.45 | M53: =M50*$E$53/8 -> 6.05
A55: =CPU!B97 -> CPU.08 | B55: =VLOOKUP(A55,CPU!$B$10:$G$5195,2,0) -> Canaleta meia cana de concreto (D=30cm) - Fornecimento e instalação | C55: =VLOOKUP(A55,CPU!$B$10:$G$5195,3,0) -> m | I55: ='Cacimba Velha'!F41 -> 70 | J55: ='Água Branca'!F43 -> 90 | K55: =Consolação!F49 -> 100 | L55: =Almas!F50 -> 69 | M55: =Malhadinha!F49 -> 60
B56: Mao de obra | D56: QUANT.PESSOAS | E56: RENDIMENTO (H/m) | F56: m | G56: HORAS | H56: DIAS | I56: DIAS | J56: DIAS | K56: DIAS | L56: DIAS | M56: DIAS
B57: Pedreiro | D57: 1 | E57: =0.2812/D57 -> 0.2812 | F57: 1 | G57: =F57*(E57) -> 0.2812 | H57: =G57/8 -> 0.03515 | I57: =I55*$E$57/8 -> 2.4605 | J57: =J55*$E$57/8 -> 3.1635 | K57: 3.515 | L57: 2.42535 | M57: 2.109
B58: Servente | D58: 1 | E58: =0.2812/D58 -> 0.2812 | F58: 1 | G58: =F58*(E58) -> 0.2812 | H58: =G58/8 -> 0.03515 | I58: =I55*$E$58/8 -> 2.4605 | J58: =J55*$E$58/8 -> 3.1635 | K58: 3.515 | L58: 2.42535 | M58: 2.109
A60: =CPU!B110 -> CPU.09 | B60: =VLOOKUP(A60,CPU!$B$10:$G$5195,2,0) -> Entrada para descida d'água | C60: =VLOOKUP(A60,CPU!$B$10:$G$5195,3,0) -> un | I60: ='Cacimba Velha'!F43 -> 14 | K60: =Consolação!F51 -> 10 | L60: =Almas!F52 -> 6 | M60: =Malhadinha!F51 -> 4
B61: Mao de obra | D61: QUANT.PESSOAS | E61: RENDIMENTO (H/m3) | F61: m3 | G61: HORAS | H61: DIAS | I61: DIAS | J61: DIAS | K61: DIAS | L61: DIAS | M61: DIAS
B62: Servente | D62: 1 | E62: =2.5333/D62 -> 2.5333 | F62: 0.44 | G62: =F62*(E62) -> 1.114652 | H62: =G62/8 -> 0.1393315 | I62: =I60*$E$62/8 -> 4.433275 | J62: =J60*$E$62/8 -> 0 | K62: 3.166625 | L62: 1.899975 | M62: 1.26665
B63: Operador de betoneira | D63: 1 | E63: =1.6046/D63 -> 1.6046 | F63: 0.44 | G63: =F63*(E63) -> 0.706024 | H63: =G63/8 -> 0.088253 | I63: =I60*$E$63/8 -> 2.80805 | J63: =J60*$E$63/8 -> 0 | K63: 2.00575 | L63: 1.20345 | M63: 0.8023
B64: Mao de obra | D64: QUANT.PESSOAS | E64: RENDIMENTO (H/m2) | F64: m2 | G64: HORAS | H64: DIAS | I64: DIAS | J64: DIAS | K64: DIAS | L64: DIAS | M64: DIAS
B65: Ajudante de carpinteiro | D65: 1 | E65: =0.005/D65 -> 0.005 | F65: 4.34 | G65: =F65*(E65) -> 0.0217 | H65: =G65/8 -> 0.0027125 | I65: =I60*$E$65/8 -> 0.00875 | J65: =J60*$E$65/8 -> 0 | K65: =K60*$E$65/8 -> 0.00625 | L65: =L60*$E$65/8 -> 0.00375 | M65: =M60*$E$65/8 -> 0.0025
B66: Carpinteiro | D66: 1 | E66: =0.005/D66 -> 0.005 | F66: 4.34 | G66: =F66*(E66) -> 0.0217 | H66: =G66/8 -> 0.0027125 | I66: =I60*$E$66/8 -> 0.00875 | J66: =J60*$E$66/8 -> 0 | K66: =K60*$E$66/8 -> 0.00625 | L66: =L60*$E$66/8 -> 0.00375 | M66: =M60*$E$66/8 -> 0.0025
A68: =CPU!B120 -> CPU.10 | B68: =VLOOKUP(A68,CPU!$B$10:$G$5195,2,0) -> Plantio de vegetação de proteção, inclusive adubação | C68: =VLOOKUP(A68,CPU!$B$10:$G$5195,3,0) -> m2 | I68: ='Cacimba Velha'!F47 -> 3103 | J68: ='Água Branca'!F47 -> 2507 | K68: =Consolação!F55 -> 2079 | L68: =Almas!F56 -> 3941 | M68: =Malhadinha!F55 -> 4409
B69: Mao de obra | D69: QUANT.PESSOAS | E69: RENDIMENTO (H/m2) | F69: m2 | G69: HORAS | H69: DIAS | I69: DIAS | J69: DIAS | K69: DIAS | L69: DIAS | M69: DIAS
B70: Servente | D70: 4 | E70: =(0.0558+0.1386)/D70 -> 0.0486 | F70: 1 | G70: =F70*(E70) -> 0.0486 | H70: =G70/8 -> 0.006075 | I70: =I68*$E$70/8 -> 18.850725 | J70: =J68*$E$70/8 -> 15.230025 | K70: =K68*$E$70/8 -> 12.629925 | L70: 23.941575 | M70: =M68*$E$70/8 -> 26.784675
B71: Jardineiro | D71: 1 | E71: =(0.0112+0.0277)/D71 -> 0.0389 | F71: 1 | G71: =F71*(E71) -> 0.0389 | H71: =G71/8 -> 0.0048625 | I71: =I68*$E$71/8 -> 15.0883375 | J71: =J68*$E$71/8 -> 12.1902875 | K71: 10.1091375 | L71: 19.1631125 | M71: 21.4387625
A73: =CPU!B133 -> CPU.11 | B73: =VLOOKUP(A73,CPU!$B$10:$G$5195,2,0) -> Apicoamento da superfície | C73: =VLOOKUP(A73,CPU!$B$10:$G$5195,3,0) -> m2 | I73: ='Cacimba Velha'!F51 -> 100 | L73: =Almas!F60 -> 37.95 | M73: =Malhadinha!F59 -> 90
B74: Mao de obra | D74: QUANT.PESSOAS | E74: RENDIMENTO (H/m2) | F74: m2 | G74: HORAS | H74: DIAS | I74: DIAS | J74: DIAS | K74: DIAS | L74: DIAS | M74: DIAS
B75: PEDREIRO | D75: 1 | E75: =0.1151/D75 -> 0.1151 | F75: 1 | G75: =F75*(E75) -> 0.1151 | H75: =G75/8 -> 0.0143875 | I75: =I73*$E$75/8 -> 1.43875 | J75: =J73*$E$75/8 -> 0 | K75: =K73*$E$75/8 -> 0 | L75: 0.546005625 | M75: 1.294875
B76: SERVENTE | D76: 3 | E76: =0.3872/D76 -> 0.1290666667 | F76: 1 | G76: =F76*(E76) -> 0.1290666667 | H76: =G76/8 -> 0.01613333333 | I76: =I73*$E$76/8 -> 1.613333333 | J76: =J73*$E$76/8 -> 0 | K76: 0 | L76: 0.61226 | M76: 1.452
A78: =CPU!B145 -> CPU.12 | B78: =VLOOKUP(A78,CPU!$B$10:$G$5195,2,0) -> Enrocamento ARCO tipo rachão reciclado cinza classe A jogado com fornecimento | C78: =VLOOKUP(A78,CPU!$B$10:$G$5195,3,0) -> m3 | I78: ='Cacimba Velha'!F57 -> 9 | K78: =Consolação!F70 -> 7.7
B79: Mao de obra | D79: QUANT.PESSOAS | E79: RENDIMENTO (H/m3) | F79: m3 | G79: HORAS | H79: DIAS | I79: DIAS | J79: DIAS | K79: DIAS | L79: DIAS | M79: DIAS
B80: Pedreiro | D80: 1 | E80: =0.01/D80 -> 0.01 | F80: 1 | G80: =F80*(E80) -> 0.01 | H80: =G80/8 -> 0.00125 | I80: =I78*$E$80/8 -> 0.01125 | J80: =J78*$E$80/8 -> 0 | K80: 0.009625 | L80: 0 | M80: 0
B81: Servente | D81: 1 | E81: =0.01/D81 -> 0.01 | F81: 1 | G81: =F81*(E81) -> 0.01 | H81: =G81/8 -> 0.00125 | I81: =I78*$E$81/8 -> 0.01125 | J81: =J78*$E$81/8 -> 0 | K81: 0.009625 | L81: 0 | M81: 0
A83: =CPU!B160 -> CPU.13 | B83: =VLOOKUP(A83,CPU!$B$10:$G$5195,2,0) -> Recomposição das erosões, inclusive, regularização da superfície e reaterro | C83: =VLOOKUP(A83,CPU!$B$10:$G$5195,3,0) -> m3 | J83: ='Água Branca'!F31 -> 54 | K83: =Consolação!F31 -> 130
B84: Mao de obra | D84: QUANT.PESSOAS | E84: RENDIMENTO (H/M3) | F84: m3 | G84: HORAS | H84: DIAS | I84: DIAS | J84: DIAS | K84: DIAS | L84: DIAS | M84: DIAS
B85: Servente | D85: 1 | E85: =(0.012+0.0356689)/D85 -> 0.0476689 | F85: 1 | G85: =F85*(E85) -> 0.0476689 | H85: =G85/8 -> 0.0059586125 | I85: =I83*$E$85/8 -> 0 | J85: =J83*$E$85/8 -> 0.321765075 | K85: =K83*$E$85/8 -> 0.774619625 | L85: 0 | M85: 0
B86: Motorista | D86: 1 | E86: =(0.0228+0.0153+0.004257)/D86 -> 0.042357 | F86: 1 | G86: =F86*(E86) -> 0.042357 | H86: =G86/8 -> 0.005294625 | I86: =I83*$E$86/8 -> 0 | J86: =J83*$E$86/8 -> 0.28590975 | K86: 0.68830125 | L86: 0 | M86: 0
B87: Operador de máquina | D87: 1 | E87: =(0.0096+0.0083+0.0045112+0.0104312)/D87 -> 0.0328424 | F87: 1 | G87: =F87*(E87) -> 0.0328424 | H87: =G87/8 -> 0.0041053 | I87: =I83*$E$87/8 -> 0 | J87: =J83*$E$87/8 -> 0.2216862 | K87: 0.533689 | L87: 0 | M87: 0
B88: rolo compactador + motoniveladora
A89: =CPU!B178 -> CPU.14 | B89: =VLOOKUP(A89,CPU!$B$10:$G$5195,2,0) -> Regularização e compactação da crista | C89: =VLOOKUP(A89,CPU!$B$10:$G$5195,3,0) -> m2 | J89: ='Água Branca'!F37 -> 1517 | K89: =Consolação!F39 -> 1510 | L89: =Almas!F38 -> 1503 | M89: =Malhadinha!F37 -> 1787
B90: Mao de obra | C90: m2 | D90: QUANT.PESSOAS | E90: RENDIMENTO (H/M2) | F90: m2 | G90: HORAS | H90: DIAS | I90: DIAS | J90: DIAS | K90: DIAS | L90: DIAS | M90: DIAS
B91: Servente | C91: h | D91: 1 | E91: =0.0086152/D91 -> 0.0086152 | F91: 1 | G91: =F91*(E91) -> 0.0086152 | H91: =G91/8 -> 0.0010769 | I91: =I89*$E$91/8 -> 0 | J91: =J89*$E$91/8 -> 1.6336573 | K91: =K89*$E$91/8 -> 1.626119 | L91: 1.6185807 | M91: 1.9244203
A93: =CPU!B187 -> CPU.15 | B93: =VLOOKUP(A93,CPU!$B$10:$G$5195,2,0) -> Execução de Revestimento com BGTC | C93: =VLOOKUP(A93,CPU!$B$10:$G$5195,3,0) -> m3 | J93: ='Água Branca'!F39 -> 152 | K93: =Consolação!F41 -> 151 | L93: =Almas!F42 -> 150 | M93: =Malhadinha!F41 -> 179
B94: Mao de obra | C94: m3 | D94: QUANT.PESSOAS | E94: RENDIMENTO (H/M3) | F94: m3 | G94: HORAS | H94: DIAS | I94: DIAS | J94: DIAS | K94: DIAS | L94: DIAS | M94: DIAS
B95: Servente | C95: h | D95: 1 | E95: =0.0365494/D95 -> 0.0365494 | F95: 1 | G95: =F95*(E95) -> 0.0365494 | H95: =G95/8 -> 0.004568675 | I95: =I93*$E$95/8 -> 0 | J95: =J93*$E$95/8 -> 0.6944386 | K95: =K93*$E$95/8 -> 0.689869925 | L95: =L93*$E$95/8 -> 0.68530125 | M95: =M93*$E$95/8 -> 0.817792825
A97: =CPU!B200 -> CPU.16 | B97: =VLOOKUP(A97,CPU!$B$10:$G$5195,2,0) -> Restauração com uso de concreto | C97: =VLOOKUP(A97,CPU!$B$10:$G$5195,3,0) -> m3 | J97: ='Água Branca'!F52 -> 1.875 | L97: =Almas!F61 -> 5.6925
B98: Mao de obra | C98: m3 | D98: QUANT.PESSOAS | E98: RENDIMENTO (H/M3) | F98: m3 | G98: HORAS | H98: DIAS | I98: DIAS | J98: DIAS | K98: DIAS | L98: DIAS | M98: DIAS
B99: Servente | C99: h | D99: 1 | E99: =6.2067/D99 -> 6.2067 | F99: 1 | G99: =F99*(E99) -> 6.2067 | H99: =G99/8 -> 0.7758375 | I99: =I97*$E$99/8 -> 0 | J99: =J97*$E$99/8 -> 1.454695312 | K99: 0 | L99: 4.416454969 | M99: 0
A101: =CPU!B213 -> CPU.17 | B101: =VLOOKUP(A101,CPU!$B$10:$G$5195,2,0) -> Restauração com uso de Pedra Argamassada | C101: =VLOOKUP(A101,CPU!$B$10:$G$5195,3,0) -> m3 | K101: =Consolação!F65 -> 33.75
B102: Mao de obra | D102: QUANT.PESSOAS | E102: RENDIMENTO (H/m3) | F102: m3 | G102: HORAS | H102: DIAS
B103: Pedreiro | D103: 1 | E103: =2.2158/D103 -> 2.2158 | F103: 1 | G103: =F103*(E103) -> 2.2158 | H103: =G103/8 -> 0.276975 | I103: =I101*$E$103/8 -> 0 | J103: =J101*$E$103/8 -> 0 | K103: 9.34790625 | L103: 0 | M103: 0
B104: Servente | D104: 2 | E104: =3.1021/D104 -> 1.55105 | F104: 1 | G104: =F104*(E104) -> 1.55105 | H104: =G104/8 -> 0.19388125 | I104: =I101*$E$104/8 -> 0 | J104: =J101*$E$104/8 -> 0 | K104: 6.543492188 | L104: 0 | M104: 0
A106: =CPU!B225 -> CPU.18 | B106: =VLOOKUP(A106,CPU!$B$10:$G$5195,2,0) -> Régua Linimétrica Padrão “ANA”, Aço Carbono - 2 X 70 X 1000 mm (Fornecimento e Instalação) | C106: =VLOOKUP(A106,CPU!$B$10:$G$5195,3,0) -> un | I106: ='Cacimba Velha'!F63 -> 4 | J106: ='Água Branca'!F58 -> 8 | K106: =Consolação!F76 -> 4 | L106: =Almas!F71 -> 6 | M106: =Malhadinha!F67 -> 12
B107: Mao de obra | D107: QUANT.PESSOAS | E107: RENDIMENTO (H/UN) | F107: un | G107: HORAS | H107: DIAS
B108: Topógrafo | D108: 1 | E108: =0.8/D108 -> 0.8 | F108: 1 | G108: =F108*(E108) -> 0.8 | H108: =G108/8 -> 0.1 | I108: =I106*$E$108/8 -> 0.4 | J108: =J106*$E$108/8 -> 0.8 | K108: 0.4 | L108: 0.6 | M108: 1.2
B109: Servente | D109: 1 | E109: =1.6/D109 -> 1.6 | F109: 1 | G109: =F109*(E109) -> 1.6 | H109: =G109/8 -> 0.2 | I109: =I106*$E$109/8 -> 0.8 | J109: =J106*$E$109/8 -> 1.6 | K109: 0.8 | L109: 1.2 | M109: 2.4
A111: =CPU!B238 -> CPU.19 | B111: =VLOOKUP(A111,CPU!$B$10:$G$5195,2,0) -> Demolição de guias e sarjetas | C111: =VLOOKUP(A111,CPU!$B$10:$G$5195,3,0) -> m | L111: =Almas!F37 -> 294
B112: Mao de obra | C112: m | D112: QUANT.PESSOAS | E112: RENDIMENTO (H/M) | F112: m | G112: HORAS | H112: DIAS | I112: DIAS | J112: DIAS | K112: DIAS | L112: DIAS | M112: DIAS
B113: Pedreiro | C113: h | D113: 1 | E113: =0.1759/D113 -> 0.1759 | F113: 1 | G113: =F113*(E113) -> 0.1759 | H113: =G113/8 -> 0.0219875 | I113: =I111*$E$113/8 -> 0 | J113: =J111*$E$113/8 -> 0 | K113: 0 | L113: 6.464325 | M113: 0
B114: Servente | C114: h | D114: 1 | E114: =0.0772/D114 -> 0.0772 | F114: 1 | G114: =F114*(E114) -> 0.0772 | H114: =G114/8 -> 0.00965 | I114: =I111*$E$114/8 -> 0 | J114: =J111*$E$114/8 -> 0 | K114: 0 | L114: 2.8371 | M114: 0
A116: =CPU!B247 -> CPU.20 | B116: =VLOOKUP(A116,CPU!$B$10:$G$5195,2,0) -> Guia e meio fio conjudados de concreto, moldada In Loco, 45cm base (15 cm Base da Guia +30 cm Base da Sarjeta) x 22 cm Altura | C116: =VLOOKUP(A116,CPU!$B$10:$G$5195,3,0) -> m | K116: =Consolação!F37 -> 930 | L116: =Almas!F40 -> 294 | M116: =Malhadinha!F39 -> 520
B117: Mao de obra | C117: m | D117: QUANT.PESSOAS | E117: RENDIMENTO (H/M) | F117: m | G117: HORAS | H117: DIAS | I117: DIAS | J117: DIAS | K117: DIAS | L117: DIAS | M117: DIAS
B118: Ajudante | C118: h | D118: 1 | E118: =0.1093/D118 -> 0.1093 | F118: 1 | G118: =F118*(E118) -> 0.1093 | H118: =G118/8 -> 0.0136625 | I118: =I116*$E$118/8 -> 0 | J118: =J116*$E$118/8 -> 0 | K118: 12.706125 | L118: 4.016775 | M118: 7.1045
B119: Pedreiro | C119: h | D119: 2 | E119: =0.2265/D119 -> 0.11325 | F119: 1 | G119: =F119*(E119) -> 0.11325 | H119: =G119/8 -> 0.01415625 | I119: =I116*$E$119/8 -> 0 | J119: =J116*$E$119/8 -> 0 | K119: =K116*$E$119/8 -> 13.1653125 | L119: 4.1619375 | M119: 7.36125
B120: Servente | C120: h | D120: 3 | E120: =0.453/D120 -> 0.151 | F120: 1 | G120: =F120*(E120) -> 0.151 | H120: =G120/8 -> 0.018875 | I120: =I116*$E$120/8 -> 0 | J120: =J116*$E$120/8 -> 0 | K120: 17.55375 | L120: 5.54925 | M120: 9.815
A122: =CPU!B266 -> CPU.22 | B122: =VLOOKUP(A122,CPU!$B$10:$G$5195,2,0) -> Tratamento de fissuras com injeção de adesivo estrutural à base de resina epóxi de baixa viscosidade - fornecimento e aplicação mecanizada | C122: =VLOOKUP(A122,CPU!$B$10:$G$5195,3,0) -> kg | M122: =Malhadinha!F60 -> 4.5
B123: Mao de obra | D123: QUANT.PESSOAS | E123: RENDIMENTO (H/kg) | F123: kg | G123: HORAS | H123: DIAS
B124: Servente | D124: 1 | E124: =3/D124 -> 3 | F124: 1 | G124: =F124*(E124) -> 3 | H124: =G124/8 -> 0.375 | I124: =I122*$E$124/8 -> 0 | J124: =J122*$E$124/8 -> 0 | K124: =K122*$E$124/8 -> 0 | L124: =L122*$E$124/8 -> 0 | M124: =M122*$E$124/8 -> 1.6875
A126: =CPU!B275 -> CPU.23 | B126: =VLOOKUP(A126,CPU!$B$10:$G$5195,2,0) -> Emboço ou massa única em argamassa | C126: =VLOOKUP(A126,CPU!$B$10:$G$5195,3,0) -> m2 | I126: ='Cacimba Velha'!F53 -> 100 | K126: =Consolação!F60 -> 250 | M126: =Malhadinha!F61 -> 90
B127: Mao de obra | D127: QUANT.PESSOAS | E127: RENDIMENTO (H/m2) | F127: m2 | G127: HORAS | H127: DIAS
B128: Servente | D128: 2 | E128: =0.545/D128 -> 0.2725 | F128: 1 | G128: =F128*(E128) -> 0.2725 | H128: =G128/8 -> 0.0340625 | I128: =I126*$E$128/8 -> 3.40625 | J128: =J126*$E$128/8 -> 0 | K128: 8.515625 | L128: 0 | M128: =M126*$E$128/8 -> 3.065625
B129: Pedreiro | D129: 2 | E129: =0.545/D129 -> 0.2725 | F129: 1 | G129: =F129*(E129) -> 0.2725 | H129: =G129/8 -> 0.0340625 | I129: =I126*$E$129/8 -> 3.40625 | J129: =J126*$E$129/8 -> 0 | K129: 8.515625 | L129: 0 | M129: =M126*$E$129/8 -> 3.065625
A131: =CPU!B284 -> CPU.24 | B131: =VLOOKUP(A131,CPU!$B$10:$G$5195,2,0) -> Limpeza da superfície | C131: =VLOOKUP(A131,CPU!$B$10:$G$5195,3,0) -> m2 | I131: ='Cacimba Velha'!F52 -> 100 | J131: ='Água Branca'!F51 -> 37.5 | K131: =Consolação!F59 -> 250
B132: Mao de obra | D132: QUANT.PESSOAS | E132: RENDIMENTO (H/m2) | F132: m2 | G132: HORAS | H132: DIAS
B133: Servente | D133: 1 | E133: =0.089/D133 -> 0.089 | F133: 1 | G133: =F133*(E133) -> 0.089 | H133: =G133/8 -> 0.011125 | I133: =I131*$E$133/8 -> 1.1125 | J133: =J131*$E$133/8 -> 0.4171875 | K133: =K131*$E$133/8 -> 2.78125 | L133: =L131*$E$133/8 -> 0 | M133: 0
A135: =CPU!B293 -> CPU.25 | B135: =VLOOKUP(A135,CPU!$B$10:$G$5195,2,0) -> Projeto geométrico | C135: =VLOOKUP(A135,CPU!$B$10:$G$5195,3,0) -> un | I135: ='Cacimba Velha'!F68 -> 1 | J135: ='Água Branca'!F63 -> 1 | K135: =Consolação!F81 -> 1 | L135: =Almas!F76 -> 1 | M135: =Malhadinha!F72 -> 1
B136: Mao de obra | D136: QUANT.PESSOAS | E136: RENDIMENTO (H/un) | F136: un | G136: HORAS | H136: DIAS
B137: Engenheiro Civil De Obra Junior Com Encargos Complementares | D137: 1 | E137: =CPU!E298/D137 -> 30 | F137: 1 | G137: =F137*(E137) -> 30 | H137: =G137/8 -> 3.75 | I137: =I135*$E$137/8 -> 3.75 | J137: =J135*$E$137/8 -> 3.75 | K137: 3.75 | L137: 3.75 | M137: 3.75
B138: Engenheiro Civil De Obra Senior Com Encargos Complementares | D138: 1 | E138: =CPU!E299/D138 -> 20 | F138: 1 | G138: =F138*(E138) -> 20 | H138: =G138/8 -> 2.5 | I138: =I135*$E$138/8 -> 2.5 | J138: =J135*$E$138/8 -> 2.5 | K138: 2.5 | L138: 2.5 | M138: 2.5
B139: Desenhista Projetista Com Encargos Complementares | D139: 1 | E139: =CPU!E300/D139 -> 60 | F139: 1 | G139: =F139*(E139) -> 60 | H139: =G139/8 -> 7.5 | I139: =I135*$E$139/8 -> 7.5 | J139: =J135*$E$139/8 -> 7.5 | K139: 7.5 | L139: 7.5 | M139: 7.5
A141: =CPU!B302 -> CPU.26 | B141: =VLOOKUP(A141,CPU!$B$10:$G$5195,2,0) -> Injeção de nata de cimento em buracos | C141: =VLOOKUP(A141,CPU!$B$10:$G$5195,3,0) -> m3 | I141: ='Cacimba Velha'!F33 -> 0.19 | J141: ='Cacimba Velha'!F33 -> 0.19 | K141: =Consolação!F33 -> 0.19 | L141: =Almas!F33 -> 0.19 | M141: =Malhadinha!F33 -> 0.19
B142: Mao de obra | D142: QUANT.PESSOAS | E142: RENDIMENTO (H/m3) | F142: m3 | G142: HORAS | H142: DIAS
B143: Servente | D143: 1 | E143: =1/D143 -> 1 | F143: 1 | G143: =F143*(E143) -> 1 | H143: =G143/8 -> 0.125 | I143: =I141*$E$143/8 -> 0.02375 | J143: =J141*$E$143/8 -> 0.02375 | K143: 0.02375 | L143: 0.02375 | M143: 0.02375

Sheet COMPOSICÕES MODIFICADAS (hidden)
A3: Código | D3: 93212 ADAPTADO
A4: Descrição | D4: EXECUÇÃO DE SANITÁRIO E VESTIÁRIO EM CANTEIRO DE OBRA EM CHAPA DE MADEIRA COMPENSADA, NÃO INCLUSO MOBILIÁRIO. AF_02/2016
A5: Data | D5: 2024-04-01
A6: Estado | D6: Pernambuco
A7: Tipo | D7: CANT - CANTEIRO DE OBRAS
A8: Unidade | D8: m²
A9: Valor sem Desoneração | D9: =SUM(I12,I16,I20:I54,I58:I61,I65:I78,I85:I105) -> 956.49
A11: Natureza | B11: Fonte | C11: codigo | D11: Descrição | E11: Tipo | F11: Unidade | G11: Valor sem Desoneração | H11: Coeficiente | I11: Preço sem Desoneração
A12: C | B12: SINAPI | C12: 89173 | D12: (COMPOSIÇÃO REPRESENTATIVA) DO SERVIÇO DE EMBOÇO/MASSA ÚNICA, APLICADO MANUALMENTE, TRAÇO 1:2:8, EM BETONEIRA DE 400L, PAREDES INTERNAS, COM EXECUÇÃO DE TALISCAS, EDIFICAÇÃO HABITACIONAL UNIFAMILIAR (CASAS) E EDIFICAÇÃO PÚBLICA PADRÃO. AF_12/2014 - ADAPTADO | E12: REVE - REVESTIMENTO E TRATAMENTO DE SUPERFÍCIES | F12: m² | G12: =SUM(I13:I15) -> 40.19 | H12: 0.7679 | I12: =ROUND(G12*H12,2) -> 30.86
A13: C | B13: SINAPI | C13: 87531 | D13: =VLOOKUP(C13,'COMPOSIÇÃO SEM DESONERAÇÃO'!$B$11:$F$9696,2,FALSE) -> EMBOÇO, EM ARGAMASSA TRAÇO 1:2:8, PREPARO MECÂNICO, APLICADO MANUALMENTE EM PAREDES INTERNAS DE AMBIENTES COM ÁREA ENTRE 5M² E 10M², E = 17,5MM, COM TALISCAS. AF_03/2024 | E13: REVE - REVESTIMENTO E TRATAMENTO DE SUPERFÍCIES | F13: m² | G13: =VLOOKUP(C13,'COMPOSIÇÃO SEM DESONERAÇÃO'!$B$11:$F$9696,4,FALSE) -> 38.75 | H13: 0.154 | I13: =ROUND(G13*H13,2) -> 5.97
A14: C | B14: SINAPI | C14: 87527 | D14: =VLOOKUP(C14,'COMPOSIÇÃO SEM DESONERAÇÃO'!$B$11:$F$9696,2,FALSE) -> EMBOÇO, EM ARGAMASSA TRAÇO 1:2:8, PREPARO MECÂNICO, APLICADO MANUALMENTE EM PAREDES INTERNAS DE AMBIENTES COM ÁREA MENOR QUE 5M², E =17,5MM, COM TALISCAS. AF_03/2024 | E14: REVE - REVESTIMENTO E TRATAMENTO DE SUPERFÍCIES | F14: m² | G14: =VLOOKUP(C14,'COMPOSIÇÃO SEM DESONERAÇÃO'!$B$11:$F$9696,4,FALSE) -> 43.17 | H14: 0.1121 | I14: =ROUND(G14*H14,2) -> 4.84
A15: C | B15: SINAPI | C15: 87529 | D15: =VLOOKUP(C15,'COMPOSIÇÃO SEM DESONERAÇÃO'!$B$11:$F$9696,2,FALSE) -> MASSA ÚNICA, EM ARGAMASSA TRAÇO 1:2:8, PREPARO MECÂNICO, APLICADA MANUALMENTE EM PAREDES INTERNAS DE AMBIENTES COM ÁREA ENTRE 5M² E 10M², E = 17,5MM, COM TALISCAS. AF_03/2024 | E15: REVE - REVESTIMENTO E TRATAMENTO DE SUPERFÍCIES | F15: m² | G15: =VLOOKUP(C15,'COMPOSIÇÃO SEM DESONERAÇÃO'!$B$11:$F$9696,4,FALSE) -> 40.03 | H15: 0.7339 | I15: 29.38
A16: C | B16: SINAPI | C16: 89171 | D16: (COMPOSIÇÃO REPRESENTATIVA) DO SERVIÇO DE REVESTIMENTO CERÂMICO PARA PISO COM PLACAS TIPO ESMALTADA EXTRA DE DIMENSÕES 35X35 CM, PARA EDIFICAÇÃO HABITACIONAL UNIFAMILIAR (CASA) E EDIFICAÇÃO PÚBLICA PADRÃO. AF_11/2014 - ADAPTADO | E16: PISO - PISOS | F16: m² | G16: =SUM(I17:I19) -> 58.42 | H16: 0.4628 | I16: 27.04
A17: C | B17: SINAPI | C17: 87247 | D17: =VLOOKUP(C17,'COMPOSIÇÃO SEM DESONERAÇÃO'!$B$11:$F$9696,2,FALSE) -> REVESTIMENTO CERÂMICO PARA PISO COM PLACAS TIPO ESMALTADA DE DIMENSÕES 35X35 CM APLICADA EM AMBIENTES DE ÁREA ENTRE 5 M2 E 10 M2. AF_02/2023_PE | E17: PISO - PISOS | F17: m² | G17: =VLOOKUP(C17,'COMPOSIÇÃO SEM DESONERAÇÃO'!$B$11:$F$9696,4,FALSE) -> 62.55 | H17: 0.3365 | I17: =ROUND(G17*H17,2) -> 21.05
A18: C | B18: SINAPI | C18: 87248 | D18: =VLOOKUP(C18,'COMPOSIÇÃO SEM DESONERAÇÃO'!$B$11:$F$9696,2,FALSE) -> REVESTIMENTO CERÂMICO PARA PISO COM PLACAS TIPO ESMALTADA DE DIMENSÕES 35X35 CM APLICADA EM AMBIENTES DE ÁREA MAIOR QUE 10 M2. AF_02/2023_PE | E18: PISO - PISOS | F18: m² | G18: =VLOOKUP(C18,'COMPOSIÇÃO SEM DESONERAÇÃO'!$B$11:$F$9696,4,FALSE) -> 55.11 | H18: 0.6087 | I18: =ROUND(G18*H18,2) -> 33.55
A19: C | B19: SINAPI | C19: 87246 | D19: =VLOOKUP(C19,'COMPOSIÇÃO SEM DESONERAÇÃO'!$B$11:$F$9696,2,FALSE) -> REVESTIMENTO CERÂMICO PARA PISO COM PLACAS TIPO ESMALTADA DE DIMENSÕES 35X35 CM APLICADA EM AMBIENTES DE ÁREA MENOR QUE 5 M2. AF_02/2023_PE | E19: PISO - PISOS | F19: m² | G19: =VLOOKUP(C19,'COMPOSIÇÃO SEM DESONERAÇÃO'!$B$11:$F$9696,4,FALSE) -> 69.64 | H19: 0.0548 | I19: 3.82
A20: C | B20: SINAPI | C20: 101165 | D20: =VLOOKUP(C20,'COMPOSIÇÃO SEM DESONERAÇÃO'!$B$11:$F$9696,2,FALSE) -> ALVENARIA DE EMBASAMENTO COM BLOCO ESTRUTURAL DE CONCRETO, DE 14X19X29CM E ARGAMASSA DE ASSENTAMENTO COM PREPARO EM BETONEIRA. AF_05/2020 | E20: FUES - FUNDAÇÕES E ESTRUTURAS | F20: m³ | G20: =VLOOKUP(C20,'COMPOSIÇÃO SEM DESONERAÇÃO'!$B$11:$F$9696,4,FALSE) -> 997.06 | H20: 0.0286 | I20: 28.52
A21: C | B21: SINAPI | C21: 103328 | D21: =VLOOKUP(C21,'COMPOSIÇÃO SEM DESONERAÇÃO'!$B$11:$F$9696,2,FALSE) -> ALVENARIA DE VEDAÇÃO DE BLOCOS CERÂMICOS FURADOS NA HORIZONTAL DE 9X19X19 CM (ESPESSURA 9 CM) E ARGAMASSA DE ASSENTAMENTO COM PREPARO EM BETONEIRA. AF_12/2021 | E21: PARE - PAREDES/PAINEIS | F21: m² | G21: =VLOOKUP(C21,'COMPOSIÇÃO SEM DESONERAÇÃO'!$B$11:$F$9696,4,FALSE) -> 91.43 | H21: 0.4675 | I21: 42.74
A22: C | B22: SINAPI | C22: 91924 | D22: =VLOOKUP(C22,'COMPOSIÇÃO SEM DESONERAÇÃO'!$B$11:$F$9696,2,FALSE) -> CABO DE COBRE FLEXÍVEL ISOLADO, 1,5 MM², ANTI-CHAMA 450/750 V, PARA CIRCUITOS TERMINAIS - FORNECIMENTO E INSTALAÇÃO. AF_03/2023 | E22: INEL - INSTALAÇÃO ELÉTRICA/ELETRIFICAÇÃO E ILUMINAÇÃO EXTERNA | F22: M | G22: =VLOOKUP(C22,'COMPOSIÇÃO SEM DESONERAÇÃO'!$B$11:$F$9696,4,FALSE) -> 3.11 | H22: 1.253 | I22: 3.9
A23: C | B23: SINAPI | C23: 92981 | D23: =VLOOKUP(C23,'COMPOSIÇÃO SEM DESONERAÇÃO'!$B$11:$F$9696,2,FALSE) -> CABO DE COBRE FLEXÍVEL ISOLADO, 16 MM², ANTI-CHAMA 450/750 V, PARA DISTRIBUIÇÃO - FORNECIMENTO E INSTALAÇÃO. AF_10/2020 | E23: INEL - INSTALAÇÃO ELÉTRICA/ELETRIFICAÇÃO E ILUMINAÇÃO EXTERNA | F23: M | G23: =VLOOKUP(C23,'COMPOSIÇÃO SEM DESONERAÇÃO'!$B$11:$F$9696,4,FALSE) -> 16.38 | H23: 0.2611 | I23: 4.28
A24: C | B24: SINAPI | C24: 91926 | D24: =VLOOKUP(C24,'COMPOSIÇÃO SEM DESONERAÇÃO'!$B$11:$F$9696,2,FALSE) -> CABO DE COBRE FLEXÍVEL ISOLADO, 2,5 MM², ANTI-CHAMA 450/750 V, PARA CIRCUITOS TERMINAIS - FORNECIMENTO E INSTALAÇÃO. AF_03/2023 | E24: INEL - INSTALAÇÃO ELÉTRICA/ELETRIFICAÇÃO E ILUMINAÇÃO EXTERNA | F24: M | G24: =VLOOKUP(C24,'COMPOSIÇÃO SEM DESONERAÇÃO'!$B$11:$F$9696,4,FALSE) -> 4.49 | H24: 0.4699 | I24: 2.11
A25: C | B25: SINAPI | C25: 91928 | D25: =VLOOKUP(C25,'COMPOSIÇÃO SEM DESONERAÇÃO'!$B$11:$F$9696,2,FALSE) -> CABO DE COBRE FLEXÍVEL ISOLADO, 4 MM², ANTI-CHAMA 450/750 V, PARA CIRCUITOS TERMINAIS - FORNECIMENTO E INSTALAÇÃO. AF_03/2023 | E25: INEL - INSTALAÇÃO ELÉTRICA/ELETRIFICAÇÃO E ILUMINAÇÃO EXTERNA | F25: M | G25: =VLOOKUP(C25,'COMPOSIÇÃO SEM DESONERAÇÃO'!$B$11:$F$9696,4,FALSE) -> 6.93 | H25: 1.0442 | I25: 7.24
A26: C | B26: SINAPI | C26: 97886 | D26: =VLOOKUP(C26,'COMPOSIÇÃO SEM DESONERAÇÃO'!$B$11:$F$9696,2,FALSE) -> CAIXA ENTERRADA ELÉTRICA RETANGULAR, EM ALVENARIA COM TIJOLOS CERÂMICOS MACIÇOS, FUNDO COM BRITA, DIMENSÕES INTERNAS: 0,3X0,3X0,3 M. AF_12/2020 | E26: INEL - INSTALAÇÃO ELÉTRICA/ELETRIFICAÇÃO E ILUMINAÇÃO EXTERNA | F26: UN | G26: =VLOOKUP(C26,'COMPOSIÇÃO SEM DESONERAÇÃO'!$B$11:$F$9696,4,FALSE) -> 161.88 | H26: 0.0522 | I26: 8.45
A27: C | B27: SINAPI | C27: 97906 | D27: =VLOOKUP(C27,'COMPOSIÇÃO SEM DESONERAÇÃO'!$B$11:$F$9696,2,FALSE) -> CAIXA ENTERRADA HIDRÁULICA RETANGULAR, EM ALVENARIA COM BLOCOS DE CONCRETO, DIMENSÕES INTERNAS: 0,6X0,6X0,6 M PARA REDE DE ESGOTO. AF_12/2020 | E27: INHI - INSTALAÇÕES HIDROS SANITÁRIAS | F27: UN | G27: =VLOOKUP(C27,'COMPOSIÇÃO SEM DESONERAÇÃO'!$B$11:$F$9696,4,FALSE) -> 450.63 | H27: 0.0348 | I27: 15.68
A28: C | B28: SINAPI | C28: 91937 | D28: =VLOOKUP(C28,'COMPOSIÇÃO SEM DESONERAÇÃO'!$B$11:$F$9696,2,FALSE) -> CAIXA OCTOGONAL 3" X 3", PVC, INSTALADA EM LAJE - FORNECIMENTO E INSTALAÇÃO. AF_03/2023 | E28: INEL - INSTALAÇÃO ELÉTRICA/ELETRIFICAÇÃO E ILUMINAÇÃO EXTERNA | F28: UN | G28: =VLOOKUP(C28,'COMPOSIÇÃO SEM DESONERAÇÃO'!$B$11:$F$9696,4,FALSE) -> 18.02 | H28: 0.1392 | I28: 2.51
A29: C | B29: SINAPI | C29: 87903 | D29: =VLOOKUP(C29,'COMPOSIÇÃO SEM DESONERAÇÃO'!$B$11:$F$9696,2,FALSE) -> CHAPISCO APLICADO EM ALVENARIA (COM PRESENÇA DE VÃOS) E ESTRUTURAS DE CONCRETO DE FACHADA, COM ROLO PARA TEXTURA ACRÍLICA. ARGAMASSA INDUSTRIALIZADA COM PREPARO EM MISTURADOR 300 KG. AF_10/2022 | E29: REVE - REVESTIMENTO E TRATAMENTO DE SUPERFÍCIES | F29: m² | G29: =VLOOKUP(C29,'COMPOSIÇÃO SEM DESONERAÇÃO'!$B$11:$F$9696,4,FALSE) -> 13.77 | H29: 0.1681 | I29: 2.31
A30: C | B30: SINAPI | C30: 87885 | D30: =VLOOKUP(C30,'COMPOSIÇÃO SEM DESONERAÇÃO'!$B$11:$F$9696,2,FALSE) -> CHAPISCO APLICADO NO TETO OU EM ALVENARIA E ESTRUTURA, COM ROLO PARA TEXTURA ACRÍLICA. ARGAMASSA INDUSTRIALIZADA COM PREPARO EM MISTURADOR 300 KG. AF_10/2022 | E30: REVE - REVESTIMENTO E TRATAMENTO DE SUPERFÍCIES | F30: m² | G30: =VLOOKUP(C30,'COMPOSIÇÃO SEM DESONERAÇÃO'!$B$11:$F$9696,4,FALSE) -> 11.34 | H30: 0.7679 | I30: 8.71
A31: C | B31: SINAPI | C31: 90466 | D31: =VLOOKUP(C31,'COMPOSIÇÃO SEM DESONERAÇÃO'!$B$11:$F$9696,2,FALSE) -> CHUMBAMENTO LINEAR EM ALVENARIA PARA RAMAIS/DISTRIBUIÇÃO DE INSTALAÇÕES HIDRÁULICAS COM DIÂMETROS MENORES OU IGUAIS A 40 MM. AF_09/2023 | E31: INHI - INSTALAÇÕES HIDROS SANITÁRIAS | F31: M | G31: =VLOOKUP(C31,'COMPOSIÇÃO SEM DESONERAÇÃO'!$B$11:$F$9696,4,FALSE) -> 15.47 | H31: 0.0722 | I31: 1.12
A32: C | B32: SINAPI | C32: 100860 | D32: =VLOOKUP(C32,'COMPOSIÇÃO SEM DESONERAÇÃO'!$B$11:$F$9696,2,FALSE) -> CHUVEIRO ELÉTRICO COMUM CORPO PLÁSTICO, TIPO DUCHA - FORNECIMENTO E INSTALAÇÃO. AF_01/2020 | E32: INHI - INSTALAÇÕES HIDROS SANITÁRIAS | F32: UN | G32: =VLOOKUP(C32,'COMPOSIÇÃO SEM DESONERAÇÃO'!$B$11:$F$9696,4,FALSE) -> 122.02 | H32: 0.0696 | I32: 8.49
A33: C | B33: SINAPI | C33: 95805 | D33: =VLOOKUP(C33,'COMPOSIÇÃO SEM DESONERAÇÃO'!$B$11:$F$9696,2,FALSE) -> CONDULETE DE PVC, TIPO B, PARA ELETRODUTO DE PVC SOLDÁVEL DN 25 MM (3/4''), APARENTE - FORNECIMENTO E INSTALAÇÃO. AF_10/2022 | E33: INEL - INSTALAÇÃO ELÉTRICA/ELETRIFICAÇÃO E ILUMINAÇÃO EXTERNA | F33: UN | G33: =VLOOKUP(C33,'COMPOSIÇÃO SEM DESONERAÇÃO'!$B$11:$F$9696,4,FALSE) -> 28.14 | H33: 0.0174 | I33: 0.49
A34: C | B34: SINAPI | C34: 95811 | D34: =VLOOKUP(C34,'COMPOSIÇÃO SEM DESONERAÇÃO'!$B$11:$F$9696,2,FALSE) -> CONDULETE DE PVC, TIPO LB, PARA ELETRODUTO DE PVC SOLDÁVEL DN 25 MM (3/4''), APARENTE - FORNECIMENTO E INSTALAÇÃO. AF_10/2022 | E34: INEL - INSTALAÇÃO ELÉTRICA/ELETRIFICAÇÃO E ILUMINAÇÃO EXTERNA | F34: UN | G34: =VLOOKUP(C34,'COMPOSIÇÃO SEM DESONERAÇÃO'!$B$11:$F$9696,4,FALSE) -> 24.5 | H34: 0.0522 | I34: 1.28
A35: C | B35: SINAPI | C35: 91911 | D35: =VLOOKUP(C35,'COMPOSIÇÃO SEM DESONERAÇÃO'!$B$11:$F$9696,2,FALSE) -> CURVA 90 GRAUS PARA ELETRODUTO, PVC, ROSCÁVEL, DN 20 MM (1/2"), PARA CIRCUITOS TERMINAIS, INSTALADA EM PAREDE - FORNECIMENTO E INSTALAÇÃO. AF_03/2023 | E35: INEL - INSTALAÇÃO ELÉTRICA/ELETRIFICAÇÃO E ILUMINAÇÃO EXTERNA | F35: UN | G35: =VLOOKUP(C35,'COMPOSIÇÃO SEM DESONERAÇÃO'!$B$11:$F$9696,4,FALSE) -> 18.41 | H35: 0.0696 | I35: 1.28
A36: C | B36: SINAPI | C36: 91890 | D36: =VLOOKUP(C36,'COMPOSIÇÃO SEM DESONERAÇÃO'!$B$11:$F$9696,2,FALSE) -> CURVA 90 GRAUS PARA ELETRODUTO, PVC, ROSCÁVEL, DN 25 MM (3/4"), PARA CIRCUITOS TERMINAIS, INSTALADA EM FORRO - FORNECIMENTO E INSTALAÇÃO. AF_03/2023 | E36: INEL - INSTALAÇÃO ELÉTRICA/ELETRIFICAÇÃO E ILUMINAÇÃO EXTERNA | F36: UN | G36: =VLOOKUP(C36,'COMPOSIÇÃO SEM DESONERAÇÃO'!$B$11:$F$9696,4,FALSE) -> 14.96 | H36: 0.0174 | I36: 0.26
A37: C | B37: SINAPI | C37: 89748 | D37: =VLOOKUP(C37,'COMPOSIÇÃO SEM DESONERAÇÃO'!$B$11:$F$9696,2,FALSE) -> CURVA CURTA 90 GRAUS, PVC, SERIE NORMAL, ESGOTO PREDIAL, DN 100 MM, JUNTA ELÁSTICA, FORNECIDO E INSTALADO EM RAMAL DE DESCARGA OU RAMAL DE ESGOTO SANITÁRIO. AF_08/2022 | E37: INHI - INSTALAÇÕES HIDROS SANITÁRIAS | F37: UN | G37: =VLOOKUP(C37,'COMPOSIÇÃO SEM DESONERAÇÃO'!$B$11:$F$9696,4,FALSE) -> 41.42 | H37: 0.0522 | I37: 2.16
A38: C | B38: SINAPI | C38: 101891 | D38: =VLOOKUP(C38,'COMPOSIÇÃO SEM DESONERAÇÃO'!$B$11:$F$9696,2,FALSE) -> DISJUNTOR MONOPOLAR TIPO NEMA, CORRENTE NOMINAL DE 35 ATÉ 50A - FORNECIMENTO E INSTALAÇÃO. AF_10/2020 | E38: INEL - INSTALAÇÃO ELÉTRICA/ELETRIFICAÇÃO E ILUMINAÇÃO EXTERNA | F38: UN | G38: =VLOOKUP(C38,'COMPOSIÇÃO SEM DESONERAÇÃO'!$B$11:$F$9696,4,FALSE) -> 34.23 | H38: 0.1044 | I38: 3.57
A39: C | B39: SINAPI | C39: 91862 | D39: =VLOOKUP(C39,'COMPOSIÇÃO SEM DESONERAÇÃO'!$B$11:$F$9696,2,FALSE) -> ELETRODUTO RÍGIDO ROSCÁVEL, PVC, DN 20 MM (1/2"), PARA CIRCUITOS TERMINAIS, INSTALADO EM FORRO - FORNECIMENTO E INSTALAÇÃO. AF_03/2023 | E39: INEL - INSTALAÇÃO ELÉTRICA/ELETRIFICAÇÃO E ILUMINAÇÃO EXTERNA | F39: M | G39: =VLOOKUP(C39,'COMPOSIÇÃO SEM DESONERAÇÃO'!$B$11:$F$9696,4,FALSE) -> 10.3 | H39: 0.3307 | I39: 3.41
A40: C | B40: SINAPI | C40: 91870 | D40: =VLOOKUP(C40,'COMPOSIÇÃO SEM DESONERAÇÃO'!$B$11:$F$9696,2,FALSE) -> ELETRODUTO RÍGIDO ROSCÁVEL, PVC, DN 20 MM (1/2"), PARA CIRCUITOS TERMINAIS, INSTALADO EM PAREDE - FORNECIMENTO E INSTALAÇÃO. AF_03/2023 | E40: INEL - INSTALAÇÃO ELÉTRICA/ELETRIFICAÇÃO E ILUMINAÇÃO EXTERNA | F40: M | G40: =VLOOKUP(C40,'COMPOSIÇÃO SEM DESONERAÇÃO'!$B$11:$F$9696,4,FALSE) -> 13.37 | H40: 0.1566 | I40: 2.09
A41: C | B41: SINAPI | C41: 91863 | D41: =VLOOKUP(C41,'COMPOSIÇÃO SEM DESONERAÇÃO'!$B$11:$F$9696,2,FALSE) -> ELETRODUTO RÍGIDO ROSCÁVEL, PVC, DN 25 MM (3/4"), PARA CIRCUITOS TERMINAIS, INSTALADO EM FORRO - FORNECIMENTO E INSTALAÇÃO. AF_03/2023 | E41: INEL - INSTALAÇÃO ELÉTRICA/ELETRIFICAÇÃO E ILUMINAÇÃO EXTERNA | F41: M | G41: =VLOOKUP(C41,'COMPOSIÇÃO SEM DESONERAÇÃO'!$B$11:$F$9696,4,FALSE) -> 12.2 | H41: 0.1305 | I41: 1.59
A42: C | B42: SINAPI | C42: 91871 | D42: =VLOOKUP(C42,'COMPOSIÇÃO SEM DESONERAÇÃO'!$B$11:$F$9696,2,FALSE) -> ELETRODUTO RÍGIDO ROSCÁVEL, PVC, DN 25 MM (3/4"), PARA CIRCUITOS TERMINAIS, INSTALADO EM PAREDE - FORNECIMENTO E INSTALAÇÃO. AF_03/2023 | E42: INEL - INSTALAÇÃO ELÉTRICA/ELETRIFICAÇÃO E ILUMINAÇÃO EXTERNA | F42: M | G42: =VLOOKUP(C42,'COMPOSIÇÃO SEM DESONERAÇÃO'!$B$11:$F$9696,4,FALSE) -> 15.28 | H42: 0.0261 | I42: 0.4
A43: C | B43: SINAPI | C43: 87777 | D43: =VLOOKUP(C43,'COMPOSIÇÃO SEM DESONERAÇÃO'!$B$11:$F$9696,2,FALSE) -> EMBOÇO OU MASSA ÚNICA EM ARGAMASSA TRAÇO 1:2:8, PREPARO MANUAL, APLICADA MANUALMENTE EM PANOS DE FACHADA COM PRESENÇA DE VÃOS, ESPESSURA DE 25 MM. AF_08/2022 | E43: REVE - REVESTIMENTO E TRATAMENTO DE SUPERFÍCIES | F43: m² | G43: =VLOOKUP(C43,'COMPOSIÇÃO SEM DESONERAÇÃO'!$B$11:$F$9696,4,FALSE) -> 63.62 | H43: 0.1681 | I43: 10.69
A44: C | B44: SINAPI | C44: 93358 | D44: =VLOOKUP(C44,'COMPOSIÇÃO SEM DESONERAÇÃO'!$B$11:$F$9696,2,FALSE) -> ESCAVAÇÃO MANUAL DE VALA. AF_09/2024 | E44: MOVT - MOVIMENTO DE TERRA | F44: m³ | G44: =VLOOKUP(C44,'COMPOSIÇÃO SEM DESONERAÇÃO'!$B$11:$F$9696,4,FALSE) -> 90.78 | H44: 0.0279 | I44: 2.53
A45: C | B45: SINAPI | C45: 91305 | D45: =VLOOKUP(C45,'COMPOSIÇÃO SEM DESONERAÇÃO'!$B$11:$F$9696,2,FALSE) -> FECHADURA DE EMBUTIR PARA PORTA DE BANHEIRO, COMPLETA, ACABAMENTO PADRÃO POPULAR, INCLUSO EXECUÇÃO DE FURO - FORNECIMENTO E INSTALAÇÃO. AF_12/2019 | E45: ESQV - ESQUADRIAS/FERRAGENS/VIDROS | F45: UN | G45: =VLOOKUP(C45,'COMPOSIÇÃO SEM DESONERAÇÃO'!$B$11:$F$9696,4,FALSE) -> 115.37 | H45: 0.0522 | I45: 6.02
A46: C | B46: SINAPI | C46: 91170 | D46: =VLOOKUP(C46,'COMPOSIÇÃO SEM DESONERAÇÃO'!$B$11:$F$9696,2,FALSE) -> FIXAÇÃO DE TUBOS HORIZONTAIS DE PVC ÁGUA, PVC ESGOTO, PVC ÁGUA PLUVIAL, CPVC, PPR, COBRE OU AÇO, DIÂMETROS MENORES OU IGUAIS A 40 MM, COM ABRAÇADEIRA METÁLICA RÍGIDA TIPO U PERFIL 1 1/4", FIXADA EM PERFILADO EM LAJE. AF_09/2023_PS | E46: INHI - INSTALAÇÕES HIDROS SANITÁRIAS | F46: M | G46: =VLOOKUP(C46,'COMPOSIÇÃO SEM DESONERAÇÃO'!$B$11:$F$9696,4,FALSE) -> 11.27 | H46: 0.4612 | I46: 5.2
A47: C | B47: SINAPI | C47: 91173 | D47: =VLOOKUP(C47,'COMPOSIÇÃO SEM DESONERAÇÃO'!$B$11:$F$9696,2,FALSE) -> FIXAÇÃO DE TUBOS VERTICAIS DE PVC ÁGUA, PVC ESGOTO, PVC ÁGUA PLUVIAL, CPVC, PPR, COBRE OU AÇO, DIÂMETROS MENORES OU IGUAIS A 40 MM, COM ABRAÇADEIRA METÁLICA RÍGIDA TIPO U PERFIL 1 1/4", FIXADA EM PERFILADO EM PAREDE. AF_09/2023_PS | E47: INHI - INSTALAÇÕES HIDROS SANITÁRIAS | F47: M | G47: =VLOOKUP(C47,'COMPOSIÇÃO SEM DESONERAÇÃO'!$B$11:$F$9696,4,FALSE) -> 4.2 | H47: 0.1827 | I47: 0.77
A48: C | B48: SINAPI | C48: 96985 | D48: =VLOOKUP(C48,'COMPOSIÇÃO SEM DESONERAÇÃO'!$B$11:$F$9696,2,FALSE) -> HASTE DE ATERRAMENTO, DIÂMETRO 5/8", COM 3 METROS - FORNECIMENTO E INSTALAÇÃO. AF_08/2023 | E48: INEL - INSTALAÇÃO ELÉTRICA/ELETRIFICAÇÃO E ILUMINAÇÃO EXTERNA | F48: UN | G48: =VLOOKUP(C48,'COMPOSIÇÃO SEM DESONERAÇÃO'!$B$11:$F$9696,4,FALSE) -> 109.48 | H48: 0.0522 | I48: 5.71
A49: C | B49: SINAPI | C49: 91959 | D49: =VLOOKUP(C49,'COMPOSIÇÃO SEM DESONERAÇÃO'!$B$11:$F$9696,2,FALSE) -> INTERRUPTOR SIMPLES (2 MÓDULOS), 10A/250V, INCLUINDO SUPORTE E PLACA - FORNECIMENTO E INSTALAÇÃO. AF_03/2023 | E49: INEL - INSTALAÇÃO ELÉTRICA/ELETRIFICAÇÃO E ILUMINAÇÃO EXTERNA | F49: UN | G49: =VLOOKUP(C49,'COMPOSIÇÃO SEM DESONERAÇÃO'!$B$11:$F$9696,4,FALSE) -> 45.67 | H49: 0.0174 | I49: 0.79
A50: C | B50: SINAPI | C50: 91967 | D50: =VLOOKUP(C50,'COMPOSIÇÃO SEM DESONERAÇÃO'!$B$11:$F$9696,2,FALSE) -> INTERRUPTOR SIMPLES (3 MÓDULOS), 10A/250V, INCLUINDO SUPORTE E PLACA - FORNECIMENTO E INSTALAÇÃO. AF_03/2023 | E50: INEL - INSTALAÇÃO ELÉTRICA/ELETRIFICAÇÃO E ILUMINAÇÃO EXTERNA | F50: UN | G50: =VLOOKUP(C50,'COMPOSIÇÃO SEM DESONERAÇÃO'!$B$11:$F$9696,4,FALSE) -> 61.34 | H50: 0.0174 | I50: 1.07
A51: C | B51: SINAPI | C51: 94559 | D51: =VLOOKUP(C51,'COMPOSIÇÃO SEM DESONERAÇÃO'!$B$11:$F$9696,2,FALSE) -> JANELA DE AÇO TIPO BASCULANTE, PARA VIDROS (VIDROS NÃO INCLUSOS), BATENTE/ REQUADRO INCLUSO (6,5 A 14 CM), DIMENSÕES 60X60 CM, COM COM PINTURA ANTICORROSIVA, SEM ACABAMENTO, COM FERRAGENS, FIXAÇÃO COM ARGAMASSA, EXCLUSIVE CONTRAMARCO - FORNECIMENTO E INSTALAÇÃO. AF_11/2024 | E51: ESQV - ESQUADRIAS/FERRAGENS/VIDROS | F51: m² | G51: =VLOOKUP(C51,'COMPOSIÇÃO SEM DESONERAÇÃO'!$B$11:$F$9696,4,FALSE) -> 737.23 | H51: 0.0905 | I51: 66.72
A52: C | B52: SINAPI | C52: 89724 | D52: =VLOOKUP(C52,'COMPOSIÇÃO SEM DESONERAÇÃO'!$B$11:$F$9696,2,FALSE) -> JOELHO 90 GRAUS, PVC, SERIE NORMAL, ESGOTO PREDIAL, DN 40 MM, JUNTA SOLDÁVEL, FORNECIDO E INSTALADO EM RAMAL DE DESCARGA OU RAMAL DE ESGOTO SANITÁRIO. AF_08/2022 | E52: INHI - INSTALAÇÕES HIDROS SANITÁRIAS | F52: UN | G52: =VLOOKUP(C52,'COMPOSIÇÃO SEM DESONERAÇÃO'!$B$11:$F$9696,4,FALSE) -> 10.11 | H52: 0.174 | I52: 1.76
A53: C | B53: SINAPI | C53: 89731 | D53: =VLOOKUP(C53,'COMPOSIÇÃO SEM DESONERAÇÃO'!$B$11:$F$9696,2,FALSE) -> JOELHO 90 GRAUS, PVC, SERIE NORMAL, ESGOTO PREDIAL, DN 50 MM, JUNTA ELÁSTICA, FORNECIDO E INSTALADO EM RAMAL DE DESCARGA OU RAMAL DE ESGOTO SANITÁRIO. AF_08/2022 | E53: INHI - INSTALAÇÕES HIDROS SANITÁRIAS | F53: UN | G53: =VLOOKUP(C53,'COMPOSIÇÃO SEM DESONERAÇÃO'!$B$11:$F$9696,4,FALSE) -> 15.37 | H53: 0.0174 | I53: 0.27
A54: C | B54: SINAPI | C54: 89970 | D54: KIT DE REGISTRO DE PRESSÃO BRUTO DE LATÃO ¾", INCLUSIVE CONEXÕES, ROSCÁVEL, INSTALADO EM RAMAL DE ÁGUA FRIA - FORNECIMENTO E INSTALAÇÃO. AF_12/2014 | E54: INHI - INSTALAÇÕES HIDROS SANITÁRIAS | F54: UN | G54: =SUM(I55:I57) -> 49.82 | H54: 0.0696 | I54: 3.47
A55: C | B55: SINAPI | C55: 89383 | D55: =VLOOKUP(C55,'COMPOSIÇÃO SEM DESONERAÇÃO'!$B$11:$F$9696,2,FALSE) -> ADAPTADOR CURTO COM BOLSA E ROSCA PARA REGISTRO, PVC, SOLDÁVEL, DN 25MM X 3/4, INSTALADO EM RAMAL OU SUB-RAMAL DE ÁGUA - FORNECIMENTO E INSTALAÇÃO. AF_06/2022 | E55: INHI - INSTALAÇÕES HIDROS SANITÁRIAS | F55: UN | G55: =VLOOKUP(C55,'COMPOSIÇÃO SEM DESONERAÇÃO'!$B$11:$F$9696,4,FALSE) -> 6.64 | H55: 1 | I55: =ROUND(G55*H55,2) -> 6.64
A56: C | B56: SINAPI | C56: 89385 | D56: =VLOOKUP(C56,'COMPOSIÇÃO SEM DESONERAÇÃO'!$B$11:$F$9696,2,FALSE) -> LUVA SOLDÁVEL E COM ROSCA, PVC, SOLDÁVEL, DN 25MM X 3/4, INSTALADO EM RAMAL OU SUB-RAMAL DE ÁGUA - FORNECIMENTO E INSTALAÇÃO. AF_06/2022 | E56: INHI - INSTALAÇÕES HIDROS SANITÁRIAS | F56: UN | G56: =VLOOKUP(C56,'COMPOSIÇÃO SEM DESONERAÇÃO'!$B$11:$F$9696,4,FALSE) -> 7.25 | H56: 1 | I56: =ROUND(G56*H56,2) -> 7.25
A57: C | B57: SINAPI | C57: 89351 | D57: =VLOOKUP(C57,'COMPOSIÇÃO SEM DESONERAÇÃO'!$B$11:$F$9696,2,FALSE) -> REGISTRO DE PRESSÃO BRUTO, LATÃO, ROSCÁVEL, 3/4'' - FORNECIMENTO E INSTALAÇÃO. AF_08/2021 | E57: INHI - INSTALAÇÕES HIDROS SANITÁRIAS | F57: UN | G57: =VLOOKUP(C57,'COMPOSIÇÃO SEM DESONERAÇÃO'!$B$11:$F$9696,4,FALSE) -> 35.93 | H57: 1 | I57: 35.93
A58: C | B58: SINAPI | C58: 95240 | D58: =VLOOKUP(C58,'COMPOSIÇÃO SEM DESONERAÇÃO'!$B$11:$F$9696,2,FALSE) -> LASTRO DE CONCRETO MAGRO, APLICADO EM PISOS, LAJES SOBRE SOLO OU RADIERS, ESPESSURA DE 3 CM. AF_01/2024 | E58: FUES - FUNDAÇÕES E ESTRUTURAS | F58: m² | G58: =VLOOKUP(C58,'COMPOSIÇÃO SEM DESONERAÇÃO'!$B$11:$F$9696,4,FALSE) -> 19.41 | H58: 0.0064 | I58: 0.12
A59: C | B59: SINAPI | C59: 95241 | D59: =VLOOKUP(C59,'COMPOSIÇÃO SEM DESONERAÇÃO'!$B$11:$F$9696,2,FALSE) -> LASTRO DE CONCRETO MAGRO, APLICADO EM PISOS, LAJES SOBRE SOLO OU RADIERS, ESPESSURA DE 5 CM. AF_01/2024 | E59: FUES - FUNDAÇÕES E ESTRUTURAS | F59: m² | G59: =VLOOKUP(C59,'COMPOSIÇÃO SEM DESONERAÇÃO'!$B$11:$F$9696,4,FALSE) -> 37.36 | H59: 1.3328 | I59: 49.79
A60: C | B60: SINAPI | C60: 86943 | D60: =VLOOKUP(C60,'COMPOSIÇÃO SEM DESONERAÇÃO'!$B$11:$F$9696,2,FALSE) -> LAVATÓRIO LOUÇA BRANCA SUSPENSO, 29,5 X 39CM OU EQUIVALENTE, PADRÃO POPULAR, INCLUSO SIFÃO FLEXÍVEL EM PVC, VÁLVULA E ENGATE FLEXÍVEL 30CM EM PLÁSTICO E TORNEIRA CROMADA DE MESA, PADRÃO POPULAR - FORNECIMENTO E INSTALAÇÃO. AF_01/2020 | E60: INHI - INSTALAÇÕES HIDROS SANITÁRIAS | F60: UN | G60: =VLOOKUP(C60,'COMPOSIÇÃO SEM DESONERAÇÃO'!$B$11:$F$9696,4,FALSE) -> 272.81 | H60: 0.0522 | I60: 14.24
A61: C | B61: SINAPI | C61: 97586 | D61: LUMINÁRIA TIPO CALHA, DE SOBREPOR, COM 2 LÂMPADAS TUBULARES FLUORESCENTES DE 36 W, COM REATOR DE PARTIDA RÁPIDA - FORNECIMENTO E INSTALAÇÃO. AF_02/2020 | E61: INEL - INSTALAÇÃO ELÉTRICA/ELETRIFICAÇÃO E ILUMINAÇÃO EXTERNA | F61: UN | G61: =SUM(I62:I64) -> 221.9 | H61: 0.1392 | I61: 30.89
A62: C | B62: SINAPI | C62: 88247 | D62: =VLOOKUP(C62,'COMPOSIÇÃO SEM DESONERAÇÃO'!$B$11:$F$9696,2,FALSE) -> AUXILIAR DE ELETRICISTA COM ENCARGOS COMPLEMENTARES | E62: SEDI - SERVIÇOS DIVERSOS | F62: H | G62: =VLOOKUP(C62,'COMPOSIÇÃO SEM DESONERAÇÃO'!$B$11:$F$9696,4,FALSE) -> 24.32 | H62: 0.1727 | I62: =ROUND(G62*H62,2) -> 4.2
A63: C | B63: SINAPI | C63: 88264 | D63: =VLOOKUP(C63,'COMPOSIÇÃO SEM DESONERAÇÃO'!$B$11:$F$9696,2,FALSE) -> ELETRICISTA COM ENCARGOS COMPLEMENTARES | E63: SEDI - SERVIÇOS DIVERSOS | F63: H | G63: =VLOOKUP(C63,'COMPOSIÇÃO SEM DESONERAÇÃO'!$B$11:$F$9696,4,FALSE) -> 28.71 | H63: 0.4144 | I63: =ROUND(G63*H63,2) -> 11.9
A64: I | B64: SINAPI | C64: 3780 | D64: =VLOOKUP(C64,'INSUMO SEM DESONERAÇÃO'!$B$11:$F$4847,2,FALSE) -> LUMINARIA DE SOBREPOR EM CHAPA DE ACO PARA 1 LAMPADA FLUORESCENTE DE *36* W, ALETADA, COMPLETA (LAMPADA E REATOR INCLUSOS) | E64: Material | F64: UN | G64: 102.9 | H64: 2 | I64: =ROUND(G64*H64,2) -> 205.8
A65: C | B65: SINAPI | C65: 91882 | D65: =VLOOKUP(C65,'COMPOSIÇÃO SEM DESONERAÇÃO'!$B$11:$F$9696,2,FALSE) -> LUVA PARA ELETRODUTO, PVC, ROSCÁVEL, DN 20 MM (1/2"), PARA CIRCUITOS TERMINAIS, INSTALADA EM PAREDE - FORNECIMENTO E INSTALAÇÃO. AF_03/2023 | E65: INEL - INSTALAÇÃO ELÉTRICA/ELETRIFICAÇÃO E ILUMINAÇÃO EXTERNA | F65: UN | G65: =VLOOKUP(C65,'COMPOSIÇÃO SEM DESONERAÇÃO'!$B$11:$F$9696,4,FALSE) -> 10.78 | H65: 0.0348 | I65: 0.38
A66: C | B66: SINAPI | C66: 91875 | D66: =VLOOKUP(C66,'COMPOSIÇÃO SEM DESONERAÇÃO'!$B$11:$F$9696,2,FALSE) -> LUVA PARA ELETRODUTO, PVC, ROSCÁVEL, DN 25 MM (3/4"), PARA CIRCUITOS TERMINAIS, INSTALADA EM FORRO - FORNECIMENTO E INSTALAÇÃO. AF_03/2023 | E66: INEL - INSTALAÇÃO ELÉTRICA/ELETRIFICAÇÃO E ILUMINAÇÃO EXTERNA | F66: UN | G66: =VLOOKUP(C66,'COMPOSIÇÃO SEM DESONERAÇÃO'!$B$11:$F$9696,4,FALSE) -> 9.02 | H66: 0.0348 | I66: 0.31
A67: C | B67: SINAPI | C67: 87548 | D67: =VLOOKUP(C67,'COMPOSIÇÃO SEM DESONERAÇÃO'!$B$11:$F$9696,2,FALSE) -> MASSA ÚNICA, EM ARGAMASSA TRAÇO 1:2:8, PREPARO MANUAL, APLICADA MANUALMENTE EM PAREDES INTERNAS DE AMBIENTES COM ÁREA ENTRE 5M² E 10M², E = 10MM, COM TALISCAS. AF_03/2024 | E67: REVE - REVESTIMENTO E TRATAMENTO DE SUPERFÍCIES | F67: m² | G67: =VLOOKUP(C67,'COMPOSIÇÃO SEM DESONERAÇÃO'!$B$11:$F$9696,4,FALSE) -> 31.42 | H67: 0.1894 | I67: 5.95
A68: C | B68: SINAPI | C68: 98445 | D68: =VLOOKUP(C68,'COMPOSIÇÃO SEM DESONERAÇÃO'!$B$11:$F$9696,2,FALSE) -> PAREDE DE MADEIRA COMPENSADA PARA CONSTRUÇÃO TEMPORÁRIA EM CHAPA SIMPLES, EXTERNA, COM ÁREA LÍQUIDA MAIOR OU IGUAL A 6 M², COM VÃO. AF_03/2024 | E68: CANT - CANTEIRO DE OBRAS | F68: m² | G68: =VLOOKUP(C68,'COMPOSIÇÃO SEM DESONERAÇÃO'!$B$11:$F$9696,4,FALSE) -> 113.48 | H68: 0.4081 | I68: 46.31
A69: C | B69: SINAPI | C69: 98441 | D69: =VLOOKUP(C69,'COMPOSIÇÃO SEM DESONERAÇÃO'!$B$11:$F$9696,2,FALSE) -> PAREDE DE MADEIRA COMPENSADA PARA CONSTRUÇÃO TEMPORÁRIA EM CHAPA SIMPLES, EXTERNA, SEM VÃO. AF_03/2024 | E69: CANT - CANTEIRO DE OBRAS | F69: m² | G69: =VLOOKUP(C69,'COMPOSIÇÃO SEM DESONERAÇÃO'!$B$11:$F$9696,4,FALSE) -> 95.84 | H69: 0.2612 | I69: 25.03
A70: C | B70: SINAPI | C70: 98446 | D70: =VLOOKUP(C70,'COMPOSIÇÃO SEM DESONERAÇÃO'!$B$11:$F$9696,2,FALSE) -> PAREDE DE MADEIRA COMPENSADA PARA CONSTRUÇÃO TEMPORÁRIA EM CHAPA SIMPLES, EXTERNA, COM ÁREA LÍQUIDA MENOR QUE 6 M², COM VÃO. AF_03/2024 | E70: CANT - CANTEIRO DE OBRAS | F70: m² | G70: =VLOOKUP(C70,'COMPOSIÇÃO SEM DESONERAÇÃO'!$B$11:$F$9696,4,FALSE) -> 145.58 | H70: 0.3182 | I70: 46.32
A71: C | B71: SINAPI | C71: 98441 | D71: =VLOOKUP(C71,'COMPOSIÇÃO SEM DESONERAÇÃO'!$B$11:$F$9696,2,FALSE) -> PAREDE DE MADEIRA COMPENSADA PARA CONSTRUÇÃO TEMPORÁRIA EM CHAPA SIMPLES, EXTERNA, SEM VÃO. AF_03/2024 | E71: CANT - CANTEIRO DE OBRAS | F71: m² | G71: =VLOOKUP(C71,'COMPOSIÇÃO SEM DESONERAÇÃO'!$B$11:$F$9696,4,FALSE) -> 95.84 | H71: 0.3007 | I71: 28.82
A72: C | B72: SINAPI | C72: 98447 | D72: =VLOOKUP(C72,'COMPOSIÇÃO SEM DESONERAÇÃO'!$B$11:$F$9696,2,FALSE) -> PAREDE DE MADEIRA COMPENSADA PARA CONSTRUÇÃO TEMPORÁRIA EM CHAPA SIMPLES, INTERNA, COM ÁREA LÍQUIDA MAIOR OU IGUAL A 6 M², COM VÃO. AF_03/2024 | E72: CANT - CANTEIRO DE OBRAS | F72: m² | G72: =VLOOKUP(C72,'COMPOSIÇÃO SEM DESONERAÇÃO'!$B$11:$F$9696,4,FALSE) -> 89.2 | H72: 0.1297 | I72: =ROUND(G72*H72,2) -> 11.57
A73: C | B73: SINAPI | C73: 98443 | D73: =VLOOKUP(C73,'COMPOSIÇÃO SEM DESONERAÇÃO'!$B$11:$F$9696,2,FALSE) -> PAREDE DE MADEIRA COMPENSADA PARA CONSTRUÇÃO TEMPORÁRIA EM CHAPA SIMPLES, INTERNA, SEM VÃO. AF_03/2024 | E73: CANT - CANTEIRO DE OBRAS | F73: m² | G73: =VLOOKUP(C73,'COMPOSIÇÃO SEM DESONERAÇÃO'!$B$11:$F$9696,4,FALSE) -> 74.9 | H73: 0.083 | I73: 6.22
A74: C | B74: SINAPI | C74: 98448 | D74: =VLOOKUP(C74,'COMPOSIÇÃO SEM DESONERAÇÃO'!$B$11:$F$9696,2,FALSE) -> PAREDE DE MADEIRA COMPENSADA PARA CONSTRUÇÃO TEMPORÁRIA EM CHAPA SIMPLES, INTERNA, COM ÁREA LÍQUIDA MENOR QUE 6 M², COM VÃO. AF_03/2024 | E74: CANT - CANTEIRO DE OBRAS | F74: m² | G74: =VLOOKUP(C74,'COMPOSIÇÃO SEM DESONERAÇÃO'!$B$11:$F$9696,4,FALSE) -> 115.48 | H74: 0.1011 | I74: 11.68
A75: C | B75: SINAPI | C75: 98443 | D75: =VLOOKUP(C75,'COMPOSIÇÃO SEM DESONERAÇÃO'!$B$11:$F$9696,2,FALSE) -> PAREDE DE MADEIRA COMPENSADA PARA CONSTRUÇÃO TEMPORÁRIA EM CHAPA SIMPLES, INTERNA, SEM VÃO. AF_03/2024 | E75: CANT - CANTEIRO DE OBRAS | F75: m² | G75: =VLOOKUP(C75,'COMPOSIÇÃO SEM DESONERAÇÃO'!$B$11:$F$9696,4,FALSE) -> 74.9 | H75: 0.0956 | I75: 7.16
A76: C | B76: SINAPI | C76: 88489 | D76: =VLOOKUP(C76,'COMPOSIÇÃO SEM DESONERAÇÃO'!$B$11:$F$9696,2,FALSE) -> PINTURA LÁTEX ACRÍLICA PREMIUM, APLICAÇÃO MANUAL EM PAREDES, DUAS DEMÃOS. AF_04/2023 | E76: PINT - PINTURAS | F76: m² | G76: =VLOOKUP(C76,'COMPOSIÇÃO SEM DESONERAÇÃO'!$B$11:$F$9696,4,FALSE) -> 14.57 | H76: 2.4442 | I76: 35.61
A77: C | B77: SINAPI | C77: 98679 | D77: =VLOOKUP(C77,'COMPOSIÇÃO SEM DESONERAÇÃO'!$B$11:$F$9696,2,FALSE) -> PISO CIMENTADO, TRAÇO 1:3 (CIMENTO E AREIA), ACABAMENTO LISO, ESPESSURA 2,0 CM, PREPARO MECÂNICO DA ARGAMASSA. AF_09/2020 | E77: PISO - PISOS | F77: m² | G77: =VLOOKUP(C77,'COMPOSIÇÃO SEM DESONERAÇÃO'!$B$11:$F$9696,4,FALSE) -> 37.47 | H77: 0.5134 | I77: 19.24
A78: C | B78: SINAPI | C78: 89957 | D78: PONTO DE CONSUMO TERMINAL DE ÁGUA FRIA (SUBRAMAL) COM TUBULAÇÃO DE PVC, DN 25 MM, INSTALADO EM RAMAL DE ÁGUA, INCLUSOS RASGO E CHUMBAMENTO EM ALVENARIA. AF_12/2014 (ADAPTADO) | E78: INHI - INSTALAÇÕES HIDROS SANITÁRIAS | F78: UN | G78: =SUM(I79:I84) -> 140.39 | H78: 0.174 | I78: 24.43
A79: C | B79: SINAPI | C79: 90466 | D79: =VLOOKUP(C79,'COMPOSIÇÃO SEM DESONERAÇÃO'!$B$11:$F$9696,2,FALSE) -> CHUMBAMENTO LINEAR EM ALVENARIA PARA RAMAIS/DISTRIBUIÇÃO DE INSTALAÇÕES HIDRÁULICAS COM DIÂMETROS MENORES OU IGUAIS A 40 MM. AF_09/2023 | E79: Material | F79: M | G79: =VLOOKUP(C79,'COMPOSIÇÃO SEM DESONERAÇÃO'!$B$11:$F$9696,4,FALSE) -> 15.47 | H79: 2.14 | I79: 33.11
A80: C | B80: SINAPI | C80: 89366 | D80: =VLOOKUP(C80,'COMPOSIÇÃO SEM DESONERAÇÃO'!$B$11:$F$9696,2,FALSE) -> JOELHO 90 GRAUS COM BUCHA DE LATÃO, PVC, SOLDÁVEL, DN 25MM, X 3/4 INSTALADO EM RAMAL OU SUB-RAMAL DE ÁGUA - FORNECIMENTO E INSTALAÇÃO. AF_06/2022 | E80: Material | F80: UN | G80: =VLOOKUP(C80,'COMPOSIÇÃO SEM DESONERAÇÃO'!$B$11:$F$9696,4,FALSE) -> 16.11 | H80: 1 | I80: 16.11
A81: C | B81: SINAPI | C81: 89362 | D81: =VLOOKUP(C81,'COMPOSIÇÃO SEM DESONERAÇÃO'!$B$11:$F$9696,2,FALSE) -> JOELHO 90 GRAUS, PVC, SOLDÁVEL, DN 25MM, INSTALADO EM RAMAL OU SUB-RAMAL DE ÁGUA - FORNECIMENTO E INSTALAÇÃO. AF_06/2022 | E81: Material | F81: UN | G81: =VLOOKUP(C81,'COMPOSIÇÃO SEM DESONERAÇÃO'!$B$11:$F$9696,4,FALSE) -> 9.57 | H81: 1.18 | I81: 11.29
A82: C | B82: SINAPI | C82: 90443 | D82: =VLOOKUP(C82,'COMPOSIÇÃO SEM DESONERAÇÃO'!$B$11:$F$9696,2,FALSE) -> RASGO LINEAR MANUAL EM ALVENARIA, PARA RAMAIS/ DISTRIBUIÇÃO DE INSTALAÇÕES HIDRÁULICAS, DIÂMETROS MENORES OU IGUAIS A 40 MM. AF_09/2023 | E82: Material | F82: M | G82: =VLOOKUP(C82,'COMPOSIÇÃO SEM DESONERAÇÃO'!$B$11:$F$9696,4,FALSE) -> 8.01 | H82: 2.14 | I82: 17.14
A83: C | B83: SINAPI | C83: 89395 | D83: =VLOOKUP(C83,'COMPOSIÇÃO SEM DESONERAÇÃO'!$B$11:$F$9696,2,FALSE) -> TE, PVC, SOLDÁVEL, DN 25MM, INSTALADO EM RAMAL OU SUB-RAMAL DE ÁGUA - FORNECIMENTO E INSTALAÇÃO. AF_06/2022 | E83: Material | F83: UN | G83: =VLOOKUP(C83,'COMPOSIÇÃO SEM DESONERAÇÃO'!$B$11:$F$9696,4,FALSE) -> 13.17 | H83: 0.89 | I83: 11.72
A84: C | B84: SINAPI | C84: 89356 | D84: =VLOOKUP(C84,'COMPOSIÇÃO SEM DESONERAÇÃO'!$B$11:$F$9696,2,FALSE) -> TUBO, PVC, SOLDÁVEL, DE 25MM, INSTALADO EM RAMAL OU SUB-RAMAL DE ÁGUA - FORNECIMENTO E INSTALAÇÃO. AF_06/2022 | E84: Material | F84: M | G84: =VLOOKUP(C84,'COMPOSIÇÃO SEM DESONERAÇÃO'!$B$11:$F$9696,4,FALSE) -> 23.84 | H84: 2.14 | I84: 51.02
A85: C | B85: SINAPI | C85: 90822 | D85: =VLOOKUP(C85,'COMPOSIÇÃO SEM DESONERAÇÃO'!$B$11:$F$9696,2,FALSE) -> PORTA DE MADEIRA PARA PINTURA, SEMI-OCA (LEVE OU MÉDIA), 80X210CM, ESPESSURA DE 3,5CM, INCLUSO DOBRADIÇAS - FORNECIMENTO E INSTALAÇÃO. AF_12/2019 | E85: ESQV - ESQUADRIAS/FERRAGENS/VIDROS | F85: UN | G85: =VLOOKUP(C85,'COMPOSIÇÃO SEM DESONERAÇÃO'!$B$11:$F$9696,4,FALSE) -> 326.04 | H85: 0.0348 | I85: 11.35
A86: C | B86: SINAPI | C86: 101876 | D86: =VLOOKUP(C86,'COMPOSIÇÃO SEM DESONERAÇÃO'!$B$11:$F$9696,2,FALSE) -> QUADRO DE DISTRIBUIÇÃO DE ENERGIA EM PVC, DE EMBUTIR, SEM BARRAMENTO, PARA 6 DISJUNTORES - FORNECIMENTO E INSTALAÇÃO. AF_10/2020 | E86: INEL - INSTALAÇÃO ELÉTRICA/ELETRIFICAÇÃO E ILUMINAÇÃO EXTERNA | F86: UN | G86: =VLOOKUP(C86,'COMPOSIÇÃO SEM DESONERAÇÃO'!$B$11:$F$9696,4,FALSE) -> 106.18 | H86: 0.0174 | I86: 1.85
A87: C | B87: SINAPI | C87: 89709 | D87: =VLOOKUP(C87,'COMPOSIÇÃO SEM DESONERAÇÃO'!$B$11:$F$9696,2,FALSE) -> RALO SIFONADO, PVC, DN 100 X 40 MM, JUNTA SOLDÁVEL, FORNECIDO E INSTALADO EM RAMAL DE DESCARGA OU EM RAMAL DE ESGOTO SANITÁRIO. AF_08/2022 | E87: INHI - INSTALAÇÕES HIDROS SANITÁRIAS | F87: UN | G87: =VLOOKUP(C87,'COMPOSIÇÃO SEM DESONERAÇÃO'!$B$11:$F$9696,4,FALSE) -> 18.45 | H87: 0.0696 | I87: 1.28
A88: C | B88: SINAPI | C88: 90443 | D88: =VLOOKUP(C88,'COMPOSIÇÃO SEM DESONERAÇÃO'!$B$11:$F$9696,2,FALSE) -> RASGO LINEAR MANUAL EM ALVENARIA, PARA RAMAIS/ DISTRIBUIÇÃO DE INSTALAÇÕES HIDRÁULICAS, DIÂMETROS MENORES OU IGUAIS A 40 MM. AF_09/2023 | E88: INHI - INSTALAÇÕES HIDROS SANITÁRIAS | F88: M | G88: =VLOOKUP(C88,'COMPOSIÇÃO SEM DESONERAÇÃO'!$B$11:$F$9696,4,FALSE) -> 8.01 | H88: 0.0722 | I88: 0.58
A89: C | B89: SINAPI | C89: 93382 | D89: =VLOOKUP(C89,'COMPOSIÇÃO SEM DESONERAÇÃO'!$B$11:$F$9696,2,FALSE) -> REATERRO MANUAL DE VALAS, COM COMPACTADOR DE SOLOS DE PERCUSSÃO. AF_08/2023 | E89: MOVT - MOVIMENTO DE TERRA | F89: m³ | G89: =VLOOKUP(C89,'COMPOSIÇÃO SEM DESONERAÇÃO'!$B$11:$F$9696,4,FALSE) -> 26.34 | H89: 0.0072 | I89: 0.19
A90: C | B90: SINAPI | C90: 89784 | D90: =VLOOKUP(C90,'COMPOSIÇÃO SEM DESONERAÇÃO'!$B$11:$F$9696,2,FALSE) -> TE, PVC, SERIE NORMAL, ESGOTO PREDIAL, DN 50 X 50 MM, JUNTA ELÁSTICA, FORNECIDO E INSTALADO EM RAMAL DE DESCARGA OU RAMAL DE ESGOTO SANITÁRIO. AF_08/2022 | E90: INHI - INSTALAÇÕES HIDROS SANITÁRIAS | F90: UN | G90: =VLOOKUP(C90,'COMPOSIÇÃO SEM DESONERAÇÃO'!$B$11:$F$9696,4,FALSE) -> 24.53 | H90: 0.0174 | I90: 0.43
A91: C | B91: SINAPI | C91: 94210 | D91: =VLOOKUP(C91,'COMPOSIÇÃO SEM DESONERAÇÃO'!$B$11:$F$9696,2,FALSE) -> TELHAMENTO COM TELHA ONDULADA DE FIBROCIMENTO E = 6 MM, COM RECOBRIMENTO LATERAL DE 1 1/4 DE ONDA PARA TELHADO COM INCLINAÇÃO MÁXIMA DE 10°, COM ATÉ 2 ÁGUAS, INCLUSO IÇAMENTO. AF_07/2019 | E91: COBE - COBERTURA | F91: m² | G91: =VLOOKUP(C91,'COMPOSIÇÃO SEM DESONERAÇÃO'!$B$11:$F$9696,4,FALSE) -> 58.58 | H91: 1.3566 | I91: 79.47
A92: C | B92: SINAPI | C92: 92000 | D92: =VLOOKUP(C92,'COMPOSIÇÃO SEM DESONERAÇÃO'!$B$11:$F$9696,2,FALSE) -> TOMADA BAIXA DE EMBUTIR (1 MÓDULO), 2P+T 10 A, INCLUINDO SUPORTE E PLACA - FORNECIMENTO E INSTALAÇÃO. AF_03/2023 | E92: INEL - INSTALAÇÃO ELÉTRICA/ELETRIFICAÇÃO E ILUMINAÇÃO EXTERNA | F92: UN | G92: =VLOOKUP(C92,'COMPOSIÇÃO SEM DESONERAÇÃO'!$B$11:$F$9696,4,FALSE) -> 31.45 | H92: 0.0348 | I92: 1.09
A93: C | B93: SINAPI | C93: 92543 | D93: =VLOOKUP(C93,'COMPOSIÇÃO SEM DESONERAÇÃO'!$B$11:$F$9696,2,FALSE) -> TRAMA DE MADEIRA COMPOSTA POR TERÇAS PARA TELHADOS DE ATÉ 2 ÁGUAS PARA TELHA ONDULADA DE FIBROCIMENTO, METÁLICA, PLÁSTICA OU TERMOACÚSTICA, INCLUSO TRANSPORTE VERTICAL. AF_07/2019 | E93: COBE - COBERTURA | F93: m² | G93: =VLOOKUP(C93,'COMPOSIÇÃO SEM DESONERAÇÃO'!$B$11:$F$9696,4,FALSE) -> 25.04 | H93: 1.3566 | I93: 33.97
A94: C | B94: SINAPI | C94: 89714 | D94: =VLOOKUP(C94,'COMPOSIÇÃO SEM DESONERAÇÃO'!$B$11:$F$9696,2,FALSE) -> TUBO PVC, SERIE NORMAL, ESGOTO PREDIAL, DN 100 MM, FORNECIDO E INSTALADO EM RAMAL DE DESCARGA OU RAMAL DE ESGOTO SANITÁRIO. AF_08/2022 | E94: INHI - INSTALAÇÕES HIDROS SANITÁRIAS | F94: M | G94: =VLOOKUP(C94,'COMPOSIÇÃO SEM DESONERAÇÃO'!$B$11:$F$9696,4,FALSE) -> 36.78 | H94: 0.047 | I94: 1.73
A95: C | B95: SINAPI | C95: 89711 | D95: =VLOOKUP(C95,'COMPOSIÇÃO SEM DESONERAÇÃO'!$B$11:$F$9696,2,FALSE) -> TUBO PVC, SERIE NORMAL, ESGOTO PREDIAL, DN 40 MM, FORNECIDO E INSTALADO EM RAMAL DE DESCARGA OU RAMAL DE ESGOTO SANITÁRIO. AF_08/2022 | E95: INHI - INSTALAÇÕES HIDROS SANITÁRIAS | F95: M | G95: =VLOOKUP(C95,'COMPOSIÇÃO SEM DESONERAÇÃO'!$B$11:$F$9696,4,FALSE) -> 21.11 | H95: 0.1631 | I95: 3.44
A96: C | B96: SINAPI | C96: 89712 | D96: =VLOOKUP(C96,'COMPOSIÇÃO SEM DESONERAÇÃO'!$B$11:$F$9696,2,FALSE) -> TUBO PVC, SERIE NORMAL, ESGOTO PREDIAL, DN 50 MM, FORNECIDO E INSTALADO EM RAMAL DE DESCARGA OU RAMAL DE ESGOTO SANITÁRIO. AF_08/2022 | E96: INHI - INSTALAÇÕES HIDROS SANITÁRIAS | F96: M | G96: =VLOOKUP(C96,'COMPOSIÇÃO SEM DESONERAÇÃO'!$B$11:$F$9696,4,FALSE) -> 26.4 | H96: 0.2235 | I96: 5.9
A97: C | B97: SINAPI | C97: 86888 | D97: =VLOOKUP(C97,'COMPOSIÇÃO SEM DESONERAÇÃO'!$B$11:$F$9696,2,FALSE) -> VASO SANITÁRIO SIFONADO COM CAIXA ACOPLADA LOUÇA BRANCA - FORNECIMENTO E INSTALAÇÃO. AF_01/2020 | E97: INHI - INSTALAÇÕES HIDROS SANITÁRIAS | F97: UN | G97: =VLOOKUP(C97,'COMPOSIÇÃO SEM DESONERAÇÃO'!$B$11:$F$9696,4,FALSE) -> 486.85 | H97: 0.0522 | I97: 25.41
A98: I | B98: SINAPI | C98: 11712 | D98: =VLOOKUP(C98,'INSUMO SEM DESONERAÇÃO'!$B$11:$F$4847,2,FALSE) -> CAIXA SIFONADA, PVC, 150 X 150 X 50 MM, COM GRELHA QUADRADA, BRANCA (NBR 5688) | E98: Material | F98: UN | G98: =VLOOKUP(C98,'INSUMO SEM DESONERAÇÃO'!$B$11:$F$4847,5,FALSE) -> 33.9 | H98: 0.0348 | I98: 1.18
A99: I | B99: SINAPI | C99: 3080 | D99: =VLOOKUP(C99,'INSUMO SEM DESONERAÇÃO'!$B$11:$F$4847,2,FALSE) -> FECHADURA ESPELHO PARA PORTA EXTERNA, EM ACO INOX (MAQUINA, TESTA E CONTRA-TESTA) E EM ZAMAC (MACANETA, LINGUETA E TRINCOS) COM ACABAMENTO CROMADO, MAQUINA DE 40 MM, INCLUINDO CHAVE TIPO CILINDRO | E99: Material | F99: CJ | G99: =VLOOKUP(C99,'INSUMO SEM DESONERAÇÃO'!$B$11:$F$4847,5,FALSE) -> 76.7 | H99: 0.0348 | I99: 2.67
A100: I | B100: SINAPI | C100: 11587 | D100: =VLOOKUP(C100,'INSUMO SEM DESONERAÇÃO'!$B$11:$F$4847,2,FALSE) -> FORRO DE PVC LISO, BRANCO, REGUA DE 10 CM, ESPESSURA APROXIMADA DE 8 MM (COM COLOCACAO / SEM ESTRUTURA METALICA) | E100: Material | F100: m² | G100: =VLOOKUP(C100,'INSUMO SEM DESONERAÇÃO'!$B$11:$F$4847,5,FALSE) -> 81.72 | H100: 0.9762 | I100: 79.78
A101: I | B101: SINAPI | C101: 3659 | D101: =VLOOKUP(C101,'INSUMO SEM DESONERAÇÃO'!$B$11:$F$4847,2,FALSE) -> JUNCAO SIMPLES DE REDUCAO, PVC, DN 100 X 50 MM, SERIE NORMAL PARA ESGOTO PREDIAL | E101: Material | F101: UN | G101: =VLOOKUP(C101,'INSUMO SEM DESONERAÇÃO'!$B$11:$F$4847,5,FALSE) -> 16.78 | H101: 0.0174 | I101: 0.29
A102: I | B102: SINAPI | C102: 3670 | D102: =VLOOKUP(C102,'INSUMO SEM DESONERAÇÃO'!$B$11:$F$4847,2,FALSE) -> JUNCAO SIMPLES, PVC, 45 GRAUS, DN 100 X 100 MM, SERIE NORMAL PARA ESGOTO PREDIAL | E102: Material | F102: UN | G102: =VLOOKUP(C102,'INSUMO SEM DESONERAÇÃO'!$B$11:$F$4847,5,FALSE) -> 21.55 | H102: 0.0348 | I102: 0.75
A103: I | B103: SINAPI | C103: 11697 | D103: =VLOOKUP(C103,'INSUMO SEM DESONERAÇÃO'!$B$11:$F$4847,2,FALSE) -> MICTORIO COLETIVO ACO INOX (AISI 304), E = 0,8 MM, DE *100 X 40 X 30* CM (C X A X P) | E103: Material | F103: UN | G103: =VLOOKUP(C103,'INSUMO SEM DESONERAÇÃO'!$B$11:$F$4847,5,FALSE) -> 704.81 | H103: 0.0174 | I103: 12.26
A104: I | B104: SINAPI | C104: 43777 | D104: =VLOOKUP(C104,'INSUMO SEM DESONERAÇÃO'!$B$11:$F$4847,2,FALSE) -> PORTA DE MADEIRA, FOLHA LEVE (NBR 15930), DE 600 X 2100 MM, E = 35 MM, NUCLEO COLMEIA, CAPA LISA EM HDF, ACABAMENTO MELAMINICO EM PADRAO MADEIRA | E104: Material | F104: UN | G104: =VLOOKUP(C104,'INSUMO SEM DESONERAÇÃO'!$B$11:$F$4847,5,FALSE) -> 173.66 | H104: 0.0447618 | I104: 7.77
A105: I | B105: SINAPI | C105: 21112 | D105: =VLOOKUP(C105,'INSUMO SEM DESONERAÇÃO'!$B$11:$F$4847,2,FALSE) -> VALVULA DE DESCARGA EM METAL CROMADO PARA MICTORIO COM ACIONAMENTO POR PRESSAO E FECHAMENTO AUTOMATICO | E105: Material | F105: UN | G105: =VLOOKUP(C105,'INSUMO SEM DESONERAÇÃO'!$B$11:$F$4847,5,FALSE) -> 318.41 | H105: 0.0174 | I105: 5.54
A108: Código | D108: 93583 ADAPTADO
A109: Descrição | D109: EXECUÇÃO DE CENTRAL DE FÔRMAS, PRODUÇÃO DE ARGAMASSA OU CONCRETO EM CANTEIRO DE OBRA, NÃO INCLUSO MOBILIÁRIO E EQUIPAMENTOS. AF_04/2016
A110: Data | D110: 2024-04-01
A111: Estado | D111: Pernambuco
A112: Tipo | D112: CANT - CANTEIRO DE OBRAS
A113: Unidade | D113: m²
A114: Valor sem Desoneração | D114: =SUM(I117:I131,I135:I145) -> 522.9
A116: Natureza | B116: Fonte | C116: codigo | D116: Descrição | E116: Tipo | F116: Unidade | G116: Valor sem Desoneração | H116: Coeficiente | I116: Valor sem Desoneração
A117: C | B117: SINAPI | C117: 91924 | D117: =VLOOKUP(C117,'COMPOSIÇÃO SEM DESONERAÇÃO'!$B$11:$E$9696,2,FALSE) -> CABO DE COBRE FLEXÍVEL ISOLADO, 1,5 MM², ANTI-CHAMA 450/750 V, PARA CIRCUITOS TERMINAIS - FORNECIMENTO E INSTALAÇÃO. AF_03/2023 | E117: INEL - INSTALAÇÃO ELÉTRICA/ELETRIFICAÇÃO E ILUMINAÇÃO EXTERNA | F117: M | G117: 2,69 | H117: 1,0821 | I117: 2.91
A118: C | B118: SINAPI | C118: 92981 | D118: =VLOOKUP(C118,'COMPOSIÇÃO SEM DESONERAÇÃO'!$B$11:$E$9696,2,FALSE) -> CABO DE COBRE FLEXÍVEL ISOLADO, 16 MM², ANTI-CHAMA 450/750 V, PARA DISTRIBUIÇÃO - FORNECIMENTO E INSTALAÇÃO. AF_10/2020 | E118: INEL - INSTALAÇÃO ELÉTRICA/ELETRIFICAÇÃO E ILUMINAÇÃO EXTERNA | F118: M | G118: 13,79 | H118: 0,4831 | I118: 6.66
A119: C | B119: SINAPI | C119: 91926 | D119: =VLOOKUP(C119,'COMPOSIÇÃO SEM DESONERAÇÃO'!$B$11:$E$9696,2,FALSE) -> CABO DE COBRE FLEXÍVEL ISOLADO, 2,5 MM², ANTI-CHAMA 450/750 V, PARA CIRCUITOS TERMINAIS - FORNECIMENTO E INSTALAÇÃO. AF_03/2023 | E119: INEL - INSTALAÇÃO ELÉTRICA/ELETRIFICAÇÃO E ILUMINAÇÃO EXTERNA | F119: M | G119: 3,86 | H119: 2,087 | I119: 8.05
A120: C | B120: SINAPI | C120: 97886 | D120: =VLOOKUP(C120,'COMPOSIÇÃO SEM DESONERAÇÃO'!$B$11:$E$9696,2,FALSE) -> CAIXA ENTERRADA ELÉTRICA RETANGULAR, EM ALVENARIA COM TIJOLOS CERÂMICOS MACIÇOS, FUNDO COM BRITA, DIMENSÕES INTERNAS: 0,3X0,3X0,3 M. AF_12/2020 | E120: INEL - INSTALAÇÃO ELÉTRICA/ELETRIFICAÇÃO E ILUMINAÇÃO EXTERNA | F120: UN | G120: 151,45 | H120: 0,0966 | I120: 14.63
A121: C | B121: SINAPI | C121: 95805 | D121: =VLOOKUP(C121,'COMPOSIÇÃO SEM DESONERAÇÃO'!$B$11:$E$9696,2,FALSE) -> CONDULETE DE PVC, TIPO B, PARA ELETRODUTO DE PVC SOLDÁVEL DN 25 MM (3/4''), APARENTE - FORNECIMENTO E INSTALAÇÃO. AF_10/2022 | E121: INEL - INSTALAÇÃO ELÉTRICA/ELETRIFICAÇÃO E ILUMINAÇÃO EXTERNA | F121: UN | G121: 25,61 | H121: 0,3865 | I121: 9.89
A122: C | B122: SINAPI | C122: 101891 | D122: =VLOOKUP(C122,'COMPOSIÇÃO SEM DESONERAÇÃO'!$B$11:$E$9696,2,FALSE) -> DISJUNTOR MONOPOLAR TIPO NEMA, CORRENTE NOMINAL DE 35 ATÉ 50A - FORNECIMENTO E INSTALAÇÃO. AF_10/2020 | E122: INEL - INSTALAÇÃO ELÉTRICA/ELETRIFICAÇÃO E ILUMINAÇÃO EXTERNA | F122: UN | G122: 31,11 | H122: 0,2899 | I122: 9.01
A123: C | B123: SINAPI | C123: 91862 | D123: =VLOOKUP(C123,'COMPOSIÇÃO SEM DESONERAÇÃO'!$B$11:$E$9696,2,FALSE) -> ELETRODUTO RÍGIDO ROSCÁVEL, PVC, DN 20 MM (1/2"), PARA CIRCUITOS TERMINAIS, INSTALADO EM FORRO - FORNECIMENTO E INSTALAÇÃO. AF_03/2023 | E123: INEL - INSTALAÇÃO ELÉTRICA/ELETRIFICAÇÃO E ILUMINAÇÃO EXTERNA | F123: M | G123: 9,20 | H123: 0,4251 | I123: 3.91
A124: C | B124: SINAPI | C124: 91870 | D124: =VLOOKUP(C124,'COMPOSIÇÃO SEM DESONERAÇÃO'!$B$11:$E$9696,2,FALSE) -> ELETRODUTO RÍGIDO ROSCÁVEL, PVC, DN 20 MM (1/2"), PARA CIRCUITOS TERMINAIS, INSTALADO EM PAREDE - FORNECIMENTO E INSTALAÇÃO. AF_03/2023 | E124: INEL - INSTALAÇÃO ELÉTRICA/ELETRIFICAÇÃO E ILUMINAÇÃO EXTERNA | F124: M | G124: 11,94 | H124: 0,4638 | I124: 5.53
A125: C | B125: SINAPI | C125: 93358 | D125: =VLOOKUP(C125,'COMPOSIÇÃO SEM DESONERAÇÃO'!$B$11:$E$9696,2,FALSE) -> ESCAVAÇÃO MANUAL DE VALA. AF_09/2024 | E125: MOVT - MOVIMENTO DE TERRA | F125: m³ | G125: 80,22 | H125: 0,0078 | I125: 0.62
A126: C | B126: SINAPI | C126: 91170 | D126: =VLOOKUP(C126,'COMPOSIÇÃO SEM DESONERAÇÃO'!$B$11:$E$9696,2,FALSE) -> FIXAÇÃO DE TUBOS HORIZONTAIS DE PVC ÁGUA, PVC ESGOTO, PVC ÁGUA PLUVIAL, CPVC, PPR, COBRE OU AÇO, DIÂMETROS MENORES OU IGUAIS A 40 MM, COM ABRAÇADEIRA METÁLICA RÍGIDA TIPO U PERFIL 1 1/4", FIXADA EM PERFILADO EM LAJE. AF_09/2023_PS | E126: INHI - INSTALAÇÕES HIDROS SANITÁRIAS | F126: M | G126: 10,69 | H126: 0,4251 | I126: 4.54
A127: C | B127: SINAPI | C127: 91173 | D127: =VLOOKUP(C127,'COMPOSIÇÃO SEM DESONERAÇÃO'!$B$11:$E$9696,2,FALSE) -> FIXAÇÃO DE TUBOS VERTICAIS DE PVC ÁGUA, PVC ESGOTO, PVC ÁGUA PLUVIAL, CPVC, PPR, COBRE OU AÇO, DIÂMETROS MENORES OU IGUAIS A 40 MM, COM ABRAÇADEIRA METÁLICA RÍGIDA TIPO U PERFIL 1 1/4", FIXADA EM PERFILADO EM PAREDE. AF_09/2023_PS | E127: INHI - INSTALAÇÕES HIDROS SANITÁRIAS | F127: M | G127: 3,98 | H127: 0,4638 | I127: 1.84
A128: C | B128: SINAPI | C128: 96985 | D128: =VLOOKUP(C128,'COMPOSIÇÃO SEM DESONERAÇÃO'!$B$11:$E$9696,2,FALSE) -> HASTE DE ATERRAMENTO, DIÂMETRO 5/8", COM 3 METROS - FORNECIMENTO E INSTALAÇÃO. AF_08/2023 | E128: INEL - INSTALAÇÃO ELÉTRICA/ELETRIFICAÇÃO E ILUMINAÇÃO EXTERNA | F128: UN | G128: 107,65 | H128: 0,0966 | I128: 10.39
A129: C | B129: SINAPI | C129: 92023 | D129: =VLOOKUP(C129,'COMPOSIÇÃO SEM DESONERAÇÃO'!$B$11:$E$9696,2,FALSE) -> INTERRUPTOR SIMPLES (1 MÓDULO) COM 1 TOMADA DE EMBUTIR 2P+T 10 A, INCLUINDO SUPORTE E PLACA - FORNECIMENTO E INSTALAÇÃO. AF_03/2023 | E129: INEL - INSTALAÇÃO ELÉTRICA/ELETRIFICAÇÃO E ILUMINAÇÃO EXTERNA | F129: UN | G129: 48,41 | H129: 0,0966 | I129: 4.67
A130: C | B130: SINAPI | C130: 95241 | D130: =VLOOKUP(C130,'COMPOSIÇÃO SEM DESONERAÇÃO'!$B$11:$E$9696,2,FALSE) -> LASTRO DE CONCRETO MAGRO, APLICADO EM PISOS, LAJES SOBRE SOLO OU RADIERS, ESPESSURA DE 5 CM. AF_01/2024 | E130: FUES - FUNDAÇÕES E ESTRUTURAS | F130: m² | G130: 30,98 | H130: 1,9256 | I130: 59.65
A131: C | B131: SINAPI | C131: 97586 | D131: LUMINÁRIA TIPO CALHA, DE SOBREPOR, COM 2 LÂMPADAS TUBULARES FLUORESCENTES DE 36 W, COM REATOR DE PARTIDA RÁPIDA - FORNECIMENTO E INSTALAÇÃO. AF_02/2020 | E131: INEL - INSTALAÇÃO ELÉTRICA/ELETRIFICAÇÃO E ILUMINAÇÃO EXTERNA | F131: UN | G131: =SUM(I132:I134) -> 221.9 | H131: 0.1392 | I131: =ROUND(G131*H131,2) -> 30.89
A132: C | B132: SINAPI | C132: 88247 | D132: =VLOOKUP(C132,'COMPOSIÇÃO SEM DESONERAÇÃO'!$B$11:$F$9696,2,FALSE) -> AUXILIAR DE ELETRICISTA COM ENCARGOS COMPLEMENTARES | E132: SEDI - SERVIÇOS DIVERSOS | F132: H | G132: =VLOOKUP(C132,'COMPOSIÇÃO SEM DESONERAÇÃO'!$B$11:$F$9696,4,FALSE) -> 24.32 | H132: 0.1727 | I132: =ROUND(G132*H132,2) -> 4.2
A133: C | B133: SINAPI | C133: 88264 | D133: =VLOOKUP(C133,'COMPOSIÇÃO SEM DESONERAÇÃO'!$B$11:$F$9696,2,FALSE) -> ELETRICISTA COM ENCARGOS COMPLEMENTARES | E133: SEDI - SERVIÇOS DIVERSOS | F133: H | G133: =VLOOKUP(C133,'COMPOSIÇÃO SEM DESONERAÇÃO'!$B$11:$F$9696,4,FALSE) -> 28.71 | H133: 0.4144 | I133: =ROUND(G133*H133,2) -> 11.9
A134: C | B134: SINAPI | C134: 3780 | D134: =VLOOKUP(C134,'INSUMO SEM DESONERAÇÃO'!$B$11:$F$4847,2,FALSE) -> LUMINARIA DE SOBREPOR EM CHAPA DE ACO PARA 1 LAMPADA FLUORESCENTE DE *36* W, ALETADA, COMPLETA (LAMPADA E REATOR INCLUSOS) | E134: Material | F134: UN | G134: 102.9 | H134: 2 | I134: =ROUND(G134*H134,2) -> 205.8
A135: C | B135: SINAPI | C135: 98445 | D135: =VLOOKUP(C135,'COMPOSIÇÃO SEM DESONERAÇÃO'!$B$11:$E$9696,2,FALSE) -> PAREDE DE MADEIRA COMPENSADA PARA CONSTRUÇÃO TEMPORÁRIA EM CHAPA SIMPLES, EXTERNA, COM ÁREA LÍQUIDA MAIOR OU IGUAL A 6 M², COM VÃO. AF_03/2024 | E135: CANT - CANTEIRO DE OBRAS | F135: m² | G135: 188,57 | H135: 0,1508 | I135: 28.43
A136: C | B136: SINAPI | C136: 98441 | D136: =VLOOKUP(C136,'COMPOSIÇÃO SEM DESONERAÇÃO'!$B$11:$E$9696,2,FALSE) -> PAREDE DE MADEIRA COMPENSADA PARA CONSTRUÇÃO TEMPORÁRIA EM CHAPA SIMPLES, EXTERNA, SEM VÃO. AF_03/2024 | E136: CANT - CANTEIRO DE OBRAS | F136: m² | G136: 155,53 | H136: 0,0966 | I136: 15.02
A137: C | B137: SINAPI | C137: 98446 | D137: =VLOOKUP(C137,'COMPOSIÇÃO SEM DESONERAÇÃO'!$B$11:$E$9696,2,FALSE) -> PAREDE DE MADEIRA COMPENSADA PARA CONSTRUÇÃO TEMPORÁRIA EM CHAPA SIMPLES, EXTERNA, COM ÁREA LÍQUIDA MENOR QUE 6 M², COM VÃO. AF_03/2024 | E137: CANT - CANTEIRO DE OBRAS | F137: m² | G137: 242,74 | H137: 0,1176 | I137: 28.54
A138: C | B138: SINAPI | C138: 98441 | D138: =VLOOKUP(C138,'COMPOSIÇÃO SEM DESONERAÇÃO'!$B$11:$F$9696,2,FALSE) -> PAREDE DE MADEIRA COMPENSADA PARA CONSTRUÇÃO TEMPORÁRIA EM CHAPA SIMPLES, EXTERNA, SEM VÃO. AF_03/2024 | E138: CANT - CANTEIRO DE OBRAS | F138: m² | G138: =VLOOKUP(C138,'COMPOSIÇÃO SEM DESONERAÇÃO'!$B$11:$F$9696,4,FALSE) -> 95.84 | H138: 0.3007 | I138: =ROUND(G138*H138,2) -> 28.82
A139: C | B139: SINAPI | C139: 88489 | D139: =VLOOKUP(C139,'COMPOSIÇÃO SEM DESONERAÇÃO'!$B$11:$E$9696,2,FALSE) -> PINTURA LÁTEX ACRÍLICA PREMIUM, APLICAÇÃO MANUAL EM PAREDES, DUAS DEMÃOS. AF_04/2023 | E139: PINT - PINTURAS | F139: m² | G139: 13,35 | H139: 0,4761 | I139: 6.35
A140: C | B140: SINAPI | C140: 101876 | D140: =VLOOKUP(C140,'COMPOSIÇÃO SEM DESONERAÇÃO'!$B$11:$E$9696,2,FALSE) -> QUADRO DE DISTRIBUIÇÃO DE ENERGIA EM PVC, DE EMBUTIR, SEM BARRAMENTO, PARA 6 DISJUNTORES - FORNECIMENTO E INSTALAÇÃO. AF_10/2020 | E140: INEL - INSTALAÇÃO ELÉTRICA/ELETRIFICAÇÃO E ILUMINAÇÃO EXTERNA | F140: UN | G140: 104,05 | H140: 0,0966 | I140: 10.05
A141: C | B141: SINAPI | C141: 94210 | D141: =VLOOKUP(C141,'COMPOSIÇÃO SEM DESONERAÇÃO'!$B$11:$E$9696,2,FALSE) -> TELHAMENTO COM TELHA ONDULADA DE FIBROCIMENTO E = 6 MM, COM RECOBRIMENTO LATERAL DE 1 1/4 DE ONDA PARA TELHADO COM INCLINAÇÃO MÁXIMA DE 10°, COM ATÉ 2 ÁGUAS, INCLUSO IÇAMENTO. AF_07/2019 | E141: COBE - COBERTURA | F141: m² | G141: 64,92 | H141: 1,9256 | I141: 125
A142: C | B142: SINAPI | C142: 92008 | D142: =VLOOKUP(C142,'COMPOSIÇÃO SEM DESONERAÇÃO'!$B$11:$E$9696,2,FALSE) -> TOMADA BAIXA DE EMBUTIR (2 MÓDULOS), 2P+T 10 A, INCLUINDO SUPORTE E PLACA - FORNECIMENTO E INSTALAÇÃO. AF_03/2023 | E142: INEL - INSTALAÇÃO ELÉTRICA/ELETRIFICAÇÃO E ILUMINAÇÃO EXTERNA | F142: UN | G142: 46,29 | H142: 0,2899 | I142: 13.41
A143: C | B143: SINAPI | C143: 92543 | D143: =VLOOKUP(C143,'COMPOSIÇÃO SEM DESONERAÇÃO'!$B$11:$E$9696,2,FALSE) -> TRAMA DE MADEIRA COMPOSTA POR TERÇAS PARA TELHADOS DE ATÉ 2 ÁGUAS PARA TELHA ONDULADA DE FIBROCIMENTO, METÁLICA, PLÁSTICA OU TERMOACÚSTICA, INCLUSO TRANSPORTE VERTICAL. AF_07/2019 | E143: COBE - COBERTURA | F143: m² | G143: 25,56 | H143: 1,9256 | I143: 49.21
A144: I | B144: SINAPI | C144: 10886 | D144: =VLOOKUP(C144,'INSUMO SEM DESONERAÇÃO'!$B$11:$F$4847,2,FALSE) -> EXTINTOR DE INCENDIO PORTATIL COM CARGA DE AGUA PRESSURIZADA DE 10 L, CLASSE A | E144: Material | F144: UN | G144: 236,25 | H144: 0,0966 | I144: 22.82
A145: I | B145: SINAPI | C145: 10891 | D145: =VLOOKUP(C145,'INSUMO SEM DESONERAÇÃO'!$B$11:$F$4847,2,FALSE) -> EXTINTOR DE INCENDIO PORTATIL COM CARGA DE PO QUIMICO SECO (PQS) DE 4 KG, CLASSE BC | E145: Material | F145: UN | G145: 228,46 | H145: 0,0966 | I145: 22.06
A148: Código | D148: 93210 ADAPTADO
A149: Descrição | D149: EXECUÇÃO DE REFEITÓRIO EM CANTEIRO DE OBRA EM CHAPA DE MADEIRA COMPENSADA, NÃO INCLUSO MOBILIÁRIO E EQUIPAMENTOS. AF_02/2016
A150: Data | D150: 2024-04-01
A151: Estado | D151: Pernambuco
A152: Tipo | D152: CANT - CANTEIRO DE OBRAS
A153: Unidade | D153: m²
A154: Valor sem Desoneração | D154: =SUM(I157:I179,I183:I188,I195:I208) -> 589.6644365
A156: Natureza | B156: Fonte | C156: codigo | D156: Descrição | E156: Tipo | F156: Unidade | G156: Valor sem Desoneração | H156: Coeficiente | I156: Valor sem Desoneração
A157: C | B157: SINAPI | C157: 101165 | D157: =VLOOKUP(C157,'[52]SINAPI COMPOSIÇÕES'!$B$11:$F$9696,2,0) -> ALVENARIA DE EMBASAMENTO COM BLOCO ESTRUTURAL DE CONCRETO, DE 14X19X29CM E ARGAMASSA DE ASSENTAMENTO COM PREPARO EM BETONEIRA. AF_05/2020 | E157: FUES - FUNDAÇÕES E ESTRUTURAS | F157: m³ | G157: =VLOOKUP(C157,'[52]SINAPI COMPOSIÇÕES'!$B$11:$F$9696,4,0) -> 997.06 | H157: 0.04 | I157: =G157*H157 -> 39.8824
A158: C | B158: SINAPI | C158: 86934 | D158: =VLOOKUP(C158,'[52]SINAPI COMPOSIÇÕES'!$B$11:$F$9696,2,0) -> BANCADA DE MÁRMORE SINTÉTICO 120 X 60CM, COM CUBA INTEGRADA, INCLUSO SIFÃO TIPO FLEXÍVEL EM PVC, VÁLVULA EM PLÁSTICO CROMADO TIPO AMERICANA E TORNEIRA CROMADA LONGA, DE PAREDE, PADRÃO POPULAR - FORNECIMENTO E INSTALAÇÃO. AF_01/2020 | E158: INHI - INSTALAÇÕES HIDROS SANITÁRIAS | F158: UN | G158: =VLOOKUP(C158,'[52]SINAPI COMPOSIÇÕES'!$B$11:$F$9696,4,0) -> 459.26 | H158: 0.0268 | I158: =G158*H158 -> 12.308168
A159: C | B159: SINAPI | C159: 91924 | D159: =VLOOKUP(C159,'[52]SINAPI COMPOSIÇÕES'!$B$11:$F$9696,2,0) -> CABO DE COBRE FLEXÍVEL ISOLADO, 1,5 MM², ANTI-CHAMA 450/750 V, PARA CIRCUITOS TERMINAIS - FORNECIMENTO E INSTALAÇÃO. AF_03/2023 | E159: INEL - INSTALAÇÃO ELÉTRICA/ELETRIFICAÇÃO E ILUMINAÇÃO EXTERNA | F159: M | G159: =VLOOKUP(C159,'[52]SINAPI COMPOSIÇÕES'!$B$11:$F$9696,4,0) -> 3.11 | H159: 0.8591 | I159: 2.671801
A160: C | B160: SINAPI | C160: 91926 | D160: =VLOOKUP(C160,'[52]SINAPI COMPOSIÇÕES'!$B$11:$F$9696,2,0) -> CABO DE COBRE FLEXÍVEL ISOLADO, 2,5 MM², ANTI-CHAMA 450/750 V, PARA CIRCUITOS TERMINAIS - FORNECIMENTO E INSTALAÇÃO. AF_03/2023 | E160: INEL - INSTALAÇÃO ELÉTRICA/ELETRIFICAÇÃO E ILUMINAÇÃO EXTERNA | F160: M | G160: =VLOOKUP(C160,'[52]SINAPI COMPOSIÇÕES'!$B$11:$F$9696,4,0) -> 4.49 | H160: 2.5503 | I160: 11.450847
A161: C | B161: SINAPI | C161: 98102 | D161: =VLOOKUP(C161,'[52]SINAPI COMPOSIÇÕES'!$B$11:$F$9696,2,0) -> CAIXA DE GORDURA SIMPLES, CIRCULAR, EM CONCRETO PRÉ-MOLDADO, DIÂMETRO INTERNO = 0,4 M, ALTURA INTERNA = 0,4 M. AF_12/2020 | E161: INHI - INSTALAÇÕES HIDROS SANITÁRIAS | F161: UN | G161: =VLOOKUP(C161,'[52]SINAPI COMPOSIÇÕES'!$B$11:$F$9696,4,0) -> 132.83 | H161: 0.0268 | I161: 3.559844
A162: C | B162: SINAPI | C162: 97906 | D162: =VLOOKUP(C162,'[52]SINAPI COMPOSIÇÕES'!$B$11:$F$9696,2,0) -> CAIXA ENTERRADA HIDRÁULICA RETANGULAR, EM ALVENARIA COM BLOCOS DE CONCRETO, DIMENSÕES INTERNAS: 0,6X0,6X0,6 M PARA REDE DE ESGOTO. AF_12/2020 | E162: INHI - INSTALAÇÕES HIDROS SANITÁRIAS | F162: UN | G162: =VLOOKUP(C162,'[52]SINAPI COMPOSIÇÕES'!$B$11:$F$9696,4,0) -> 450.63 | H162: 0.0268 | I162: 12.076884
A163: C | B163: SINAPI | C163: 91937 | D163: =VLOOKUP(C163,'[52]SINAPI COMPOSIÇÕES'!$B$11:$F$9696,2,0) -> CAIXA OCTOGONAL 3" X 3", PVC, INSTALADA EM LAJE - FORNECIMENTO E INSTALAÇÃO. AF_03/2023 | E163: INEL - INSTALAÇÃO ELÉTRICA/ELETRIFICAÇÃO E ILUMINAÇÃO EXTERNA | F163: UN | G163: =VLOOKUP(C163,'[52]SINAPI COMPOSIÇÕES'!$B$11:$F$9696,4,0) -> 18.02 | H163: 0.1611 | I163: 2.903022
A164: C | B164: SINAPI | C164: 88262 | D164: =VLOOKUP(C164,'[52]SINAPI COMPOSIÇÕES'!$B$11:$F$9696,2,0) -> CARPINTEIRO DE FORMAS COM ENCARGOS COMPLEMENTARES | E164: SEDI - SERVIÇOS DIVERSOS | F164: H | G164: =VLOOKUP(C164,'[52]SINAPI COMPOSIÇÕES'!$B$11:$F$9696,4,0) -> 27.92 | H164: 1.1155 | I164: 31.14476
A165: C | B165: SINAPI | C165: 95805 | D165: =VLOOKUP(C165,'[52]SINAPI COMPOSIÇÕES'!$B$11:$F$9696,2,0) -> CONDULETE DE PVC, TIPO B, PARA ELETRODUTO DE PVC SOLDÁVEL DN 25 MM (3/4''), APARENTE - FORNECIMENTO E INSTALAÇÃO. AF_10/2022 | E165: INEL - INSTALAÇÃO ELÉTRICA/ELETRIFICAÇÃO E ILUMINAÇÃO EXTERNA | F165: UN | G165: =VLOOKUP(C165,'[52]SINAPI COMPOSIÇÕES'!$B$11:$F$9696,4,0) -> 28.14 | H165: 0.1879 | I165: 5.287506
A166: C | B166: SINAPI | C166: 95811 | D166: =VLOOKUP(C166,'[52]SINAPI COMPOSIÇÕES'!$B$11:$F$9696,2,0) -> CONDULETE DE PVC, TIPO LB, PARA ELETRODUTO DE PVC SOLDÁVEL DN 25 MM (3/4''), APARENTE - FORNECIMENTO E INSTALAÇÃO. AF_10/2022 | E166: INEL - INSTALAÇÃO ELÉTRICA/ELETRIFICAÇÃO E ILUMINAÇÃO EXTERNA | F166: UN | G166: =VLOOKUP(C166,'[52]SINAPI COMPOSIÇÕES'!$B$11:$F$9696,4,0) -> 24.5 | H166: 0.0268 | I166: 0.6566
A167: C | B167: SINAPI | C167: 91911 | D167: =VLOOKUP(C167,'[52]SINAPI COMPOSIÇÕES'!$B$11:$F$9696,2,0) -> CURVA 90 GRAUS PARA ELETRODUTO, PVC, ROSCÁVEL, DN 20 MM (1/2"), PARA CIRCUITOS TERMINAIS, INSTALADA EM PAREDE - FORNECIMENTO E INSTALAÇÃO. AF_03/2023 | E167: INEL - INSTALAÇÃO ELÉTRICA/ELETRIFICAÇÃO E ILUMINAÇÃO EXTERNA | F167: UN | G167: =VLOOKUP(C167,'[52]SINAPI COMPOSIÇÕES'!$B$11:$F$9696,4,0) -> 18.41 | H167: 0.1074 | I167: 1.977234
A168: C | B168: SINAPI | C168: 101891 | D168: =VLOOKUP(C168,'[52]SINAPI COMPOSIÇÕES'!$B$11:$F$9696,2,0) -> DISJUNTOR MONOPOLAR TIPO NEMA, CORRENTE NOMINAL DE 35 ATÉ 50A - FORNECIMENTO E INSTALAÇÃO. AF_10/2020 | E168: INEL - INSTALAÇÃO ELÉTRICA/ELETRIFICAÇÃO E ILUMINAÇÃO EXTERNA | F168: UN | G168: =VLOOKUP(C168,'[52]SINAPI COMPOSIÇÕES'!$B$11:$F$9696,4,0) -> 34.23 | H168: 0.1074 | I168: 3.676302
A169: C | B169: SINAPI | C169: 91862 | D169: =VLOOKUP(C169,'[52]SINAPI COMPOSIÇÕES'!$B$11:$F$9696,2,0) -> ELETRODUTO RÍGIDO ROSCÁVEL, PVC, DN 20 MM (1/2"), PARA CIRCUITOS TERMINAIS, INSTALADO EM FORRO - FORNECIMENTO E INSTALAÇÃO. AF_03/2023 | E169: INEL - INSTALAÇÃO ELÉTRICA/ELETRIFICAÇÃO E ILUMINAÇÃO EXTERNA | F169: M | G169: =VLOOKUP(C169,'[52]SINAPI COMPOSIÇÕES'!$B$11:$F$9696,4,0) -> 10.3 | H169: 0.3221 | I169: 3.31763
A170: C | B170: SINAPI | C170: 91870 | D170: =VLOOKUP(C170,'[52]SINAPI COMPOSIÇÕES'!$B$11:$F$9696,2,0) -> ELETRODUTO RÍGIDO ROSCÁVEL, PVC, DN 20 MM (1/2"), PARA CIRCUITOS TERMINAIS, INSTALADO EM PAREDE - FORNECIMENTO E INSTALAÇÃO. AF_03/2023 | E170: INEL - INSTALAÇÃO ELÉTRICA/ELETRIFICAÇÃO E ILUMINAÇÃO EXTERNA | F170: M | G170: =VLOOKUP(C170,'[52]SINAPI COMPOSIÇÕES'!$B$11:$F$9696,4,0) -> 13.37 | H170: 0.5369 | I170: 7.178353
A171: C | B171: SINAPI | C171: 93358 | D171: =VLOOKUP(C171,'[52]SINAPI COMPOSIÇÕES'!$B$11:$F$9696,2,0) -> ESCAVAÇÃO MANUAL DE VALA. AF_09/2024 | E171: MOVT - MOVIMENTO DE TERRA | F171: m³ | G171: =VLOOKUP(C171,'[52]SINAPI COMPOSIÇÕES'!$B$11:$F$9696,4,0) -> 90.78 | H171: 0.039 | I171: 3.54042
A172: C | B172: SINAPI | C172: 91170 | D172: =VLOOKUP(C172,'[52]SINAPI COMPOSIÇÕES'!$B$11:$F$9696,2,0) -> FIXAÇÃO DE TUBOS HORIZONTAIS DE PVC ÁGUA, PVC ESGOTO, PVC ÁGUA PLUVIAL, CPVC, PPR, COBRE OU AÇO, DIÂMETROS MENORES OU IGUAIS A 40 MM, COM ABRAÇADEIRA METÁLICA RÍGIDA TIPO U PERFIL 1 1/4", FIXADA EM PERFILADO EM LAJE. AF_09/2023_PS | E172: INHI - INSTALAÇÕES HIDROS SANITÁRIAS | F172: M | G172: =VLOOKUP(C172,'[52]SINAPI COMPOSIÇÕES'!$B$11:$F$9696,4,0) -> 11.27 | H172: 0.3221 | I172: 3.630067
A173: C | B173: SINAPI | C173: 91173 | D173: =VLOOKUP(C173,'[52]SINAPI COMPOSIÇÕES'!$B$11:$F$9696,2,0) -> FIXAÇÃO DE TUBOS VERTICAIS DE PVC ÁGUA, PVC ESGOTO, PVC ÁGUA PLUVIAL, CPVC, PPR, COBRE OU AÇO, DIÂMETROS MENORES OU IGUAIS A 40 MM, COM ABRAÇADEIRA METÁLICA RÍGIDA TIPO U PERFIL 1 1/4", FIXADA EM PERFILADO EM PAREDE. AF_09/2023_PS | E173: INHI - INSTALAÇÕES HIDROS SANITÁRIAS | F173: M | G173: =VLOOKUP(C173,'[52]SINAPI COMPOSIÇÕES'!$B$11:$F$9696,4,0) -> 4.2 | H173: 0.5369 | I173: 2.25498
A174: C | B174: SINAPI | C174: 92023 | D174: =VLOOKUP(C174,'[52]SINAPI COMPOSIÇÕES'!$B$11:$F$9696,2,0) -> INTERRUPTOR SIMPLES (1 MÓDULO) COM 1 TOMADA DE EMBUTIR 2P+T 10 A, INCLUINDO SUPORTE E PLACA - FORNECIMENTO E INSTALAÇÃO. AF_03/2023 | E174: INEL - INSTALAÇÃO ELÉTRICA/ELETRIFICAÇÃO E ILUMINAÇÃO EXTERNA | F174: UN | G174: =VLOOKUP(C174,'[52]SINAPI COMPOSIÇÕES'!$B$11:$F$9696,4,0) -> 51.04 | H174: 0.0268 | I174: 1.367872
A175: C | B175: SINAPI | C175: 89724 | D175: =VLOOKUP(C175,'[52]SINAPI COMPOSIÇÕES'!$B$11:$F$9696,2,0) -> JOELHO 90 GRAUS, PVC, SERIE NORMAL, ESGOTO PREDIAL, DN 40 MM, JUNTA SOLDÁVEL, FORNECIDO E INSTALADO EM RAMAL DE DESCARGA OU RAMAL DE ESGOTO SANITÁRIO. AF_08/2022 | E175: INHI - INSTALAÇÕES HIDROS SANITÁRIAS | F175: UN | G175: =VLOOKUP(C175,'[52]SINAPI COMPOSIÇÕES'!$B$11:$F$9696,4,0) -> 10.11 | H175: 0.0537 | I175: 0.542907
A176: C | B176: SINAPI | C176: 95240 | D176: =VLOOKUP(C176,'[52]SINAPI COMPOSIÇÕES'!$B$11:$F$9696,2,0) -> LASTRO DE CONCRETO MAGRO, APLICADO EM PISOS, LAJES SOBRE SOLO OU RADIERS, ESPESSURA DE 3 CM. AF_01/2024 | E176: FUES - FUNDAÇÕES E ESTRUTURAS | F176: m² | G176: =VLOOKUP(C176,'[52]SINAPI COMPOSIÇÕES'!$B$11:$F$9696,4,0) -> 19.41 | H176: 0.009 | I176: 0.17469
A177: C | B177: SINAPI | C177: 95241 | D177: =VLOOKUP(C177,'[52]SINAPI COMPOSIÇÕES'!$B$11:$F$9696,2,0) -> LASTRO DE CONCRETO MAGRO, APLICADO EM PISOS, LAJES SOBRE SOLO OU RADIERS, ESPESSURA DE 5 CM. AF_01/2024 | E177: FUES - FUNDAÇÕES E ESTRUTURAS | F177: m² | G177: =VLOOKUP(C177,'[52]SINAPI COMPOSIÇÕES'!$B$11:$F$9696,4,0) -> 37.36 | H177: 1.451 | I177: 54.20936
A178: C | B178: SINAPI | C178: 86943 | D178: =VLOOKUP(C178,'[52]SINAPI COMPOSIÇÕES'!$B$11:$F$9696,2,0) -> LAVATÓRIO LOUÇA BRANCA SUSPENSO, 29,5 X 39CM OU EQUIVALENTE, PADRÃO POPULAR, INCLUSO SIFÃO FLEXÍVEL EM PVC, VÁLVULA E ENGATE FLEXÍVEL 30CM EM PLÁSTICO E TORNEIRA CROMADA DE MESA, PADRÃO POPULAR - FORNECIMENTO E INSTALAÇÃO. AF_01/2020 | E178: INHI - INSTALAÇÕES HIDROS SANITÁRIAS | F178: UN | G178: =VLOOKUP(C178,'[52]SINAPI COMPOSIÇÕES'!$B$11:$F$9696,4,0) -> 272.81 | H178: 0.0268 | I178: 7.311308
A179: C | B179: SINAPI | C179: 97586 | D179: LUMINÁRIA TIPO CALHA, DE SOBREPOR, COM 2 LÂMPADAS TUBULARES FLUORESCENTES DE 36 W, COM REATOR DE PARTIDA RÁPIDA - FORNECIMENTO E INSTALAÇÃO. AF_02/2020 ADAPTADA | E179: INEL - INSTALAÇÃO ELÉTRICA/ELETRIFICAÇÃO E ILUMINAÇÃO EXTERNA | F179: UN | G179: =SUM(I180:I182) -> 118.997488 | H179: 0.1611 | I179: 19.17049532
A180: C | B180: SINAPI | C180: 88247 | D180: =VLOOKUP(C180,'[52]SINAPI COMPOSIÇÕES'!$B$11:$F$9696,2,0) -> AUXILIAR DE ELETRICISTA COM ENCARGOS COMPLEMENTARES | E180: SEDI - SERVIÇOS DIVERSOS | F180: H | G180: =VLOOKUP(C180,'[52]SINAPI COMPOSIÇÕES'!$B$11:$F$9696,4,0) -> 24.32 | H180: 0.1727 | I180: 4.200064
A181: C | B181: SINAPI | C181: 88264 | D181: =VLOOKUP(C181,'[52]SINAPI COMPOSIÇÕES'!$B$11:$F$9696,2,0) -> ELETRICISTA COM ENCARGOS COMPLEMENTARES | E181: SEDI - SERVIÇOS DIVERSOS | F181: H | G181: =VLOOKUP(C181,'[52]SINAPI COMPOSIÇÕES'!$B$11:$F$9696,4,0) -> 28.71 | H181: 0.4144 | I181: 11.897424
A182: C | B182: SINAPI | C182: 3780 | D182: =VLOOKUP(C182,'[52]SINAPI INSUMOS'!$B$11:$F$4847,2,0) -> LUMINARIA DE SOBREPOR EM CHAPA DE ACO PARA 1 LAMPADA FLUORESCENTE DE *36* W, ALETADA, COMPLETA (LAMPADA E REATOR INCLUSOS) | E182: Material | F182: UN | G182: 102.9 | H182: 1 | I182: 102.9
A183: C | B183: SINAPI | C183: 98445 | D183: =VLOOKUP(C183,'[52]SINAPI COMPOSIÇÕES'!$B$11:$F$9696,2,0) -> PAREDE DE MADEIRA COMPENSADA PARA CONSTRUÇÃO TEMPORÁRIA EM CHAPA SIMPLES, EXTERNA, COM ÁREA LÍQUIDA MAIOR OU IGUAL A 6 M², COM VÃO. AF_03/2024 | E183: CANT - CANTEIRO DE OBRAS | F183: m² | G183: =VLOOKUP(C183,'[52]SINAPI COMPOSIÇÕES'!$B$11:$F$9696,4,0) -> 113.48 | H183: 0.2264 | I183: 25.691872
A184: C | B184: SINAPI | C184: 98441 | D184: =VLOOKUP(C184,'[52]SINAPI COMPOSIÇÕES'!$B$11:$F$9696,2,0) -> PAREDE DE MADEIRA COMPENSADA PARA CONSTRUÇÃO TEMPORÁRIA EM CHAPA SIMPLES, EXTERNA, SEM VÃO. AF_03/2024 | E184: CANT - CANTEIRO DE OBRAS | F184: m² | G184: =VLOOKUP(C184,'[52]SINAPI COMPOSIÇÕES'!$B$11:$F$9696,4,0) -> 95.84 | H184: 0.1449 | I184: 13.887216
A185: C | B185: SINAPI | C185: 98446 | D185: =VLOOKUP(C185,'[52]SINAPI COMPOSIÇÕES'!$B$11:$F$9696,2,0) -> PAREDE DE MADEIRA COMPENSADA PARA CONSTRUÇÃO TEMPORÁRIA EM CHAPA SIMPLES, EXTERNA, COM ÁREA LÍQUIDA MENOR QUE 6 M², COM VÃO. AF_03/2024 | E185: CANT - CANTEIRO DE OBRAS | F185: m² | G185: =VLOOKUP(C185,'[52]SINAPI COMPOSIÇÕES'!$B$11:$F$9696,4,0) -> 145.58 | H185: 0.1765 | I185: 25.69487
A186: C | B186: SINAPI | C186: 98441 | D186: =VLOOKUP(C186,'[52]SINAPI COMPOSIÇÕES'!$B$11:$F$9696,2,0) -> PAREDE DE MADEIRA COMPENSADA PARA CONSTRUÇÃO TEMPORÁRIA EM CHAPA SIMPLES, EXTERNA, SEM VÃO. AF_03/2024 | E186: CANT - CANTEIRO DE OBRAS | F186: m² | G186: =VLOOKUP(C186,'[52]SINAPI COMPOSIÇÕES'!$B$11:$F$9696,4,0) -> 95.84 | H186: 0.1668 | I186: 15.986112
A187: C | B187: SINAPI | C187: 88489 | D187: =VLOOKUP(C187,'[52]SINAPI COMPOSIÇÕES'!$B$11:$F$9696,2,0) -> PINTURA LÁTEX ACRÍLICA PREMIUM, APLICAÇÃO MANUAL EM PAREDES, DUAS DEMÃOS. AF_04/2023 | E187: PINT - PINTURAS | F187: m² | G187: =VLOOKUP(C187,'[52]SINAPI COMPOSIÇÕES'!$B$11:$F$9696,4,0) -> 14.57 | H187: 1.4293 | I187: 20.824901
A188: C | B188: SINAPI | C188: 89957 | D188: PONTO DE CONSUMO TERMINAL DE ÁGUA FRIA (SUBRAMAL) COM TUBULAÇÃO DE PVC, DN 25 MM, INSTALADO EM RAMAL DE ÁGUA, INCLUSOS RASGO E CHUMBAMENTO EM ALVENARIA. AF_12/2014 ATUALIZADA | E188: INHI - INSTALAÇÕES HIDROS SANITÁRIAS | F188: UN | G188: =SUM(I189:I194) -> 140.3887 | H188: 0.0537 | I188: 7.53887319
A189: C | B189: SINAPI | C189: 90466 | D189: =VLOOKUP(C189,'[52]SINAPI COMPOSIÇÕES'!$B$11:$F$9696,2,0) -> CHUMBAMENTO LINEAR EM ALVENARIA PARA RAMAIS/DISTRIBUIÇÃO DE INSTALAÇÕES HIDRÁULICAS COM DIÂMETROS MENORES OU IGUAIS A 40 MM. AF_09/2023 | E189: INHI - INSTALAÇÕES HIDROS SANITÁRIAS | F189: M | G189: =VLOOKUP(C189,'[52]SINAPI COMPOSIÇÕES'!$B$11:$F$9696,4,0) -> 15.47 | H189: 2.14 | I189: 33.1058
A190: C | B190: SINAPI | C190: 89366 | D190: =VLOOKUP(C190,'[52]SINAPI COMPOSIÇÕES'!$B$11:$F$9696,2,0) -> JOELHO 90 GRAUS COM BUCHA DE LATÃO, PVC, SOLDÁVEL, DN 25MM, X 3/4 INSTALADO EM RAMAL OU SUB-RAMAL DE ÁGUA - FORNECIMENTO E INSTALAÇÃO. AF_06/2022 | E190: INHI - INSTALAÇÕES HIDROS SANITÁRIAS | F190: UN | G190: =VLOOKUP(C190,'[52]SINAPI COMPOSIÇÕES'!$B$11:$F$9696,4,0) -> 16.11 | H190: 1 | I190: 16.11
A191: C | B191: SINAPI | C191: 89362 | D191: =VLOOKUP(C191,'[52]SINAPI COMPOSIÇÕES'!$B$11:$F$9696,2,0) -> JOELHO 90 GRAUS, PVC, SOLDÁVEL, DN 25MM, INSTALADO EM RAMAL OU SUB-RAMAL DE ÁGUA - FORNECIMENTO E INSTALAÇÃO. AF_06/2022 | E191: INHI - INSTALAÇÕES HIDROS SANITÁRIAS | F191: UN | G191: =VLOOKUP(C191,'[52]SINAPI COMPOSIÇÕES'!$B$11:$F$9696,4,0) -> 9.57 | H191: 1.18 | I191: 11.2926
A192: C | B192: SINAPI | C192: 90443 | D192: =VLOOKUP(C192,'[52]SINAPI COMPOSIÇÕES'!$B$11:$F$9696,2,0) -> RASGO LINEAR MANUAL EM ALVENARIA, PARA RAMAIS/ DISTRIBUIÇÃO DE INSTALAÇÕES HIDRÁULICAS, DIÂMETROS MENORES OU IGUAIS A 40 MM. AF_09/2023 | E192: INHI - INSTALAÇÕES HIDROS SANITÁRIAS | F192: M | G192: =VLOOKUP(C192,'[52]SINAPI COMPOSIÇÕES'!$B$11:$F$9696,4,0) -> 8.01 | H192: 2.14 | I192: 17.1414
A193: C | B193: SINAPI | C193: 89395 | D193: =VLOOKUP(C193,'[52]SINAPI COMPOSIÇÕES'!$B$11:$F$9696,2,0) -> TE, PVC, SOLDÁVEL, DN 25MM, INSTALADO EM RAMAL OU SUB-RAMAL DE ÁGUA - FORNECIMENTO E INSTALAÇÃO. AF_06/2022 | E193: INHI - INSTALAÇÕES HIDROS SANITÁRIAS | F193: UN | G193: =VLOOKUP(C193,'[52]SINAPI COMPOSIÇÕES'!$B$11:$F$9696,4,0) -> 13.17 | H193: 0.89 | I193: 11.7213
A194: C | B194: SINAPI | C194: 89356 | D194: =VLOOKUP(C194,'[52]SINAPI COMPOSIÇÕES'!$B$11:$F$9696,2,0) -> TUBO, PVC, SOLDÁVEL, DE 25MM, INSTALADO EM RAMAL OU SUB-RAMAL DE ÁGUA - FORNECIMENTO E INSTALAÇÃO. AF_06/2022 | E194: INHI - INSTALAÇÕES HIDROS SANITÁRIAS | F194: M | G194: =VLOOKUP(C194,'[52]SINAPI COMPOSIÇÕES'!$B$11:$F$9696,4,0) -> 23.84 | H194: 2.14 | I194: 51.0176
A195: C | B195: SINAPI | C195: 90822 | D195: =VLOOKUP(C195,'[52]SINAPI COMPOSIÇÕES'!$B$11:$F$9696,2,0) -> PORTA DE MADEIRA PARA PINTURA, SEMI-OCA (LEVE OU MÉDIA), 80X210CM, ESPESSURA DE 3,5CM, INCLUSO DOBRADIÇAS - FORNECIMENTO E INSTALAÇÃO. AF_12/2019 | E195: ESQV - ESQUADRIAS/FERRAGENS/VIDROS | F195: UN | G195: =VLOOKUP(C195,'[52]SINAPI COMPOSIÇÕES'!$B$11:$F$9696,4,0) -> 326.04 | H195: 0.0268 | I195: 8.737872
A196: C | B196: SINAPI | C196: 101876 | D196: =VLOOKUP(C196,'[52]SINAPI COMPOSIÇÕES'!$B$11:$F$9696,2,0) -> QUADRO DE DISTRIBUIÇÃO DE ENERGIA EM PVC, DE EMBUTIR, SEM BARRAMENTO, PARA 6 DISJUNTORES - FORNECIMENTO E INSTALAÇÃO. AF_10/2020 | E196: INEL - INSTALAÇÃO ELÉTRICA/ELETRIFICAÇÃO E ILUMINAÇÃO EXTERNA | F196: UN | G196: =VLOOKUP(C196,'[52]SINAPI COMPOSIÇÕES'!$B$11:$F$9696,4,0) -> 106.18 | H196: 0.0268 | I196: 2.845624
A197: C | B197: SINAPI | C197: 93382 | D197: =VLOOKUP(C197,'[52]SINAPI COMPOSIÇÕES'!$B$11:$F$9696,2,0) -> REATERRO MANUAL DE VALAS, COM COMPACTADOR DE SOLOS DE PERCUSSÃO. AF_08/2023 | E197: MOVT - MOVIMENTO DE TERRA | F197: m³ | G197: =VLOOKUP(C197,'[52]SINAPI COMPOSIÇÕES'!$B$11:$F$9696,4,0) -> 26.34 | H197: 0.01 | I197: 0.2634
A198: C | B198: SINAPI | C198: 94210 | D198: =VLOOKUP(C198,'[52]SINAPI COMPOSIÇÕES'!$B$11:$F$9696,2,0) -> TELHAMENTO COM TELHA ONDULADA DE FIBROCIMENTO E = 6 MM, COM RECOBRIMENTO LATERAL DE 1 1/4 DE ONDA PARA TELHADO COM INCLINAÇÃO MÁXIMA DE 10°, COM ATÉ 2 ÁGUAS, INCLUSO IÇAMENTO. AF_07/2019 | E198: COBE - COBERTURA | F198: m² | G198: =VLOOKUP(C198,'[52]SINAPI COMPOSIÇÕES'!$B$11:$F$9696,4,0) -> 58.58 | H198: 1.451 | I198: 84.99958
A199: C | B199: SINAPI | C199: 92000 | D199: =VLOOKUP(C199,'[52]SINAPI COMPOSIÇÕES'!$B$11:$F$9696,2,0) -> TOMADA BAIXA DE EMBUTIR (1 MÓDULO), 2P+T 10 A, INCLUINDO SUPORTE E PLACA - FORNECIMENTO E INSTALAÇÃO. AF_03/2023 | E199: INEL - INSTALAÇÃO ELÉTRICA/ELETRIFICAÇÃO E ILUMINAÇÃO EXTERNA | F199: UN | G199: =VLOOKUP(C199,'[52]SINAPI COMPOSIÇÕES'!$B$11:$F$9696,4,0) -> 31.45 | H199: 0.0268 | I199: 0.84286
A200: C | B200: SINAPI | C200: 92008 | D200: =VLOOKUP(C200,'[52]SINAPI COMPOSIÇÕES'!$B$11:$F$9696,2,0) -> TOMADA BAIXA DE EMBUTIR (2 MÓDULOS), 2P+T 10 A, INCLUINDO SUPORTE E PLACA - FORNECIMENTO E INSTALAÇÃO. AF_03/2023 | E200: INEL - INSTALAÇÃO ELÉTRICA/ELETRIFICAÇÃO E ILUMINAÇÃO EXTERNA | F200: UN | G200: =VLOOKUP(C200,'[52]SINAPI COMPOSIÇÕES'!$B$11:$F$9696,4,0) -> 48.51 | H200: 0.1342 | I200: 6.510042
A201: C | B201: SINAPI | C201: 92543 | D201: =VLOOKUP(C201,'[52]SINAPI COMPOSIÇÕES'!$B$11:$F$9696,2,0) -> TRAMA DE MADEIRA COMPOSTA POR TERÇAS PARA TELHADOS DE ATÉ 2 ÁGUAS PARA TELHA ONDULADA DE FIBROCIMENTO, METÁLICA, PLÁSTICA OU TERMOACÚSTICA, INCLUSO TRANSPORTE VERTICAL. AF_07/2019 | E201: COBE - COBERTURA | F201: m² | G201: =VLOOKUP(C201,'[52]SINAPI COMPOSIÇÕES'!$B$11:$F$9696,4,0) -> 25.04 | H201: 1.451 | I201: 36.33304
A202: C | B202: SINAPI | C202: 89714 | D202: =VLOOKUP(C202,'[52]SINAPI COMPOSIÇÕES'!$B$11:$F$9696,2,0) -> TUBO PVC, SERIE NORMAL, ESGOTO PREDIAL, DN 100 MM, FORNECIDO E INSTALADO EM RAMAL DE DESCARGA OU RAMAL DE ESGOTO SANITÁRIO. AF_08/2022 | E202: INHI - INSTALAÇÕES HIDROS SANITÁRIAS | F202: M | G202: =VLOOKUP(C202,'[52]SINAPI COMPOSIÇÕES'!$B$11:$F$9696,4,0) -> 36.78 | H202: 0.1423 | I202: 5.233794
A203: C | B203: SINAPI | C203: 89711 | D203: =VLOOKUP(C203,'[52]SINAPI COMPOSIÇÕES'!$B$11:$F$9696,2,0) -> TUBO PVC, SERIE NORMAL, ESGOTO PREDIAL, DN 40 MM, FORNECIDO E INSTALADO EM RAMAL DE DESCARGA OU RAMAL DE ESGOTO SANITÁRIO. AF_08/2022 | E203: INHI - INSTALAÇÕES HIDROS SANITÁRIAS | F203: M | G203: =VLOOKUP(C203,'[52]SINAPI COMPOSIÇÕES'!$B$11:$F$9696,4,0) -> 21.11 | H203: 0.0886 | I203: 1.870346
A204: C | B204: SINAPI | C204: 10886 | D204: =VLOOKUP(C204,'[52]SINAPI INSUMOS'!$B$11:$F$4847,2,0) -> EXTINTOR DE INCENDIO PORTATIL COM CARGA DE AGUA PRESSURIZADA DE 10 L, CLASSE A | E204: Material | F204: UN | G204: =VLOOKUP(C204,'[52]SINAPI INSUMOS'!$B$11:$F$4847,5,0) -> 245 | H204: 0.0268 | I204: 6.566
A205: C | B205: SINAPI | C205: 10891 | D205: =VLOOKUP(C205,'[52]SINAPI INSUMOS'!$B$11:$F$4847,2,0) -> EXTINTOR DE INCENDIO PORTATIL COM CARGA DE PO QUIMICO SECO (PQS) DE 4 KG, CLASSE BC | E205: Material | F205: UN | G205: =VLOOKUP(C205,'[52]SINAPI INSUMOS'!$B$11:$F$4847,5,0) -> 236.92 | H205: 0.0268 | I205: 6.349456
A206: C | B206: SINAPI | C206: 3080 | D206: =VLOOKUP(C206,'[52]SINAPI INSUMOS'!$B$11:$F$4847,2,0) -> FECHADURA ESPELHO PARA PORTA EXTERNA, EM ACO INOX (MAQUINA, TESTA E CONTRA-TESTA) E EM ZAMAC (MACANETA, LINGUETA E TRINCOS) COM ACABAMENTO CROMADO, MAQUINA DE 40 MM, INCLUINDO CHAVE TIPO CILINDRO | E206: Material | F206: CJ | G206: =VLOOKUP(C206,'[52]SINAPI INSUMOS'!$B$11:$F$4847,5,0) -> 76.7 | H206: 0.0268 | I206: 2.05556
A207: C | B207: SINAPI | C207: 11587 | D207: =VLOOKUP(C207,'[52]SINAPI INSUMOS'!$B$11:$F$4847,2,0) -> FORRO DE PVC LISO, BRANCO, REGUA DE 10 CM, ESPESSURA APROXIMADA DE 8 MM (COM COLOCACAO / SEM ESTRUTURA METALICA) | E207: Material | F207: m² | G207: =VLOOKUP(C207,'[52]SINAPI INSUMOS'!$B$11:$F$4847,5,0) -> 81.72 | H207: 1 | I207: 81.72
A208: C | B208: SINAPI | C208: 37525 | D208: =VLOOKUP(C208,'[52]SINAPI INSUMOS'!$B$11:$F$4847,2,0) -> TELA PLASTICA TECIDA LISTRADA BRANCA E LARANJA, TIPO GUARDA CORPO, EM POLIETILENO MONOFILADO, ROLO 1,20 X 50 M (L X C) | E208: Equipamento | F208: M | G208: =VLOOKUP(C208,'[52]SINAPI INSUMOS'!$B$11:$F$4847,5,0) -> 4.24 | H208: 1.2782 | I208: 5.419568

Sheet BDI serv
A1: Ministério do Desenvolvimento Regional
A2: Companhia de Desenvolvimento dos Vales do São Francisco e do Parnaíba
A4: COMPOSIÇÃO DE BDI - SERVIÇOS - NÃO DESONERADO
A5: OBRA: | B5: =Resumo!B5 -> Execução de Manutenção e Obras Civis nas Barragens de Cacimba Velha, Água Branca, Consolação, Almas e Malhadinha, localizadas no estado De Pernambuco. | D5: BDI (serv.): | E5: =D23 -> 0.2591
A6: LOCAL: | B6: =Resumo!B6 -> BARRAGENS DE PERNAMBUCO | D6: BDI (forn.): | E6: ='BDI forn'!E6 -> 0.136
A7: DATA BASE: | B7: =Resumo!B7 -> 2025-05-01
A8: PRAZO: | B8: =Resumo!B8 -> 330 dias
A9: ITEM | B9: DESCRIÇÃO | C9: SIGLA | D9: % APLICADO | E9: REFERÊNCIA TCU (ACÓRDÃO Nº 2622/2013)
E10: 1º QUARTIL | F10: 2º QUARTIL | G10: 3º QUARTIL
A11: 1 | B11: ADMINISTRAÇÃO CENTRAL | C11: AC | D11: =E11 -> 0.04 | E11: 0.04 | F11: 0.0552 | G11: 0.0785
A12: 2 | B12: IMPOSTOS | C12: T | D12: =SUM(D13:D16) -> 0.0865
A13: 2.1 | B13: ISS (*) | D13: 0.05 | E13: - | F13: - | G13: -
A14: 2.2 | B14: PIS | D14: 0.0065 | E14: - | F14: - | G14: -
A15: 2.3 | B15: Cofins | D15: 0.03 | E15: - | F15: - | G15: -
A16: 2.4 | B16: Contribuição previdênciária sobre a receita bruta (CPRB) | E16: - | F16: - | G16: -
A17: 3 | B17: SEGURO, GARANTIA E RISCO | D17: =SUM(D18:D20) -> 0.0227
A18: 3.1 | B18: Seguro | C18: S | D18: =E18 -> 0.0081 | E18: 0.0081 | F18: 0.0122 | G18: 0.0199
A19: 3.2 | B19: Garantia | C19: G
A20: 3.3 | B20: Risco | C20: R | D20: =E20 -> 0.0146 | E20: 0.0146 | F20: 0.0232 | G20: 0.0316
A21: 4 | B21: DESPESAS FINANCEIRAS | C21: DF | D21: =F21 -> 0.0102 | E21: 0.0094 | F21: 0.0102 | G21: 0.01363
A22: 5 | B22: LUCRO | C22: L | D22: =E22 -> 0.0714 | E22: 0.0714 | F22: 0.084 | G22: 0.1043
B23: BDI ADOTADO: | D23: =ROUND(((((1+D11+D17)*(1+D21)*(1+D22))/(1-D12))-1),4) -> 0.2591
A24: Considerações: O BDI foi calculado através da seguinte fórmula, regulamentada pelo Acórdão Nº 2622/2013 – TCU.
H173: =SUM(H174:H177) -> 0
D177: mec | F177: 2 | G177: 128

Sheet BDI forn
A1: Ministério do Desenvolvimento Regional
A2: Companhia de Desenvolvimento dos Vales do São Francisco e do Parnaíba
A4: COMPOSIÇÃO DE BDI - FORNECIMENTO - NÃO DESONERADO
A5: ='Cacimba Velha'!A5 -> OBRA: | B5: =Resumo!B5 -> Execução de Manutenção e Obras Civis nas Barragens de Cacimba Velha, Água Branca, Consolação, Almas e Malhadinha, localizadas no estado De Pernambuco. | D5: BDI (serv.): | E5: ='BDI serv'!E5 -> 0.2591
A6: ='Cacimba Velha'!A6 -> LOCAL: | B6: =Resumo!B6 -> BARRAGENS DE PERNAMBUCO | D6: BDI (forn.): | E6: =D23 -> 0.136
A7: ='Cacimba Velha'!A7 -> DATA BASE: | B7: =Resumo!B7 -> 2025-05-01
A8: ='Cacimba Velha'!A8 -> PRAZO: | B8: =Resumo!B8 -> 330 dias
A9: ITEM | B9: DESCRIÇÃO | C9: SIGLA | D9: % APLICADO | E9: REFERÊNCIA TCU (ACÓRDÃO Nº 2622/2013)
E10: 1º QUARTIL | F10: 2º QUARTIL | G10: 3º QUARTIL
A11: 1 | B11: ADMINISTRAÇÃO CENTRAL | C11: AC | D11: 0.03 | E11: 0.015 | F11: 0.0345 | G11: 0.0449
A12: 2 | B12: IMPOSTOS | C12: T | D12: =SUM(D13:D16) -> 0.0365
A13: 2.1 | B13: ISS (*) | E13: - | F13: - | G13: -
A14: 2.2 | B14: PIS | D14: 0.0065 | E14: - | F14: - | G14: -
A15: 2.3 | B15: Cofins | D15: 0.03 | E15: - | F15: - | G15: -
A16: 2.4 | B16: Contribuição previdênciária sobre a receita bruta (CPRB) | E16: - | F16: - | G16: -
A17: 3 | B17: SEGURO, GARANTIA E RISCO | D17: =SUM(D18:D20) -> 0.0086
A18: 3.1 | B18: Seguro | C18: S | D18: =E18 -> 0.003 | E18: 0.003 | F18: 0.0048 | G18: 0.0082
A19: 3.2 | B19: Garantia | C19: G
A20: 3.3 | B20: Risco | C20: R | D20: =E20 -> 0.0056 | E20: 0.0056 | F20: 0.0085 | G20: 0.0089
A21: 4 | B21: DESPESAS FINANCEIRAS | C21: DF | D21: =F21 -> 0.0085 | E21: 0.0085 | F21: 0.0085 | G21: 0.0111
A22: 5 | B22: LUCRO | C22: L | D22: 0.045 | E22: 0.035 | F22: 0.0511 | G22: 0.0622
B23: BDI ADOTADO: | D23: =ROUND(((((1+D11+D17)*(1+D21)*(1+D22))/(1-D12))-1),4) -> 0.136
A24: Considerações: O BDI foi calculado através da seguinte fórmula, regulamentada pelo Acórdão Nº 2622/2013 – TCU.
H173: =SUM(H174:H177) -> 0
D177: mec | F177: 2 | G177: 128

Sheet Encargos Sociais
A1: Ministério da Integração e do Desenvolvimento Regional
A2: Companhia de Desenvolvimento dos Vales do São Francisco e do Parnaíba
A4: COMPOSIÇÃO DE ENCARGOS SOCIAIS SOBRE A MÃO DE OBRA
A5: ='Cacimba Velha'!A5 -> OBRA: | B5: =Resumo!B5 -> Execução de Manutenção e Obras Civis nas Barragens de Cacimba Velha, Água Branca, Consolação, Almas e Malhadinha, localizadas no estado De Pernambuco.
A6: ='Cacimba Velha'!A6 -> LOCAL: | B6: =Resumo!B6 -> BARRAGENS DE PERNAMBUCO
A7: ='Cacimba Velha'!A7 -> DATA BASE: | B7: =Resumo!B7 -> 2025-05-01
A8: ='Cacimba Velha'!A8 -> PRAZO: | B8: =Resumo!B8 -> 330 dias
A10: PERNAMBUCO
A11: Encargos Sociais – Pernambuco VIGÊNCIA A PARTIR DE 01/2025
A12: ENCARGOS SOCIAIS SOBRE A MÃO DE OBRA
A13: CÓDIGO | B13: DESCRIÇÃO | C13: COM DESONERAÇÃO | E13: SEM DESONERAÇÃO
C14: HORISTA % | D14: MENSALISTA % | E14: HORISTA % | F14: MENSALISTA %
A15: GRUPO A
A16: A1 | B16: INSS | C16: 0.05 | D16: 0.05 | E16: 0.2 | F16: 0.2
A17: A2 | B17: SESI | C17: 0.015 | D17: 0.015 | E17: 0.015 | F17: 0.015
A18: A3 | B18: SENAI | C18: 0.01 | D18: 0.01 | E18: 0.01 | F18: 0.01
A19: A4 | B19: INCRA | C19: 0.002 | D19: 0.002 | E19: 0.002 | F19: 0.002
A20: A5 | B20: SEBRAE | C20: 0.006 | D20: 0.006 | E20: 0.006 | F20: 0.006
A21: A6 | B21: Salário Educação | C21: 0.025 | D21: 0.025 | E21: 0.025 | F21: 0.025
A22: A7 | B22: Seguro Contra Acidentes de Trabalho | C22: 0.03 | D22: 0.03 | E22: 0.03 | F22: 0.03
A23: A8 | B23: FGTS | C23: 0.08 | D23: 0.08 | E23: 0.08 | F23: 0.08
A24: A9 | B24: SECONCI | C24: 0 | D24: 0 | E24: 0 | F24: 0
A25: A | B25: Total | C25: =SUM(C16:C24) -> 0.218 | D25: =SUM(D16:D24) -> 0.218 | E25: =SUM(E16:E24) -> 0.368 | F25: =SUM(F16:F24) -> 0.368
A26: GRUPO B
A27: B1 | B27: Repouso Semanal Remunerado | C27: 0.1801 | D27: Não incide | E27: 0.1801 | F27: Não incide
A28: B2 | B28: Feriados | C28: 0.0432 | D28: Não incide | E28: 0.0432 | F28: Não incide
A29: B3 | B29: Auxílio - Enfermidade | C29: 0.0086 | D29: 0.0065 | E29: 0.0086 | F29: 0.0065
A30: B4 | B30: 13º Salário | C30: 0.1097 | D30: 0.0833 | E30: 0.1097 | F30: 0.0833
A31: B5 | B31: Licença Paternidade | C31: 0.0007 | D31: 0.0005 | E31: 0.0007 | F31: 0.0005
A32: B6 | B32: Faltas Justificadas | C32: 0.0073 | D32: 0.0056 | E32: 0.0073 | F32: 0.0056
A33: B7 | B33: Dias de Chuvas | C33: 0.0196 | D33: Não incide | E33: 0.0196 | F33: Não incide
A34: B8 | B34: Auxílio Acidente de Trabalho | C34: 0.001 | D34: 0.0007 | E34: 0.001 | F34: 0.0007
A35: B9 | B35: Férias Gozadas | C35: 0.0995 | D35: 0.0756 | E35: 0.0995 | F35: 0.0756
A36: B10 | B36: Salário Maternidade | C36: 0.0003 | D36: 0.0003 | E36: 0.0003 | F36: 0.0003
A37: B | B37: Total | C37: =SUM(C27:C36) -> 0.47 | D37: =SUM(D27:D36) -> 0.1725 | E37: =SUM(E27:E36) -> 0.47 | F37: =SUM(F27:F36) -> 0.1725
A38: GRUPO C
A39: C1 | B39: Aviso Prévio Indenizado | C39: 0.0477 | D39: 0.0363 | E39: 0.0477 | F39: 0.0363
A40: C2 | B40: Aviso Prévio Trabalhado | C40: 0.0011 | D40: 0.0009 | E40: 0.0011 | F40: 0.0009
A41: C3 | B41: Férias Indenizadas | C41: 0.0398 | D41: 0.0303 | E41: 0.0398 | F41: 0.0303
A42: C4 | B42: Depósito Rescisão Sem Justa Causa | C42: 0.0306 | D42: 0.0233 | E42: 0.0306 | F42: 0.0233
A43: C5 | B43: Indenização Adicional | C43: 0.004 | D43: 0.0031 | E43: 0.004 | F43: 0.0031
A44: C | B44: Total | C44: =SUM(C39:C43) -> 0.1232 | D44: =SUM(D39:D43) -> 0.0939 | E44: =SUM(E39:E43) -> 0.1232 | F44: =SUM(F39:F43) -> 0.0939
A45: GRUPO D
A46: D1 | B46: Reincidência de Grupo A sobre Grupo B | C46: 0.097 | D46: 0.0334 | E46: 0.173 | F46: 0.0635
A47: D2 | B47: Reincidência de Grupo A sobre Aviso Prévio Trabalhado e Reincidência do FGTS sobre Aviso Prévio Indenizado | C47: 0.0041 | D47: 0.0031 | E47: 0.0042 | F47: 0.0032
A48: D | B48: Total | C48: =SUM(C46:C47) -> 0.1011 | D48: =SUM(D46:D47) -> 0.0365 | E48: =SUM(E46:E47) -> 0.1772 | F48: =SUM(F46:F47) -> 0.0667
A49: TOTAL(A+B+C+D) | C49: =C25+C37+C44+C48 -> 0.9123 | D49: =D25+D37+D44+D48 -> 0.5209 | E49: =E25+E37+E44+E48 -> 1.1384 | F49: =F25+F37+F44+F48 -> 0.7011
A50: Fonte: Informação Dias de Chuva – INMET

Sheet Cronograma Geral
A1: Ministério da Integração e do Desenvolvimento Regional
A2: Companhia de Desenvolvimento dos Vales do São Francisco e do Parnaíba
A4: CRONOGRAMA FÍSICO-FINANCEIRO NÃO DESONERADO
A5: ='Cacimba Velha'!A5 -> OBRA: | B5: =Resumo!B5 -> Execução de Manutenção e Obras Civis nas Barragens de Cacimba Velha, Água Branca, Consolação, Almas e Malhadinha, localizadas no estado De Pernambuco.
A6: ='Cacimba Velha'!A6 -> LOCAL: | B6: =Resumo!B6 -> BARRAGENS DE PERNAMBUCO
A7: ='Cacimba Velha'!A7 -> DATA BASE: | B7: =Resumo!B7 -> 2025-05-01
A8: ='Cacimba Velha'!A8 -> PRAZO: | B8: =Resumo!B8 -> 330 dias
A9: ITEM | B9: DESCRIÇÃO | C9: TOTAL POR ETAPA | D9: MESES | O9: TOTAL
D10: 1 | E10: 2 | F10: 3 | G10: 4 | H10: 5 | I10: 6 | J10: 7 | K10: 8 | L10: 9 | M10: 10 | N10: 11
A11: 1.1 | B11: =VLOOKUP(A11,Resumo!A$10:I$1005,2) -> Cacimba Velha | C11: =VLOOKUP(A11,Resumo!A$10:I$1005,7) -> 569307.67 | D11: =$C11*D12 -> 277642.9323 | E11: =$C11*E12 -> 148703.1973 | F11: =$C11*F12 -> 142961.5404 | O11: =SUM(D11:N11) -> 569307.67 | P11: R$
C12: =C11/C11 -> 1 | D12: ='Cronograma Cacimba Velha'!D36 -> 0.487685213 | E12: ='Cronograma Cacimba Velha'!E36 -> 0.2612000595 | F12: ='Cronograma Cacimba Velha'!F36 -> 0.2511147275 | O12: 1 | P12: %
A13: 1.2 | B13: =VLOOKUP(A13,Resumo!A$10:I$1005,2) -> Água Branca | C13: =VLOOKUP(A13,Resumo!A$10:I$1005,7) -> 539767.03 | D13: =$C13*D14 -> 243059.4468 | E13: =$C13*E14 -> 179015.3406 | F13: =$C13*F14 -> 117692.2426 | O13: 539767.03 | P13: R$
C14: =C13/C13 -> 1 | D14: ='Cronograma Água Branca'!D34 -> 0.4503043596 | E14: ='Cronograma Água Branca'!E34 -> 0.3316529737 | F14: ='Cronograma Água Branca'!F34 -> 0.2180426666 | O14: 1 | P14: %
A15: 1.3 | B15: =VLOOKUP(A15,Resumo!A$10:I$1005,2) -> Consolação | C15: =VLOOKUP(A15,Resumo!A$10:I$1005,7) -> 766174.63 | G15: =$C15*G16 -> 248976.3365 | H15: =$C15*H16 -> 236510.4462 | I15: =$C15*I16 -> 176960.8846 | J15: =$C15*J16 -> 103726.9627 | O15: 766174.63 | P15: R$
C16: =C15/C15 -> 1 | G16: ='Cronograma Consolação'!D40 -> 0.3249602985 | H16: ='Cronograma Consolação'!E40 -> 0.3086899995 | I16: ='Cronograma Consolação'!F40 -> 0.2309667766 | J16: ='Cronograma Consolação'!G40 -> 0.1353829253 | O16: 1 | P16: %
A17: 1.4 | B17: =VLOOKUP(A17,Resumo!A$10:I$1005,2) -> Almas | C17: =VLOOKUP(A17,Resumo!A$10:I$1005,7) -> 887121.01 | G17: =$C17*G18 -> 428004.0596 | H17: =$C17*H18 -> 179913.5441 | I17: =$C17*I18 -> 220362.555 | J17: =$C17*J18 -> 58840.85133 | O17: =SUM(D17:N17) -> 887121.01 | P17: R$
C18: =C17/C17 -> 1 | G18: ='Cronograma Almas'!D38 -> 0.4824641225 | H18: ='Cronograma Almas'!E38 -> 0.2028060907 | I18: ='Cronograma Almas'!F38 -> 0.2484019119 | J18: ='Cronograma Almas'!G38 -> 0.06632787485 | O18: =SUM(D18:N18) -> 1 | P18: %
A19: 1.5 | B19: =VLOOKUP(A19,Resumo!A$10:I$1005,2) -> Malhadinha | C19: =VLOOKUP(A19,Resumo!A$10:I$1005,7) -> 847572.49 | K19: =$C19*K20 -> 276747.4033 | L19: =$C19*L20 -> 259313.6131 | M19: =$C19*M20 -> 237999.2228 | N19: =$C19*N20 -> 73512.25087 | O19: =SUM(D19:N19) -> 847572.49 | P19: R$
C20: =C19/C19 -> 1 | K20: ='Cronograma Malhadinha'!D36 -> 0.3265176802 | L20: ='Cronograma Malhadinha'!E36 -> 0.3059485957 | M20: ='Cronograma Malhadinha'!F36 -> 0.2808010236 | N20: ='Cronograma Malhadinha'!G36 -> 0.08673270043 | O20: =SUM(D20:N20) -> 1 | P20: %
B21: VALOR TOTAL: | C21: =SUMIF($P$11:$P$20,"R$",C$11:C$20) -> 3609942.83 | D21: 520702.3791 | E21: 327718.5379 | F21: 260653.783 | G21: 676980.3961 | H21: 416423.9902 | I21: 397323.4396 | J21: 162567.814 | K21: 276747.4033 | L21: 259313.6131 | M21: 237999.2228 | N21: 73512.25087 | O21: 3609942.83
B22: VALOR ACUMULADO: | D22: =D21 -> 520702.3791 | E22: =E21+D22 -> 848420.917 | F22: =F21+E22 -> 1109074.7 | G22: 1786055.096 | H22: 2202479.086 | I22: 2599802.526 | J22: 2762370.34 | K22: 3039117.743 | L22: 3298431.356 | M22: 3536430.579 | N22: 3609942.83 | O22: =N22 -> 3609942.83
B23: FÍSICO PARCIAL: | D23: =SUMIF($P$11:$P$20,"R$",D$11:D$20)/$C$21 -> 0.1442411705 | E23: =SUMIF($P$11:$P$20,"R$",E$11:E$20)/$C$21 -> 0.0907821961 | F23: 0.07220440745 | G23: 0.1875321655 | H23: 0.1153547327 | I23: 0.1100636377 | J23: 0.04503334864 | K23: 0.07666254462 | L23: 0.07183316337 | M23: 0.06592880664 | N23: 0.02036382689 | O23: =SUMIF($P$11:$P$20,"R$",O$11:O$20)/$C$21 -> 1
B24: AVANÇO FÍSICO: | D24: =D23 -> 0.1442411705 | E24: =E23+D24 -> 0.2350233666 | F24: =F23+E24 -> 0.307227774 | G24: 0.4947599395 | H24: 0.6101146722 | I24: 0.7201783099 | J24: 0.7652116585 | K24: 0.8418742031 | L24: 0.9137073665 | M24: 0.9796361731 | N24: 1

Sheet Cronograma Almas
A1: Ministério da Integração e do Desenvolvimento Regional
A2: Companhia de Desenvolvimento dos Vales do São Francisco e do Parnaíba
A4: CRONOGRAMA FÍSICO-FINANCEIRO NÃO DESONERADO
A5: =Resumo!A5 -> OBRA: | B5: =Resumo!B5 -> Execução de Manutenção e Obras Civis nas Barragens de Cacimba Velha, Água Branca, Consolação, Almas e Malhadinha, localizadas no estado De Pernambuco.
A6: =Resumo!A6 -> LOCAL: | B6: =Resumo!B6 -> BARRAGENS DE PERNAMBUCO
A7: =Resumo!A7 -> DATA BASE: | B7: =Resumo!B7 -> 2025-05-01
A8: =Resumo!A8 -> PRAZO: | B8: =Almas!B8 -> 120 dias
B9: =Almas!B9 -> Almas
A10: ITEM | B10: DESCRIÇÃO | C10: TOTAL POR ETAPA | D10: MESES | H10: TOTAL
D11: 1 | E11: 2 | F11: 3 | G11: 4
A12: 1 | B12: =VLOOKUP(A12,Almas!A$10:I$1032,4) -> ADMINISTRAÇÃO DA OBRA | C12: =VLOOKUP(A12,Almas!A$10:I$1032,9) -> 140311.08 | D12: =$C12*D13 -> 35077.77 | E12: =$C12*E13 -> 35077.77 | F12: =$C12*F13 -> 35077.77 | G12: =$C12*G13 -> 35077.77 | H12: =SUM(D12:G12) -> 140311.08 | I12: R$
C13: =C12/C12 -> 1 | D13: 0.25 | E13: 0.25 | F13: 0.25 | G13: 0.25 | H13: 1 | I13: %
A14: 2 | B14: =VLOOKUP(A14,Almas!A$10:I$1032,4) -> SERVIÇOS PRELIMINARES | C14: =VLOOKUP(A14,Almas!A$10:I$1032,9) -> 28792.91 | D14: =$C14*D15 -> 28792.91 | H14: 28792.91 | I14: R$
C15: =C14/C14 -> 1 | D15: 1 | H15: 1 | I15: %
A16: 3 | B16: =VLOOKUP(A16,Almas!A$10:I$1032,4) -> CORTE DA VEGETAÇÃO E REMOÇÃO DAS RAIZES | C16: =VLOOKUP(A16,Almas!A$10:I$1032,9) -> 190060.71 | D16: =$C16*D17 -> 190060.71 | H16: 190060.71 | I16: R$
C17: =C16/C16 -> 1 | D17: 1 | H17: 1 | I17: %
A18: 4 | B18: =VLOOKUP(A18,Almas!A$10:I$1032,4) -> RECUPERAÇÃO DO MACIÇO | C18: =VLOOKUP(A18,Almas!A$10:I$1032,9) -> 174072.66 | D18: =$C18*D19 -> 174072.66 | H18: 174072.66 | I18: R$
C19: =C18/C18 -> 1 | D19: 1 | H19: 1 | I19: %
A20: 5 | B20: =VLOOKUP(A20,Almas!A$10:I$1032,4) -> REGULARIZAÇÃO E PAVIMENTAÇÃO DA CRISTA | C20: =VLOOKUP(A20,Almas!A$10:I$1032,9) -> 112533.51 | E20: =$C20*E21 -> 112533.51 | H20: 112533.51 | I20: R$
C21: =C20/C20 -> 1 | E21: 1 | H21: 1 | I21: %
A22: 6 | B22: =VLOOKUP(A22,Almas!A$10:I$1032,4) -> MANUTENÇÃO NO TALUDE DE MONTANTE | C22: =VLOOKUP(A22,Almas!A$10:I$1032,9) -> 20196.18 | E22: =$C22*E23 -> 20196.18 | H22: 20196.18 | I22: R$
C23: =C22/C22 -> 1 | E23: 1 | H23: 1 | I23: %
A24: 7 | B24: =VLOOKUP(A24,Almas!A$10:I$1032,4) -> DRENAGEM SUPERFICIAL DO TALUDE DE JUSANTE | C24: =VLOOKUP(A24,Almas!A$10:I$1032,9) -> 12106.08 | E24: =$C24*E25 -> 12106.08 | H24: 12106.08 | I24: R$
C25: =C24/C24 -> 1 | E25: 1 | H25: 1 | I25: %
A26: 8 | B26: =VLOOKUP(A26,Almas!A$10:I$1032,4) -> PROTEÇÃO SUPERFICIAL DO TALUDE DE JUSANTE | C26: =VLOOKUP(A26,Almas!A$10:I$1032,9) -> 172182.29 | F26: =$C26*F27 -> 172182.29 | H26: =SUM(D26:G26) -> 172182.29 | I26: R$
C27: =C26/C26 -> 1 | F27: 1 | H27: 1 | I27: %
A28: 9 | B28: =VLOOKUP(A28,Almas!A$10:I$1032,4) -> RESTAURAÇÃO DO MURO LATERAL | C28: =VLOOKUP(A28,Almas!A$10:I$1032,9) -> 10818.05 | F28: =$C28*F29 -> 10818.05 | H28: 10818.05 | I28: R$
C29: =C28/C28 -> 1 | F29: 1 | H29: 1 | I29: %
A30: 10 | B30: =VLOOKUP(A30,Almas!A$10:I$1032,4) -> REMOÇÃO DE MATERIAL DEPOSITADO NA OMBREIRA | C30: =VLOOKUP(A30,Almas!A$10:I$1032,9) -> 2284.44 | F30: =$C30*F31 -> 2284.44 | H30: =SUM(D30:G30) -> 2284.44 | I30: R$
C31: =C30/C30 -> 1 | F31: 1 | H31: 1 | I31: %
A32: 11 | B32: =VLOOKUP(A32,Almas!A$10:I$1032,4) -> SERVIÇOS COMPLEMENTARES | C32: =VLOOKUP(A32,Almas!A$10:I$1032,9) -> 5479.28 | G32: =$C32*G33 -> 5479.28 | H32: 5479.28 | I32: R$
C33: =C32/C32 -> 1 | G33: 1 | H33: 1 | I33: %
A34: 12 | B34: =VLOOKUP(A34,Almas!A$10:I$1032,4) -> PROJETO "AS IS" | C34: =VLOOKUP(A34,Almas!A$10:I$1032,9) -> 18283.8 | G34: =$C34*G35 -> 18283.8 | H34: 18283.8 | I34: R$
C35: =C34/C34 -> 1 | G35: 1 | H35: 1 | I35: %
B36: VALOR TOTAL: | C36: =SUMIF($I$12:$I$35,"R$",C$12:C$35) -> 887120.99 | D36: 428004.05 | E36: 179913.54 | F36: 220362.55 | G36: 58840.85 | H36: 887120.99
B37: VALOR ACUMULADO: | D37: =D36 -> 428004.05 | E37: =E36+D37 -> 607917.59 | F37: =F36+E37 -> 828280.14 | G37: =G36+F37 -> 887120.99 | H37: =H36 -> 887120.99
B38: FÍSICO PARCIAL: | D38: =SUMIF($I$12:$I$35,"R$",D$12:D$35)/$C$36 -> 0.4824641225 | E38: =SUMIF($I$12:$I$35,"R$",E$12:E$35)/$C$36 -> 0.2028060907 | F38: 0.2484019119 | G38: 0.06632787485 | H38: =SUMIF($I$12:$I$35,"R$",H$12:H$35)/$C$36 -> 1
B39: AVANÇO FÍSICO: | D39: =D38 -> 0.4824641225 | E39: =E38+D39 -> 0.6852702133 | F39: =F38+E39 -> 0.9336721252 | G39: 1

Sheet Cronograma Cacimba Velha
A1: Ministério da Integração e do Desenvolvimento Regional
A2: Companhia de Desenvolvimento dos Vales do São Francisco e do Parnaíba
A4: CRONOGRAMA FÍSICO-FINANCEIRO NÃO DESONERADO
A5: =Resumo!A5 -> OBRA: | B5: =Resumo!B5 -> Execução de Manutenção e Obras Civis nas Barragens de Cacimba Velha, Água Branca, Consolação, Almas e Malhadinha, localizadas no estado De Pernambuco.
A6: =Resumo!A6 -> LOCAL: | B6: =Resumo!B6 -> BARRAGENS DE PERNAMBUCO
A7: =Resumo!A7 -> DATA BASE: | B7: =Resumo!B7 -> 2025-05-01
A8: =Resumo!A8 -> PRAZO: | B8: ='Cacimba Velha'!B8 -> 90 dias
B9: ='Cacimba Velha'!B9 -> Cacimba Velha
A10: ITEM | B10: DESCRIÇÃO | C10: TOTAL POR ETAPA | D10: MESES | G10: TOTAL
D11: 1 | E11: 2 | F11: 3
A12: 1 | B12: =VLOOKUP(A12,'Cacimba Velha'!A$10:I$1034,4) -> ADMINISTRAÇÃO DA OBRA | C12: =VLOOKUP(A12,'Cacimba Velha'!A$10:I$1034,9) -> 105233.31 | D12: =$C12*D13 -> 34726.9923 | E12: =$C12*E13 -> 34726.9923 | F12: =$C12*F13 -> 35779.3254 | G12: =SUM(D12:F12) -> 105233.31 | H12: R$
C13: =C12/C12 -> 1 | D13: 0.33 | E13: 0.33 | F13: 0.34 | G13: 1 | H13: %
A14: 2 | B14: =VLOOKUP(A14,'Cacimba Velha'!A$10:I$1034,4) -> SERVIÇOS PRELIMINARES | C14: =VLOOKUP(A14,'Cacimba Velha'!A$10:I$1034,9) -> 28792.91 | D14: =$C14*D15 -> 28792.91 | G14: 28792.91 | H14: R$
C15: =C14/C14 -> 1 | D15: 1 | G15: 1 | H15: %
A16: 3 | B16: =VLOOKUP(A16,'Cacimba Velha'!A$10:I$1034,4) -> CORTE DA VEGETAÇÃO E REMOÇÃO DAS RAIZES | C16: =VLOOKUP(A16,'Cacimba Velha'!A$10:I$1034,9) -> 118044.37 | D16: =$C16*D17 -> 118044.37 | G16: 118044.37 | H16: R$
C17: =C16/C16 -> 1 | D17: 1 | G17: 1 | H17: %
A18: 4 | B18: =VLOOKUP(A18,'Cacimba Velha'!A$10:I$1034,4) -> RECUPERAÇÃO DO MACIÇO | C18: =VLOOKUP(A18,'Cacimba Velha'!A$10:I$1034,9) -> 96078.66 | D18: =$C18*D19 -> 96078.66 | G18: 96078.66 | H18: R$
C19: =C18/C18 -> 1 | D19: 1 | G19: 1 | H19: %
A20: 5 | B20: =VLOOKUP(A20,'Cacimba Velha'!A$10:I$1034,4) -> MANUTENÇÃO NO TALUDE DE MONTANTE | C20: =VLOOKUP(A20,'Cacimba Velha'!A$10:I$1034,9) -> 32383.53 | E20: =$C20*E21 -> 32383.53 | G20: =SUM(D20:F20) -> 32383.53 | H20: R$
C21: =C20/C20 -> 1 | E21: 1 | G21: 1 | H21: %
A22: 6 | B22: =VLOOKUP(A22,'Cacimba Velha'!A$10:I$1034,4) -> DRENAGEM SUPERFICIAL DO TALUDE DE JUSANTE | C22: =VLOOKUP(A22,'Cacimba Velha'!A$10:I$1034,9) -> 13807.64 | E22: =$C22*E23 -> 13807.64 | G22: 13807.64 | H22: R$
C23: =C22/C22 -> 1 | E23: 1 | G23: 1 | H23: %
A24: 7 | B24: =VLOOKUP(A24,'Cacimba Velha'!A$10:I$1034,4) -> PROTEÇÃO SUPERFICIAL DO TALUDE DE JUSANTE | C24: =VLOOKUP(A24,'Cacimba Velha'!A$10:I$1034,9) -> 135570.07 | E24: =$C24*E25 -> 67785.035 | F24: =$C24*F25 -> 67785.035 | G24: 135570.07 | H24: R$
C25: =C24/C24 -> 1 | E25: 0.5 | F25: 0.5 | G25: 1 | H25: %
A26: 8 | B26: =VLOOKUP(A26,'Cacimba Velha'!A$10:I$1034,4) -> RESTAURAÇÃO DO MURO LATERAL | C26: =VLOOKUP(A26,'Cacimba Velha'!A$10:I$1034,9) -> 17166 | F26: =$C26*F27 -> 17166 | G26: 17166 | H26: R$
C27: =C26/C26 -> 1 | F27: 1 | G27: 1 | H27: %
A28: 9 | B28: =VLOOKUP(A28,'Cacimba Velha'!A$10:I$1034,4) -> CONTENÇÃO DO PROCESSO EROSIVO NO CANAL DE RESTITUIÇÃO | C28: =VLOOKUP(A28,'Cacimba Velha'!A$10:I$1034,9) -> 2403.9 | F28: =$C28*F29 -> 2403.9 | G28: 2403.9 | H28: R$
C29: =C28/C28 -> 1 | F29: 1 | G29: 1 | H29: %
A30: 10 | B30: =VLOOKUP(A30,'Cacimba Velha'!A$10:I$1034,4) -> SERVIÇOS COMPLEMENTARES | C30: =VLOOKUP(A30,'Cacimba Velha'!A$10:I$1034,9) -> 4429 | F30: =$C30*F31 -> 4429 | G30: 4429 | H30: R$
C31: =C30/C30 -> 1 | F31: 1 | G31: 1 | H31: %
A32: 11 | B32: =VLOOKUP(A32,'Cacimba Velha'!A$10:I$1034,4) -> PROJETO "AS IS" | C32: =VLOOKUP(A32,'Cacimba Velha'!A$10:I$1034,9) -> 15398.28 | F32: =$C32*F33 -> 15398.28 | G32: 15398.28 | H32: R$
C33: =C32/C32 -> 1 | F33: 1 | G33: 1 | H33: %
B34: VALOR TOTAL: | C34: =SUMIF($H$12:$H$33,"R$",C$12:C$33) -> 569307.67 | D34: =SUMIF($H$12:$H$33,"R$",D$12:D$33) -> 277642.9323 | E34: =SUMIF($H$12:$H$33,"R$",E$12:E$33) -> 148703.1973 | F34: =SUMIF($H$12:$H$33,"R$",F$12:F$33) -> 142961.5404 | G34: =SUMIF($H$12:$H$33,"R$",G$12:G$33) -> 569307.67
B35: VALOR ACUMULADO: | D35: =D34 -> 277642.9323 | E35: =E34+D35 -> 426346.1296 | F35: =F34+E35 -> 569307.67 | G35: =F35 -> 569307.67
B36: FÍSICO PARCIAL: | D36: =SUMIF($H$12:$H$33,"R$",D$12:D$33)/$C$34 -> 0.487685213 | E36: =SUMIF($H$12:$H$33,"R$",E$12:E$33)/$C$34 -> 0.2612000595 | F36: =SUMIF($H$12:$H$33,"R$",F$12:F$33)/$C$34 -> 0.2511147275 | G36: =G34/$C$34 -> 1
B37: AVANÇO FÍSICO: | D37: =D36 -> 0.487685213 | E37: =E36+D37 -> 0.7488852725 | F37: =F36+E37 -> 1

Sheet Cronograma Água Branca
A1: Ministério da Integração e do Desenvolvimento Regional
A2: Companhia de Desenvolvimento dos Vales do São Francisco e do Parnaíba
A4: CRONOGRAMA FÍSICO-FINANCEIRO NÃO DESONERADO
A5: =Resumo!A5 -> OBRA: | B5: =Resumo!B5 -> Execução de Manutenção e Obras Civis nas Barragens de Cacimba Velha, Água Branca, Consolação, Almas e Malhadinha, localizadas no estado De Pernambuco.
A6: =Resumo!A6 -> LOCAL: | B6: =Resumo!B6 -> BARRAGENS DE PERNAMBUCO
A7: =Resumo!A7 -> DATA BASE: | B7: =Resumo!B7 -> 2025-05-01
A8: =Resumo!A8 -> PRAZO: | B8: ='Água Branca'!B8 -> 90 dias
B9: ='Água Branca'!B9 -> Água Branca
A10: ITEM | B10: DESCRIÇÃO | C10: TOTAL POR ETAPA | D10: MESES | G10: TOTAL
D11: 1 | E11: 2 | F11: 3
A12: 1 | B12: =VLOOKUP(A12,'Água Branca'!A$10:I$1034,4) -> ADMINISTRAÇÃO DA OBRA | C12: =VLOOKUP(A12,'Água Branca'!A$10:I$1034,9) -> 105233.31 | D12: =$C12*D13 -> 34726.9923 | E12: =$C12*E13 -> 34726.9923 | F12: =$C12*F13 -> 35779.3254 | G12: =SUM(D12:F12) -> 105233.31 | H12: R$
C13: =C12/C12 -> 1 | D13: 0.33 | E13: 0.33 | F13: 0.34 | G13: 1 | H13: %
A14: 2 | B14: =VLOOKUP(A14,'Água Branca'!A$10:I$1034,4) -> SERVIÇOS PRELIMINARES | C14: =VLOOKUP(A14,'Água Branca'!A$10:I$1034,9) -> 28792.91 | D14: =$C14*D15 -> 28792.91 | G14: 28792.91 | H14: R$
C15: =C14/C14 -> 1 | D15: 1 | G15: 1 | H15: %
A16: 3 | B16: =VLOOKUP(A16,'Água Branca'!A$10:I$1034,4) -> CORTE DA VEGETAÇÃO E REMOÇÃO DAS RAIZES | C16: =VLOOKUP(A16,'Água Branca'!A$10:I$1034,9) -> 149350.42 | D16: =$C16*D17 -> 149350.42 | G16: 149350.42 | H16: R$
C17: =C16/C16 -> 1 | D17: 1 | G17: 1 | H17: %
A18: 4 | B18: =VLOOKUP(A18,'Água Branca'!A$10:I$1034,4) -> RECUPERAÇÃO DO MACIÇO | C18: =VLOOKUP(A18,'Água Branca'!A$10:I$1034,9) -> 30189.12 | D18: =$C18*D19 -> 30189.12 | G18: 30189.12 | H18: R$
C19: =C18/C18 -> 1 | D19: 1 | G19: 1 | H19: %
A20: 5 | B20: =VLOOKUP(A20,'Água Branca'!A$10:I$1034,4) -> REGULARIZAÇÃO E PAVIMENTAÇÃO DA CRISTA | C20: =VLOOKUP(A20,'Água Branca'!A$10:I$1034,9) -> 75241.73 | E20: =$C20*E21 -> 75241.73 | G20: 75241.73 | H20: R$
C21: =C20/C20 -> 1 | E21: 1 | G21: 1 | H21: %
A22: 6 | B22: =VLOOKUP(A22,'Água Branca'!A$10:I$1034,4) -> DRENAGEM SUPERFICIAL DO TALUDE DE JUSANTE | C22: =VLOOKUP(A22,'Água Branca'!A$10:I$1034,9) -> 14281.2 | E22: =$C22*E23 -> 14281.2 | G22: =SUM(D22:F22) -> 14281.2 | H22: R$
C23: =C22/C22 -> 1 | E23: 1 | G23: 1 | H23: %
A24: 7 | B24: =VLOOKUP(A24,'Água Branca'!A$10:I$1034,4) -> PROTEÇÃO SUPERFICIAL DO TALUDE DE JUSANTE | C24: =VLOOKUP(A24,'Água Branca'!A$10:I$1034,9) -> 109530.83 | E24: =$C24*E25 -> 54765.415 | F24: =$C24*F25 -> 54765.415 | G24: 109530.83 | H24: R$
C25: =C24/C24 -> 1 | E25: 0.5 | F25: 0.5 | G25: 1 | H25: %
A26: 8 | B26: =VLOOKUP(A26,'Água Branca'!A$10:I$1034,4) -> RESTAURAÇÃO DO MURO LATERAL | C26: =VLOOKUP(A26,'Água Branca'!A$10:I$1034,9) -> 3774.26 | F26: =$C26*F27 -> 3774.26 | G26: 3774.26 | H26: R$
C27: =C26/C26 -> 1 | F27: 1 | G27: 1 | H27: %
A28: 9 | B28: =VLOOKUP(A28,'Água Branca'!A$10:I$1034,4) -> SERVIÇOS COMPLEMENTARES | C28: =VLOOKUP(A28,'Água Branca'!A$10:I$1034,9) -> 6529.56 | F28: =$C28*F29 -> 6529.56 | G28: 6529.56 | H28: R$
C29: =C28/C28 -> 1 | F29: 1 | G29: 1 | H29: %
A30: 10 | B30: =VLOOKUP(A30,'Água Branca'!A$10:I$1034,4) -> PROJETO "AS IS" | C30: =VLOOKUP(A30,'Água Branca'!A$10:I$1034,9) -> 16843.68 | F30: =$C30*F31 -> 16843.68 | G30: 16843.68 | H30: R$
C31: =C30/C30 -> 1 | F31: 1 | G31: 1 | H31: %
B32: VALOR TOTAL: | C32: =SUMIF($H$12:$H$31,"R$",C$12:C$31) -> 539767.02 | D32: =SUMIF($H$12:$H$31,"R$",D$12:D$31) -> 243059.4423 | E32: =SUMIF($H$12:$H$31,"R$",E$12:E$31) -> 179015.3373 | F32: =SUMIF($H$12:$H$31,"R$",F$12:F$31) -> 117692.2404 | G32: =SUMIF($H$12:$H$31,"R$",G$12:G$31) -> 539767.02
B33: VALOR ACUMULADO: | D33: =D32 -> 243059.4423 | E33: =E32+D33 -> 422074.7796 | F33: =F32+E33 -> 539767.02 | G33: =F33 -> 539767.02
B34: FÍSICO PARCIAL: | D34: =SUMIF($H$12:$H$31,"R$",D$12:D$31)/$C$32 -> 0.4503043596 | E34: =SUMIF($H$12:$H$31,"R$",E$12:E$31)/$C$32 -> 0.3316529737 | F34: =SUMIF($H$12:$H$31,"R$",F$12:F$31)/$C$32 -> 0.2180426666 | G34: =G32/$C$32 -> 1
B35: AVANÇO FÍSICO: | D35: =D34 -> 0.4503043596 | E35: =E34+D35 -> 0.7819573334 | F35: =F34+E35 -> 1

Sheet Cronograma Consolação
A1: Ministério da Integração e do Desenvolvimento Regional
A2: Companhia de Desenvolvimento dos Vales do São Francisco e do Parnaíba
A4: CRONOGRAMA FÍSICO-FINANCEIRO NÃO DESONERADO
A5: =Resumo!A5 -> OBRA: | B5: =Resumo!B5 -> Execução de Manutenção e Obras Civis nas Barragens de Cacimba Velha, Água Branca, Consolação, Almas e Malhadinha, localizadas no estado De Pernambuco.
A6: =Resumo!A6 -> LOCAL: | B6: =Resumo!B6 -> BARRAGENS DE PERNAMBUCO
A7: =Resumo!A7 -> DATA BASE: | B7: =Resumo!B7 -> 2025-05-01
A8: =Resumo!A8 -> PRAZO: | B8: =Consolação!B8 -> 120 dias
B9: =Consolação!B9 -> Consolação
A10: ITEM | B10: DESCRIÇÃO | C10: TOTAL POR ETAPA | D10: MESES | H10: TOTAL
D11: 1 | E11: 2 | F11: 3 | G11: 4
A12: 1 | B12: =VLOOKUP(A12,Consolação!A$10:I$1032,4) -> ADMINISTRAÇÃO DA OBRA | C12: =VLOOKUP(A12,Consolação!A$10:I$1032,9) -> 140311.08 | D12: =$C12*D13 -> 35077.77 | E12: =$C12*E13 -> 35077.77 | F12: =$C12*F13 -> 35077.77 | G12: =$C12*G13 -> 35077.77 | H12: =SUM(D12:G12) -> 140311.08 | I12: R$
C13: =C12/C12 -> 1 | D13: 0.25 | E13: 0.25 | F13: 0.25 | G13: 0.25 | H13: 1 | I13: %
A14: 2 | B14: =VLOOKUP(A14,Consolação!A$10:I$1032,4) -> SERVIÇOS PRELIMINARES | C14: =VLOOKUP(A14,Consolação!A$10:I$1032,9) -> 28792.91 | D14: =$C14*D15 -> 28792.91 | H14: 28792.91 | I14: R$
C15: =C14/C14 -> 1 | D15: 1 | H15: 1 | I15: %
A16: 3 | B16: =VLOOKUP(A16,Consolação!A$10:I$1032,4) -> CORTE DA VEGETAÇÃO E REMOÇÃO DAS RAIZES | C16: =VLOOKUP(A16,Consolação!A$10:I$1032,9) -> 112790.49 | D16: =$C16*D17 -> 112790.49 | H16: 112790.49 | I16: R$
C17: =C16/C16 -> 1 | D17: 1 | H17: 1 | I17: %
A18: 4 | B18: =VLOOKUP(A18,Consolação!A$10:I$1032,4) -> RECUPERAÇÃO DO MACIÇO | C18: =VLOOKUP(A18,Consolação!A$10:I$1032,9) -> 72315.16 | D18: =$C18*D19 -> 72315.16 | H18: 72315.16 | I18: R$
C19: =C18/C18 -> 1 | D19: 1 | H19: 1 | I19: %
A20: 5 | B20: =VLOOKUP(A20,Consolação!A$10:I$1032,4) -> REGULARIZAÇÃO E PAVIMENTAÇÃO DA CRISTA | C20: =VLOOKUP(A20,Consolação!A$10:I$1032,9) -> 166611.67 | E20: =$C20*E21 -> 166611.67 | H20: 166611.67 | I20: R$
C21: =C20/C20 -> 1 | E21: 1 | H21: 1 | I21: %
A22: 6 | B22: =VLOOKUP(A22,Consolação!A$10:I$1032,4) -> MANUTENÇÃO NO TALUDE DE MONTANTE | C22: =VLOOKUP(A22,Consolação!A$10:I$1032,9) -> 34821 | E22: =$C22*E23 -> 34821 | H22: 34821 | I22: R$
C23: =C22/C22 -> 1 | E23: 1 | H23: 1 | I23: %
A24: 7 | B24: =VLOOKUP(A24,Consolação!A$10:I$1032,4) -> DRENAGEM SUPERFICIAL DO TALUDE DE JUSANTE | C24: =VLOOKUP(A24,Consolação!A$10:I$1032,9) -> 17796.6 | F24: =$C24*F25 -> 17796.6 | H24: =SUM(D24:G24) -> 17796.6 | I24: R$
C25: =C24/C24 -> 1 | F25: 1 | H25: 1 | I25: %
A26: 8 | B26: =VLOOKUP(A26,Consolação!A$10:I$1032,4) -> PROTEÇÃO SUPERFICIAL DO TALUDE DE JUSANTE | C26: =VLOOKUP(A26,Consolação!A$10:I$1032,9) -> 90831.51 | F26: =$C26*F27 -> 90831.51 | H26: 90831.51 | I26: R$
C27: =C26/C26 -> 1 | F27: 1 | H27: 1 | I27: %
A28: 9 | B28: =VLOOKUP(A28,Consolação!A$10:I$1032,4) -> RESTAURAÇÃO DA SOLEIRA DO VERTEDOURO | C28: =VLOOKUP(A28,Consolação!A$10:I$1032,9) -> 33255 | F28: =$C28*F29 -> 33255 | H28: 33255 | I28: R$
C29: =C28/C28 -> 1 | F29: 1 | H29: 1 | I29: %
A30: 10 | B30: =VLOOKUP(A30,Consolação!A$10:I$1032,4) -> RESTAURAÇÃO DO MURO LATERAL | C30: =VLOOKUP(A30,Consolação!A$10:I$1032,9) -> 47117.68 | G30: =$C30*G31 -> 47117.68 | H30: =SUM(D30:G30) -> 47117.68 | I30: R$
C31: =C30/C30 -> 1 | G31: 1 | H31: 1 | I31: %
A32: 11 | B32: =VLOOKUP(A32,Consolação!A$10:I$1032,4) -> CONTENÇÃO DO PROCESSO EROSIVO NO CANAL DE RESTITUIÇÃO | C32: =VLOOKUP(A32,Consolação!A$10:I$1032,9) -> 2056.67 | G32: =$C32*G33 -> 2056.67 | H32: 2056.67 | I32: R$
C33: =C32/C32 -> 1 | G33: 1 | H33: 1 | I33: %
A34: 12 | B34: =VLOOKUP(A34,Consolação!A$10:I$1032,4) -> SERVIÇOS COMPLEMENTARES | C34: =VLOOKUP(A34,Consolação!A$10:I$1032,9) -> 4429 | G34: =$C34*G35 -> 4429 | H34: 4429 | I34: R$
C35: =C34/C34 -> 1 | G35: 1 | H35: 1 | I35: %
A36: 13 | B36: =VLOOKUP(A36,Consolação!A$10:I$1032,4) -> PROJETO "AS IS" | C36: =VLOOKUP(A36,Consolação!A$10:I$1032,9) -> 15045.84 | G36: =$C36*G37 -> 15045.84 | H36: 15045.84 | I36: R$
C37: =C36/C36 -> 1 | G37: 1 | H37: 1 | I37: %
B38: VALOR TOTAL: | C38: =SUMIF($I$12:$I$37,"R$",C$12:C$37) -> 766174.61 | D38: 248976.33 | E38: 236510.44 | F38: 176960.88 | G38: 103726.96 | H38: 766174.61
B39: VALOR ACUMULADO: | D39: =D38 -> 248976.33 | E39: =E38+D39 -> 485486.77 | F39: =F38+E39 -> 662447.65 | G39: 766174.61 | H39: =G39 -> 766174.61
B40: FÍSICO PARCIAL: | D40: =SUMIF($I$12:$I$37,"R$",D$12:D$37)/$C$38 -> 0.3249602985 | E40: =SUMIF($I$12:$I$37,"R$",E$12:E$37)/$C$38 -> 0.3086899995 | F40: 0.2309667766 | G40: =SUMIF($I$12:$I$37,"R$",G$12:G$37)/$C$38 -> 0.1353829253 | H40: =SUMIF($I$12:$I$37,"R$",H$12:H$37)/$C$38 -> 1
B41: AVANÇO FÍSICO: | D41: =D40 -> 0.3249602985 | E41: =E40+D41 -> 0.6336502981 | F41: =F40+E41 -> 0.8646170747 | G41: =G40+F41 -> 1

Sheet Cronograma Malhadinha
A1: Ministério da Integração e do Desenvolvimento Regional
A2: Companhia de Desenvolvimento dos Vales do São Francisco e do Parnaíba
A4: CRONOGRAMA FÍSICO-FINANCEIRO NÃO DESONERADO
A5: =Resumo!A5 -> OBRA: | B5: =Resumo!B5 -> Execução de Manutenção e Obras Civis nas Barragens de Cacimba Velha, Água Branca, Consolação, Almas e Malhadinha, localizadas no estado De Pernambuco.
A6: =Resumo!A6 -> LOCAL: | B6: =Resumo!B6 -> BARRAGENS DE PERNAMBUCO
A7: =Resumo!A7 -> DATA BASE: | B7: =Resumo!B7 -> 2025-05-01
A8: =Resumo!A8 -> PRAZO: | B8: =Malhadinha!B8 -> 120 dias
B9: =Malhadinha!B9 -> Malhadinha
A10: ITEM | B10: DESCRIÇÃO | C10: TOTAL POR ETAPA | D10: MESES | H10: TOTAL
D11: 1 | E11: 2 | F11: 3 | G11: 4
A12: 1 | B12: =VLOOKUP(A12,Malhadinha!A$10:I$1034,4) -> ADMINISTRAÇÃO DA OBRA | C12: =VLOOKUP(A12,Malhadinha!A$10:I$1034,9) -> 140311.08 | D12: =$C12*D13 -> 35077.77 | E12: =$C12*E13 -> 35077.77 | F12: =$C12*F13 -> 35077.77 | G12: =$C12*G13 -> 35077.77 | H12: =SUM(D12:G12) -> 140311.08 | I12: R$
C13: =C12/C12 -> 1 | D13: 0.25 | E13: 0.25 | F13: 0.25 | G13: 0.25 | H13: 1 | I13: %
A14: 2 | B14: =VLOOKUP(A14,Malhadinha!A$10:I$1034,4) -> SERVIÇOS PRELIMINARES | C14: =VLOOKUP(A14,Malhadinha!A$10:I$1034,9) -> 28792.91 | D14: =$C14*D15 -> 28792.91 | H14: 28792.91 | I14: R$
C15: =C14/C14 -> 1 | D15: 1 | H15: 1 | I15: %
A16: 3 | B16: =VLOOKUP(A16,Malhadinha!A$10:I$1034,4) -> CORTE DA VEGETAÇÃO E REMOÇÃO DAS RAIZES | C16: =VLOOKUP(A16,Malhadinha!A$10:I$1034,9) -> 126268.76 | D16: =$C16*D17 -> 126268.76 | H16: 126268.76 | I16: R$
C17: =C16/C16 -> 1 | D17: 1 | H17: 1 | I17: %
A18: 4 | B18: =VLOOKUP(A18,Malhadinha!A$10:I$1034,4) -> RECUPERAÇÃO DO MACIÇO | C18: =VLOOKUP(A18,Malhadinha!A$10:I$1034,9) -> 86607.96 | D18: =$C18*D19 -> 86607.96 | H18: 86607.96 | I18: R$
C19: =C18/C18 -> 1 | D19: 1 | H19: 1 | I19: %
A20: 5 | B20: =VLOOKUP(A20,Malhadinha!A$10:I$1034,4) -> REGULARIZAÇÃO E PAVIMENTAÇÃO DA CRISTA | C20: =VLOOKUP(A20,Malhadinha!A$10:I$1034,9) -> 139969.02 | E20: =$C20*E21 -> 139969.02 | H20: 139969.02 | I20: R$
C21: =C20/C20 -> 1 | E21: 1 | H21: 1 | I21: %
A22: 6 | B22: =VLOOKUP(A22,Malhadinha!A$10:I$1034,4) -> MANUTENÇÃO NO TALUDE DE MONTANTE | C22: =VLOOKUP(A22,Malhadinha!A$10:I$1034,9) -> 84266.82 | E22: =$C22*E23 -> 84266.82 | H22: 84266.82 | I22: R$
C23: =C22/C22 -> 1 | E23: 1 | H23: 1 | I23: %
A24: 7 | B24: =VLOOKUP(A24,Malhadinha!A$10:I$1034,4) -> DRENAGEM SUPERFICIAL DO TALUDE DE JUSANTE | C24: =VLOOKUP(A24,Malhadinha!A$10:I$1034,9) -> 10292.24 | F24: =$C24*F25 -> 10292.24 | H24: 10292.24 | I24: R$
C25: =C24/C24 -> 1 | F25: 1 | H25: 1 | I25: %
A26: 8 | B26: =VLOOKUP(A26,Malhadinha!A$10:I$1034,4) -> PROTEÇÃO SUPERFICIAL DO TALUDE DE JUSANTE | C26: =VLOOKUP(A26,Malhadinha!A$10:I$1034,9) -> 192629.21 | F26: =$C26*F27 -> 192629.21 | H26: =SUM(D26:G26) -> 192629.21 | I26: R$
C27: =C26/C26 -> 1 | F27: 1 | H27: 1 | I27: %
A28: 9 | B28: =VLOOKUP(A28,Malhadinha!A$10:I$1034,4) -> RESTAURAÇÃO DA SOLEIRA DO VERTEDOURO | C28: =VLOOKUP(A28,Malhadinha!A$10:I$1034,9) -> 14026.36 | G28: =$C28*G29 -> 14026.36 | H28: 14026.36 | I28: R$
C29: =C28/C28 -> 1 | G29: 1 | H29: 1 | I29: %
A30: 10 | B30: =VLOOKUP(A30,Malhadinha!A$10:I$1034,4) -> SERVIÇOS COMPLEMENTARES | C30: =VLOOKUP(A30,Malhadinha!A$10:I$1034,9) -> 8630.12 | G30: =$C30*G31 -> 8630.12 | H30: 8630.12 | I30: R$
C31: =C30/C30 -> 1 | G31: 1 | H31: 1 | I31: %
A32: 11 | B32: =VLOOKUP(A32,Malhadinha!A$10:I$1034,4) -> PROJETO "AS IS" | C32: =VLOOKUP(A32,Malhadinha!A$10:I$1034,9) -> 15778 | G32: =$C32*G33 -> 15778 | H32: 15778 | I32: R$
C33: =C32/C32 -> 1 | G33: 1 | H33: 1 | I33: %
B34: VALOR TOTAL: | C34: =SUMIF($I$12:$I$33,"R$",C$12:C$33) -> 847572.48 | D34: 276747.4 | E34: 259313.61 | F34: 237999.22 | G34: 73512.25 | H34: 847572.48
B35: VALOR ACUMULADO: | D35: =D34 -> 276747.4 | E35: =E34+D35 -> 536061.01 | F35: =F34+E35 -> 774060.23 | G35: =G34+F35 -> 847572.48 | H35: =H34 -> 847572.48
B36: FÍSICO PARCIAL: | D36: =SUMIF($I$12:$I$33,"R$",D$12:D$33)/$C$34 -> 0.3265176802 | E36: =SUMIF($I$12:$I$33,"R$",E$12:E$33)/$C$34 -> 0.3059485957 | F36: =SUMIF($I$12:$I$33,"R$",F$12:F$33)/$C$34 -> 0.2808010236 | G36: =SUMIF($I$12:$I$33,"R$",G$12:G$33)/$C$34 -> 0.08673270043 | H36: =H34/$C$34 -> 1
B37: AVANÇO FÍSICO: | D37: =D36 -> 0.3265176802 | E37: =E36+D37 -> 0.6324662759 | F37: =F36+E37 -> 0.9132672996 | G37: 1

Sheet CPU-VEICULO_PickUp1
A5: Composição de Preços de Locação de Veículo tipo pick-up
B6: Data de atualização: | C6: 2025-01-22 | E6: CV | F6: Média | G6: Mediana | K6: CV | L6: Média | M6: Mediana | V6: CV | W6: Média | X6: Mediana
A7: CODEVASF | E7: =_xlfn.STDEV.S(E10:H10)/AVERAGE(E10:H10) -> 0.09461804749 | F7: =AVERAGE(E10:H10) -> 200477 | G7: =MEDIAN(E10:H10) -> 205565.5 | K7: =_xlfn.STDEV.S(L9:S9)/AVERAGE(L9:S9) -> 0.2049193683 | L7: =AVERAGE(L9:S9) -> 34.54857143 | M7: =MEDIAN(L9:S9) -> 30.91 | V7: =_xlfn.STDEV.S(W9:AD9)/AVERAGE(W9:AD9) -> 0.1241023561 | W7: =AVERAGE(W9:AD9) -> 499.0190625 | X7: =MEDIAN(W9:AD9) -> 499.45
A8: OBS: Preço sem BDI e sem motorista BDI= | E8: Preço FIPE | J8: PRODUTO | K8: MENOR (MÉDIA, MEDIANA) | L8: COT. 1 | M8: COT. 2 | N8: COT. 3 | O8: COT. 4 | P8: COT. 5 | Q8: COT. 6 | R8: COT. 7 | S8: COT. 8 | U8: PRODUTO | V8: MENOR (MÉDIA, MEDIANA) | W8: COT. 1 | X8: COT. 2 | Y8: COT. 3 | Z8: COT. 4 | AA8: COT. 5 | AB8: COT. 6 | AC8: COT. 7 | AD8: COT. 8
A9: Veículo tipo pick-up, cabine dupla - 2.0 16V 4x4 diesel Aut. | E9: Toro Ultra 2.0 16V 4x4 TB Diesel Aut. | F9: Toro Freedom 2.0 16V 4x4 TB Diesel Aut. | G9: Toro Volcano 2.0 16V 4x4 TB Diesel Aut. | H9: Toro Ranch 2.0 16V 4x4 TB Diesel Aut. | J9: LUBRIFICANTE 5W30 | K9: =SMALL(L7:M7,1) -> 30.91 | L9: 33.33 | M9: 26.9 | N9: 30.9 | O9: 30.9 | P9: 30.91 | Q9: 46 | R9: 42.9 | U9: Pneu 225/65 R17 | V9: =SMALL(W7:X7,1) -> 499.0190625 | W9: 499 | X9: 479.9 | Y9: 565.25 | Z9: 393.38 | AA9: 449.9 | AB9: =2059.44/4 -> 514.86 | AC9: =2359.85/4 -> 589.9625 | AD9: 499.9
B10: Custo Mensal (R$): | C10: =C51 -> 4885.512281 | E10: 215525 | F10: 175252 | G10: 196485 | H10: 214646
B11: Custo Diária (R$): | C11: =C10/22 -> 222.06874
B12: Custo Horário (R$): | C12: =C10/176 -> 27.7585925
A13: A | B13: Depreciação mensal do equipamento
A14: A1 | B14: Preço de Aquisição | C14: =SMALL(F7:G7,1) -> 200477
A15: A2 | B15: Tempo previsto de vida útil (meses) | C15: 36
A16: A3 | B16: Previsão de recup. Na venda do bem usado | C16: 0.7
A17: A4 | B17: Custo mensal [A1-(A3xA1)]/A2 | C17: =(C14-(C16*C14))/C15 -> 1670.641667
A18: B | B18: Juros pelo Capital empregado
A19: B1 | B19: Taxa mensal de Juros * | C19: =POWER(1+C56,1/12)-1 -> 0.01034852829
A20: B2 | B20: Juros s/depreciação/aluguel (B1xA4) | C20: =C19*C17 -> 17.28868255
A21: C | B21: Conservação e manutenção ** | C21: 0.75
A22: C1 | B22: Taxa de gastos s/a deprec. Inc. seguros (%) | C22: =C21 -> 0.75 | AF22: PREÇO DO DIESEL | AG22: 6.1
A23: C2 | B23: Incidência mensal (C1xA4) | C23: =C22*C17 -> 1252.98125 | AF23: https://precos.petrobras.com.br/sele%C3%A7%C3%A3o-de-estados-diesel
A24: D | B24: Combustível
A25: D1 | B25: Média mensal de quilômetro por veículo | C25: =130*22 -> 2860
A26: D2 | B26: Preço do litro de combustível | C26: =AG22 -> 6.1
A27: D3 | B27: Quilômetros rodados com um litro combustivel | C27: 10
A28: D4 | B28: Combustivel (D1/D3)*D2 | C28: =(C25/C27)*C26 -> 1744.6
A29: E | B29: Lubrificantes
A30: E1 | B30: Quilometragem do Contrato (D1*12) | C30: =C25*36 -> 102960
A31: E2 | B31: Franquia por troca de óleo (km) | C31: 10000
A32: E3 | B32: Preço do litro de óleo | C32: =K9 -> 30.91
A33: E4 | B33: Quantidade de litros de óleo por troca | C33: 5
A34: E5 | B34: Quantidade de dias do Contrato | C34: =365*3 -> 1095
A35: E6 | B35: Lubrificantes E = (E1*E3*E4*30)/E2*E5 | C35: =(C30*C32*C33*30)/(C31*C34) -> 43.59580274
A36: F | B36: Pneus
A37: F1 | B37: Quilometragem do Contrato | C37: =C30 -> 102960
A38: F2 | B38: Vida do Pneu em quilômetros | C38: 45000
A39: F3 | B39: Quantidade de pneus | C39: 5
A40: F4 | B40: Preço do Pneu | C40: =V9 -> 499.0190625
A41: F5 | B41: Quantidade de dias do contrato | C41: =C34 -> 1095
A42: F6 | B42: Pneus = (F1*F3*F4*30)/(F2*F5) | C42: =(C37*C39*C40*30)/(C38*C41) -> 156.4048788
A43: G | B43: Motorista
A44: G1 | B44: Salário com encargos sociais | C44: 0
A45: H | B45: Custo Mensal
B46: Sem Motorista (A4+B2+C2+D4+E6+F6) | C46: =C17+C20+C23+C28+C35+C42 -> 4885.512281
B47: Com Motorista (A4+B2+C2+D4+E6+F6+G1) | C47: =C17+C20+C23+C28+C35+C42+C44 -> 4885.512281
A48: I | B48: Custo Direto p/ km Rodado
B49: Sem Motorista | C49: =C46/C25 -> 1.708221077
B50: Com Motorista | C50: =C47/C25 -> 1.708221077
A51: J | B51: Preço cobrado sem BDI | C51: =C46*(1+C8) -> 4885.512281
A52: J1 | B52: Sem Motorista | C52: =C51 -> 4885.512281
A53: J2 | B53: Com Motorista | C53: =C47 -> 4885.512281 | I53: https://www.google.com/search?q=lubrificante+5w30+1l&sa=X&sca_esv=c77f5342bf7e367a&tbm=shop&ei=e0uKZ-DcDNKp5OUPkOKj6QY&ved=0ahUKEwighoOy3_yKAxXSFLkGHRDxKG0Q4dUDCAg&uact=5&oq=lubrificante+5w30+1l&gs_lp=Egtwcm9kdWN0cy1jYyIUbHVicmlmaWNhbnRlIDV3MzAgMWxIgQ9Q4AlY8Q1wAHgAkAEAmAFroAGgA6oBAzEuM7gBA8gBAPgBAZgCAqAC0gHCAgUQABiABMICBhAAGAcYHsICBhAAGAgYHsICBhAAGBYYHpgDAIgGAZIHAzEuMaAHxQU&sclient=products-cc | T53: https://www.google.com/search?q=pneu+225%2F65+R17&sa=X&biw=1600&bih=757&tbm=shop&sxsrf=AJOqlzWsb-d4PS1_OUOEhKmRc2RbtSg3RQ%3A1677092596279&ei=9Gb2Y9K5ENTa5OUPvLykGA&ved=0ahUKEwjSg9Pj6Kn9AhVULbkGHTweCQMQ4dUDCAg&uact=5&oq=pneu+225%2F65+R17&gs_lcp=Cgtwcm9kdWN0cy1jYxADMgsIABCABBCxAxCDATIFCAAQgAQyBwgAEIAEEAoyBwgAEIAEEAoyBwgAEIAEEAoyBwgAEIAEEAoyBwgAEIAEEAoyBQgAEIAEMgcIABCABBAKMgcIABCABBAKOgQIIxAnOgQIABBDSgQIQRgAUABYoTJgqUBoAHAAeACAAdIFiAGUKZIBDTAuMi42LjIuMi4yLjGYAQCgAQHAAQE&sclient=products-cc
B55: OBSERVAÇÕES:
A56: * | B56: Calculado com base na taxa SELIC JANEIRO/2025: | C56: 0.1315
B57: Taxa de Juros Selic — Português (Brasil) (www.gov.br)
A58: ** | B58: Conservação e manutenção - é calculado com o uso de um coeficiente multiplicador "k", conforme tabela abaixo, sobre a
B59: depreciação mensal do equipamento (Item A da planilha de composição de preços). Os valores de K são fornecidos por
B60: fabricantes.
B61: Metodologia conforme a bibliografia "Como Preparar Orçamentos de Obras", 3 edição, Aldo Dórea Mattos, 2019.

Sheet CPU HOSPEDAGEM
B2: Engenharia Consultiva da Codevasf
B3: CPU - HOSPEDAGEM EQUIPE DE CAMPO (4 PESSOAS/MÊS) | D3: Código/Referencia
B4: ALUGUEL | C4: 3074.56 | D4: F020003334/EMBASA insumo
B5: Aquisição de Mobiliário | C5: =41.81*C16 -> 167.24 | D5: B8954/DNIT
B6: Material de limpeza e diarista | C6: =129.46+(123*8) -> 1113.46 | D6: 10563/ORSE - E200300131/EMBASA
B7: manutenção da casa alugada - Serviços Gerais/Vigia | C7: 2843.4 | D7: 41096/SINAPI
B8: Energia | C8: 180 | D8: 10555/ORSE
B9: Água | C9: 394.99 | D9: 10554/ORSE
B10: telefone/Internet | C10: =154.99+89 -> 243.99 | D10: 10557/10558/ORSE
B11: IPTU (mês) | C11: =(C4*0.5)/12 -> 128.1066667
B13: Custo Mensal: | C13: =SUM(C4:C12) -> 8145.746667
B14: Custo Mensal por pessoa: | C14: =C13/C16 -> 2036.436667
B15: Custo diário por pessoa: | C15: =C14/22 -> 92.56530303
B16: número de pessoas: | C16: 4
B17: Alimentação: | C17: 100.59 | D17: Tabela Diária Codevasf 2025
B19: Diária Total (alimentação + hospedagem): | C19: =C15+C17 -> 193.155303

Sheet Cotação
A3: ITEM | B3: EMPRESA | G3: ORÇADO POR | H3: DESCRIÇÃO / OBSERVAÇÃO | I3: UNID | J3: QUANT | K3: LINK OU LOCAL DO ARQUIVO | L3: VALOR
B4: DATA | C4: EMPRESA / CNPJ | D4: RESPONSÁVEL | E4: ENDEREÇO | F4: CONTATO | L4: MAT | M4: MDO | N4: TRANSPORTE | O4: TOTAL
A6: 1 | B6: 2024-05-16 | C6: POLIMEDIÇÃO COMERCIAL | D6: Preço na loja online | E6: R. Arlete, 151 - Jardim Penha - São Paulo - SP | F6: Tel: (11) 4328-3003 WhatsApp: (11) 98575-6343 polimedicao@gmail.com | G6: Murilo | H6: Régua linimétrica em alumínio 2 X 70 X 1000MM | I6: un | J6: 1 | K6: https://www.polimedicao.com.br/product-page/r%C3%A9gua-linim%C3%A9trica-em-chapa-de-aluminio-2-x-70-x-1000mm | L6: 160 | O6: =SUM(L6:N6) -> 160
A7: 2 | B7: 2024-05-16 | C7: Gravametal | D7: Preço na loja online | E7: Rua Uniflor, 1012 - Emiliano Perneta Pinhais - Paraná - CEP: 83324-227 | F7: ☎ (41) 3403-0144 ✆ (41) 99672-9692 ✉ gravametal@gmail.com | G7: Murilo | H7: Régua linimétrica em alumínio 2 X 70 X 1000MM | I7: un | J7: 1 | K7: https://www.gravametal.com.br/product-page/r%C3%A9gua-linim%C3%A9trica-fluviom%C3%A9trica-1000x70x2mm | L7: 209.9 | O7: =SUM(L7:N7) -> 209.9
A8: 4 | B8: 2024-04-09 | C8: Dualbase | D8: Consulta via email | E8: Av. Gentil Reinaldo Cordioli, 157 - CEP 88133-500 - Palhoça/SC | F8: Tel: (48) 3342 5202 adriano@dualbase.com.br | G8: Murilo | H8: Régua linimétrica em alumínio 2 X 70 X 1000MM | I8: un | J8: 1 | K8: www.dualbase.com.br | O8: 185
N9: Média | O9: =AVERAGE(O6:O8) -> 184.9666667
N10: Mediana | O10: =MEDIAN(O6:O8) -> 185
N11: Menor | O11: =SMALL(O9:O10,1) -> 184.9666667

Sheet Comp SINAPI PE 12-2024 Onerado (hidden)
A1: PCI.817.01 - CUSTO DE COMPOSIÇÕES - SINTÉTICO DATA DE EMISSÃO: 13/01/2025 23:37:49 DATA DE RT: 13/01/2025
A2: ENCARGOS SOCIAIS SOBRE PREÇOS DA MÃO-DE-OBRA: 113,98%(HORA) 70,00%(MÊS)
A3: ABRANGÊNCIA : NACIONAL LOCALIDADE : RECIFE DATA DE PREÇO : 12/2024 REFERÊNCIA COLETA : MEDIANO
A5: DESCRICAO DA CLASSE | B5: SIGLA DA CLASSE | C5: DESCRICAO DO TIPO 1 | D5: SIGLA DO TIPO 1 | E5: CODIGO DO AGRUPADOR | F5: DESCRICAO DO AGRUPADOR | G5: CODIGO DA COMPOSICAO | H5: DESCRICAO DA COMPOSICAO | I5: UNIDADE | J5: ORIGEM DE PREÇO | K5: CUSTO TOTAL | L5: VINCULO
A7: ASSENTAMENTO DE TUBOS E PECAS | B7: ASTU | C7: FORNEC E/OU ASSENT DE TUBO DE FERRO FUNDIDO JUNTA ELASTICA | D7: 45 | G7: 97141 | H7: ASSENTAMENTO DE TUBO DE FERRO FUNDIDO PARA REDE DE ÁGUA, DN 80 MM, JUNTA ELÁSTICA, INSTALADO EM LOCAL COM NÍVEL ALTO DE INTERFERÊNCIAS (NÃO INCLUI FORNECIMENTO). AF_05/2024 | I7: M | J7: COEFICIENTE DE REPRESENTATIVIDADE | K7: 4.53 | L7: CAIXA REFERENCIAL
A8: ASSENTAMENTO DE TUBOS E PECAS | B8: ASTU | C8: FORNEC E/OU ASSENT DE TUBO DE FERRO FUNDIDO JUNTA ELASTICA | D8: 45 | G8: 97142 | H8: ASSENTAMENTO DE TUBO DE FERRO FUNDIDO PARA REDE DE ÁGUA, DN 100 MM, JUNTA ELÁSTICA, INSTALADO EM LOCAL COM NÍVEL ALTO DE INTERFERÊNCIAS (NÃO INCLUI FORNECIMENTO). AF_05/2024 | I8: M | J8: COEFICIENTE DE REPRESENTATIVIDADE | K8: 5.22 | L8: CAIXA REFERENCIAL
A9: ASSENTAMENTO DE TUBOS E PECAS | B9: ASTU | C9: FORNEC E/OU ASSENT DE TUBO DE FERRO FUNDIDO JUNTA ELASTICA | D9: 45 | G9: 97143 | H9: ASSENTAMENTO DE TUBO DE FERRO FUNDIDO PARA REDE DE ÁGUA, DN 150 MM, JUNTA ELÁSTICA, INSTALADO EM LOCAL COM NÍVEL ALTO DE INTERFERÊNCIAS (NÃO INCLUI FORNECIMENTO). AF_05/2024 | I9: M | J9: COEFICIENTE DE REPRESENTATIVIDADE | K9: 6.88 | L9: CAIXA REFERENCIAL
A10: ASSENTAMENTO DE TUBOS E PECAS | B10: ASTU | C10: FORNEC E/OU ASSENT DE TUBO DE FERRO FUNDIDO JUNTA ELASTICA | D10: 45 | G10: 97144 | H10: ASSENTAMENTO DE TUBO DE FERRO FUNDIDO PARA REDE DE ÁGUA, DN 200 MM, JUNTA ELÁSTICA, INSTALADO EM LOCAL COM NÍVEL ALTO DE INTERFERÊNCIAS (NÃO INCLUI FORNECIMENTO). AF_05/2024 | I10: M | J10: COEFICIENTE DE REPRESENTATIVIDADE | K10: 8.54 | L10: CAIXA REFERENCIAL
A11: ASSENTAMENTO DE TUBOS E PECAS | B11: ASTU | C11: FORNEC E/OU ASSENT DE TUBO DE FERRO FUNDIDO JUNTA ELASTICA | D11: 45 | G11: 97145 | H11: ASSENTAMENTO DE TUBO DE FERRO FUNDIDO PARA REDE DE ÁGUA, DN 250 MM, JUNTA ELÁSTICA, INSTALADO EM LOCAL COM NÍVEL ALTO DE INTERFERÊNCIAS (NÃO INCLUI FORNECIMENTO). AF_05/2024 | I11: M | J11: COEFICIENTE DE REPRESENTATIVIDADE | K11: 10.23 | L11: CAIXA REFERENCIAL
A12: ASSENTAMENTO DE TUBOS E PECAS | B12: ASTU | C12: FORNEC E/OU ASSENT DE TUBO DE FERRO FUNDIDO JUNTA ELASTICA | D12: 45 | G12: 97146 | H12: ASSENTAMENTO DE TUBO DE FERRO FUNDIDO PARA REDE DE ÁGUA, DN 300 MM, JUNTA ELÁSTICA, INSTALADO EM LOCAL COM NÍVEL ALTO DE INTERFERÊNCIAS (NÃO INCLUI FORNECIMENTO). AF_05/2024 | I12: M | J12: COEFICIENTE DE REPRESENTATIVIDADE | K12: 11.9 | L12: CAIXA REFERENCIAL
A13: ASSENTAMENTO DE TUBOS E PECAS | B13: ASTU | C13: FORNEC E/OU ASSENT DE TUBO DE FERRO FUNDIDO JUNTA ELASTICA | D13: 45 | G13: 97147 | H13: ASSENTAMENTO DE TUBO DE FERRO FUNDIDO PARA REDE DE ÁGUA, DN 350 MM, JUNTA ELÁSTICA, INSTALADO EM LOCAL COM NÍVEL ALTO DE INTERFERÊNCIAS (NÃO INCLUI FORNECIMENTO). AF_05/2024 | I13: M | J13: COEFICIENTE DE REPRESENTATIVIDADE | K13: 13.58 | L13: CAIXA REFERENCIAL
A14: ASSENTAMENTO DE TUBOS E PECAS | B14: ASTU | C14: FORNEC E/OU ASSENT DE TUBO DE FERRO FUNDIDO JUNTA ELASTICA | D14: 45 | G14: 97148 | H14: ASSENTAMENTO DE TUBO DE FERRO FUNDIDO PARA REDE DE ÁGUA, DN 400 MM, JUNTA ELÁSTICA, INSTALADO EM LOCAL COM NÍVEL ALTO DE INTERFERÊNCIAS (NÃO INCLUI FORNECIMENTO). AF_05/2024 | I14: M | J14: COEFICIENTE DE REPRESENTATIVIDADE | K14: 15.26 | L14: CAIXA REFERENCIAL
A15: ASSENTAMENTO DE TUBOS E PECAS | B15: ASTU | C15: FORNEC E/OU ASSENT DE TUBO DE FERRO FUNDIDO JUNTA ELASTICA | D15: 45 | G15: 97149 | H15: ASSENTAMENTO DE TUBO DE FERRO FUNDIDO PARA REDE DE ÁGUA, DN 450 MM, JUNTA ELÁSTICA, INSTALADO EM LOCAL COM NÍVEL ALTO DE INTERFERÊNCIAS (NÃO INCLUI FORNECIMENTO). AF_05/2024 | I15: M | J15: COEFICIENTE DE REPRESENTATIVIDADE | K15: 16.98 | L15: CAIXA REFERENCIAL
A16: ASSENTAMENTO DE TUBOS E PECAS | B16: ASTU | C16: FORNEC E/OU ASSENT DE TUBO DE FERRO FUNDIDO JUNTA ELASTICA | D16: 45 | G16: 97150 | H16: ASSENTAMENTO DE TUBO DE FERRO FUNDIDO PARA REDE DE ÁGUA, DN 500 MM, JUNTA ELÁSTICA, INSTALADO EM LOCAL COM NÍVEL ALTO DE INTERFERÊNCIAS (NÃO INCLUI FORNECIMENTO). AF_05/2024 | I16: M | J16: COEFICIENTE DE REPRESENTATIVIDADE | K16: 21.79 | L16: CAIXA REFERENCIAL
A17: ASSENTAMENTO DE TUBOS E PECAS | B17: ASTU | C17: FORNEC E/OU ASSENT DE TUBO DE FERRO FUNDIDO JUNTA ELASTICA | D17: 45 | G17: 97151 | H17: ASSENTAMENTO DE TUBO DE FERRO FUNDIDO PARA REDE DE ÁGUA, DN 600 MM, JUNTA ELÁSTICA, INSTALADO EM LOCAL COM NÍVEL ALTO DE INTERFERÊNCIAS (NÃO INCLUI FORNECIMENTO). AF_05/2024 | I17: M | J17: COEFICIENTE DE REPRESENTATIVIDADE | K17: 25.67 | L17: CAIXA REFERENCIAL
A18: ASSENTAMENTO DE TUBOS E PECAS | B18: ASTU | C18: FORNEC E/OU ASSENT DE TUBO DE FERRO FUNDIDO JUNTA ELASTICA | D18: 45 | G18: 97152 | H18: ASSENTAMENTO DE TUBO DE FERRO FUNDIDO PARA REDE DE ÁGUA, DN 700 MM, JUNTA ELÁSTICA, INSTALADO EM LOCAL COM NÍVEL ALTO DE INTERFERÊNCIAS (NÃO INCLUI FORNECIMENTO). AF_05/2024 | I18: M | J18: COEFICIENTE DE REPRESENTATIVIDADE | K18: 29.3 | L18: CAIXA REFERENCIAL
A19: ASSENTAMENTO DE TUBOS E PECAS | B19: ASTU | C19: FORNEC E/OU ASSENT DE TUBO DE FERRO FUNDIDO JUNTA ELASTICA | D19: 45 | G19: 97153 | H19: ASSENTAMENTO DE TUBO DE FERRO FUNDIDO PARA REDE DE ÁGUA, DN 800 MM, JUNTA ELÁSTICA, INSTALADO EM LOCAL COM NÍVEL ALTO DE INTERFERÊNCIAS (NÃO INCLUI FORNECIMENTO). AF_05/2024 | I19: M | J19: COEFICIENTE DE REPRESENTATIVIDADE | K19: 33.1 | L19: CAIXA REFERENCIAL
A20: ASSENTAMENTO DE TUBOS E PECAS | B20: ASTU | C20: FORNEC E/OU ASSENT DE TUBO DE FERRO FUNDIDO JUNTA ELASTICA | D20: 45 | G20: 97154 | H20: ASSENTAMENTO DE TUBO DE FERRO FUNDIDO PARA REDE DE ÁGUA, DN 900 MM, JUNTA ELÁSTICA, INSTALADO EM LOCAL COM NÍVEL ALTO DE INTERFERÊNCIAS (NÃO INCLUI FORNECIMENTO). AF_05/2024 | I20: M | J20: COEFICIENTE DE REPRESENTATIVIDADE | K20: 36.91 | L20: CAIXA REFERENCIAL
A21: ASSENTAMENTO DE TUBOS E PECAS | B21: ASTU | C21: FORNEC E/OU ASSENT DE TUBO DE FERRO FUNDIDO JUNTA ELASTICA | D21: 45 | G21: 97155 | H21: ASSENTAMENTO DE TUBO DE FERRO FUNDIDO PARA REDE DE ÁGUA, DN 1000 MM, JUNTA ELÁSTICA, INSTALADO EM LOCAL COM NÍVEL ALTO DE INTERFERÊNCIAS (NÃO INCLUI FORNECIMENTO). AF_05/2024 | I21: M | J21: COEFICIENTE DE REPRESENTATIVIDADE | K21: 40.73 | L21: CAIXA REFERENCIAL
A22: ASSENTAMENTO DE TUBOS E PECAS | B22: ASTU | C22: FORNEC E/OU ASSENT DE TUBO DE FERRO FUNDIDO JUNTA ELASTICA | D22: 45 | G22: 97156 | H22: ASSENTAMENTO DE TUBO DE FERRO FUNDIDO PARA REDE DE ÁGUA, DN 1200 MM, JUNTA ELÁSTICA, INSTALADO EM LOCAL COM NÍVEL ALTO DE INTERFERÊNCIAS (NÃO INCLUI FORNECIMENTO). AF_05/2024 | I22: M | J22: COEFICIENTE DE REPRESENTATIVIDADE | K22: 48.75 | L22: CAIXA REFERENCIAL
A23: ASSENTAMENTO DE TUBOS E PECAS | B23: ASTU | C23: FORNEC E/OU ASSENT DE TUBO DE FERRO FUNDIDO JUNTA ELASTICA | D23: 45 | G23: 97157 | H23: ASSENTAMENTO DE TUBO DE FERRO FUNDIDO PARA REDE DE ÁGUA, DN 80 MM, JUNTA ELÁSTICA, INSTALADO EM LOCAL COM NÍVEL BAIXO DE INTERFERÊNCIAS (NÃO INCLUI FORNECIMENTO). AF_05/2024 | I23: M | J23: COEFICIENTE DE REPRESENTATIVIDADE | K23: 3.42 | L23: CAIXA REFERENCIAL
A24: ASSENTAMENTO DE TUBOS E PECAS | B24: ASTU | C24: FORNEC E/OU ASSENT DE TUBO DE FERRO FUNDIDO JUNTA ELASTICA | D24: 45 | G24: 97158 | H24: ASSENTAMENTO DE TUBO DE FERRO FUNDIDO PARA REDE DE ÁGUA, DN 100 MM, JUNTA ELÁSTICA, INSTALADO EM LOCAL COM NÍVEL BAIXO DE INTERFERÊNCIAS (NÃO INCLUI FORNECIMENTO). AF_05/2024 | I24: M | J24: COEFICIENTE DE REPRESENTATIVIDADE | K24: 3.98 | L24: CAIXA REFERENCIAL
A25: ASSENTAMENTO DE TUBOS E PECAS | B25: ASTU | C25: FORNEC E/OU ASSENT DE TUBO DE FERRO FUNDIDO JUNTA ELASTICA | D25: 45 | G25: 97159 | H25: ASSENTAMENTO DE TUBO DE FERRO FUNDIDO PARA REDE DE ÁGUA, DN 150 MM, JUNTA ELÁSTICA, INSTALADO EM LOCAL COM NÍVEL BAIXO DE INTERFERÊNCIAS (NÃO INCLUI FORNECIMENTO). AF_05/2024 | I25: M | J25: COEFICIENTE DE REPRESENTATIVIDADE | K25: 5.35 | L25: CAIXA REFERENCIAL
A26: ASSENTAMENTO DE TUBOS E PECAS | B26: ASTU | C26: FORNEC E/OU ASSENT DE TUBO DE FERRO FUNDIDO JUNTA ELASTICA | D26: 45 | G26: 97160 | H26: ASSENTAMENTO DE TUBO DE FERRO FUNDIDO PARA REDE DE ÁGUA, DN 200 MM, JUNTA ELÁSTICA, INSTALADO EM LOCAL COM NÍVEL BAIXO DE INTERFERÊNCIAS (NÃO INCLUI FORNECIMENTO). AF_05/2024 | I26: M | J26: COEFICIENTE DE REPRESENTATIVIDADE | K26: 6.71 | L26: CAIXA REFERENCIAL
A27: ASSENTAMENTO DE TUBOS E PECAS | B27: ASTU | C27: FORNEC E/OU ASSENT DE TUBO DE FERRO FUNDIDO JUNTA ELASTICA | D27: 45 | G27: 97161 | H27: ASSENTAMENTO DE TUBO DE FERRO FUNDIDO PARA REDE DE ÁGUA, DN 250 MM, JUNTA ELÁSTICA, INSTALADO EM LOCAL COM NÍVEL BAIXO DE INTERFERÊNCIAS (NÃO INCLUI FORNECIMENTO). AF_05/2024 | I27: M | J27: COEFICIENTE DE REPRESENTATIVIDADE | K27: 8.11 | L27: CAIXA REFERENCIAL
A28: ASSENTAMENTO DE TUBOS E PECAS | B28: ASTU | C28: FORNEC E/OU ASSENT DE TUBO DE FERRO FUNDIDO JUNTA ELASTICA | D28: 45 | G28: 97162 | H28: ASSENTAMENTO DE TUBO DE FERRO FUNDIDO PARA REDE DE ÁGUA, DN 300 MM, JUNTA ELÁSTICA, INSTALADO EM LOCAL COM NÍVEL BAIXO DE INTERFERÊNCIAS (NÃO INCLUI FORNECIMENTO). AF_05/2024 | I28: M | J28: COEFICIENTE DE REPRESENTATIVIDADE | K28: 9.49 | L28: CAIXA REFERENCIAL
A29: ASSENTAMENTO DE TUBOS E PECAS | B29: ASTU | C29: FORNEC E/OU ASSENT DE TUBO DE FERRO FUNDIDO JUNTA ELASTICA | D29: 45 | G29: 97163 | H29: ASSENTAMENTO DE TUBO DE FERRO FUNDIDO PARA REDE DE ÁGUA, DN 350 MM, JUNTA ELÁSTICA, INSTALADO EM LOCAL COM NÍVEL BAIXO DE INTERFERÊNCIAS (NÃO INCLUI FORNECIMENTO). AF_05/2024 | I29: M | J29: COEFICIENTE DE REPRESENTATIVIDADE | K29: 10.88 | L29: CAIXA REFERENCIAL
A30: ASSENTAMENTO DE TUBOS E PECAS | B30: ASTU | C30: FORNEC E/OU ASSENT DE TUBO DE FERRO FUNDIDO JUNTA ELASTICA | D30: 45 | G30: 97164 | H30: ASSENTAMENTO DE TUBO DE FERRO FUNDIDO PARA REDE DE ÁGUA, DN 400 MM, JUNTA ELÁSTICA, INSTALADO EM LOCAL COM NÍVEL BAIXO DE INTERFERÊNCIAS (NÃO INCLUI FORNECIMENTO). AF_05/2024 | I30: M | J30: COEFICIENTE DE REPRESENTATIVIDADE | K30: 12.26 | L30: CAIXA REFERENCIAL
A31: ASSENTAMENTO DE TUBOS E PECAS | B31: ASTU | C31: FORNEC E/OU ASSENT DE TUBO DE FERRO FUNDIDO JUNTA ELASTICA | D31: 45 | G31: 97165 | H31: ASSENTAMENTO DE TUBO DE FERRO FUNDIDO PARA REDE DE ÁGUA, DN 450 MM, JUNTA ELÁSTICA, INSTALADO EM LOCAL COM NÍVEL BAIXO DE INTERFERÊNCIAS (NÃO INCLUI FORNECIMENTO). AF_05/2024 | I31: M | J31: COEFICIENTE DE REPRESENTATIVIDADE | K31: 13.66 | L31: CAIXA REFERENCIAL
A32: ASSENTAMENTO DE TUBOS E PECAS | B32: ASTU | C32: FORNEC E/OU ASSENT DE TUBO DE FERRO FUNDIDO JUNTA ELASTICA | D32: 45 | G32: 97166 | H32: ASSENTAMENTO DE TUBO DE FERRO FUNDIDO PARA REDE DE ÁGUA, DN 500 MM, JUNTA ELÁSTICA, INSTALADO EM LOCAL COM NÍVEL BAIXO DE INTERFERÊNCIAS (NÃO INCLUI FORNECIMENTO). AF_05/2024 | I32: M | J32: COEFICIENTE DE REPRESENTATIVIDADE | K32: 17.18 | L32: CAIXA REFERENCIAL
A33: ASSENTAMENTO DE TUBOS E PECAS | B33: ASTU | C33: FORNEC E/OU ASSENT DE TUBO DE FERRO FUNDIDO JUNTA ELASTICA | D33: 45 | G33: 97167 | H33: ASSENTAMENTO DE TUBO DE FERRO FUNDIDO PARA REDE DE ÁGUA, DN 600 MM, JUNTA ELÁSTICA, INSTALADO EM LOCAL COM NÍVEL BAIXO DE INTERFERÊNCIAS (NÃO INCLUI FORNECIMENTO). AF_05/2024 | I33: M | J33: COEFICIENTE DE REPRESENTATIVIDADE | K33: 20.3 | L33: CAIXA REFERENCIAL
A34: ASSENTAMENTO DE TUBOS E PECAS | B34: ASTU | C34: FORNEC E/OU ASSENT DE TUBO DE FERRO FUNDIDO JUNTA ELASTICA | D34: 45 | G34: 97168 | H34: ASSENTAMENTO DE TUBO DE FERRO FUNDIDO PARA REDE DE ÁGUA, DN 700 MM, JUNTA ELÁSTICA, INSTALADO EM LOCAL COM NÍVEL BAIXO DE INTERFERÊNCIAS (NÃO INCLUI FORNECIMENTO). AF_05/2024 | I34: M | J34: COEFICIENTE DE REPRESENTATIVIDADE | K34: 23.2 | L34: CAIXA REFERENCIAL
A35: ASSENTAMENTO DE TUBOS E PECAS | B35: ASTU | C35: FORNEC E/OU ASSENT DE TUBO DE FERRO FUNDIDO JUNTA ELASTICA | D35: 45 | G35: 97169 | H35: ASSENTAMENTO DE TUBO DE FERRO FUNDIDO PARA REDE DE ÁGUA, DN 800 MM, JUNTA ELÁSTICA, INSTALADO EM LOCAL COM NÍVEL BAIXO DE INTERFERÊNCIAS (NÃO INCLUI FORNECIMENTO). AF_05/2024 | I35: M | J35: COEFICIENTE DE REPRESENTATIVIDADE | K35: 26.24 | L35: CAIXA REFERENCIAL
A36: ASSENTAMENTO DE TUBOS E PECAS | B36: ASTU | C36: FORNEC E/OU ASSENT DE TUBO DE FERRO FUNDIDO JUNTA ELASTICA | D36: 45 | G36: 97170 | H36: ASSENTAMENTO DE TUBO DE FERRO FUNDIDO PARA REDE DE ÁGUA, DN 900 MM, JUNTA ELÁSTICA, INSTALADO EM LOCAL COM NÍVEL BAIXO DE INTERFERÊNCIAS (NÃO INCLUI FORNECIMENTO). AF_05/2024 | I36: M | J36: COEFICIENTE DE REPRESENTATIVIDADE | K36: 29.32 | L36: CAIXA REFERENCIAL
A37: ASSENTAMENTO DE TUBOS E PECAS | B37: ASTU | C37: FORNEC E/OU ASSENT DE TUBO DE FERRO FUNDIDO JUNTA ELASTICA | D37: 45 | G37: 97171 | H37: ASSENTAMENTO DE TUBO DE FERRO FUNDIDO PARA REDE DE ÁGUA, DN 1000 MM, JUNTA ELÁSTICA, INSTALADO EM LOCAL COM NÍVEL BAIXO DE INTERFERÊNCIAS (NÃO INCLUI FORNECIMENTO). AF_05/2024 | I37: M | J37: COEFICIENTE DE REPRESENTATIVIDADE | K37: 32.4 | L37: CAIXA REFERENCIAL
A38: ASSENTAMENTO DE TUBOS E PECAS | B38: ASTU | C38: FORNEC E/OU ASSENT DE TUBO DE FERRO FUNDIDO JUNTA ELASTICA | D38: 45 | G38: 97172 | H38: ASSENTAMENTO DE TUBO DE FERRO FUNDIDO PARA REDE DE ÁGUA, DN 1200 MM, JUNTA ELÁSTICA, INSTALADO EM LOCAL COM NÍVEL BAIXO DE INTERFERÊNCIAS (NÃO INCLUI FORNECIMENTO). AF_05/2024 | I38: M | J38: COEFICIENTE DE REPRESENTATIVIDADE | K38: 38.93 | L38: CAIXA REFERENCIAL
A39: ASSENTAMENTO DE TUBOS E PECAS | B39: ASTU | C39: FORNEC E/OU ASSENT DE TUBO DE FERRO FUNDIDO JUNTA ELASTICA | D39: 45 | G39: 105249 | H39: ASSENTAMENTO DE CONEXÃO 2 ACESSOS ALINHADOS DE FERRO FUNDIDO PARA REDE DE ÁGUA, DN 1200, JUNTA ELÁSTICA, INSTALADO EM LOCAL COM NÍVEL ALTO DE INTERFERÊNCIAS (NÃO INCLUI FORNECIMENTO). AF_05/2024 | I39: UN | J39: COEFICIENTE DE REPRESENTATIVIDADE | K39: 107.66 | L39: CAIXA REFERENCIAL
A40: ASSENTAMENTO DE TUBOS E PECAS | B40: ASTU | C40: FORNEC E/OU ASSENT DE TUBO DE FERRO FUNDIDO JUNTA ELASTICA | D40: 45 | G40: 105250 | H40: ASSENTAMENTO DE CONEXÃO 2 ACESSOS INCLINADOS DE FERRO FUNDIDO PARA REDE DE ÁGUA, DN 80, JUNTA ELÁSTICA, INSTALADO EM LOCAL COM NÍVEL ALTO DE INTERFERÊNCIAS (NÃO INCLUI FORNECIMENTO). AF_05/2024 | I40: UN | J40: COEFICIENTE DE REPRESENTATIVIDADE | K40: 14.35 | L40: CAIXA REFERENCIAL
A41: ASSENTAMENTO DE TUBOS E PECAS | B41: ASTU | C41: FORNEC E/OU ASSENT DE TUBO DE FERRO FUNDIDO JUNTA ELASTICA | D41: 45 | G41: 105251 | H41: ASSENTAMENTO DE CONEXÃO 2 ACESSOS INCLINADOS DE FERRO FUNDIDO PARA REDE DE ÁGUA, DN 100, JUNTA ELÁSTICA, INSTALADO EM LOCAL COM NÍVEL ALTO DE INTERFERÊNCIAS (NÃO INCLUI FORNECIMENTO). AF_05/2024 | I41: UN | J41: COEFICIENTE DE REPRESENTATIVIDADE | K41: 16.47 | L41: CAIXA REFERENCIAL
A42: ASSENTAMENTO DE TUBOS E PECAS | B42: ASTU | C42: FORNEC E/OU ASSENT DE TUBO DE FERRO FUNDIDO JUNTA ELASTICA | D42: 45 | G42: 105252 | H42: ASSENTAMENTO DE CONEXÃO 2 ACESSOS INCLINADOS DE FERRO FUNDIDO PARA REDE DE ÁGUA, DN 150, JUNTA ELÁSTICA, INSTALADO EM LOCAL COM NÍVEL ALTO DE INTERFERÊNCIAS (NÃO INCLUI FORNECIMENTO). AF_05/2024 | I42: UN | J42: COEFICIENTE DE REPRESENTATIVIDADE | K42: 21.7 | L42: CAIXA REFERENCIAL
A43: ASSENTAMENTO DE TUBOS E PECAS | B43: ASTU | C43: FORNEC E/OU ASSENT DE TUBO DE FERRO FUNDIDO JUNTA ELASTICA | D43: 45 | G43: 105253 | H43: ASSENTAMENTO DE CONEXÃO 2 ACESSOS INCLINADOS DE FERRO FUNDIDO PARA REDE DE ÁGUA, DN 200, JUNTA ELÁSTICA, INSTALADO EM LOCAL COM NÍVEL ALTO DE INTERFERÊNCIAS (NÃO INCLUI FORNECIMENTO). AF_05/2024 | I43: UN | J43: COEFICIENTE DE REPRESENTATIVIDADE | K43: 26.92 | L43: CAIXA REFERENCIAL
A44: ASSENTAMENTO DE TUBOS E PECAS | B44: ASTU | C44: FORNEC E/OU ASSENT DE TUBO DE FERRO FUNDIDO JUNTA ELASTICA | D44: 45 | G44: 105254 | H44: ASSENTAMENTO DE CONEXÃO 2 ACESSOS INCLINADOS DE FERRO FUNDIDO PARA REDE DE ÁGUA, DN 250, JUNTA ELÁSTICA, INSTALADO EM LOCAL COM NÍVEL ALTO DE INTERFERÊNCIAS (NÃO INCLUI FORNECIMENTO). AF_05/2024 | I44: UN | J44: COEFICIENTE DE REPRESENTATIVIDADE | K44: 32.28 | L44: CAIXA REFERENCIAL
A45: ASSENTAMENTO DE TUBOS E PECAS | B45: ASTU | C45: FORNEC E/OU ASSENT DE TUBO DE FERRO FUNDIDO JUNTA ELASTICA | D45: 45 | G45: 105255 | H45: ASSENTAMENTO DE CONEXÃO 2 ACESSOS INCLINADOS DE FERRO FUNDIDO PARA REDE DE ÁGUA, DN 300, JUNTA ELÁSTICA, INSTALADO EM LOCAL COM NÍVEL ALTO DE INTERFERÊNCIAS (NÃO INCLUI FORNECIMENTO). AF_05/2024 | I45: UN | J45: COEFICIENTE DE REPRESENTATIVIDADE | K45: 37.65 | L45: CAIXA REFERENCIAL
A46: ASSENTAMENTO DE TUBOS E PECAS | B46: ASTU | C46: FORNEC E/OU ASSENT DE TUBO DE FERRO FUNDIDO JUNTA ELASTICA | D46: 45 | G46: 105256 | H46: ASSENTAMENTO DE CONEXÃO 2 ACESSOS INCLINADOS DE FERRO FUNDIDO PARA REDE DE ÁGUA, DN 350, JUNTA ELÁSTICA, INSTALADO EM LOCAL COM NÍVEL ALTO DE INTERFERÊNCIAS (NÃO INCLUI FORNECIMENTO). AF_05/2024 | I46: UN | J46: COEFICIENTE DE REPRESENTATIVIDADE | K46: 43 | L46: CAIXA REFERENCIAL
A47: ASSENTAMENTO DE TUBOS E PECAS | B47: ASTU | C47: FORNEC E/OU ASSENT DE TUBO DE FERRO FUNDIDO JUNTA ELASTICA | D47: 45 | G47: 105257 | H47: ASSENTAMENTO DE CONEXÃO 2 ACESSOS INCLINADOS DE FERRO FUNDIDO PARA REDE DE ÁGUA, DN 400, JUNTA ELÁSTICA, INSTALADO EM LOCAL COM NÍVEL ALTO DE INTERFERÊNCIAS (NÃO INCLUI FORNECIMENTO). AF_05/2024 | I47: UN | J47: COEFICIENTE DE REPRESENTATIVIDADE | K47: 48.32 | L47: CAIXA REFERENCIAL
A48: ASSENTAMENTO DE TUBOS E PECAS | B48: ASTU | C48: FORNEC E/OU ASSENT DE TUBO DE FERRO FUNDIDO JUNTA ELASTICA | D48: 45 | G48: 105258 | H48: ASSENTAMENTO DE CONEXÃO 2 ACESSOS ALINHADOS DE FERRO FUNDIDO PARA REDE DE ÁGUA, DN 400, JUNTA ELÁSTICA, INSTALADO EM LOCAL COM NÍVEL BAIXO DE INTERFERÊNCIAS (NÃO INCLUI FORNECIMENTO). AF_05/2024 | I48: UN | J48: COEFICIENTE DE REPRESENTATIVIDADE | K48: 26.94 | L48: CAIXA REFERENCIAL
A49: ASSENTAMENTO DE TUBOS E PECAS | B49: ASTU | C49: FORNEC E/OU ASSENT DE TUBO DE FERRO FUNDIDO JUNTA ELASTICA | D49: 45 | G49: 105259 | H49: ASSENTAMENTO DE CONEXÃO 3 ACESSOS DE FERRO FUNDIDO PARA REDE DE ÁGUA, DN 100, JUNTA ELÁSTICA, INSTALADO EM LOCAL COM NÍVEL BAIXO DE INTERFERÊNCIAS (NÃO INCLUI FORNECIMENTO). AF_05/2024 | I49: UN | J49: COEFICIENTE DE REPRESENTATIVIDADE | K49: 17.46 | L49: CAIXA REFERENCIAL
A50: ASSENTAMENTO DE TUBOS E PECAS | B50: ASTU | C50: FORNEC E/OU ASSENT DE TUBO DE FERRO FUNDIDO JUNTA ELASTICA | D50: 45 | G50: 105261 | H50: ASSENTAMENTO DE CONEXÃO 2 ACESSOS ALINHADOS DE FERRO FUNDIDO PARA REDE DE ÁGUA, DN 450, JUNTA ELÁSTICA, INSTALADO EM LOCAL COM NÍVEL BAIXO DE INTERFERÊNCIAS (NÃO INCLUI FORNECIMENTO). AF_05/2024 | I50: UN | J50: COEFICIENTE DE REPRESENTATIVIDADE | K50: 30.12 | L50: CAIXA REFERENCIAL
A51: ASSENTAMENTO DE TUBOS E PECAS | B51: ASTU | C51: FORNEC E/OU ASSENT DE TUBO DE FERRO FUNDIDO JUNTA ELASTICA | D51: 45 | G51: 105262 | H51: ASSENTAMENTO DE CONEXÃO 2 ACESSOS ALINHADOS DE FERRO FUNDIDO PARA REDE DE ÁGUA, DN 500, JUNTA ELÁSTICA, INSTALADO EM LOCAL COM NÍVEL BAIXO DE INTERFERÊNCIAS (NÃO INCLUI FORNECIMENTO). AF_05/2024 | I51: UN | J51: COEFICIENTE DE REPRESENTATIVIDADE | K51: 37.59 | L51: CAIXA REFERENCIAL
A52: ASSENTAMENTO DE TUBOS E PECAS | B52: ASTU | C52: FORNEC E/OU ASSENT DE TUBO DE FERRO FUNDIDO JUNTA ELASTICA | D52: 45 | G52: 105263 | H52: ASSENTAMENTO DE CONEXÃO 2 ACESSOS ALINHADOS DE FERRO FUNDIDO PARA REDE DE ÁGUA, DN 600, JUNTA ELÁSTICA, INSTALADO EM LOCAL COM NÍVEL BAIXO DE INTERFERÊNCIAS (NÃO INCLUI FORNECIMENTO). AF_05/2024 | I52: UN | J52: COEFICIENTE DE REPRESENTATIVIDADE | K52: 44.6 | L52: CAIXA REFERENCIAL
A53: ASSENTAMENTO DE TUBOS E PECAS | B53: ASTU | C53: FORNEC E/OU ASSENT DE TUBO DE FERRO FUNDIDO JUNTA ELASTICA | D53: 45 | G53: 105264 | H53: ASSENTAMENTO DE CONEXÃO 2 ACESSOS ALINHADOS DE FERRO FUNDIDO PARA REDE DE ÁGUA, DN 700, JUNTA ELÁSTICA, INSTALADO EM LOCAL COM NÍVEL BAIXO DE INTERFERÊNCIAS (NÃO INCLUI FORNECIMENTO). AF_05/2024 | I53: UN | J53: COEFICIENTE DE REPRESENTATIVIDADE | K53: 50.97 | L53: CAIXA REFERENCIAL
A54: ASSENTAMENTO DE TUBOS E PECAS | B54: ASTU | C54: FORNEC E/OU ASSENT DE TUBO DE FERRO FUNDIDO JUNTA ELASTICA | D54: 45 | G54: 105265 | H54: ASSENTAMENTO DE CONEXÃO 2 ACESSOS ALINHADOS DE FERRO FUNDIDO PARA REDE DE ÁGUA, DN 800, JUNTA ELÁSTICA, INSTALADO EM LOCAL COM NÍVEL BAIXO DE INTERFERÊNCIAS (NÃO INCLUI FORNECIMENTO). AF_05/2024 | I54: UN | J54: COEFICIENTE DE REPRESENTATIVIDADE | K54: 57.57 | L54: CAIXA REFERENCIAL
A55: ASSENTAMENTO DE TUBOS E PECAS | B55: ASTU | C55: FORNEC E/OU ASSENT DE TUBO DE FERRO FUNDIDO JUNTA ELASTICA | D55: 45 | G55: 105266 | H55: ASSENTAMENTO DE CONEXÃO 2 ACESSOS ALINHADOS DE FERRO FUNDIDO PARA REDE DE ÁGUA, DN 900, JUNTA ELÁSTICA, INSTALADO EM LOCAL COM NÍVEL BAIXO DE INTERFERÊNCIAS (NÃO INCLUI FORNECIMENTO). AF_05/2024 | I55: UN | J55: COEFICIENTE DE REPRESENTATIVIDADE | K55: 64.38 | L55: CAIXA REFERENCIAL
A56: ASSENTAMENTO DE TUBOS E PECAS | B56: ASTU | C56: FORNEC E/OU ASSENT DE TUBO DE FERRO FUNDIDO JUNTA ELASTICA | D56: 45 | G56: 105267 | H56: ASSENTAMENTO DE CONEXÃO 2 ACESSOS ALINHADOS DE FERRO FUNDIDO PARA REDE DE ÁGUA, DN 1000, JUNTA ELÁSTICA, INSTALADO EM LOCAL COM NÍVEL BAIXO DE INTERFERÊNCIAS (NÃO INCLUI FORNECIMENTO). AF_05/2024 | I56: UN | J56: COEFICIENTE DE REPRESENTATIVIDADE | K56: 71.24 | L56: CAIXA REFERENCIAL
A57: ASSENTAMENTO DE TUBOS E PECAS | B57: ASTU | C57: FORNEC E/OU ASSENT DE TUBO DE FERRO FUNDIDO JUNTA ELASTICA | D57: 45 | G57: 105268 | H57: ASSENTAMENTO DE CONEXÃO 2 ACESSOS ALINHADOS DE FERRO FUNDIDO PARA REDE DE ÁGUA, DN 1200, JUNTA ELÁSTICA, INSTALADO EM LOCAL COM NÍVEL BAIXO DE INTERFERÊNCIAS (NÃO INCLUI FORNECIMENTO). AF_05/2024 | I57: UN | J57: COEFICIENTE DE REPRESENTATIVIDADE | K57: 87.51 | L57: CAIXA REFERENCIAL
A58: ASSENTAMENTO DE TUBOS E PECAS | B58: ASTU | C58: FORNEC E/OU ASSENT DE TUBO DE FERRO FUNDIDO JUNTA ELASTICA | D58: 45 | G58: 105269 | H58: ASSENTAMENTO DE CONEXÃO 2 ACESSOS INCLINADOS DE FERRO FUNDIDO PARA REDE DE ÁGUA, DN 80, JUNTA ELÁSTICA, INSTALADO EM LOCAL COM NÍVEL BAIXO DE INTERFERÊNCIAS (NÃO INCLUI FORNECIMENTO). AF_05/2024 | I58: UN | J58: COEFICIENTE DE REPRESENTATIVIDADE | K58: 10.93 | L58: CAIXA REFERENCIAL
A59: ASSENTAMENTO DE TUBOS E PECAS | B59: ASTU | C59: FORNEC E/OU ASSENT DE TUBO DE FERRO FUNDIDO JUNTA ELASTICA | D59: 45 | G59: 105270 | H59: ASSENTAMENTO DE CONEXÃO 2 ACESSOS INCLINADOS DE FERRO FUNDIDO PARA REDE DE ÁGUA, DN 450, JUNTA ELÁSTICA, INSTALADO EM LOCAL COM NÍVEL ALTO DE INTERFERÊNCIAS (NÃO INCLUI FORNECIMENTO). AF_05/2024 | I59: UN | J59: COEFICIENTE DE REPRESENTATIVIDADE | K59: 53.79 | L59: CAIXA REFERENCIAL
A60: ASSENTAMENTO DE TUBOS E PECAS | B60: ASTU | C60: FORNEC E/OU ASSENT DE TUBO DE FERRO FUNDIDO JUNTA ELASTICA | D60: 45 | G60: 105271 | H60: ASSENTAMENTO DE CONEXÃO 2 ACESSOS INCLINADOS DE FERRO FUNDIDO PARA REDE DE ÁGUA, DN 500, JUNTA ELÁSTICA, INSTALADO EM LOCAL COM NÍVEL ALTO DE INTERFERÊNCIAS (NÃO INCLUI FORNECIMENTO). AF_05/2024 | I60: UN | J60: COEFICIENTE DE REPRESENTATIVIDADE | K60: 68.81 | L60: CAIXA REFERENCIAL
A61: ASSENTAMENTO DE TUBOS E PECAS | B61: ASTU | C61: FORNEC E/OU ASSENT DE TUBO DE FERRO FUNDIDO JUNTA ELASTICA | D61: 45 | G61: 105272 | H61: ASSENTAMENTO DE CONEXÃO 2 ACESSOS INCLINADOS DE FERRO FUNDIDO PARA REDE DE ÁGUA, DN 600, JUNTA ELÁSTICA, INSTALADO EM LOCAL COM NÍVEL ALTO DE INTERFERÊNCIAS (NÃO INCLUI FORNECIMENTO). AF_05/2024 | I61: UN | J61: COEFICIENTE DE REPRESENTATIVIDADE | K61: 81.17 | L61: CAIXA REFERENCIAL
A62: ASSENTAMENTO DE TUBOS E PECAS | B62: ASTU | C62: FORNEC E/OU ASSENT DE TUBO DE FERRO FUNDIDO JUNTA ELASTICA | D62: 45 | G62: 105273 | H62: ASSENTAMENTO DE CONEXÃO 2 ACESSOS INCLINADOS DE FERRO FUNDIDO PARA REDE DE ÁGUA, DN 700, JUNTA ELÁSTICA, INSTALADO EM LOCAL COM NÍVEL ALTO DE INTERFERÊNCIAS (NÃO INCLUI FORNECIMENTO). AF_05/2024 | I62: UN | J62: COEFICIENTE DE REPRESENTATIVIDADE | K62: 92.87 | L62: CAIXA REFERENCIAL
A63: ASSENTAMENTO DE TUBOS E PECAS | B63: ASTU | C63: FORNEC E/OU ASSENT DE TUBO DE FERRO FUNDIDO JUNTA ELASTICA | D63: 45 | G63: 105274 | H63: ASSENTAMENTO DE CONEXÃO 2 ACESSOS INCLINADOS DE FERRO FUNDIDO PARA REDE DE ÁGUA, DN 800, JUNTA ELÁSTICA, INSTALADO EM LOCAL COM NÍVEL ALTO DE INTERFERÊNCIAS (NÃO INCLUI FORNECIMENTO). AF_05/2024 | I63: UN | J63: COEFICIENTE DE REPRESENTATIVIDADE | K63: 104.82 | L63: CAIXA REFERENCIAL
A64: ASSENTAMENTO DE TUBOS E PECAS | B64: ASTU | C64: FORNEC E/OU ASSENT DE TUBO DE FERRO FUNDIDO JUNTA ELASTICA | D64: 45 | G64: 105275 | H64: ASSENTAMENTO DE CONEXÃO 2 ACESSOS INCLINADOS DE FERRO FUNDIDO PARA REDE DE ÁGUA, DN 900, JUNTA ELÁSTICA, INSTALADO EM LOCAL COM NÍVEL ALTO DE INTERFERÊNCIAS (NÃO INCLUI FORNECIMENTO). AF_05/2024 | I64: UN | J64: COEFICIENTE DE REPRESENTATIVIDADE | K64: 116.94 | L64: CAIXA REFERENCIAL
